Workbook

Sheet 1ОиДинфоб (2)
A1: № п/п | B1: Муниципальное образование | C1: Наименование образовательной организации | D1: Показатель 1.1 | J1: Показатель 1.2 | M1: Показатель 1.3 | S1: Итого по критерию:
D2: 1.1.1. Объем информации, размещенной на информационных стендах в помещении организации | F2: 1.1.2. Объем информации, размещенной на официальном сайте организации | H2: Значение показателя 1.1 | I2: Значение показателя 1.1 с учетом значимости | J2: Количество функционирующих дистанционных способов взаимодействия | K2: Значение показателя 1.2 | L2: Значение показателя 1.2 с учетом значимости | M2: Число получателей услуг, удовлетворенных качеством, полнотой и доступностью информации о деятельности организации, размещенной на стендах организации | N2: Число опрошенных получателей услуг, ответивших на соответствующий вопрос анкеты | O2: Число получателей услуг, удовлетворенных качеством, полнотой и доступностью информации о деятельности организации, размещенной на сайте организации | P2: Число опрошенных получателей услуг, ответивших на соответствующий вопрос анкеты | Q2: Значение показателя 1.3 | R2: Значение показателя 1 .3 с учетом веса
H3: 100 | I3: 30 | K3: 100 | L3: 30 | Q3: 100 | R3: 40 | S3: =I3+L3+R3 -> 100
A4: 1 | B4: г. Алейск | C4: МБУДО «Центр детского творчества» (г. Алейск) | D4: 7 | E4: 9 | F4: 29.5 | G4: 34 | H4: =0.5*(D4/E4+F4/G4)*100 -> 82.27124183 | I4: =H4*0.3 -> 24.68137255 | J4: 6 | K4: =IF(J4<=3,J4*30,100) -> 100 | L4: =K4*0.3 -> 30 | M4: 582 | N4: 586 | O4: 529 | P4: 531 | Q4: =0.5*(M4/N4+O4/P4)*100 -> 99.47037915 | R4: =Q4*0.4 -> 39.78815166 | S4: =I4+L4+R4 -> 94.46952421
A5: 2 | B5: Алтайский район | C5: МАОУДО «Алтайский районный детско-юношеский центр» | D5: 8 | E5: 9 | F5: 34 | G5: 35 | H5: 92.5 | I5: =H5*0.3 -> 27.75 | J5: 4 | K5: =IF(J5<=3,J5*30,100) -> 100 | L5: =K5*0.3 -> 30 | M5: 498 | N5: 499 | O5: 435 | P5: 439 | Q5: =0.5*(M5/N5+O5/P5)*100 -> 99.44421873 | R5: =Q5*0.4 -> 39.77768749 | S5: 97.52768749
A6: 3 | B6: Баевский район | C6: МБУДО «Баевский Центр детского творчества и профессионального обучения Алтайского края» | D6: 9 | E6: 9 | F6: 32.5 | G6: 34 | H6: 97 | I6: 29.1 | J6: 4 | K6: 100 | L6: 30 | M6: 145 | N6: 145 | O6: 143 | P6: 143 | Q6: 100 | R6: 40 | S6: 99.1
A7: 4 | B7: г. Барнаул | C7: КГБУДО «Алтайский краевой дворец творчества детей и молодежи» | D7: 8 | E7: 9 | F7: 33 | G7: 36 | H7: 90 | I7: 27 | J7: 3 | K7: 90 | L7: 27 | M7: 417 | N7: 430 | O7: 355 | P7: 362 | Q7: 97.1 | R7: 38.84 | S7: 92.84
A8: 5 | B8: г. Барнаул | C8: КГБУДО «Алтайский краевой детский экологический центр» | D8: 9 | E8: 9 | F8: 35 | G8: 36 | H8: 99.2 | I8: 29.76 | J8: 5 | K8: 100 | L8: 30 | M8: 488 | N8: 490 | O8: 521 | P8: 521 | Q8: 99.79591837 | R8: 39.91836735 | S8: 99.67836735
A9: 6 | B9: г. Барнаул | C9: КГБУДО «Алтайский краевой центр детского отдыха, туризма и краеведения «Алтай» | D9: 8.5 | E9: 9 | F9: 34 | G9: 36 | H9: 97 | I9: 29.1 | J9: 6 | K9: 100 | L9: =K9*0.3 -> 30 | M9: 240 | N9: 241 | O9: 241 | P9: 252 | Q9: 97.9 | R9: 39.16 | S9: 98.26
A10: 7 | B10: г. Барнаул | C10: КГБУДО «Детский технопарк Алтайского края «Кванториум.22» | D10: 11 | E10: 11 | F10: 38 | G10: 38 | H10: =0.5*(D10/E10+F10/G10)*100 -> 100 | I10: 30 | J10: 4 | K10: 100 | L10: =K10*0.3 -> 30 | M10: 701 | N10: 701 | O10: 723 | P10: 723 | Q10: 100 | R10: 40 | S10: 100
A11: 8 | B11: г. Барнаул | C11: МБУДО «Барнаульский городской детско-юношеский центр» | D11: 10 | E11: 11 | F11: 35 | G11: 36 | H11: 94.06565657 | I11: 28.21969697 | J11: 5 | K11: 100 | L11: 30 | M11: 610 | N11: 615 | O11: 568 | P11: 575 | Q11: 98.98480028 | R11: 39.59392011 | S11: 97.81361708
A12: 9 | B12: г. Барнаул | C12: МБУДО «Барнаульская городская станция юных натуралистов» | D12: 10 | E12: 11 | F12: 35 | G12: 37 | H12: 93.1 | I12: 27.93 | J12: 4 | K12: 100 | L12: 30 | M12: 172 | N12: 176 | O12: 152 | P12: 155 | Q12: 97.89589443 | R12: 39.15835777 | S12: 97.08835777
A13: 10 | B13: г. Барнаул | C13: МБУДО «Барнаульская городская станция юных техников» | D13: 7.5 | E13: 9 | F13: 35.5 | G13: 36 | H13: 93.2 | I13: 27.96 | J13: 6 | K13: 100 | L13: 30 | M13: 548 | N13: 548 | O13: 497 | P13: 501 | Q13: 99.8 | R13: 39.92 | S13: 97.88
A14: 11 | B14: г. Барнаул | C14: МБУДО «Детский оздоровительно-образовательный (профильный) центр Гармония» | D14: 7.5 | E14: 9 | F14: 32 | G14: 33 | H14: 93 | I14: 27.9 | J14: 3 | K14: 90 | L14: 27 | M14: 54 | N14: 54 | O14: 51 | P14: 51 | Q14: 100 | R14: 40 | S14: 94.9
A15: 12 | B15: г. Барнаул | C15: МБУДО «Дом художественного творчества детей» (г. Барнаул) | D15: 11 | E15: 11 | F15: 36 | G15: 38 | H15: 97 | I15: 29.1 | J15: 4 | K15: 100 | L15: 30 | M15: 542 | N15: 547 | O15: 531 | P15: 536 | Q15: 99.0765437 | R15: 39.63061748 | S15: 98.73061748
A16: 13 | B16: г. Барнаул | C16: МБУДО «Детско-юношеский центр» Индустриального района г. Барнаула | D16: 10 | E16: 11 | F16: 35.5 | G16: 37 | H16: 93.1 | I16: 27.93 | J16: 5 | K16: 100 | L16: 30 | M16: 667 | N16: 670 | O16: 403 | P16: 410 | Q16: 98.92246087 | R16: 39.56898435 | S16: 97.49898435
A17: 14 | B17: г. Барнаул | C17: МБУДО «Центр детского (юношеского) технического творчества» Ленинского района г. Барнаула | D17: 9 | E17: 9 | F17: 5 | G17: 32 | H17: 58 | I17: 17.4 | J17: 3 | K17: 90 | L17: 27 | M17: 97 | N17: 97 | O17: 88 | P17: 90 | Q17: 98.88888889 | R17: 39.55555556 | S17: 83.95555556
A18: 15 | B18: г. Барнаул | C18: МБУДО «Центр детского творчества №2» г. Барнаула | D18: 9 | E18: 9 | F18: 34 | G18: 35 | H18: 98.4 | I18: 29.52 | J18: 4 | K18: 100 | L18: 30 | M18: 442 | N18: 448 | O18: 358 | P18: 364 | Q18: 98.50618132 | R18: 39.40247253 | S18: 98.92247253
A19: 16 | B19: г. Барнаул | C19: МБУДО «Центр детского творчества» Центрального района г. Барнаула | D19: 11 | E19: 11 | F19: 30.5 | G19: 37 | H19: 90.4 | I19: 27.12 | J19: 3 | K19: 90 | L19: 27 | M19: 195 | N19: 198 | O19: 174 | P19: 176 | Q19: 98.67424242 | R19: 39.46969697 | S19: 93.58969697
A20: 17 | B20: г. Барнаул | C20: МБУДО «Центр развития творчества детей и юношества» Индустриального района г. Барнаула | D20: 10 | E20: 11 | F20: 32 | G20: 38 | H20: 88.4 | I20: 26.52 | J20: 4 | K20: 100 | L20: 30 | M20: 578 | N20: 581 | O20: 510 | P20: 511 | Q20: 99.64397708 | R20: 39.85759083 | S20: 96.37759083
A21: 18 | B21: г. Барнаул | C21: МБУДО «Центр развития творчества детей и молодежи» Железнодорожного района г. Барнаула | D21: 10 | E21: 11 | F21: 30.5 | G21: 36 | H21: 87.5 | I21: 26.25 | J21: 4 | K21: 100 | L21: 30 | M21: 535 | N21: 542 | O21: 459 | P21: 469 | Q21: 98.3 | R21: 39.32 | S21: 95.57
A22: 19 | B22: г. Барнаул | C22: МБУДО «Центр физкультурно-спортивной направленности «Акцент» | D22: 9.5 | E22: 11 | F22: 31 | G22: 37 | H22: 86.5 | I22: 25.95 | J22: 3 | K22: 90 | L22: 27 | M22: 108 | N22: 108 | O22: 70 | P22: 71 | Q22: 99.29577465 | R22: 39.71830986 | S22: 92.66830986
A23: 20 | B23: г. Барнаул | C23: МБУДО Городской психолого-педагогический центр «Потенциал» | D23: 11 | E23: 11 | F23: 37 | G23: 37 | H23: 100 | I23: 30 | J23: 2 | K23: 60 | L23: 18 | M23: 655 | N23: 655 | O23: 631 | P23: 636 | Q23: 99.9 | R23: 39.96 | S23: 87.96
A24: 21 | B24: г. Барнаул | C24: МБУДО Детский оздоровительно-образовательный (профильный) центр «Валеологический центр» | D24: 11 | E24: 11 | F24: 35 | G24: 37 | H24: 97 | I24: 29.1 | J24: 4 | K24: 100 | L24: 30 | M24: 628 | N24: 628 | O24: 583 | P24: 583 | Q24: 100 | R24: 40 | S24: 99.1
A25: 22 | B25: г. Барнаул | C25: МБУДО «Детская школа искусств «Традиция» с. Власиха г. Барнаула | D25: 11 | E25: 11 | F25: 24 | G25: 36 | H25: 83.5 | I25: 25.05 | J25: 4 | K25: 100 | L25: 30 | M25: 447 | N25: 448 | O25: 370 | P25: 372 | Q25: 99.61957565 | R25: 39.84783026 | S25: 94.89783026
A26: 23 | B26: г. Барнаул | C26: МБУДО Центр внешкольной работы «Военно-спортивный клуб «Борец» | D26: 9 | E26: 9 | F26: 31 | G26: 33 | H26: 96.96969697 | I26: 29.09090909 | J26: 3 | K26: 90 | L26: 27 | M26: 78 | N26: 79 | O26: 78 | P26: 78 | Q26: 99 | R26: 39.6 | S26: 95.69090909
A27: 24 | B27: г. Барнаул | C27: МБУДО «Центр эстетического воспитания «Песнохорки» | D27: 8 | E27: 9 | F27: 28.5 | G27: 34 | H27: 86.35620915 | I27: 25.90686275 | J27: 3 | K27: 90 | L27: 27 | M27: 158 | N27: 160 | O27: 142 | P27: 144 | Q27: 98.68055556 | R27: 39.47222222 | S27: 92.37908497
A28: 25 | B28: г. Барнаул | C28: МБУДО «Центр дополнительного образования детей «Память» Пост №1 г. Барнаула» | D28: 7.5 | E28: 9 | F28: 30.5 | G28: 35 | H28: 86 | I28: 25.8 | J28: 2 | K28: 60 | L28: 18 | M28: 219 | N28: 221 | O28: 197 | P28: 201 | Q28: 98.8 | R28: 39.52 | S28: 83.32
A29: 26 | B29: г. Барнаул | C29: МБУДО «Центр детского творчества» Октябрьского района г. Барнаула | D29: 9 | E29: 11 | F29: 37 | G29: 38 | H29: 89.9 | I29: 26.97 | J29: 4 | K29: 100 | L29: 30 | M29: 207 | N29: 211 | O29: 133 | P29: 137 | Q29: 98 | R29: 39.2 | S29: 96.17
A30: 27 | B30: г. Барнаул | C30: МБУДО «Центр развития творчества детей и юношества» Ленинского района г. Барнаула | D30: 11 | E30: 11 | F30: 35 | G30: 38 | H30: 96.3 | I30: 28.89 | J30: 4 | K30: 100 | L30: 30 | M30: 602 | N30: 604 | O30: 558 | P30: 559 | Q30: 99.74499165 | R30: 39.89799666 | S30: 98.78799666
A31: 28 | B31: г. Белокуриха | C31: МБУДО «Детско-юношеская спортивная школа» г. Белокурихи | D31: 8 | E31: 9 | F31: 31.5 | G31: 35 | H31: 89.44444444 | I31: 26.83333333 | J31: 5 | K31: 100 | L31: 30 | M31: 184 | N31: 185 | O31: 132 | P31: 132 | Q31: 99.72972973 | R31: 39.89189189 | S31: 96.72522523
A32: 29 | B32: г. Белокуриха | C32: МБУДО «Центр эстетического воспитания» г. Белокурихи | D32: 8.5 | E32: 9 | F32: 34.5 | G32: 36 | H32: 93.2 | I32: 27.96 | J32: 4 | K32: 100 | L32: 30 | M32: 248 | N32: 250 | O32: 193 | P32: 196 | Q32: 98.83469388 | R32: 39.53387755 | S32: 97.49387755
A33: 30 | B33: г. Бийск | C33: МБУДО «Детский эколого-туристический центр» г. Бийска | D33: 8 | E33: 9 | F33: 35.5 | G33: 36 | H33: 93.3 | I33: 27.99 | J33: 5 | K33: 100 | L33: 30 | M33: 358 | N33: 364 | O33: 329 | P33: 345 | Q33: 96.8569836 | R33: 38.74279344 | S33: 96.73279344
A34: 31 | B34: г. Бийск | C34: МБУДО «Дом детского творчества» г. Бийска | D34: 9 | E34: 9 | F34: 35 | G34: 36 | H34: 98.61111111 | I34: 29.58333333 | J34: 5 | K34: 100 | L34: 30 | M34: 570 | N34: 573 | O34: 442 | P34: 447 | Q34: 99.17893578 | R34: 39.67157431 | S34: 99.25490764
A35: 32 | B35: Бийский район | C35: МБУДО «Центр внешкольной работы» Бийского района | D35: 7.5 | E35: 9 | F35: 29.5 | G35: 33 | H35: 84 | I35: 25.2 | J35: 5 | K35: 100 | L35: 30 | M35: 101 | N35: 101 | O35: 73 | P35: 73 | Q35: 100 | R35: 40 | S35: 95.2
A36: 33 | B36: Благовещенский район | C36: МБУДО «Благовещенский детско-юношеский центр» | D36: 9.5 | E36: 11 | F36: 34.5 | G36: 38 | H36: 87.5 | I36: 26.25 | J36: 3 | K36: 90 | L36: 27 | M36: 244 | N36: 254 | O36: 157 | P36: 165 | Q36: 95.60725364 | R36: 38.24290146 | S36: 91.49290146
A37: 34 | B37: Бурлинский район | C37: МБУДО «Бурлинский Центр дополнительного образования» | D37: 7.5 | E37: 9 | F37: 21.5 | G37: 34 | H37: 71.5 | I37: 21.45 | J37: 3 | K37: 90 | L37: 27 | M37: 113 | N37: 114 | O37: 97 | P37: 97 | Q37: 99.56140351 | R37: 39.8245614 | S37: 88.2745614
A38: 35 | B38: Быстроистокский район | C38: МБУДО «Быстроистокская детско-юношеская спортивная школа» | D38: 8 | E38: 9 | F38: 34 | G38: 36 | H38: 92.5 | I38: 27.75 | J38: 4 | K38: 100 | L38: 30 | M38: 118 | N38: 119 | O38: 83 | P38: 83 | Q38: 99.57983193 | R38: 39.83193277 | S38: 97.58193277
A39: 36 | B39: Егорьевский район | C39: МБУДО «Егорьевская детско-юношеская спортивная школа» | D39: 7.5 | E39: 9 | F39: 28 | G39: 34 | H39: 85.6 | I39: 25.68 | J39: 2 | K39: 60 | L39: 18 | M39: 18 | N39: 19 | O39: 12 | P39: 12 | Q39: 97.36842105 | R39: 38.94736842 | S39: 82.62736842
A40: 37 | B40: Ельцовский район | C40: МБУДО «Ельцовский центр развития детей-детско-юношеская спортивная школа" | D40: 9 | E40: 9 | F40: 23 | G40: 35 | H40: 82.85714286 | I40: 24.85714286 | J40: 5 | K40: 100 | L40: 30 | M40: 250 | N40: 250 | O40: 193 | P40: 193 | Q40: 100 | R40: 40 | S40: 94.85714286
A41: 38 | B41: Завьяловский район | C41: МБОУДО «Завьяловский районный центр детского творчества» | D41: 7 | E41: 9 | F41: 28.5 | G41: 35 | H41: 79.6031746 | I41: 23.88095238 | J41: 4 | K41: 100 | L41: 30 | M41: 90 | N41: 90 | O41: 70 | P41: 71 | Q41: 99.29577465 | R41: 39.71830986 | S41: 93.59926224
A42: 39 | B42: Залесовский район | C42: МБУДО «Центр спорта и творчества» | D42: 9 | E42: 9 | F42: 24.5 | G42: 34 | H42: 87.2 | I42: 26.16 | J42: 3 | K42: 90 | L42: 27 | M42: 79 | N42: 80 | O42: 59 | P42: 61 | Q42: 97.73565574 | R42: 39.0942623 | S42: 92.2542623
A43: 40 | B43: г. Заринск | C43: МБУДО «Центр детского творчества» г. Заринска | D43: 10 | E43: 11 | F43: 36 | G43: 38 | H43: 92.82296651 | I43: 27.84688995 | J43: 3 | K43: 90 | L43: 27 | M43: 586 | N43: 592 | O43: 477 | P43: 481 | Q43: 99.07744283 | R43: 39.63097713 | S43: 94.47786708
A44: 41 | B44: Заринский район | C44: МБУДО «Центр детского творчества» Заринского района | D44: 8.5 | E44: 9 | F44: 22.5 | G44: 35 | H44: 77 | I44: 23.1 | J44: 4 | K44: 100 | L44: 30 | M44: 74 | N44: 74 | O44: 50 | P44: 50 | Q44: 100 | R44: 40 | S44: 93.1
A45: 42 | B45: ЗАТО Сибирский | C45: МБУДО «Детско-юношеский центр «Росток» ЗАТО Сибирский | D45: 7.5 | E45: 9 | F45: 34 | G45: 35 | H45: 93.2 | I45: 27.96 | J45: 3 | K45: 90 | L45: 27 | M45: 99 | N45: 99 | O45: 86 | P45: 88 | Q45: 98.86363636 | R45: 39.54545455 | S45: 94.50545455
A46: 43 | B46: Змеиногорский район | C46: МБУДО «Дворец творчества детей и молодежи» Змеиногорского района | D46: 8 | E46: 9 | F46: 36 | G46: 36 | H46: 94.1 | I46: 28.23 | J46: 4 | K46: 100 | L46: 30 | M46: 666 | N46: 666 | O46: 590 | P46: 591 | Q46: 99.91539763 | R46: 39.96615905 | S46: 98.19615905
A47: 44 | B47: Зональный район | C47: МКОУДО «Зональная районная детско-юношеская спортивная школа» | D47: 9 | E47: 9 | F47: 13.5 | G47: 32 | H47: 72 | I47: 21.6 | J47: 4 | K47: 100 | L47: 30 | M47: 50 | N47: 50 | O47: 44 | P47: 44 | Q47: 100 | R47: 40 | S47: 91.6
A48: 45 | B48: Калманский район | C48: МБУДО «Калманский районный детско-юношеский центр» | D48: 8 | E48: 9 | F48: 31 | G48: 34 | H48: 89.8 | I48: 26.94 | J48: 4 | K48: 100 | L48: 30 | M48: 78 | N48: 78 | O48: 57 | P48: 58 | Q48: 99.13793103 | R48: 39.65517241 | S48: 96.59517241
A49: 46 | B49: Каменский район | C49: МБУДО «Каменский многопрофильный образовательный центр» | D49: 8 | E49: 9 | F49: 30 | G49: 35 | H49: 87.3015873 | I49: 26.19047619 | J49: 3 | K49: 90 | L49: 27 | M49: 373 | N49: 374 | O49: 366 | P49: 366 | Q49: 99.86631016 | R49: 39.94652406 | S49: 93.13700025
A50: 47 | B50: Красногорский район | C50: МКУДО «Дом детского творчества» Красногорского района | D50: 6.5 | E50: 9 | F50: 34 | G50: 36 | H50: 86.2 | I50: 25.86 | J50: 4 | K50: 100 | L50: 30 | M50: 61 | N50: 64 | O50: 32 | P50: 38 | Q50: 89.76151316 | R50: 35.90460526 | S50: 91.76460526
A51: 48 | B51: Краснощековский район | C51: МБУДО «Краснощековский районный детско-юношеский центр» | D51: 8 | E51: 9 | F51: 32 | G51: 35 | H51: 89.4 | I51: 26.82 | J51: 4 | K51: 100 | L51: 30 | M51: 114 | N51: 114 | O51: 109 | P51: 110 | Q51: 99.54545455 | R51: 39.81818182 | S51: 96.63818182
A52: 49 | B52: Крутихинский район | C52: МБУДО «Крутихинский Детско-юношеский центр» | D52: 9 | E52: 9 | F52: 32.5 | G52: 34 | H52: 97.9 | I52: 29.37 | J52: 3 | K52: 90 | L52: 27 | M52: 456 | N52: 456 | O52: 450 | P52: 450 | Q52: 100 | R52: 40 | S52: 96.37
A53: 50 | B53: Кулундинский район | C53: МБУДО «Центр детского творчества» Кулундинского района | D53: 10 | E53: 11 | F53: 26.5 | G53: 36 | H53: 82.26010101 | I53: 24.6780303 | J53: 5 | K53: 100 | L53: 30 | M53: 236 | N53: 236 | O53: 191 | P53: 193 | Q53: 99.48186528 | R53: 39.79274611 | S53: 94.47077642
A54: 51 | B54: Курьинский район | C54: МБУДО «Дом детского творчества» Курьинского района | D54: 9 | E54: 9 | F54: 21 | G54: 35 | H54: 79.8 | I54: 23.94 | J54: 4 | K54: 100 | L54: 30 | M54: 86 | N54: 86 | O54: 62 | P54: 63 | Q54: 99.20634921 | R54: 39.68253968 | S54: 93.62253968
A55: 52 | B55: Кытмановский район | C55: МБУДО «Центр спорта и творчества Кытмановского района» | D55: 7.5 | E55: 9 | F55: 19.5 | G55: 34 | H55: 68 | I55: 20.4 | J55: 4 | K55: 100 | L55: 30 | M55: 262 | N55: 262 | O55: 223 | P55: 225 | Q55: 99.1 | R55: 39.64 | S55: 90.04
A56: 53 | B56: Локтевский район | C56: МБУДО «Дом детского творчества» Локтевского района | D56: 9 | E56: 9 | F56: 34 | G56: 34 | H56: 100 | I56: 30 | J56: 4 | K56: 100 | L56: 30 | M56: 88 | N56: 88 | O56: 76 | P56: 76 | Q56: 100 | R56: 40 | S56: 100
A57: 54 | B57: Мамонтовский район | C57: МБУДО «Мамонтовский детско-юношеский центр» | D57: 8 | E57: 9 | F57: 32.5 | G57: 34 | H57: 93.1 | I57: 27.93 | J57: 4 | K57: 100 | L57: 30 | M57: 140 | N57: 140 | O57: 97 | P57: 97 | Q57: 100 | R57: 40 | S57: 97.93
A58: 55 | B58: Мамонтовский район | C58: МКУДО «Мамонтовская детско-юношеская спортивная школа» | D58: 6.5 | E58: 9 | F58: 29 | G58: 35 | H58: 79.4 | I58: 23.82 | J58: 5 | K58: 100 | L58: 30 | M58: 36 | N58: 38 | O58: 25 | P58: 26 | Q58: 95.44534413 | R58: 38.17813765 | S58: 91.99813765
A59: 56 | B59: Михайловский район | C59: МКОДО «Михайловский образовательно-оздоровительный центр Им. Ю.А. Гагарина» | D59: 8 | E59: 9 | F59: 18.5 | G59: 34 | H59: 71.9 | I59: 21.57 | J59: 3 | K59: 90 | L59: 27 | M59: 42 | N59: 42 | O59: 47 | P59: 48 | Q59: 98.95833333 | R59: 39.58333333 | S59: 88.15333333
A60: 57 | B60: Михайловский район | C60: МКУДО «Михайловская детско-юношеская спортивная школа» | D60: 8 | E60: 9 | F60: 26.5 | G60: 33 | H60: 84 | I60: 25.2 | J60: 3 | K60: 90 | L60: 27 | M60: 124 | N60: 124 | O60: 105 | P60: 107 | Q60: 99.06542056 | R60: 39.62616822 | S60: 91.82616822
A61: 58 | B61: Новичихинский район | C61: МКОУДО «Новичихинская детско-юношеская спортивная школа» | D61: 8.5 | E61: 9 | F61: 25.5 | G61: 34 | H61: 86.4 | I61: 25.92 | J61: 3 | K61: 90 | L61: 27 | M61: 208 | N61: 210 | O61: 187 | P61: 187 | Q61: 99.52380952 | R61: 39.80952381 | S61: 92.72952381
A62: 59 | B62: Новоалтайск район | C62: МБОУДО «Детско-юношеский центр города Новоалтайска» | D62: 8 | E62: 9 | F62: 35.5 | G62: 36 | H62: 93.75 | I62: 28.125 | J62: 3 | K62: 90 | L62: 27 | M62: 595 | N62: 599 | O62: 517 | P62: 519 | Q62: 99.3 | R62: 39.72 | S62: 94.845
A63: 60 | B63: Павловский район | C63: МБУДО «Павловский детско-юношеский центр» | D63: 9 | E63: 9 | F63: 33 | G63: 34 | H63: 98.4 | I63: 29.52 | J63: 3 | K63: 90 | L63: 27 | M63: 218 | N63: 220 | O63: 174 | P63: 175 | Q63: 98.8 | R63: 39.52 | S63: 96.04
A64: 61 | B64: Панкрушихинский район | C64: МБОУДО «Панкрушихинский районный Центр творчества» | D64: 10 | E64: 11 | F64: 5 | G64: 33 | H64: 53.5 | I64: 16.05 | J64: 4 | K64: 100 | L64: 30 | M64: 267 | N64: 275 | O64: 209 | P64: 213 | Q64: 97.60648741 | R64: 39.04259496 | S64: 85.09259496
A65: 62 | B65: Первомайский район | C65: МБУДО «Центр творчества детей и молодежи «Созвездие» Первомайского района | D65: 7.5 | E65: 9 | F65: 31.5 | G65: 34 | H65: 90 | I65: 27 | J65: 3 | K65: 90 | L65: 27 | M65: 692 | N65: 692 | O65: 593 | P65: 595 | Q65: 99.9 | R65: 39.96 | S65: 93.96
A66: 63 | B66: Первомайский район | C66: МБУДОД «Детско-юношеская спортивная школа» Первомайского района | D66: 0.5 | E66: 9 | F66: 15 | G66: 33 | H66: 28.4 | I66: 8.52 | J66: 4 | K66: 100 | L66: 30 | M66: 286 | N66: 288 | O66: 311 | P66: 311 | Q66: 99.65277778 | R66: 39.86111111 | S66: 78.38111111
A67: 64 | B67: Поспелихинский район | C67: МКУДО «Поспелихинский районный центр детского творчества» | D67: 10 | E67: 11 | F67: 38 | G67: 38 | H67: 95.45454545 | I67: 28.63636364 | J67: 3 | K67: 90 | L67: 27 | M67: 480 | N67: 487 | O67: 369 | P67: 370 | Q67: 98.7 | R67: 39.48 | S67: 95.11636364
A68: 65 | B68: Ребрихинский район | C68: МКОУДО «Ребрихинский детско-юношеский центр» | D68: 7.5 | E68: 9 | F68: 27 | G68: 34 | H68: 83.4 | I68: 25.02 | J68: 4 | K68: 100 | L68: 30 | M68: 354 | N68: 355 | O68: 320 | P68: 322 | Q68: 99.54859592 | R68: 39.81943837 | S68: =I68+L68+R68 -> 94.83943837
A69: 66 | B69: Родинский район | C69: МБУДО «Детский оздоровительно-образовательный центр Родинского района | D69: 8 | E69: 9 | F69: 31 | G69: 36 | H69: 87.1 | I69: =H69*0.3 -> 26.13 | J69: 4 | K69: =IF(J69<=3,J69*30,100) -> 100 | L69: 30 | M69: 71 | N69: 71 | O69: 64 | P69: 64 | Q69: =0.5*(M69/N69+O69/P69)*100 -> 100 | R69: =Q69*0.4 -> 40 | S69: 96.13
A70: 67 | B70: Романовский район | C70: МБУДО «Романовский детско-юношеский центр» | D70: 9 | E70: 9 | F70: 34 | G70: 34 | H70: =0.5*(D70/E70+F70/G70)*100 -> 100 | I70: 30 | J70: 3 | K70: 90 | L70: 27 | M70: 157 | N70: 157 | O70: 127 | P70: 128 | Q70: 99.9 | R70: 39.96 | S70: 96.96
A71: 68 | B71: г. Рубцовск | C71: МБУДО «Детско-юношеский центр» г. Рубцовска | D71: 8 | E71: 9 | F71: 36 | G71: 36 | H71: 94.1 | I71: 28.23 | J71: 2 | K71: 60 | L71: 18 | M71: 637 | N71: 637 | O71: 626 | P71: 627 | Q71: 99.92025518 | R71: 39.96810207 | S71: 86.19810207
A72: 69 | B72: г. Рубцовск | C72: МБУДО «Станция туризма и экскурсий» г. Рубцовска | D72: 9 | E72: 9 | F72: 35 | G72: 36 | H72: 99.4 | I72: 29.82 | J72: 4 | K72: 100 | L72: 30 | M72: 170 | N72: 170 | O72: 134 | P72: 135 | Q72: 99.62962963 | R72: 39.85185185 | S72: 99.67185185
A73: 70 | B73: г. Рубцовск | C73: МБУДО «Центр внешкольной работы «Малая Академия» г. Рубцовска | D73: 7 | E73: 9 | F73: 35.5 | G73: 36 | H73: 88.9 | I73: 26.67 | J73: 4 | K73: 100 | L73: 30 | M73: 552 | N73: 555 | O73: 439 | P73: 445 | Q73: 99.05557243 | R73: 39.62222897 | S73: 96.29222897
A74: 71 | B74: г. Рубцовск | C74: МБУДО «Центр развития творчества» г. Рубцовска | D74: 8 | E74: 9 | F74: 32 | G74: 34 | H74: 91.1 | I74: 27.33 | J74: 3 | K74: 90 | L74: =K74*0.3 -> 27 | M74: 519 | N74: 519 | O74: 496 | P74: 496 | Q74: 100 | R74: 40 | S74: 94.33
A75: 72 | B75: Рубцовский район | C75: МБУДО «Детско-юношеская спортивная школа» Рубцовского района | D75: 7 | E75: 9 | F75: 21 | G75: 37 | H75: 67.26726727 | I75: 20.18018018 | J75: 4 | K75: 100 | L75: 30 | M75: 49 | N75: 49 | O75: 42 | P75: 43 | Q75: 98.8372093 | R75: 39.53488372 | S75: 89.7150639
A76: 73 | B76: Рубцовский район | C76: МБУДО «Центр творческого развития «Ступени» Рубцовского района | D76: 8 | E76: 9 | F76: 26 | G76: 35 | H76: 81.58730159 | I76: 24.47619048 | J76: 1 | K76: 30 | L76: 9 | M76: 167 | N76: 168 | O76: 159 | P76: 160 | Q76: 99.38988095 | R76: 39.75595238 | S76: 73.23214286
A77: 74 | B77: г. Славгород | C77: МБУДО «Центр творчества детей и молодежи» г. Славгорода | D77: 11 | E77: 11 | F77: 38 | G77: 38 | H77: 100 | I77: 30 | J77: 3 | K77: 90 | L77: 27 | M77: 551 | N77: 557 | O77: 464 | P77: 471 | Q77: 98.9 | R77: 39.56 | S77: 96.56
A78: 75 | B78: Смоленский район | C78: МБУДО «Смоленский дом детского творчества» | D78: 7 | E78: 9 | F78: 35 | G78: 35 | H78: 88.88888889 | I78: 26.66666667 | J78: 4 | K78: 100 | L78: 30 | M78: 144 | N78: 144 | O78: 107 | P78: 108 | Q78: 99 | R78: 39.6 | S78: 96.26666667
A79: 76 | B79: Советский район | C79: МБУДО «Детско-юношеский центр» Советского района | D79: 9 | E79: 9 | F79: 37 | G79: 37 | H79: 100 | I79: 30 | J79: 4 | K79: 100 | L79: 30 | M79: 557 | N79: 558 | O79: 494 | P79: 495 | Q79: 99.9 | R79: 39.96 | S79: 99.96
A80: 77 | B80: Солонешенский район | C80: МБУДО «Солонешенский центр детского творчества» | D80: 8 | E80: 9 | F80: 29 | G80: 35 | H80: 85.87301587 | I80: 25.76190476 | J80: 4 | K80: 100 | L80: 30 | M80: 84 | N80: 85 | O80: 54 | P80: 55 | Q80: 98 | R80: 39.2 | S80: 94.96190476
A81: 78 | B81: Солтонский район | C81: МКОУДО «Детско-юношеский центр» Солтонского района | D81: 7.5 | E81: 9 | F81: 31 | G81: 37 | H81: 86.2 | I81: 25.86 | J81: 3 | K81: 90 | L81: 27 | M81: 121 | N81: 124 | O81: 109 | P81: 109 | Q81: 98.79032258 | R81: 39.51612903 | S81: 92.37612903
A82: 79 | B82: Табунский район | C82: МБУДО «Центр дополнительного образования детей» Табунского района | D82: 8 | E82: 9 | F82: 32 | G82: 36 | H82: 88.6 | I82: 26.58 | J82: 2 | K82: 60 | L82: 18 | M82: 116 | N82: 120 | O82: 85 | P82: 85 | Q82: 98.33333333 | R82: 39.33333333 | S82: 83.91333333
A83: 80 | B83: Тальменский район | C83: МКУДО «Тальменская детско-юношеская спортивная школа» | D83: 7 | E83: 9 | F83: 31 | G83: 36 | H83: 81.94444444 | I83: 24.58333333 | J83: 3 | K83: 90 | L83: 27 | M83: 227 | N83: 227 | O83: 223 | P83: 223 | Q83: 100 | R83: 40 | S83: 91.58333333
A84: 81 | B84: Тальменский район | C84: МКУДО «Тальменский центр внешкольной работы» | D84: 8 | E84: 9 | F84: 33.5 | G84: 37 | H84: 88.4 | I84: 26.52 | J84: 4 | K84: 100 | L84: 30 | M84: 340 | N84: 341 | O84: 309 | P84: 311 | Q84: 99.53182903 | R84: 39.81273161 | S84: 96.33273161
A85: 82 | B85: Тогульский район | C85: МКУДО «Центр творчества, спорта и отдыха» Тогульского района | D85: 8 | E85: 9 | F85: 25 | G85: 35 | H85: 80.6 | I85: 24.18 | J85: 4 | K85: 100 | L85: 30 | M85: 151 | N85: 153 | O85: 125 | P85: 127 | Q85: 98.55900365 | R85: 39.42360146 | S85: 93.60360146
A86: 83 | B86: Топчихинский район | C86: МКУДО «Топчихинская детско-юношеская спортивная школа» | D86: 8 | E86: 9 | F86: 31.5 | G86: 36 | H86: 88.6 | I86: 26.58 | J86: 2 | K86: 60 | L86: 18 | M86: 154 | N86: 155 | O86: 119 | P86: 120 | Q86: 99.26075269 | R86: 39.70430108 | S86: 84.28430108
A87: 84 | B87: Топчихинский район | C87: МКУДО «Топчихинский детско-юношеский центр» | D87: 8 | E87: 9 | F87: 35 | G87: 36 | H87: 93.6 | I87: 28.08 | J87: 2 | K87: 60 | L87: 18 | M87: 233 | N87: 235 | O87: 218 | P87: 218 | Q87: 99.57446809 | R87: 39.82978723 | S87: 85.90978723
A88: 85 | B88: Третьяковский район | C88: МБОУДО «Центр развития творчества детей и юношества» Третьяковского района | D88: 8 | E88: 9 | F88: 31.5 | G88: 35 | H88: 89 | I88: 26.7 | J88: 3 | K88: 90 | L88: 27 | M88: 114 | N88: 114 | O88: 89 | P88: 89 | Q88: 100 | R88: 40 | S88: 93.7
A89: 86 | B89: Троицкий район | C89: МБУДО «Троицкий детско-юношеский центр» | D89: 7.5 | E89: 9 | F89: 34.5 | G89: 37 | H89: 89.9 | I89: 26.97 | J89: 4 | K89: 100 | L89: 30 | M89: 48 | N89: 49 | O89: 42 | P89: 42 | Q89: 98.97959184 | R89: 39.59183673 | S89: 96.56183673
A90: 87 | B90: Тюменцевский район | C90: МБУДО «Тюменцевский районный центр детского творчества» | D90: 8 | E90: 9 | F90: 31 | G90: 34 | H90: 90.03267974 | I90: 27.00980392 | J90: 3 | K90: 90 | L90: 27 | M90: 71 | N90: 73 | O90: 58 | P90: 58 | Q90: 99 | R90: 39.6 | S90: 93.60980392
A91: 88 | B91: Усть-Калманский район | C91: МБУДО «Центр детского творчества» Усть-Калманского района | D91: 8 | E91: 9 | F91: 35 | G91: 36 | H91: 92.6 | I91: 27.78 | J91: 3 | K91: 90 | L91: 27 | M91: 219 | N91: 219 | O91: 142 | P91: 144 | Q91: 99.30555556 | R91: 39.72222222 | S91: 94.50222222
A92: 89 | B92: Усть-Пристанский район | C92: МКУДО «Дом детского творчества» Усть-Пристанского района | D92: 6.5 | E92: 9 | F92: 25 | G92: 34 | H92: 75.4 | I92: 22.62 | J92: 4 | K92: 100 | L92: 30 | M92: 106 | N92: 107 | O92: 96 | P92: 96 | Q92: 99.53271028 | R92: 39.81308411 | S92: 92.43308411
A93: 90 | B93: Хабарский район | C93: МБУДО «Центр детского творчества» Хабарского района | D93: 8 | E93: 9 | F93: 25.5 | G93: 35 | H93: 80 | I93: 24 | J93: 4 | K93: 100 | L93: 30 | M93: 22 | N93: 22 | O93: 20 | P93: 20 | Q93: 100 | R93: 40 | S93: 94
A94: 91 | B94: Целинный район | C94: МБУДО «Центр творчества и отдыха» Целинного района | D94: 8 | E94: 9 | F94: 32 | G94: 34 | H94: 91.1 | I94: 27.33 | J94: 2 | K94: 60 | L94: 18 | M94: 139 | N94: 142 | O94: 98 | P94: 98 | Q94: 98.94366197 | R94: 39.57746479 | S94: 84.90746479
A95: 92 | B95: Чарышский район | C95: МБУДО «Детско-юношеская спортивная школа» Чарышского района | D95: 9 | E95: 9 | F95: 35.5 | G95: 37 | H95: 98.9 | I95: 29.67 | J95: 2 | K95: 60 | L95: 18 | M95: 213 | N95: 213 | O95: 54 | P95: 54 | Q95: 100 | R95: 40 | S95: 87.67
A96: 93 | B96: Чарышский район | C96: МБУДО «Центр детского творчества»Чарышского района | D96: 9 | E96: 9 | F96: 22.5 | G96: 37 | H96: 80.40540541 | I96: 24.12162162 | J96: 4 | K96: 100 | L96: 30 | M96: 156 | N96: 160 | O96: 146 | P96: 146 | Q96: 98.75 | R96: 39.5 | S96: 93.62162162
A97: 94 | B97: Шелаболихинский район | C97: МБУДО «Шелаболихинский центр детского творчества» | D97: 8 | E97: 9 | F97: 36 | G97: 37 | H97: 93.09309309 | I97: 27.92792793 | J97: 3 | K97: 90 | L97: 27 | M97: 116 | N97: 116 | O97: 96 | P97: 96 | Q97: 100 | R97: 40 | S97: 94.92792793
A98: 95 | B98: Шелаболихинский район | C98: МКУДО «Шелаболихинская детско-юношеская спортивная школа» | D98: 8 | E98: 9 | F98: 31.5 | G98: 36 | H98: 88.5 | I98: 26.55 | J98: 4 | K98: 100 | L98: 30 | M98: 170 | N98: 172 | O98: 91 | P98: 91 | Q98: 99.41860465 | R98: 39.76744186 | S98: 96.31744186
A99: 96 | B99: г. Яровое | C99: МБУДО «Центр научно-технического творчества учащихся» г. Яровое | D99: 9 | E99: 9 | F99: 29.5 | G99: 36 | H99: 91.6 | I99: 27.48 | J99: 4 | K99: 100 | L99: 30 | M99: 204 | N99: 206 | O99: 174 | P99: 175 | Q99: 99.22884882 | R99: 39.69153953 | S99: 97.17153953

Sheet 1ОиДинфоб
A1: № п/п | B1: Муниципальное образование | C1: Наименование образовательной организации | D1: Показатель 1.1 | H1: Показатель 1.2 | K1: Показатель 1.3 | Q1: Итого по критерию:
D2: 1.1.1. Объем информации, размещенной на информационных стендах в помещении организации | E2: 1.1.2. Объем информации, размещенной на официальном сайте организации | F2: Значение показателя 1.1 | G2: Значение показателя 1.1 с учетом значимости | H2: Количество функционирующих дистанционных способов взаимодействия | I2: Значение показателя 1.2 | J2: Значение показателя 1.2 с учетом значимости | K2: Число получателей услуг, удовлетворенных качеством, полнотой и доступностью информации о деятельности организации, размещенной на стендах организации | L2: Число опрошенных получателей услуг, ответивших на соответствующий вопрос анкеты | M2: Число получателей услуг, удовлетворенных качеством, полнотой и доступностью информации о деятельности организации, размещенной на сайте организации | N2: Число опрошенных получателей услуг, ответивших на соответствующий вопрос анкеты | O2: Значение показателя 1.3 | P2: Значение показателя 1 .3 с учетом веса
F3: 100 | G3: 30 | I3: 100 | J3: 30 | O3: 100 | P3: 40 | Q3: =G3+J3+P3 -> 100
A4: 1 | B4: г. Алейск | C4: МБУДО «Центр детского творчества» (г. Алейск) | D4: 7 | E4: 29.5 | F4: 82.27124183 | G4: 24.68137255 | H4: 6 | I4: 100 | J4: 30 | K4: 582 | L4: 586 | M4: 529 | N4: 531 | O4: 99.47037915 | P4: 39.78815166 | Q4: 94.46952421
A5: 2 | B5: Алтайский район | C5: МАОУДО «Алтайский районный детско-юношеский центр» | D5: 8 | E5: 34 | F5: 92.5 | G5: 27.8 | H5: 4 | I5: 100 | J5: 30 | K5: 498 | L5: 499 | M5: 435 | N5: 439 | O5: 99.44421873 | P5: 39.77768749 | Q5: 97.5
A6: 3 | B6: Баевский район | C6: МБУДО «Баевский Центр детского творчества и профессионального обучения Алтайского края» | D6: 9 | E6: 32.5 | F6: 97 | G6: 29.1 | H6: 4 | I6: 100 | J6: 30 | K6: 145 | L6: 145 | M6: 143 | N6: 143 | O6: 100 | P6: 40 | Q6: 99.1
A7: 4 | B7: г. Барнаул | C7: КГБУДО «Алтайский краевой дворец творчества детей и молодежи» | D7: 8 | E7: 33 | F7: 90 | G7: 27 | H7: 3 | I7: 90 | J7: 27 | K7: 417 | L7: 430 | M7: 355 | N7: 362 | O7: 97.1 | P7: 38.8 | Q7: 92.8
A8: 5 | B8: г. Барнаул | C8: КГБУДО «Алтайский краевой детский экологический центр» | D8: 9 | E8: 35 | F8: 99.2 | G8: 29.8 | H8: 5 | I8: 100 | J8: 30 | K8: 488 | L8: 490 | M8: 521 | N8: 521 | O8: 99.79591837 | P8: 39.91836735 | Q8: 99.7
A9: 6 | B9: г. Барнаул | C9: КГБУДО «Алтайский краевой центр детского отдыха, туризма и краеведения «Алтай» | D9: 8.5 | E9: 34 | F9: 97 | G9: 29.1 | H9: 6 | I9: 100 | J9: 30 | K9: 240 | L9: 241 | M9: 241 | N9: 252 | O9: 97.9 | P9: 39.2 | Q9: 98.3
A10: 7 | B10: г. Барнаул | C10: КГБУДО «Детский технопарк Алтайского края «Кванториум.22» | D10: 11 | E10: 38 | F10: 100 | G10: 30 | H10: 4 | I10: 100 | J10: 30 | K10: 701 | L10: 701 | M10: 723 | N10: 723 | O10: 100 | P10: 40 | Q10: =G10+J10+P10 -> 100
A11: 8 | B11: г. Барнаул | C11: МБУДО «Барнаульский городской детско-юношеский центр» | D11: 10 | E11: 35 | F11: 94.06565657 | G11: 28.21969697 | H11: 5 | I11: 100 | J11: 30 | K11: 610 | L11: 615 | M11: 568 | N11: 575 | O11: 98.98480028 | P11: 39.59392011 | Q11: 97.81361708
A12: 9 | B12: г. Барнаул | C12: МБУДО «Барнаульская городская станция юных натуралистов» | D12: 10 | E12: 35 | F12: 93.1 | G12: 27.9 | H12: 4 | I12: 100 | J12: 30 | K12: 172 | L12: 176 | M12: 152 | N12: 155 | O12: 97.89589443 | P12: 39.15835777 | Q12: 97.1
A13: 10 | B13: г. Барнаул | C13: МБУДО «Барнаульская городская станция юных техников» | D13: 7.5 | E13: 35.5 | F13: 93.2 | G13: 28 | H13: 6 | I13: 100 | J13: 30 | K13: 548 | L13: 548 | M13: 497 | N13: 501 | O13: 99.8 | P13: 39.9 | Q13: 97.9
A14: 11 | B14: г. Барнаул | C14: МБУДО «Детский оздоровительно-образовательный (профильный) центр Гармония» | D14: 7.5 | E14: 32 | F14: 93 | G14: 27.9 | H14: 3 | I14: 90 | J14: 27 | K14: 54 | L14: 54 | M14: 51 | N14: 51 | O14: 100 | P14: 40 | Q14: 94.9
A15: 12 | B15: г. Барнаул | C15: МБУДО «Дом художественного творчества детей» (г. Барнаул) | D15: 11 | E15: 36 | F15: 97 | G15: 29.1 | H15: 4 | I15: 100 | J15: 30 | K15: 542 | L15: 547 | M15: 531 | N15: 536 | O15: 99.0765437 | P15: 39.63061748 | Q15: 98.8411438
A16: 13 | B16: г. Барнаул | C16: МБУДО «Детско-юношеский центр» Индустриального района г. Барнаула | D16: 10 | E16: 35.5 | F16: 93.1 | G16: 27.9 | H16: 5 | I16: 100 | J16: 30 | K16: 667 | L16: 670 | M16: 403 | N16: 410 | O16: 98.92246087 | P16: 39.56898435 | Q16: 97.5
A17: 14 | B17: г. Барнаул | C17: МБУДО «Центр детского (юношеского) технического творчества» Ленинского района г. Барнаула | D17: 9 | E17: 5 | F17: 58 | G17: 17.4 | H17: 3 | I17: 90 | J17: 27 | K17: 97 | L17: 97 | M17: 88 | N17: 90 | O17: 98.88888889 | P17: 39.55555556 | Q17: 84
A18: 15 | B18: г. Барнаул | C18: МБУДО «Центр детского творчества №2» г. Барнаула | D18: 9 | E18: 34 | F18: 98.4 | G18: 29.5 | H18: 4 | I18: 100 | J18: 30 | K18: 442 | L18: 448 | M18: 358 | N18: 364 | O18: 98.50618132 | P18: 39.40247253 | Q18: 89.9
A19: 16 | B19: г. Барнаул | C19: МБУДО «Центр детского творчества» Центрального района г. Барнаула | D19: 11 | E19: 30.5 | F19: 90.4 | G19: 27.1 | H19: 3 | I19: 90 | J19: 27 | K19: 195 | L19: 198 | M19: 174 | N19: 176 | O19: 98.67424242 | P19: 39.46969697 | Q19: 93.6
A20: 17 | B20: г. Барнаул | C20: МБУДО «Центр развития творчества детей и юношества» Индустриального района г. Барнаула | D20: 10 | E20: 32 | F20: 88.4 | G20: 26.5 | H20: 4 | I20: 100 | J20: 30 | K20: 578 | L20: 581 | M20: 510 | N20: 511 | O20: 99.64397708 | P20: 39.85759083 | Q20: 96.4
A21: 18 | B21: г. Барнаул | C21: МБУДО «Центр развития творчества детей и молодежи» Железнодорожного района г. Барнаула | D21: 10 | E21: 30.5 | F21: 87.5 | G21: 26.34469697 | H21: 4 | I21: 100 | J21: 30 | K21: 535 | L21: 542 | M21: 459 | N21: 469 | O21: 98.3 | P21: 39.3 | Q21: 95.6
A22: 19 | B22: г. Барнаул | C22: МБУДО «Центр физкультурно-спортивной направленности «Акцент» | D22: 9.5 | E22: 31 | F22: 86.5 | G22: 26 | H22: 3 | I22: 90 | J22: 27 | K22: 108 | L22: 108 | M22: 70 | N22: 71 | O22: 99.29577465 | P22: 39.71830986 | Q22: 92.7
A23: 20 | B23: г. Барнаул | C23: МБУДО Городской психолого-педагогический центр «Потенциал» | D23: 11 | E23: 37 | F23: 100 | G23: 30 | H23: 2 | I23: 60 | J23: 18 | K23: 655 | L23: 655 | M23: 631 | N23: 636 | O23: 99.9 | P23: 40 | Q23: 88
A24: 21 | B24: г. Барнаул | C24: МБУДО Детский оздоровительно-образовательный (профильный) центр «Валеологический центр» | D24: 11 | E24: 35 | F24: 97 | G24: 29.1 | H24: 4 | I24: 100 | J24: 30 | K24: 628 | L24: 628 | M24: 583 | N24: 583 | O24: 100 | P24: 40 | Q24: 99.1
A25: 22 | B25: г. Барнаул | C25: МБУДО «Детская школа искусств «Традиция» с. Власиха г. Барнаула | D25: 11 | E25: 24 | F25: 83.5 | G25: 25.1 | H25: 4 | I25: 100 | J25: 30 | K25: 447 | L25: 448 | M25: 370 | N25: 372 | O25: 99.61957565 | P25: 39.84783026 | Q25: 94.9
A26: 23 | B26: г. Барнаул | C26: МБУДО Центр внешкольной работы «Военно-спортивный клуб «Борец» | D26: 9 | E26: 31 | F26: 96.96969697 | G26: 29.09090909 | H26: 3 | I26: 90 | J26: 27 | K26: 78 | L26: 79 | M26: 78 | N26: 78 | O26: 99.36708861 | P26: 39.74683544 | Q26: 95.83774453
A27: 24 | B27: г. Барнаул | C27: МБУДО «Центр эстетического воспитания «Песнохорки» | D27: 8 | E27: 28.5 | F27: 86.35620915 | G27: 25.90686275 | H27: 3 | I27: 90 | J27: 27 | K27: 158 | L27: 160 | M27: 142 | N27: 144 | O27: 98.68055556 | P27: 39.47222222 | Q27: 92.37908497
A28: 25 | B28: г. Барнаул | C28: МБУДО «Центр дополнительного образования детей «Память» Пост №1 г. Барнаула» | D28: 7.5 | E28: 30.5 | F28: 86 | G28: 25.8 | H28: 2 | I28: 60 | J28: 18 | K28: 219 | L28: 221 | M28: 197 | N28: 201 | O28: 98.8 | P28: 39.5 | Q28: 83.3
A29: 26 | B29: г. Барнаул | C29: МБУДО «Центр детского творчества» Октябрьского района г. Барнаула | D29: 9 | E29: 37 | F29: 89.9 | G29: 27 | H29: 4 | I29: 100 | J29: 30 | K29: 207 | L29: 211 | M29: 133 | N29: 137 | O29: 98 | P29: 39.2 | Q29: 96.2
A30: 27 | B30: г. Барнаул | C30: МБУДО «Центр развития творчества детей и юношества» Ленинского района г. Барнаула | D30: 11 | E30: 35 | F30: 96.3 | G30: 28.9 | H30: 4 | I30: 100 | J30: 30 | K30: 602 | L30: 604 | M30: 558 | N30: 559 | O30: 99.74499165 | P30: 39.89799666 | Q30: 98.8
A31: 28 | B31: г. Белокуриха | C31: МБУДО «Детско-юношеская спортивная школа» г. Белокурихи | D31: 8 | E31: 31.5 | F31: 89.44444444 | G31: 26.83333333 | H31: 5 | I31: 100 | J31: 30 | K31: 184 | L31: 185 | M31: 132 | N31: 132 | O31: 99.72972973 | P31: 39.89189189 | Q31: 96.72522523
A32: 29 | B32: г. Белокуриха | C32: МБУДО «Центр эстетического воспитания» г. Белокурихи | D32: 8.5 | E32: 34.5 | F32: 93.2 | G32: 28 | H32: 4 | I32: 100 | J32: 30 | K32: 248 | L32: 250 | M32: 193 | N32: 196 | O32: 98.83469388 | P32: 39.53387755 | Q32: 97.5
A33: 30 | B33: г. Бийск | C33: МБУДО «Детский эколого-туристический центр» г. Бийска | D33: 8 | E33: 35.5 | F33: 93.3 | G33: 28 | H33: 5 | I33: 100 | J33: 30 | K33: 358 | L33: 364 | M33: 329 | N33: 345 | O33: 96.8569836 | P33: 38.74279344 | Q33: 96.7
A34: 31 | B34: г. Бийск | C34: МБУДО «Дом детского творчества» г. Бийска | D34: 9 | E34: 35 | F34: 98.61111111 | G34: 29.58333333 | H34: 5 | I34: 100 | J34: 30 | K34: 570 | L34: 573 | M34: 442 | N34: 447 | O34: 99.17893578 | P34: 39.67157431 | Q34: 99.25490764
A35: 32 | B35: Бийский район | C35: МБУДО «Центр внешкольной работы» Бийского района | D35: 7.5 | E35: 29.5 | F35: 84 | G35: 25.2 | H35: 5 | I35: 100 | J35: 30 | K35: 101 | L35: 101 | M35: 73 | N35: 73 | O35: 100 | P35: 40 | Q35: 95.2
A36: 33 | B36: Благовещенский район | C36: МБУДО «Благовещенский детско-юношеский центр» | D36: 9.5 | E36: 34.5 | F36: 87.5 | G36: 26.3 | H36: 3 | I36: 90 | J36: 27 | K36: 244 | L36: 254 | M36: 157 | N36: 165 | O36: 95.60725364 | P36: 38.24290146 | Q36: 91.5
A37: 34 | B37: Бурлинский район | C37: МБУДО «Бурлинский Центр дополнительного образования» | D37: 7.5 | E37: 21.5 | F37: 71.5 | G37: 21.5 | H37: 3 | I37: 90 | J37: 27 | K37: 113 | L37: 114 | M37: 97 | N37: 97 | O37: 99.56140351 | P37: 39.8245614 | Q37: 88.3
A38: 35 | B38: Быстроистокский район | C38: МБУДО «Быстроистокская детско-юношеская спортивная школа» | D38: 8 | E38: 34 | F38: 92.5 | G38: 27.8 | H38: 4 | I38: 100 | J38: 30 | K38: 118 | L38: 119 | M38: 83 | N38: 83 | O38: 99.57983193 | P38: 39.83193277 | Q38: 97.6
A39: 36 | B39: Егорьевский район | C39: МБУДО «Егорьевская детско-юношеская спортивная школа» | D39: 7.5 | E39: 28 | F39: 85.6 | G39: 25.7 | H39: 2 | I39: 60 | J39: 18 | K39: 18 | L39: 19 | M39: 12 | N39: 12 | O39: 97.36842105 | P39: 38.94736842 | Q39: 82.6
A40: 37 | B40: Ельцовский район | C40: МБУДО «Ельцовский центр развития детей-детско-юношеская спортивная школа" | D40: 9 | E40: 23 | F40: 82.85714286 | G40: 24.85714286 | H40: 5 | I40: 100 | J40: 30 | K40: 250 | L40: 250 | M40: 193 | N40: 193 | O40: 100 | P40: 40 | Q40: 94.85714286
A41: 38 | B41: Завьяловский район | C41: МБОУДО «Завьяловский районный центр детского творчества» | D41: 7 | E41: 28.5 | F41: 79.6031746 | G41: 23.88095238 | H41: 4 | I41: 100 | J41: 30 | K41: 90 | L41: 90 | M41: 70 | N41: 71 | O41: 99.29577465 | P41: 39.71830986 | Q41: 93.59926224
A42: 39 | B42: Залесовский район | C42: МБУДО «Центр спорта и творчества» | D42: 9 | E42: 24.5 | F42: 87.2 | G42: 26.2 | H42: 3 | I42: 90 | J42: 27 | K42: 79 | L42: 80 | M42: 59 | N42: 61 | O42: 97.73565574 | P42: 39.0942623 | Q42: 92.3
A43: 40 | B43: г. Заринск | C43: МБУДО «Центр детского творчества» г. Заринска | D43: 10 | E43: 36 | F43: 92.82296651 | G43: 27.84688995 | H43: 3 | I43: 90 | J43: 27 | K43: 586 | L43: 592 | M43: 477 | N43: 481 | O43: 99.07744283 | P43: 39.63097713 | Q43: 94.47786708
A44: 41 | B44: Заринский район | C44: МБУДО «Центр детского творчества» Заринского района | D44: 8.5 | E44: 22.5 | F44: 77 | G44: 23.1 | H44: 4 | I44: 100 | J44: 30 | K44: 74 | L44: 74 | M44: 50 | N44: 50 | O44: 100 | P44: 40 | Q44: 93.1
A45: 42 | B45: ЗАТО Сибирский | C45: МБУДО «Детско-юношеский центр «Росток» ЗАТО Сибирский | D45: 7.5 | E45: 34 | F45: 93.2 | G45: 28 | H45: 3 | I45: 90 | J45: 27 | K45: 99 | L45: 99 | M45: 86 | N45: 88 | O45: 98.86363636 | P45: 39.54545455 | Q45: 94.5
A46: 43 | B46: Змеиногорский район | C46: МБУДО «Дворец творчества детей и молодежи» Змеиногорского района | D46: 8 | E46: 36 | F46: 94.1 | G46: 28.2 | H46: 4 | I46: 100 | J46: 30 | K46: 666 | L46: 666 | M46: 590 | N46: 591 | O46: 99.91539763 | P46: 39.96615905 | Q46: 98.2
A47: 44 | B47: Зональный район | C47: МКОУДО «Зональная районная детско-юношеская спортивная школа» | D47: 9 | E47: 13.5 | F47: 72 | G47: 21.6 | H47: 4 | I47: 100 | J47: 30 | K47: 50 | L47: 50 | M47: 44 | N47: 44 | O47: 100 | P47: 40 | Q47: 91.6
A48: 45 | B48: Калманский район | C48: МБУДО «Калманский районный детско-юношеский центр» | D48: 8 | E48: 31 | F48: 89.8 | G48: 26.9 | H48: 4 | I48: 100 | J48: 30 | K48: 78 | L48: 78 | M48: 57 | N48: 58 | O48: 99.13793103 | P48: 39.65517241 | Q48: 96.6
A49: 46 | B49: Каменский район | C49: МБУДО «Каменский многопрофильный образовательный центр» | D49: 8 | E49: 30 | F49: 87.3015873 | G49: 26.19047619 | H49: 3 | I49: 90 | J49: 27 | K49: 373 | L49: 374 | M49: 366 | N49: 366 | O49: 99.86631016 | P49: 39.94652406 | Q49: 93.13700025
A50: 47 | B50: Красногорский район | C50: МКУДО «Дом детского творчества» Красногорского района | D50: 6.5 | E50: 34 | F50: 86.2 | G50: 25.9 | H50: 4 | I50: 100 | J50: 30 | K50: 61 | L50: 64 | M50: 32 | N50: 38 | O50: 89.76151316 | P50: 35.90460526 | Q50: 91.8
A51: 48 | B51: Краснощековский район | C51: МБУДО «Краснощековский районный детско-юношеский центр» | D51: 8 | E51: 32 | F51: 89.4 | G51: 26.8 | H51: 4 | I51: 100 | J51: 30 | K51: 114 | L51: 114 | M51: 109 | N51: 110 | O51: 99.54545455 | P51: 39.81818182 | Q51: 96.6
A52: 49 | B52: Крутихинский район | C52: МБУДО «Крутихинский Детско-юношеский центр» | D52: 9 | E52: 32.5 | F52: 97.9 | G52: 29.4 | H52: 3 | I52: 90 | J52: 27 | K52: 456 | L52: 456 | M52: 450 | N52: 450 | O52: 100 | P52: 40 | Q52: 96.4
A53: 50 | B53: Кулундинский район | C53: МБУДО «Центр детского творчества» Кулундинского района | D53: 10 | E53: 26.5 | F53: 82.26010101 | G53: 24.6780303 | H53: 5 | I53: 100 | J53: 30 | K53: 236 | L53: 236 | M53: 191 | N53: 193 | O53: 99.48186528 | P53: 39.79274611 | Q53: 94.47077642
A54: 51 | B54: Курьинский район | C54: МБУДО «Дом детского творчества» Курьинского района | D54: 9 | E54: 21 | F54: 79.8 | G54: 23.9 | H54: 4 | I54: 100 | J54: 30 | K54: 86 | L54: 86 | M54: 62 | N54: 63 | O54: 99.20634921 | P54: 39.68253968 | Q54: 93.6
A55: 52 | B55: Кытмановский район | C55: МБУДО «Центр спорта и творчества Кытмановского района» | D55: 7.5 | E55: 19.5 | F55: 68 | G55: 20.4 | H55: 4 | I55: 100 | J55: 30 | K55: 262 | L55: 262 | M55: 223 | N55: 225 | O55: 99.1 | P55: 39.6 | Q55: 90
A56: 53 | B56: Локтевский район | C56: МБУДО «Дом детского творчества» Локтевского района | D56: 9 | E56: 34 | F56: 100 | G56: 30 | H56: 4 | I56: 100 | J56: 30 | K56: 88 | L56: 88 | M56: 76 | N56: 76 | O56: 100 | P56: 40 | Q56: 100
A57: 54 | B57: Мамонтовский район | C57: МБУДО «Мамонтовский детско-юношеский центр» | D57: 8 | E57: 32.5 | F57: 93.1 | G57: 27.9 | H57: 4 | I57: 100 | J57: 30 | K57: 140 | L57: 140 | M57: 97 | N57: 97 | O57: 100 | P57: 40 | Q57: 97.9
A58: 55 | B58: Мамонтовский район | C58: МКУДО «Мамонтовская детско-юношеская спортивная школа» | D58: 6.5 | E58: 29 | F58: 79.4 | G58: 23.8 | H58: 5 | I58: 100 | J58: 30 | K58: 36 | L58: 38 | M58: 25 | N58: 26 | O58: 95.44534413 | P58: 38.17813765 | Q58: 92
A59: 56 | B59: Михайловский район | C59: МКОДО «Михайловский образовательно-оздоровительный центр Им. Ю.А. Гагарина» | D59: 8 | E59: 18.5 | F59: 71.9 | G59: 21.6 | H59: 3 | I59: 90 | J59: 27 | K59: 42 | L59: 42 | M59: 47 | N59: 48 | O59: 98.95833333 | P59: 39.58333333 | Q59: 88.2
A60: 57 | B60: Михайловский район | C60: МКУДО «Михайловская детско-юношеская спортивная школа» | D60: 8 | E60: 26.5 | F60: 84 | G60: 25.2 | H60: 3 | I60: 90 | J60: 27 | K60: 124 | L60: 124 | M60: 105 | N60: 107 | O60: 99.06542056 | P60: 39.62616822 | Q60: 91.8
A61: 58 | B61: Новичихинский район | C61: МКОУДО «Новичихинская детско-юношеская спортивная школа» | D61: 8.5 | E61: 25.5 | F61: 86.4 | G61: 25.9 | H61: 3 | I61: 90 | J61: 27 | K61: 208 | L61: 210 | M61: 187 | N61: 187 | O61: 99.52380952 | P61: 39.80952381 | Q61: 92.7
A62: 59 | B62: Новоалтайск район | C62: МБОУДО «Детско-юношеский центр города Новоалтайска» | D62: 8 | E62: 35.5 | F62: 93.75 | G62: 28.125 | H62: 3 | I62: 90 | J62: 27 | K62: 595 | L62: 599 | M62: 517 | N62: 519 | O62: 99.3 | P62: 39.7 | Q62: 94.8
A63: 60 | B63: Павловский район | C63: МБУДО «Павловский детско-юношеский центр» | D63: 9 | E63: 33 | F63: 98.4 | G63: 29.5 | H63: 3 | I63: 90 | J63: 27 | K63: 218 | L63: 220 | M63: 174 | N63: 175 | O63: 98.8 | P63: 39.5 | Q63: 96
A64: 61 | B64: Панкрушихинский район | C64: МБОУДО «Панкрушихинский районный Центр творчества» | D64: 10 | E64: 5 | F64: 53.5 | G64: 16.1 | H64: 4 | I64: 100 | J64: 30 | K64: 267 | L64: 275 | M64: 209 | N64: 213 | O64: 97.60648741 | P64: 39.04259496 | Q64: 85.1
A65: 62 | B65: Первомайский район | C65: МБУДО «Центр творчества детей и молодежи «Созвездие» Первомайского района | D65: 7.5 | E65: 31.5 | F65: 90 | G65: 27 | H65: 3 | I65: 90 | J65: 27 | K65: 692 | L65: 692 | M65: 593 | N65: 595 | O65: 99.9 | P65: 40 | Q65: 94
A66: 63 | B66: Первомайский район | C66: МБУДОД «Детско-юношеская спортивная школа» Первомайского района | D66: 0.5 | E66: 15 | F66: 28.4 | G66: 8.5 | H66: 4 | I66: 100 | J66: 30 | K66: 286 | L66: 288 | M66: 311 | N66: 311 | O66: 99.65277778 | P66: 39.86111111 | Q66: 78.4
A67: 64 | B67: Поспелихинский район | C67: МКУДО «Поспелихинский районный центр детского творчества» | D67: 10 | E67: 38 | F67: 95.45454545 | G67: 28.63636364 | H67: 3 | I67: 90 | J67: 27 | K67: 480 | L67: 487 | M67: 369 | N67: 370 | O67: 98.7 | P67: 39.5 | Q67: 95.1
A68: 65 | B68: Ребрихинский район | C68: МКОУДО «Ребрихинский детско-юношеский центр» | D68: 7.5 | E68: 27 | F68: 83.4 | G68: 25 | H68: 4 | I68: 100 | J68: 30 | K68: 354 | L68: 355 | M68: 320 | N68: 322 | O68: 99.54859592 | P68: 39.81943837 | Q68: 94.8
A69: 66 | B69: Родинский район | C69: МБУДО «Детский оздоровительно-образовательный центр Родинского района | D69: 8 | E69: 31 | F69: 87.1 | G69: 26.1 | H69: 4 | I69: 100 | J69: 30 | K69: 71 | L69: 71 | M69: 64 | N69: 64 | O69: 100 | P69: 40 | Q69: 96.1
A70: 67 | B70: Романовский район | C70: МБУДО «Романовский детско-юношеский центр» | D70: 9 | E70: 34 | F70: 100 | G70: 30 | H70: 3 | I70: 90 | J70: 27 | K70: 157 | L70: 157 | M70: 127 | N70: 128 | O70: 99.9 | P70: 40 | Q70: 97
A71: 68 | B71: г. Рубцовск | C71: МБУДО «Детско-юношеский центр» г. Рубцовска | D71: 8 | E71: 36 | F71: 94.1 | G71: 28.2 | H71: 2 | I71: 60 | J71: 18 | K71: 637 | L71: 637 | M71: 626 | N71: 627 | O71: 99.92025518 | P71: 39.96810207 | Q71: 86.2
A72: 69 | B72: г. Рубцовск | C72: МБУДО «Станция туризма и экскурсий» г. Рубцовска | D72: 9 | E72: 35 | F72: 99.4 | G72: 29.8 | H72: 4 | I72: 100 | J72: 30 | K72: 170 | L72: 170 | M72: 134 | N72: 135 | O72: 99.62962963 | P72: 39.85185185 | Q72: 99.7
A73: 70 | B73: г. Рубцовск | C73: МБУДО «Центр внешкольной работы «Малая Академия» г. Рубцовска | D73: 7 | E73: 35.5 | F73: 88.9 | G73: 26.7 | H73: 4 | I73: 100 | J73: 30 | K73: 552 | L73: 555 | M73: 439 | N73: 445 | O73: 99.05557243 | P73: 39.62222897 | Q73: 96.3
A74: 71 | B74: г. Рубцовск | C74: МБУДО «Центр развития творчества» г. Рубцовска | D74: 8 | E74: 32 | F74: 91.1 | G74: 27.3 | H74: 3 | I74: 90 | J74: 27 | K74: 519 | L74: 519 | M74: 496 | N74: 496 | O74: 100 | P74: 40 | Q74: 94.3
A75: 72 | B75: Рубцовский район | C75: МБУДО «Детско-юношеская спортивная школа» Рубцовского района | D75: 7 | E75: 21 | F75: 67.26726727 | G75: 20.18018018 | H75: 4 | I75: 100 | J75: 30 | K75: 49 | L75: 49 | M75: 42 | N75: 43 | O75: 98.8372093 | P75: 39.53488372 | Q75: 89.7150639
A76: 73 | B76: Рубцовский район | C76: МБУДО «Центр творческого развития «Ступени» Рубцовского района | D76: 8 | E76: 26 | F76: 81.58730159 | G76: 24.47619048 | H76: 1 | I76: 30 | J76: 9 | K76: 167 | L76: 168 | M76: 159 | N76: 160 | O76: 99.38988095 | P76: 39.75595238 | Q76: 73.23214286
A77: 74 | B77: г. Славгород | C77: МБУДО «Центр творчества детей и молодежи» г. Славгорода | D77: 11 | E77: 38 | F77: 100 | G77: 30 | H77: 3 | I77: 90 | J77: 27 | K77: 551 | L77: 557 | M77: 464 | N77: 471 | O77: 98.9 | P77: 39.6 | Q77: 96.6
A78: 75 | B78: Смоленский район | C78: МБУДО «Смоленский дом детского творчества» | D78: 7 | E78: 35 | F78: 88.88888889 | G78: 26.66666667 | H78: 4 | I78: 100 | J78: 30 | K78: 144 | L78: 144 | M78: 107 | N78: 108 | O78: 99.53703704 | P78: 39.81481481 | Q78: 96.48148148
A79: 76 | B79: Советский район | C79: МБУДО «Детско-юношеский центр» Советского района | D79: 9 | E79: 37 | F79: 100 | G79: 30 | H79: 4 | I79: 100 | J79: 30 | K79: 557 | L79: 558 | M79: 494 | N79: 495 | O79: 99.9 | P79: 40 | Q79: 100
A80: 77 | B80: Солонешенский район | C80: МБУДО «Солонешенский центр детского творчества» | D80: 8 | E80: 29 | F80: 85.87301587 | G80: 25.76190476 | H80: 4 | I80: 100 | J80: 30 | K80: 84 | L80: 85 | M80: 54 | N80: 55 | O80: 98.5026738 | P80: 39.40106952 | Q80: 95.16297428
A81: 78 | B81: Солтонский район | C81: МКОУДО «Детско-юношеский центр» Солтонского района | D81: 7.5 | E81: 31 | F81: 86.2 | G81: 25.9 | H81: 3 | I81: 90 | J81: 27 | K81: 121 | L81: 124 | M81: 109 | N81: 109 | O81: 98.79032258 | P81: 39.51612903 | Q81: 92.4
A82: 79 | B82: Табунский район | C82: МБУДО «Центр дополнительного образования детей» Табунского района | D82: 8 | E82: 32 | F82: 88.6 | G82: 26.6 | H82: 2 | I82: 60 | J82: 18 | K82: 116 | L82: 120 | M82: 85 | N82: 85 | O82: 98.33333333 | P82: 39.33333333 | Q82: 83.9
A83: 80 | B83: Тальменский район | C83: МКУДО «Тальменская детско-юношеская спортивная школа» | D83: 7 | E83: 31 | F83: 81.94444444 | G83: 24.58333333 | H83: 3 | I83: 90 | J83: 27 | K83: 227 | L83: 227 | M83: 223 | N83: 223 | O83: 100 | P83: 40 | Q83: 91.58333333
A84: 81 | B84: Тальменский район | C84: МКУДО «Тальменский центр внешкольной работы» | D84: 8 | E84: 33.5 | F84: 88.4 | G84: 26.5 | H84: 4 | I84: 100 | J84: 30 | K84: 340 | L84: 341 | M84: 309 | N84: 311 | O84: 99.53182903 | P84: 39.81273161 | Q84: 96.3
A85: 82 | B85: Тогульский район | C85: МКУДО «Центр творчества, спорта и отдыха» Тогульского района | D85: 8 | E85: 25 | F85: 80.6 | G85: 24.2 | H85: 4 | I85: 100 | J85: 30 | K85: 151 | L85: 153 | M85: 125 | N85: 127 | O85: 98.55900365 | P85: 39.42360146 | Q85: 93.6
A86: 83 | B86: Топчихинский район | C86: МКУДО «Топчихинская детско-юношеская спортивная школа» | D86: 8 | E86: 31.5 | F86: 88.6 | G86: 26.6 | H86: 2 | I86: 60 | J86: 18 | K86: 154 | L86: 155 | M86: 119 | N86: 120 | O86: 99.26075269 | P86: 39.70430108 | Q86: 84.3
A87: 84 | B87: Топчихинский район | C87: МКУДО «Топчихинский детско-юношеский центр» | D87: 8 | E87: 35 | F87: 93.6 | G87: 28.1 | H87: 2 | I87: 60 | J87: 18 | K87: 233 | L87: 235 | M87: 218 | N87: 218 | O87: 99.57446809 | P87: 39.82978723 | Q87: 85.9
A88: 85 | B88: Третьяковский район | C88: МБОУДО «Центр развития творчества детей и юношества» Третьяковского района | D88: 8 | E88: 31.5 | F88: 89 | G88: 26.7 | H88: 3 | I88: 90 | J88: 27 | K88: 114 | L88: 114 | M88: 89 | N88: 89 | O88: 100 | P88: 40 | Q88: 93.7
A89: 86 | B89: Троицкий район | C89: МБУДО «Троицкий детско-юношеский центр» | D89: 7.5 | E89: 34.5 | F89: 89.9 | G89: 27 | H89: 4 | I89: 100 | J89: 30 | K89: 48 | L89: 49 | M89: 42 | N89: 42 | O89: 98.97959184 | P89: 39.59183673 | Q89: 96.6
A90: 87 | B90: Тюменцевский район | C90: МБУДО «Тюменцевский районный центр детского творчества» | D90: 8 | E90: 31 | F90: 90.03267974 | G90: 27.00980392 | H90: 3 | I90: 90 | J90: 27 | K90: 71 | L90: 73 | M90: 58 | N90: 58 | O90: 99 | P90: 39.6 | Q90: 93.6
A91: 88 | B91: Усть-Калманский район | C91: МБУДО «Центр детского творчества» Усть-Калманского района | D91: 8 | E91: 35 | F91: 92.6 | G91: 27.8 | H91: 3 | I91: 90 | J91: 27 | K91: 219 | L91: 219 | M91: 142 | N91: 144 | O91: 99.30555556 | P91: 39.72222222 | Q91: 94.5
A92: 89 | B92: Усть-Пристанский район | C92: МКУДО «Дом детского творчества» Усть-Пристанского района | D92: 6.5 | E92: 25 | F92: 75.4 | G92: 22.6 | H92: 4 | I92: 100 | J92: 30 | K92: 106 | L92: 107 | M92: 96 | N92: 96 | O92: 99.53271028 | P92: 39.81308411 | Q92: 92.4
A93: 90 | B93: Хабарский район | C93: МБУДО «Центр детского творчества» Хабарского района | D93: 8 | E93: 25.5 | F93: 80 | G93: 24 | H93: 4 | I93: 100 | J93: 30 | K93: 22 | L93: 22 | M93: 20 | N93: 20 | O93: 100 | P93: 40 | Q93: 94
A94: 91 | B94: Целинный район | C94: МБУДО «Центр творчества и отдыха» Целинного района | D94: 8 | E94: 32 | F94: 91.1 | G94: 27.3 | H94: 2 | I94: 60 | J94: 18 | K94: 139 | L94: 142 | M94: 98 | N94: 98 | O94: 98.94366197 | P94: 39.57746479 | Q94: 84.9
A95: 92 | B95: Чарышский район | C95: МБУДО «Детско-юношеская спортивная школа» Чарышского района | D95: 9 | E95: 35.5 | F95: 98.9 | G95: 29.7 | H95: 2 | I95: 60 | J95: 18 | K95: 213 | L95: 213 | M95: 54 | N95: 54 | O95: 100 | P95: 40 | Q95: 87.7
A96: 93 | B96: Чарышский район | C96: МБУДО «Центр детского творчества»Чарышского района | D96: 9 | E96: 22.5 | F96: 80.40540541 | G96: 24.12162162 | H96: 4 | I96: 100 | J96: 30 | K96: 156 | L96: 160 | M96: 146 | N96: 146 | O96: 98.75 | P96: 39.5 | Q96: 93.62162162
A97: 94 | B97: Шелаболихинский район | C97: МБУДО «Шелаболихинский центр детского творчества» | D97: 8 | E97: 36 | F97: 93.09309309 | G97: 27.92792793 | H97: 3 | I97: 90 | J97: 27 | K97: 116 | L97: 116 | M97: 96 | N97: 96 | O97: 100 | P97: 40 | Q97: 94.92792793
A98: 95 | B98: Шелаболихинский район | C98: МКУДО «Шелаболихинская детско-юношеская спортивная школа» | D98: 8 | E98: 31.5 | F98: 88.5 | G98: 26.6 | H98: 4 | I98: 100 | J98: 30 | K98: 170 | L98: 172 | M98: 91 | N98: 91 | O98: 99.41860465 | P98: 39.76744186 | Q98: 96.3
A99: 96 | B99: г. Яровое | C99: МБУДО «Центр научно-технического творчества учащихся» г. Яровое | D99: 9 | E99: 29.5 | F99: 91.6 | G99: 27.5 | H99: 4 | I99: 100 | J99: 30 | K99: 204 | L99: 206 | M99: 174 | N99: 175 | O99: 99.22884882 | P99: 39.69153953 | Q99: 97.2

Sheet 2КомфУслНал
A1: № п/п | B1: Муниципальное образование | C1: Наименование образовательной организации | D1: Наличие в образовательных организациях комфортных условий для предоставления услуг
D2: Наличие комфортной зоны отдыха (ожидания) оборудованной соответствующей мебелью | E2: Наличие и понятность навигации внутри организации | F2: Наличие и доступность питьевой воды | G2: Наличие и доступность санитарно-гигиенических помещений | H2: Санитарное состояние помещений организации | I2: Транспортная доступность (доступность общественного транспорта и наличие парковки) | J2: Доступность записи на получение услуги (по телефону, с использованием сети «Интернет» на официальном сайте ор | K2: Итого:
A3: 1 | B3: г. Алейск | C3: МБУДО «Центр детского творчества» (г. Алейск) | D3: 1 | E3: 1 | F3: 1 | G3: 1 | H3: 1 | I3: 1 | J3: 1 | K3: =SUM(D3:J3) -> 7
A4: 2 | B4: Алтайский район | C4: МАОУДО «Алтайский районный детско-юношеский центр» | D4: 1 | E4: 1 | F4: 1 | G4: 1 | H4: 1 | I4: 1 | J4: 1 | K4: =SUM(D4:J4) -> 7
A5: 3 | B5: Баевский район | C5: МБУДО «Баевский Центр детского творчества и профессионального обучения Алтайского края» | D5: 1 | E5: 1 | F5: 1 | G5: 1 | H5: 1 | I5: 1 | J5: 1 | K5: 7
A6: 4 | B6: г. Барнаул | C6: КГБУДО «Алтайский краевой дворец творчества детей и молодежи» | D6: 1 | E6: 1 | F6: 1 | G6: 1 | H6: 1 | I6: 1 | J6: 1 | K6: 7
A7: 5 | B7: г. Барнаул | C7: КГБУДО «Алтайский краевой детский экологический центр» | D7: 1 | E7: 1 | F7: 1 | G7: 1 | H7: 1 | I7: 1 | J7: 1 | K7: 7
A8: 6 | B8: г. Барнаул | C8: КГБУДО «Алтайский краевой центр детского отдыха, туризма и краеведения «Алтай» | D8: 1 | E8: 1 | F8: 1 | G8: 1 | H8: 1 | I8: 1 | J8: 1 | K8: 7
A9: 7 | B9: г. Барнаул | C9: КГБУДО «Детский технопарк Алтайского края «Кванториум.22» | D9: 1 | E9: 1 | F9: 1 | G9: 1 | H9: 1 | I9: 1 | J9: 1 | K9: 7
A10: 8 | B10: г. Барнаул | C10: МБУДО «Барнаульский городской детско-юношеский центр» | D10: 1 | E10: 1 | F10: 1 | G10: 1 | H10: 1 | I10: 1 | J10: 1 | K10: 7
A11: 9 | B11: г. Барнаул | C11: МБУДО «Барнаульская городская станция юных натуралистов» | D11: 1 | E11: 1 | F11: 1 | G11: 1 | H11: 1 | I11: 1 | J11: 1 | K11: 7
A12: 10 | B12: г. Барнаул | C12: МБУДО «Барнаульская городская станция юных техников» | D12: 1 | E12: 1 | F12: 1 | G12: 1 | H12: 1 | I12: 1 | J12: 1 | K12: 7
A13: 11 | B13: г. Барнаул | C13: МБУДО «Детский оздоровительно-образовательный (профильный) центр Гармония» | D13: 1 | E13: 1 | F13: 1 | G13: 1 | H13: 1 | I13: 1 | J13: 1 | K13: 7
A14: 12 | B14: г. Барнаул | C14: МБУДО «Дом художественного творчества детей» (г. Барнаул) | D14: 1 | E14: 1 | F14: 1 | G14: 1 | H14: 1 | I14: 1 | J14: 1 | K14: 7
A15: 13 | B15: г. Барнаул | C15: МБУДО «Детско-юношеский центр» Индустриального района г. Барнаула | D15: 1 | E15: 1 | F15: 1 | G15: 1 | H15: 1 | I15: 1 | J15: 1 | K15: 7
A16: 14 | B16: г. Барнаул | C16: МБУДО «Центр детского (юношеского) технического творчества» Ленинского района г. Барнаула | D16: 1 | E16: 1 | F16: 1 | G16: 1 | H16: 1 | I16: 1 | J16: 1 | K16: 7
A17: 15 | B17: г. Барнаул | C17: МБУДО «Центр детского творчества №2» г. Барнаула | D17: 1 | E17: 1 | F17: 1 | G17: 1 | H17: 1 | I17: 1 | J17: 1 | K17: 7
A18: 16 | B18: г. Барнаул | C18: МБУДО «Центр детского творчества» Центрального района г. Барнаула | D18: 1 | E18: 1 | F18: 1 | G18: 1 | H18: 1 | I18: 1 | J18: 1 | K18: 7
A19: 17 | B19: г. Барнаул | C19: МБУДО «Центр развития творчества детей и юношества» Индустриального района г. Барнаула | D19: 1 | E19: 1 | F19: 1 | G19: 1 | H19: 1 | I19: 1 | J19: 1 | K19: 7
A20: 18 | B20: г. Барнаул | C20: МБУДО «Центр развития творчества детей и молодежи» Железнодорожного района г. Барнаула | D20: 1 | E20: 1 | F20: 1 | G20: 1 | H20: 1 | I20: 1 | J20: 1 | K20: 7
A21: 19 | B21: г. Барнаул | C21: МБУДО «Центр физкультурно-спортивной направленности «Акцент» | D21: 0 | E21: 1 | F21: 1 | G21: 1 | H21: 1 | I21: 1 | J21: 1 | K21: 6
A22: 20 | B22: г. Барнаул | C22: МБУДО Городской психолого-педагогический центр «Потенциал» | D22: 1 | E22: 1 | F22: 1 | G22: 1 | H22: 1 | I22: 1 | J22: 1 | K22: 7
A23: 21 | B23: г. Барнаул | C23: МБУДО Детский оздоровительно-образовательный (профильный) центр «Валеологический центр» | D23: 1 | E23: 1 | F23: 1 | G23: 1 | H23: 1 | I23: 1 | J23: 1 | K23: 7
A24: 22 | B24: г. Барнаул | C24: МБУДО «Детская школа искусств «Традиция» с. Власиха г. Барнаула | D24: 1 | E24: 1 | F24: 1 | G24: 1 | H24: 1 | I24: 1 | J24: 1 | K24: 7
A25: 23 | B25: г. Барнаул | C25: МБУДО Центр внешкольной работы «Военно-спортивный клуб «Борец» | D25: 1 | E25: 1 | F25: 1 | G25: 1 | H25: 1 | I25: 1 | J25: 1 | K25: 7
A26: 24 | B26: г. Барнаул | C26: МБУДО «Центр эстетического воспитания «Песнохорки» | D26: 1 | E26: 1 | F26: 1 | G26: 1 | H26: 1 | I26: 1 | J26: 1 | K26: 7
A27: 25 | B27: г. Барнаул | C27: МБУДО «Центр дополнительного образования детей «Память» Пост №1 г. Барнаула» | D27: 1 | E27: 1 | F27: 1 | G27: 1 | H27: 1 | I27: 1 | J27: 1 | K27: 7
A28: 26 | B28: г. Барнаул | C28: МБУДО «Центр детского творчества» Октябрьского района г. Барнаула | D28: 1 | E28: 1 | F28: 1 | G28: 1 | H28: 1 | I28: 1 | J28: 1 | K28: 7
A29: 27 | B29: г. Барнаул | C29: МБУДО «Центр развития творчества детей и юношества» Ленинского района г. Барнаула | D29: 1 | E29: 1 | F29: 1 | G29: 1 | H29: 1 | I29: 1 | J29: 1 | K29: 7
A30: 28 | B30: г. Белокуриха | C30: МБУДО «Детско-юношеская спортивная школа» г. Белокурихи | D30: 1 | E30: 1 | F30: 1 | G30: 1 | H30: 1 | I30: 1 | J30: 1 | K30: 7
A31: 29 | B31: г. Белокуриха | C31: МБУДО «Центр эстетического воспитания» г. Белокурихи | D31: 1 | E31: 1 | F31: 1 | G31: 1 | H31: 1 | I31: 1 | J31: 1 | K31: 7
A32: 30 | B32: г. Бийск | C32: МБУДО «Детский эколого-туристический центр» г. Бийска | D32: 1 | E32: 1 | F32: 1 | G32: 1 | H32: 1 | I32: 0 | J32: 1 | K32: 6
A33: 31 | B33: г. Бийск | C33: МБУДО «Дом детского творчества» г. Бийска | D33: 1 | E33: 1 | F33: 1 | G33: 1 | H33: 1 | I33: 1 | J33: 1 | K33: 7
A34: 32 | B34: Бийский район | C34: МБУДО «Центр внешкольной работы» Бийского района | D34: 1 | E34: 1 | F34: 1 | G34: 1 | H34: 1 | I34: 1 | J34: 1 | K34: 7
A35: 33 | B35: Благовещенский район | C35: МБУДО «Благовещенский детско-юношеский центр» | D35: 1 | E35: 1 | F35: 1 | G35: 1 | H35: 1 | I35: 1 | J35: 1 | K35: 7
A36: 34 | B36: Бурлинский район | C36: МБУДО «Бурлинский Центр дополнительного образования» | D36: 1 | E36: 1 | F36: 1 | G36: 1 | H36: 1 | I36: 1 | J36: 1 | K36: 7
A37: 35 | B37: Быстроистокский район | C37: МБУДО «Быстроистокская детско-юношеская спортивная школа» | D37: 1 | E37: 1 | F37: 1 | G37: 1 | H37: 1 | I37: 1 | J37: 1 | K37: 7
A38: 36 | B38: Егорьевский район | C38: МБУДО «Егорьевская детско-юношеская спортивная школа» | D38: 1 | E38: 1 | F38: 1 | G38: 1 | H38: 1 | I38: 1 | J38: 1 | K38: 7
A39: 37 | B39: Ельцовский район | C39: МБУДО «Ельцовский центр развития детей-детско-юношеская спортивная школа" | D39: 1 | E39: 1 | F39: 1 | G39: 1 | H39: 1 | I39: 1 | J39: 1 | K39: 7
A40: 38 | B40: Завьяловский район | C40: МБОУДО «Завьяловский районный центр детского творчества» | D40: 1 | E40: 1 | F40: 1 | G40: 1 | H40: 1 | I40: 1 | J40: 1 | K40: 7
A41: 39 | B41: Залесовский район | C41: МБУДО «Центр спорта и творчества» | D41: 1 | E41: 1 | F41: 1 | G41: 1 | H41: 1 | I41: 1 | J41: 1 | K41: 7
A42: 40 | B42: г. Заринск | C42: МБУДО «Центр детского творчества» г. Заринска | D42: 1 | E42: 1 | F42: 1 | G42: 1 | H42: 1 | I42: 1 | J42: 1 | K42: 7
A43: 41 | B43: Заринский район | C43: МБУДО «Центр детского творчества» Заринского района | D43: 1 | E43: 1 | F43: 1 | G43: 1 | H43: 1 | I43: 1 | J43: 1 | K43: 7
A44: 42 | B44: ЗАТО Сибирский | C44: МБУДО «Детско-юношеский центр «Росток» ЗАТО Сибирский | D44: 1 | E44: 1 | F44: 1 | G44: 1 | H44: 1 | I44: 1 | J44: 1 | K44: 7
A45: 43 | B45: Змеиногорский район | C45: МБУДО «Дворец творчества детей и молодежи» Змеиногорского района | D45: 1 | E45: 1 | F45: 1 | G45: 1 | H45: 1 | I45: 1 | J45: 1 | K45: 7
A46: 44 | B46: Зональный район | C46: МКОУДО «Зональная районная детско-юношеская спортивная школа» | D46: 1 | E46: 1 | F46: 1 | G46: 1 | H46: 1 | I46: 1 | J46: 1 | K46: 7
A47: 45 | B47: Калманский район | C47: МБУДО «Калманский районный детско-юношеский центр» | D47: 1 | E47: 1 | F47: 1 | G47: 1 | H47: 1 | I47: 0 | J47: 1 | K47: 6
A48: 46 | B48: Каменский район | C48: МБУДО «Каменский многопрофильный образовательный центр» | D48: 1 | E48: 1 | F48: 1 | G48: 1 | H48: 1 | I48: 1 | J48: 1 | K48: 7
A49: 47 | B49: Красногорский район | C49: МКУДО «Дом детского творчества» Красногорского района | D49: 1 | E49: 1 | F49: 1 | G49: 1 | H49: 1 | I49: 0 | J49: 1 | K49: 6
A50: 48 | B50: Краснощековский район | C50: МБУДО «Краснощековский районный детско-юношеский центр» | D50: 1 | E50: 1 | F50: 1 | G50: 1 | H50: 1 | I50: 1 | J50: 1 | K50: 7
A51: 49 | B51: Крутихинский район | C51: МБУДО «Крутихинский Детско-юношеский центр» | D51: 1 | E51: 1 | F51: 1 | G51: 1 | H51: 1 | I51: 1 | J51: 1 | K51: 7
A52: 50 | B52: Кулундинский район | C52: МБУДО «Центр детского творчества» Кулундинского района | D52: 1 | E52: 1 | F52: 1 | G52: 1 | H52: 1 | I52: 1 | J52: 1 | K52: 7
A53: 51 | B53: Курьинский район | C53: МБУДО «Дом детского творчества» Курьинского района | D53: 1 | E53: 1 | F53: 1 | G53: 1 | H53: 1 | I53: 1 | J53: 1 | K53: 7
A54: 52 | B54: Кытмановский район | C54: МБУДО «Центр спорта и творчества Кытмановского района» | D54: 1 | E54: 1 | F54: 1 | G54: 1 | H54: 1 | I54: 1 | J54: 1 | K54: 7
A55: 53 | B55: Локтевский район | C55: МБУДО «Дом детского творчества» Локтевского района | D55: 1 | E55: 1 | F55: 1 | G55: 1 | H55: 1 | I55: 1 | J55: 1 | K55: 7
A56: 54 | B56: Мамонтовский район | C56: МБУДО «Мамонтовский детско-юношеский центр» | D56: 1 | E56: 1 | F56: 1 | G56: 1 | H56: 1 | I56: 1 | J56: 1 | K56: 7
A57: 55 | B57: Мамонтовский район | C57: МКУДО «Мамонтовская детско-юношеская спортивная школа» | D57: 1 | E57: 1 | F57: 1 | G57: 1 | H57: 1 | I57: 1 | J57: 1 | K57: 7
A58: 56 | B58: Михайловский район | C58: МКОДО «Михайловский образовательно-оздоровительный центр Им. Ю.А. Гагарина» | D58: 1 | E58: 1 | F58: 1 | G58: 1 | H58: 1 | I58: 1 | J58: 1 | K58: 7
A59: 57 | B59: Михайловский район | C59: МКУДО «Михайловская детско-юношеская спортивная школа» | D59: 1 | E59: 1 | F59: 1 | G59: 1 | H59: 1 | I59: 1 | J59: 1 | K59: 7
A60: 58 | B60: Новичихинский район | C60: МКОУДО «Новичихинская детско-юношеская спортивная школа» | D60: 1 | E60: 1 | F60: 1 | G60: 1 | H60: 1 | I60: 1 | J60: 1 | K60: 7
A61: 59 | B61: Новоалтайск район | C61: МБОУДО «Детско-юношеский центр города Новоалтайска» | D61: 1 | E61: 1 | F61: 1 | G61: 1 | H61: 1 | I61: 1 | J61: 1 | K61: 7
A62: 60 | B62: Павловский район | C62: МБУДО «Павловский детско-юношеский центр» | D62: 1 | E62: 1 | F62: 1 | G62: 1 | H62: 1 | I62: 1 | J62: 1 | K62: 7
A63: 61 | B63: Панкрушихинский район | C63: МБОУДО «Панкрушихинский районный Центр творчества» | D63: 1 | E63: 1 | F63: 1 | G63: 1 | H63: 1 | I63: 1 | J63: 1 | K63: 7
A64: 62 | B64: Первомайский район | C64: МБУДО «Центр творчества детей и молодежи «Созвездие» Первомайского района | D64: 1 | E64: 1 | F64: 1 | G64: 1 | H64: 1 | I64: 1 | J64: 1 | K64: 7
A65: 63 | B65: Первомайский район | C65: МБУДОД «Детско-юношеская спортивная школа» Первомайского района | D65: 1 | E65: 1 | F65: 1 | G65: 1 | H65: 1 | I65: 1 | J65: 1 | K65: 7
A66: 64 | B66: Поспелихинский район | C66: МКУДО «Поспелихинский районный центр детского творчества» | D66: 1 | E66: 1 | F66: 1 | G66: 1 | H66: 1 | I66: 1 | J66: 1 | K66: 7
A67: 65 | B67: Ребрихинский район | C67: МКОУДО «Ребрихинский детско-юношеский центр» | D67: 1 | E67: 1 | F67: 1 | G67: 1 | H67: 1 | I67: 1 | J67: 1 | K67: 7
A68: 66 | B68: Родинский район | C68: МБУДО «Детский оздоровительно-образовательный центр Родинского района | D68: 1 | E68: 1 | F68: 1 | G68: 1 | H68: 1 | I68: 1 | J68: 1 | K68: =SUM(D68:J68) -> 7
A69: 67 | B69: Романовский район | C69: МБУДО «Романовский детско-юношеский центр» | D69: 1 | E69: 1 | F69: 1 | G69: 1 | H69: 1 | I69: 1 | J69: 1 | K69: 7
A70: 68 | B70: г. Рубцовск | C70: МБУДО «Детско-юношеский центр» г. Рубцовска | D70: 1 | E70: 1 | F70: 1 | G70: 1 | H70: 1 | I70: 1 | J70: 1 | K70: 7
A71: 69 | B71: г. Рубцовск | C71: МБУДО «Станция туризма и экскурсий» г. Рубцовска | D71: 1 | E71: 1 | F71: 1 | G71: 1 | H71: 1 | I71: 1 | J71: 1 | K71: 7
A72: 70 | B72: г. Рубцовск | C72: МБУДО «Центр внешкольной работы «Малая Академия» г. Рубцовска | D72: 1 | E72: 1 | F72: 1 | G72: 1 | H72: 1 | I72: 1 | J72: 1 | K72: 7
A73: 71 | B73: г. Рубцовск | C73: МБУДО «Центр развития творчества» г. Рубцовска | D73: 1 | E73: 1 | F73: 1 | G73: 1 | H73: 1 | I73: 1 | J73: 1 | K73: 7
A74: 72 | B74: Рубцовский район | C74: МБУДО «Детско-юношеская спортивная школа» Рубцовского района | D74: 1 | E74: 1 | F74: 1 | G74: 1 | H74: 1 | I74: 1 | J74: 1 | K74: 7
A75: 73 | B75: Рубцовский район | C75: МБУДО «Центр творческого развития «Ступени» Рубцовского района | D75: 1 | E75: 1 | F75: 1 | G75: 1 | H75: 1 | I75: 1 | J75: 1 | K75: 7
A76: 74 | B76: г. Славгород | C76: МБУДО «Центр творчества детей и молодежи» г. Славгорода | D76: 1 | E76: 1 | F76: 1 | G76: 1 | H76: 1 | I76: 1 | J76: 1 | K76: 7
A77: 75 | B77: Смоленский район | C77: МБУДО «Смоленский дом детского творчества» | D77: 1 | E77: 1 | F77: 1 | G77: 1 | H77: 1 | I77: 1 | J77: 1 | K77: 7
A78: 76 | B78: Советский район | C78: МБУДО «Детско-юношеский центр» Советского района | D78: 1 | E78: 1 | F78: 1 | G78: 1 | H78: 1 | I78: 1 | J78: 1 | K78: 7
A79: 77 | B79: Солонешенский район | C79: МБУДО «Солонешенский центр детского творчества» | D79: 1 | E79: 1 | F79: 1 | G79: 1 | H79: 1 | I79: 1 | J79: 1 | K79: 7
A80: 78 | B80: Солтонский район | C80: МКОУДО «Детско-юношеский центр» Солтонского района | D80: 1 | E80: 1 | F80: 1 | G80: 1 | H80: 1 | I80: 0 | J80: 1 | K80: 6
A81: 79 | B81: Табунский район | C81: МБУДО «Центр дополнительного образования детей» Табунского района | D81: 1 | E81: 1 | F81: 1 | G81: 1 | H81: 1 | I81: 1 | J81: 1 | K81: 7
A82: 80 | B82: Тальменский район | C82: МКУДО «Тальменская детско-юношеская спортивная школа» | D82: 1 | E82: 1 | F82: 1 | G82: 1 | H82: 1 | I82: 1 | J82: 1 | K82: 7
A83: 81 | B83: Тальменский район | C83: МКУДО «Тальменский центр внешкольной работы» | D83: 1 | E83: 1 | F83: 1 | G83: 1 | H83: 1 | I83: 1 | J83: 1 | K83: 7
A84: 82 | B84: Тогульский район | C84: МКУДО «Центр творчества, спорта и отдыха» Тогульского района | D84: 1 | E84: 1 | F84: 1 | G84: 1 | H84: 1 | I84: 1 | J84: 1 | K84: 7
A85: 83 | B85: Топчихинский район | C85: МКУДО «Топчихинская детско-юношеская спортивная школа» | D85: 1 | E85: 1 | F85: 1 | G85: 1 | H85: 1 | I85: 1 | J85: 1 | K85: 7
A86: 84 | B86: Топчихинский район | C86: МКУДО «Топчихинский детско-юношеский центр» | D86: 1 | E86: 1 | F86: 1 | G86: 1 | H86: 1 | I86: 1 | J86: 1 | K86: 7
A87: 85 | B87: Третьяковский район | C87: МБОУДО «Центр развития творчества детей и юношества» Третьяковского района | D87: 1 | E87: 1 | F87: 1 | G87: 1 | H87: 1 | I87: 1 | J87: 1 | K87: 7
A88: 86 | B88: Троицкий район | C88: МБУДО «Троицкий детско-юношеский центр» | D88: 1 | E88: 1 | F88: 1 | G88: 1 | H88: 1 | I88: 1 | J88: 1 | K88: 7
A89: 87 | B89: Тюменцевский район | C89: МБУДО «Тюменцевский районный центр детского творчества» | D89: 1 | E89: 1 | F89: 1 | G89: 1 | H89: 1 | I89: 1 | J89: 1 | K89: 7
A90: 88 | B90: Усть-Калманский район | C90: МБУДО «Центр детского творчества» Усть-Калманского района | D90: 1 | E90: 1 | F90: 1 | G90: 1 | H90: 1 | I90: 1 | J90: 1 | K90: 7
A91: 89 | B91: Усть-Пристанский район | C91: МКУДО «Дом детского творчества» Усть-Пристанского района | D91: 1 | E91: 1 | F91: 1 | G91: 1 | H91: 1 | I91: 1 | J91: 1 | K91: 7
A92: 90 | B92: Хабарский район | C92: МБУДО «Центр детского творчества» Хабарского района | D92: 0 | E92: 1 | F92: 1 | G92: 1 | H92: 1 | I92: 1 | J92: 1 | K92: 6
A93: 91 | B93: Целинный район | C93: МБУДО «Центр творчества и отдыха» Целинного района | D93: 1 | E93: 1 | F93: 1 | G93: 1 | H93: 1 | I93: 1 | J93: 1 | K93: 7
A94: 92 | B94: Чарышский район | C94: МБУДО «Детско-юношеская спортивная школа» Чарышского района | D94: 1 | E94: 1 | F94: 1 | G94: 1 | H94: 1 | I94: 1 | J94: 1 | K94: 7
A95: 93 | B95: Чарышский район | C95: МБУДО «Центр детского творчества»Чарышского района | D95: 1 | E95: 1 | F95: 1 | G95: 1 | H95: 1 | I95: 1 | J95: 1 | K95: 7
A96: 94 | B96: Шелаболихинский район | C96: МБУДО «Шелаболихинский центр детского творчества» | D96: 1 | E96: 1 | F96: 1 | G96: 1 | H96: 1 | I96: 1 | J96: 1 | K96: 7
A97: 95 | B97: Шелаболихинский район | C97: МКУДО «Шелаболихинская детско-юношеская спортивная школа» | D97: 1 | E97: 1 | F97: 1 | G97: 1 | H97: 1 | I97: 1 | J97: 1 | K97: 7
A98: 96 | B98: г. Яровое | C98: МБУДО «Центр научно-технического творчества учащихся» г. Яровое | D98: 1 | E98: 1 | F98: 1 | G98: 1 | H98: 1 | I98: 1 | J98: 1 | K98: 7

Sheet 2КомУслОц
A1: № п/п | B1: Муниципальное образование | C1: Наименование образовательной организации | D1: Обеспечение в организации социальной сферы комфортных условий для предоставления услуг
D2: 2.1.1. Наличие комфортных условий для предоставления услуг | G2: Показатель 2.3 Доля получателей услуг, удовлетворенных комфортностью условий предоставления услуг | K2: Итого по критерию:
D3: Количество комфортных условий для предоставления услуг | E3: Значение показателя 2.1.1 | F3: Значение показателя с учетом значимости | G3: Число получателей услуг, удовлетворенных комфортностью предоставления услуг организацией образования | H3: Число получателей услуг, опрошенных по данному вопросу | I3: Значение показателя 2.3 | J3: Значение показателя 2.3 с учетом значимости
E4: 100 | F4: 50 | I4: 100 | J4: =I4*0.5 -> 50 | K4: =F4+J4 -> 100
A5: 1 | B5: г. Алейск | C5: МБУДО «Центр детского творчества» (г. Алейск) | D5: 7 | E5: =IF(D5<=4,D5*20,100) -> 100 | F5: 50 | G5: 624 | H5: 632 | I5: 99 | J5: =I5*0.5 -> 49.5 | K5: =F5+J5 -> 99.5
A6: 2 | B6: Алтайский район | C6: МАОУДО «Алтайский районный детско-юношеский центр» | D6: 7 | E6: =IF(D6<=4,D6*20,100) -> 100 | F6: 50 | G6: 515 | H6: 520 | I6: =G6/H6*100 -> 99.03846154 | J6: 49.51923077 | K6: 99.51923077
A7: 3 | B7: Баевский район | C7: МБУДО «Баевский Центр детского творчества и профессионального обучения Алтайского края» | D7: 7 | E7: 100 | F7: 50 | G7: 144 | H7: 147 | I7: 97.95918367 | J7: 48.97959184 | K7: 98.97959184
A8: 4 | B8: г. Барнаул | C8: КГБУДО «Алтайский краевой дворец творчества детей и молодежи» | D8: 7 | E8: 100 | F8: 50 | G8: 447 | H8: 457 | I8: 98 | J8: 49 | K8: 99
A9: 5 | B9: г. Барнаул | C9: КГБУДО «Алтайский краевой детский экологический центр» | D9: 7 | E9: 100 | F9: 50 | G9: 567 | H9: 569 | I9: 99.7 | J9: 49.85 | K9: 99.85
A10: 6 | B10: г. Барнаул | C10: КГБУДО «Алтайский краевой центр детского отдыха, туризма и краеведения «Алтай» | D10: 6 | E10: 100 | F10: 50 | G10: 304 | H10: 306 | I10: 99 | J10: 49.5 | K10: 99.5
A11: 7 | B11: г. Барнаул | C11: КГБУДО «Детский технопарк Алтайского края «Кванториум.22» | D11: 7 | E11: 100 | F11: 50 | G11: 730 | H11: 732 | I11: 99.9 | J11: =I11*0.5 -> 49.95 | K11: =F11+J11 -> 99.95
A12: 8 | B12: г. Барнаул | C12: МБУДО «Барнаульский городской детско-юношеский центр» | D12: 7 | E12: 100 | F12: 50 | G12: 651 | H12: 660 | I12: 99 | J12: 49.5 | K12: 99.5
A13: 9 | B13: г. Барнаул | C13: МБУДО «Барнаульская городская станция юных натуралистов» | D13: 7 | E13: 100 | F13: 50 | G13: 241 | H13: 242 | I13: 99.8 | J13: 49.9 | K13: 99.9
A14: 10 | B14: г. Барнаул | C14: МБУДО «Барнаульская городская станция юных техников» | D14: 7 | E14: 100 | F14: 50 | G14: 608 | H14: 609 | I14: 99.9 | J14: 49.95 | K14: 99.95
A15: 11 | B15: г. Барнаул | C15: МБУДО «Детский оздоровительно-образовательный (профильный) центр Гармония» | D15: 7 | E15: 100 | F15: 50 | G15: 57 | H15: 57 | I15: =G15/H15*100 -> 100 | J15: 50 | K15: 100
A16: 12 | B16: г. Барнаул | C16: МБУДО «Дом художественного творчества детей» (г. Барнаул) | D16: 7 | E16: 100 | F16: 50 | G16: 597 | H16: 600 | I16: 99 | J16: 49.5 | K16: 99.5
A17: 13 | B17: г. Барнаул | C17: МБУДО «Детско-юношеский центр» Индустриального района г. Барнаула | D17: 7 | E17: 100 | F17: 50 | G17: 715 | H17: 717 | I17: 99.9 | J17: 49.95 | K17: 99.95
A18: 14 | B18: г. Барнаул | C18: МБУДО «Центр детского (юношеского) технического творчества» Ленинского района г. Барнаула | D18: 7 | E18: 100 | F18: 50 | G18: 106 | H18: 108 | I18: 98 | J18: 49 | K18: 99
A19: 15 | B19: г. Барнаул | C19: МБУДО «Центр детского творчества №2» г. Барнаула | D19: 7 | E19: 100 | F19: 50 | G19: 623 | H19: 643 | I19: 97 | J19: 48.5 | K19: 98.5
A20: 16 | B20: г. Барнаул | C20: МБУДО «Центр детского творчества» Центрального района г. Барнаула | D20: 7 | E20: 100 | F20: 50 | G20: 248 | H20: 254 | I20: 97.9 | J20: 48.95 | K20: 98.95
A21: 17 | B21: г. Барнаул | C21: МБУДО «Центр развития творчества детей и юношества» Индустриального района г. Барнаула | D21: 7 | E21: 100 | F21: 50 | G21: 664 | H21: 667 | I21: 99 | J21: 49.5 | K21: 99.5
A22: 18 | B22: г. Барнаул | C22: МБУДО «Центр развития творчества детей и молодежи» Железнодорожного района г. Барнаула | D22: 7 | E22: 100 | F22: 50 | G22: 581 | H22: 597 | I22: 97 | J22: 48.5 | K22: 98.5
A23: 19 | B23: г. Барнаул | C23: МБУДО «Центр физкультурно-спортивной направленности «Акцент» | D23: 6 | E23: 100 | F23: 50 | G23: 129 | H23: 130 | I23: 99.23076923 | J23: 49.5 | K23: 99.5
A24: 20 | B24: г. Барнаул | C24: МБУДО Городской психолого-педагогический центр «Потенциал» | D24: 7 | E24: 100 | F24: 50 | G24: 702 | H24: 709 | I24: 99.01269394 | J24: 49.50634697 | K24: 99.50634697
A25: 21 | B25: г. Барнаул | C25: МБУДО Детский оздоровительно-образовательный (профильный) центр «Валеологический центр» | D25: 7 | E25: 100 | F25: 50 | G25: 629 | H25: 629 | I25: 100 | J25: 50 | K25: 100
A26: 22 | B26: г. Барнаул | C26: МБУДО «Детская школа искусств «Традиция» с. Власиха г. Барнаула | D26: 7 | E26: 100 | F26: 50 | G26: 471 | H26: 474 | I26: 99 | J26: 49.5 | K26: 99.5
A27: 23 | B27: г. Барнаул | C27: МБУДО Центр внешкольной работы «Военно-спортивный клуб «Борец» | D27: 7 | E27: 100 | F27: 50 | G27: 80 | H27: 80 | I27: 100 | J27: 50 | K27: 100
A28: 24 | B28: г. Барнаул | C28: МБУДО «Центр эстетического воспитания «Песнохорки» | D28: 7 | E28: 100 | F28: 50 | G28: 204 | H28: 206 | I28: 99.02912621 | J28: 49.51456311 | K28: 99.51456311
A29: 25 | B29: г. Барнаул | C29: МБУДО «Центр дополнительного образования детей «Память» Пост №1 г. Барнаула» | D29: 7 | E29: 100 | F29: 50 | G29: 251 | H29: 253 | I29: 99 | J29: 49.5 | K29: 99.5
A30: 26 | B30: г. Барнаул | C30: МБУДО «Центр детского творчества» Октябрьского района г. Барнаула | D30: 7 | E30: 100 | F30: 50 | G30: 239 | H30: 253 | I30: 94 | J30: 47 | K30: 97
A31: 27 | B31: г. Барнаул | C31: МБУДО «Центр развития творчества детей и юношества» Ленинского района г. Барнаула | D31: 7 | E31: 100 | F31: 50 | G31: 638 | H31: 639 | I31: 99.9 | J31: 49.95 | K31: 99.95
A32: 28 | B32: г. Белокуриха | C32: МБУДО «Детско-юношеская спортивная школа» г. Белокурихи | D32: 7 | E32: 100 | F32: 50 | G32: 197 | H32: 198 | I32: 99 | J32: 49.5 | K32: 99.5
A33: 29 | B33: г. Белокуриха | C33: МБУДО «Центр эстетического воспитания» г. Белокурихи | D33: 7 | E33: 100 | F33: 50 | G33: 293 | H33: 293 | I33: 100 | J33: 50 | K33: 100
A34: 30 | B34: г. Бийск | C34: МБУДО «Детский эколого-туристический центр» г. Бийска | D34: 6 | E34: 100 | F34: 50 | G34: 427 | H34: 429 | I34: 99 | J34: 49.5 | K34: 99.5
A35: 31 | B35: г. Бийск | C35: МБУДО «Дом детского творчества» г. Бийска | D35: 7 | E35: 100 | F35: 50 | G35: 638 | H35: 647 | I35: 98.9 | J35: 49.45 | K35: 99.45
A36: 32 | B36: Бийский район | C36: МБУДО «Центр внешкольной работы» Бийского района | D36: 7 | E36: 100 | F36: 50 | G36: 111 | H36: 114 | I36: 97 | J36: 48.5 | K36: 98.5
A37: 33 | B37: Благовещенский район | C37: МБУДО «Благовещенский детско-юношеский центр» | D37: 7 | E37: 100 | F37: 50 | G37: 301 | H37: 302 | I37: 99.9 | J37: 49.95 | K37: 99.95
A38: 34 | B38: Бурлинский район | C38: МБУДО «Бурлинский Центр дополнительного образования» | D38: 7 | E38: 100 | F38: 50 | G38: 130 | H38: 130 | I38: 100 | J38: 50 | K38: 100
A39: 35 | B39: Быстроистокский район | C39: МБУДО «Быстроистокская детско-юношеская спортивная школа» | D39: 7 | E39: 100 | F39: 50 | G39: 131 | H39: 132 | I39: 99 | J39: 49.5 | K39: 99.5
A40: 36 | B40: Егорьевский район | C40: МБУДО «Егорьевская детско-юношеская спортивная школа» | D40: 7 | E40: 100 | F40: 50 | G40: 20 | H40: 21 | I40: 95 | J40: 47.5 | K40: 97.5
A41: 37 | B41: Ельцовский район | C41: МБУДО «Ельцовский центр развития детей-детско-юношеская спортивная школа" | D41: 7 | E41: 100 | F41: 50 | G41: 266 | H41: 269 | I41: 99 | J41: 49.5 | K41: 99.5
A42: 38 | B42: Завьяловский район | C42: МБОУДО «Завьяловский районный центр детского творчества» | D42: 7 | E42: 100 | F42: 50 | G42: 109 | H42: 112 | I42: 97 | J42: 48.5 | K42: 98.5
A43: 39 | B43: Залесовский район | C43: МБУДО «Центр спорта и творчества» | D43: 7 | E43: 100 | F43: 50 | G43: 101 | H43: 105 | I43: 96 | J43: 48 | K43: 98
A44: 40 | B44: г. Заринск | C44: МБУДО «Центр детского творчества» г. Заринска | D44: 7 | E44: 100 | F44: 50 | G44: 628 | H44: 638 | I44: 98 | J44: 49 | K44: 99
A45: 41 | B45: Заринский район | C45: МБУДО «Центр детского творчества» Заринского района | D45: 7 | E45: 100 | F45: 50 | G45: 81 | H45: 82 | I45: 99 | J45: 49.5 | K45: 99.5
A46: 42 | B46: ЗАТО Сибирский | C46: МБУДО «Детско-юношеский центр «Росток» ЗАТО Сибирский | D46: 7 | E46: 100 | F46: 50 | G46: 112 | H46: 114 | I46: 98 | J46: 49 | K46: 99
A47: 43 | B47: Змеиногорский район | C47: МБУДО «Дворец творчества детей и молодежи» Змеиногорского района | D47: 7 | E47: 100 | F47: 50 | G47: 693 | H47: 694 | I47: 99.9 | J47: 49.95 | K47: 99.95
A48: 44 | B48: Зональный район | C48: МКОУДО «Зональная районная детско-юношеская спортивная школа» | D48: 7 | E48: 100 | F48: 50 | G48: 63 | H48: 65 | I48: 96.92307692 | J48: 48.46153846 | K48: 98.46153846
A49: 45 | B49: Калманский район | C49: МБУДО «Калманский районный детско-юношеский центр» | D49: 6 | E49: 100 | F49: 50 | G49: 90 | H49: 93 | I49: 97 | J49: 48.5 | K49: 98.5
A50: 46 | B50: Каменский район | C50: МБУДО «Каменский многопрофильный образовательный центр» | D50: 7 | E50: 100 | F50: 50 | G50: 407 | H50: 407 | I50: 100 | J50: 50 | K50: 100
A51: 47 | B51: Красногорский район | C51: МКУДО «Дом детского творчества» Красногорского района | D51: 6 | E51: 100 | F51: 50 | G51: 76 | H51: 77 | I51: 99 | J51: 49.5 | K51: 99.5
A52: 48 | B52: Краснощековский район | C52: МБУДО «Краснощековский районный детско-юношеский центр» | D52: 7 | E52: 100 | F52: 50 | G52: 116 | H52: 117 | I52: 99.14529915 | J52: 49.5 | K52: 99.5
A53: 49 | B53: Крутихинский район | C53: МБУДО «Крутихинский Детско-юношеский центр» | D53: 7 | E53: 100 | F53: 50 | G53: 456 | H53: 456 | I53: 100 | J53: 50 | K53: 100
A54: 50 | B54: Кулундинский район | C54: МБУДО «Центр детского творчества» Кулундинского района | D54: 7 | E54: 100 | F54: 50 | G54: 254 | H54: 259 | I54: 98.06949807 | J54: 49.03474903 | K54: 99.03474903
A55: 51 | B55: Курьинский район | C55: МБУДО «Дом детского творчества» Курьинского района | D55: 7 | E55: 100 | F55: 50 | G55: 90 | H55: 91 | I55: 98.9010989 | J55: 49.45054945 | K55: 99.45054945
A56: 52 | B56: Кытмановский район | C56: МБУДО «Центр спорта и творчества Кытмановского района» | D56: 7 | E56: 100 | F56: 50 | G56: 281 | H56: 287 | I56: 97.90940767 | J56: 48.95470383 | K56: 98.95470383
A57: 53 | B57: Локтевский район | C57: МБУДО «Дом детского творчества» Локтевского района | D57: 7 | E57: 100 | F57: 50 | G57: 93 | H57: 93 | I57: 100 | J57: 50 | K57: 100
A58: 54 | B58: Мамонтовский район | C58: МБУДО «Мамонтовский детско-юношеский центр» | D58: 7 | E58: 100 | F58: 50 | G58: 146 | H58: 147 | I58: 99.31972789 | J58: 49.5 | K58: 99.5
A59: 55 | B59: Мамонтовский район | C59: МКУДО «Мамонтовская детско-юношеская спортивная школа» | D59: 7 | E59: 100 | F59: 50 | G59: 48 | H59: 53 | I59: 91 | J59: 45.5 | K59: 95.5
A60: 56 | B60: Михайловский район | C60: МКОДО «Михайловский образовательно-оздоровительный центр Им. Ю.А. Гагарина» | D60: 7 | E60: 100 | F60: 50 | G60: 61 | H60: 64 | I60: 95 | J60: 47.5 | K60: 97.5
A61: 57 | B61: Михайловский район | C61: МКУДО «Михайловская детско-юношеская спортивная школа» | D61: 6 | E61: 100 | F61: 50 | G61: 125 | H61: 125 | I61: 100 | J61: 50 | K61: 100
A62: 58 | B62: Новичихинский район | C62: МКОУДО «Новичихинская детско-юношеская спортивная школа» | D62: 7 | E62: 100 | F62: 50 | G62: 214 | H62: 218 | I62: 98 | J62: 49 | K62: 99
A63: 59 | B63: Новоалтайск район | C63: МБОУДО «Детско-юношеский центр города Новоалтайска» | D63: 7 | E63: 100 | F63: 50 | G63: 700 | H63: 703 | I63: 99.9 | J63: 49.95 | K63: 99.95
A64: 60 | B64: Павловский район | C64: МБУДО «Павловский детско-юношеский центр» | D64: 7 | E64: 100 | F64: 50 | G64: 249 | H64: 260 | I64: 96 | J64: 48 | K64: 98
A65: 61 | B65: Панкрушихинский район | C65: МБОУДО «Панкрушихинский районный Центр творчества» | D65: 7 | E65: 100 | F65: 50 | G65: 299 | H65: 305 | I65: 98.03278689 | J65: 49.01639344 | K65: 99.01639344
A66: 62 | B66: Первомайский район | C66: МБУДО «Центр творчества детей и молодежи «Созвездие» Первомайского района | D66: 7 | E66: 100 | F66: 50 | G66: 717 | H66: 724 | I66: 99.03314917 | J66: 49.51657459 | K66: 99.51657459
A67: 63 | B67: Первомайский район | C67: МБУДОД «Детско-юношеская спортивная школа» Первомайского района | D67: 7 | E67: 100 | F67: 50 | G67: 568 | H67: 569 | I67: 99.9 | J67: 49.95 | K67: 99.95
A68: 64 | B68: Поспелихинский район | C68: МКУДО «Поспелихинский районный центр детского творчества» | D68: 7 | E68: 100 | F68: 50 | G68: 534 | H68: 538 | I68: 99 | J68: 49.5 | K68: 99.5
A69: 65 | B69: Ребрихинский район | C69: МКОУДО «Ребрихинский детско-юношеский центр» | D69: 7 | E69: 100 | F69: 50 | G69: 375 | H69: 379 | I69: 98.94459103 | J69: 49.47229551 | K69: 99.47229551
A70: 66 | B70: Родинский район | C70: МБУДО «Детский оздоровительно-образовательный центр Родинского района | D70: 7 | E70: =IF(D70<=4,D70*20,100) -> 100 | F70: 50 | G70: 70 | H70: 71 | I70: 98.5915493 | J70: 49.5 | K70: 99.5
A71: 67 | B71: Романовский район | C71: МБУДО «Романовский детско-юношеский центр» | D71: 7 | E71: 100 | F71: 50 | G71: 161 | H71: 164 | I71: 98 | J71: 49 | K71: 99
A72: 68 | B72: г. Рубцовск | C72: МБУДО «Детско-юношеский центр» г. Рубцовска | D72: 7 | E72: 100 | F72: 50 | G72: 679 | H72: 681 | I72: 99.9 | J72: 49.95 | K72: 99.95
A73: 69 | B73: г. Рубцовск | C73: МБУДО «Станция туризма и экскурсий» г. Рубцовска | D73: 7 | E73: 100 | F73: 50 | G73: 184 | H73: 191 | I73: 96 | J73: 48 | K73: 98
A74: 70 | B74: г. Рубцовск | C74: МБУДО «Центр внешкольной работы «Малая Академия» г. Рубцовска | D74: 7 | E74: 100 | F74: 50 | G74: 650 | H74: 666 | I74: 98 | J74: 49 | K74: 99
A75: 71 | B75: г. Рубцовск | C75: МБУДО «Центр развития творчества» г. Рубцовска | D75: 7 | E75: 100 | F75: 50 | G75: 522 | H75: 523 | I75: 99.9 | J75: =I75*0.5 -> 49.95 | K75: =F75+J75 -> 99.95
A76: 72 | B76: Рубцовский район | C76: МБУДО «Детско-юношеская спортивная школа» Рубцовского района | D76: 7 | E76: 100 | F76: 50 | G76: 56 | H76: 56 | I76: =G76/H76*100 -> 100 | J76: 50 | K76: 100
A77: 73 | B77: Рубцовский район | C77: МБУДО «Центр творческого развития «Ступени» Рубцовского района | D77: 7 | E77: 100 | F77: 50 | G77: 189 | H77: 190 | I77: 99 | J77: 49.5 | K77: 99.5
A78: 74 | B78: г. Славгород | C78: МБУДО «Центр творчества детей и молодежи» г. Славгорода | D78: 7 | E78: 100 | F78: 50 | G78: 625 | H78: 644 | I78: 97.04968944 | J78: 48.52484472 | K78: 98.52484472
A79: 75 | B79: Смоленский район | C79: МБУДО «Смоленский дом детского творчества» | D79: 7 | E79: 100 | F79: 50 | G79: 149 | H79: 149 | I79: 100 | J79: 50 | K79: 100
A80: 76 | B80: Советский район | C80: МБУДО «Детско-юношеский центр» Советского района | D80: 7 | E80: 100 | F80: 50 | G80: 626 | H80: 634 | I80: 99 | J80: 49.5 | K80: 99.5
A81: 77 | B81: Солонешенский район | C81: МБУДО «Солонешенский центр детского творчества» | D81: 7 | E81: 100 | F81: 50 | G81: 84 | H81: 88 | I81: 95 | J81: 47.5 | K81: 97.5
A82: 78 | B82: Солтонский район | C82: МКОУДО «Детско-юношеский центр» Солтонского района | D82: 6 | E82: 100 | F82: 50 | G82: 211 | H82: 222 | I82: 95.04504505 | J82: 47.52252252 | K82: 97.52252252
A83: 79 | B83: Табунский район | C83: МБУДО «Центр дополнительного образования детей» Табунского района | D83: 7 | E83: 100 | F83: 50 | G83: 123 | H83: 137 | I83: 90 | J83: 45 | K83: 95
A84: 80 | B84: Тальменский район | C84: МКУДО «Тальменская детско-юношеская спортивная школа» | D84: 7 | E84: 100 | F84: 50 | G84: 247 | H84: 247 | I84: 100 | J84: 50 | K84: 100
A85: 81 | B85: Тальменский район | C85: МКУДО «Тальменский центр внешкольной работы» | D85: 7 | E85: 100 | F85: 50 | G85: 350 | H85: 352 | I85: 99 | J85: 49.5 | K85: 99.5
A86: 82 | B86: Тогульский район | C86: МКУДО «Центр творчества, спорта и отдыха» Тогульского района | D86: 7 | E86: 100 | F86: 50 | G86: 167 | H86: 169 | I86: 99 | J86: 49.5 | K86: 99.5
A87: 83 | B87: Топчихинский район | C87: МКУДО «Топчихинская детско-юношеская спортивная школа» | D87: 7 | E87: 100 | F87: 50 | G87: 162 | H87: 168 | I87: 96 | J87: 48 | K87: 98
A88: 84 | B88: Топчихинский район | C88: МКУДО «Топчихинский детско-юношеский центр» | D88: 7 | E88: 100 | F88: 50 | G88: 250 | H88: 250 | I88: 100 | J88: 50 | K88: 100
A89: 85 | B89: Третьяковский район | C89: МБОУДО «Центр развития творчества детей и юношества» Третьяковского района | D89: 7 | E89: 100 | F89: 50 | G89: 116 | H89: 117 | I89: 99 | J89: 49.5 | K89: 99.5
A90: 86 | B90: Троицкий район | C90: МБУДО «Троицкий детско-юношеский центр» | D90: 7 | E90: 100 | F90: 50 | G90: 60 | H90: 60 | I90: 100 | J90: 50 | K90: 100
A91: 87 | B91: Тюменцевский район | C91: МБУДО «Тюменцевский районный центр детского творчества» | D91: 7 | E91: 100 | F91: 50 | G91: 88 | H91: 89 | I91: 99 | J91: 49.5 | K91: 99.5
A92: 88 | B92: Усть-Калманский район | C92: МБУДО «Центр детского творчества» Усть-Калманского района | D92: 7 | E92: 100 | F92: 50 | G92: 248 | H92: 248 | I92: 100 | J92: 50 | K92: 100
A93: 89 | B93: Усть-Пристанский район | C93: МКУДО «Дом детского творчества» Усть-Пристанского района | D93: 7 | E93: 100 | F93: 50 | G93: 109 | H93: 111 | I93: 98 | J93: 49 | K93: 99
A94: 90 | B94: Хабарский район | C94: МБУДО «Центр детского творчества» Хабарского района | D94: 6 | E94: 100 | F94: 50 | G94: 29 | H94: 29 | I94: 100 | J94: 50 | K94: 100
A95: 91 | B95: Целинный район | C95: МБУДО «Центр творчества и отдыха» Целинного района | D95: 7 | E95: 100 | F95: 50 | G95: 151 | H95: 160 | I95: 94 | J95: 47 | K95: 97
A96: 92 | B96: Чарышский район | C96: МБУДО «Детско-юношеская спортивная школа» Чарышского района | D96: 7 | E96: 100 | F96: 50 | G96: 214 | H96: 214 | I96: 100 | J96: 50 | K96: 100
A97: 93 | B97: Чарышский район | C97: МБУДО «Центр детского творчества»Чарышского района | D97: 7 | E97: 100 | F97: 50 | G97: 223 | H97: 223 | I97: 100 | J97: 50 | K97: 100
A98: 94 | B98: Шелаболихинский район | C98: МБУДО «Шелаболихинский центр детского творчества» | D98: 7 | E98: 100 | F98: 50 | G98: 128 | H98: 129 | I98: 99 | J98: 49.5 | K98: 99.5
A99: 95 | B99: Шелаболихинский район | C99: МКУДО «Шелаболихинская детско-юношеская спортивная школа» | D99: 7 | E99: 100 | F99: 50 | G99: 197 | H99: 198 | I99: 99 | J99: 49.5 | K99: 99.5
A100: 96 | B100: г. Яровое | C100: МБУДО «Центр научно-технического творчества учащихся» г. Яровое | D100: 7 | E100: 100 | F100: 50 | G100: 223 | H100: 229 | I100: 97 | J100: 48.5 | K100: 98.5

Sheet 3УслДостИнвНал
B1: № п/п | C1: Муниципальное образование | D1: Наименование образовательной организации | E1: Оборудование территории, прилегающей к организации, и ее помещений с учетом доступности для инвалидов: | K1: Обеспечение в организации условий доступности, позволяющих инвалидам получать услуги наравне с другими, включая: | R1: Значение показателя с учетом значимости | T1: Итого:
E2: Оборудование входных групп пандусами/подъемными платформами; | F2: Наличие выделенных стоянок для автотранспортных средств инвалидов; | G2: Наличие адаптированных лифтов, поручней, расширенных дверных проемов; | H2: Наличие сменных кресел-колясок; | I2: Наличие специально оборудованных санитарно-гигиенических помещений в организации | J2: Количество условий | K2: Дублирование для инвалидов по слуху и зрению звуковой и зрительной информации | L2: Дублирование надписей, знаков и иной текстовой и графической информации знаками, выполненными рельефно-точечным шрифтом Брайля | M2: Возможность предоставления инвалидам по слуху (слуху и зрению) услуг сурдопереводчика (тифлосурдопереводчика) | N2: Наличие альтернативной версии официального сайта организации социальной сферы в сети «Интернет» для инвалидов по зрению | O2: Помощь, оказываемая работниками организации, прошедшими необходимое обучение (инструктирование), по сопровождению инвалидов в помещении | P2: Наличие возможности предоставления услуги в дистанционном режиме или на дому | Q2: Количество условий
B3: 1 | C3: г. Алейск | D3: МБУДО «Центр детского творчества» (г. Алейск) | E3: 0 | F3: 1 | G3: 0 | H3: 0 | I3: 0 | J3: =SUM(E3:I3) -> 1 | K3: 0 | L3: 0 | M3: 0 | N3: 1 | O3: 1 | P3: 1 | Q3: =SUM(N3:P3) -> 3 | R3: =SUM(K3:P3) -> 3 | S3: 2 | T3: =IF(AND(Q3=3,S3=2),100,IF(AND(Q3=2,S3=2),60,IF(AND(Q3=1,S3=2),30,R3*20))) -> 100
B4: 2 | C4: Алтайский район | D4: МАОУДО «Алтайский районный детско-юношеский центр» | E4: 1 | F4: 1 | G4: 1 | H4: 0 | I4: 1 | J4: =SUM(E4:I4) -> 4 | K4: 1 | L4: 1 | M4: 0 | N4: 1 | O4: 1 | P4: 1 | Q4: =SUM(N4:P4) -> 3 | R4: =SUM(K4:P4) -> 5 | S4: 1 | T4: =IF(AND(Q4=3,S4=2),100,IF(AND(Q4=2,S4=2),60,IF(AND(Q4=1,S4=2),30,R4*20))) -> 100
B5: 3 | C5: Баевский район | D5: МБУДО «Баевский Центр детского творчества и профессионального обучения Алтайского края» | E5: 1 | F5: 1 | G5: 1 | H5: 0 | I5: 1 | J5: 4 | K5: 1 | L5: 1 | M5: 0 | N5: 1 | O5: 1 | P5: 1 | Q5: 3 | R5: 5 | S5: 2 | T5: =IF(AND(Q5=3,S5=2),100,IF(AND(Q5=2,S5=2),60,IF(AND(Q5=1,S5=2),30,R5*20))) -> 100
B6: 4 | C6: г. Барнаул | D6: КГБУДО «Алтайский краевой дворец творчества детей и молодежи» | E6: 0 | F6: 1 | G6: 1 | H6: 0 | I6: 0 | J6: 2 | K6: 0 | L6: 0 | M6: 0 | N6: 1 | O6: 1 | P6: 1 | Q6: 3 | R6: 3 | S6: 2 | T6: =IF(AND(Q6=3,S6=2),100,IF(AND(Q6=2,S6=2),60,IF(AND(Q6=1,S6=2),30,R6*20))) -> 100
B7: 5 | C7: г. Барнаул | D7: КГБУДО «Алтайский краевой детский экологический центр» | E7: 1 | F7: 1 | G7: 1 | H7: 0 | I7: 1 | J7: 4 | K7: 1 | L7: 1 | M7: 0 | N7: 1 | O7: 1 | P7: 1 | Q7: 3 | R7: 5 | S7: 1 | T7: 100
B8: 6 | C8: г. Барнаул | D8: КГБУДО «Алтайский краевой центр детского отдыха, туризма и краеведения «Алтай» | E8: 1 | F8: 1 | G8: 1 | H8: 0 | I8: 1 | J8: 4 | K8: 1 | L8: 1 | M8: 0 | N8: 1 | O8: 1 | P8: 1 | Q8: 3 | R8: 5 | S8: 1 | T8: =IF(AND(Q8=3,S8=2),100,IF(AND(Q8=2,S8=2),60,IF(AND(Q8=1,S8=2),30,R8*20))) -> 100
B9: 7 | C9: г. Барнаул | D9: КГБУДО «Детский технопарк Алтайского края «Кванториум.22» | E9: 1 | F9: 1 | G9: 1 | H9: 0 | I9: 1 | J9: 4 | K9: 1 | L9: 1 | M9: 0 | N9: 1 | O9: 1 | P9: 1 | Q9: 3 | R9: 5 | S9: 0 | T9: 100
B10: 8 | C10: г. Барнаул | D10: МБУДО «Барнаульский городской детско-юношеский центр» | E10: 1 | F10: 0 | G10: 0 | H10: 0 | I10: 0 | J10: 1 | K10: 0 | L10: 0 | M10: 0 | N10: 1 | O10: 0 | P10: 1 | Q10: 2 | R10: 2 | S10: 2 | T10: =IF(AND(Q10=3,S10=2),100,IF(AND(Q10=2,S10=2),60,IF(AND(Q10=1,S10=2),30,R10*20))) -> 60
B11: 9 | C11: г. Барнаул | D11: МБУДО «Барнаульская городская станция юных натуралистов» | E11: 0 | F11: 0 | G11: 0 | H11: 0 | I11: 0 | J11: 0 | K11: 0 | L11: 0 | M11: 0 | N11: 1 | O11: 1 | P11: 1 | Q11: 3 | R11: 3 | S11: 1 | T11: 60
B12: 10 | C12: г. Барнаул | D12: МБУДО «Барнаульская городская станция юных техников» | E12: 0 | F12: 0 | G12: 0 | H12: 0 | I12: 0 | J12: 0 | K12: 0 | L12: 0 | M12: 0 | N12: 1 | O12: 1 | P12: 0 | Q12: 2 | R12: 2 | S12: 1 | T12: 40
B13: 11 | C13: г. Барнаул | D13: МБУДО «Детский оздоровительно-образовательный (профильный) центр Гармония» | E13: 1 | F13: 1 | G13: 0 | H13: 0 | I13: 0 | J13: 2 | K13: 0 | L13: 0 | M13: 0 | N13: 1 | O13: 0 | P13: 0 | Q13: 1 | R13: 1 | S13: 1 | T13: 20
B14: 12 | C14: г. Барнаул | D14: МБУДО «Дом художественного творчества детей» (г. Барнаул) | E14: 0 | F14: 0 | G14: 0 | H14: 0 | I14: 1 | J14: 1 | K14: 0 | L14: 0 | M14: 0 | N14: 1 | O14: 0 | P14: 1 | Q14: 2 | R14: 2 | S14: 2 | T14: 60
B15: 13 | C15: г. Барнаул | D15: МБУДО «Детско-юношеский центр» Индустриального района г. Барнаула | E15: 1 | F15: 0 | G15: 0 | H15: 0 | I15: 0 | J15: 1 | K15: 0 | L15: 0 | M15: 0 | N15: 1 | O15: 0 | P15: 0 | Q15: 1 | R15: 1 | S15: 1 | T15: 20
B16: 14 | C16: г. Барнаул | D16: МБУДО «Центр детского (юношеского) технического творчества» Ленинского района г. Барнаула | E16: 0 | F16: 0 | G16: 0 | H16: 0 | I16: 1 | J16: 1 | K16: 0 | L16: 0 | M16: 0 | N16: 1 | O16: 0 | P16: 1 | Q16: 2 | R16: 2 | S16: 1 | T16: 40
B17: 15 | C17: г. Барнаул | D17: МБУДО «Центр детского творчества №2» г. Барнаула | E17: 1 | F17: 1 | G17: 1 | H17: 0 | I17: 0 | J17: 3 | K17: 1 | L17: 0 | M17: 0 | N17: 1 | O17: 0 | P17: 1 | Q17: 2 | R17: 3 | S17: 1 | T17: 60
B18: 16 | C18: г. Барнаул | D18: МБУДО «Центр детского творчества» Центрального района г. Барнаула | E18: 0 | F18: 0 | G18: 1 | H18: 0 | I18: 1 | J18: 2 | K18: 0 | L18: 0 | M18: 0 | N18: 1 | O18: 1 | P18: 1 | Q18: 3 | R18: 3 | S18: 1 | T18: 60
B19: 17 | C19: г. Барнаул | D19: МБУДО «Центр развития творчества детей и юношества» Индустриального района г. Барнаула | E19: 0 | F19: 0 | G19: 0 | H19: 0 | I19: 0 | J19: 0 | K19: 0 | L19: 0 | M19: 0 | N19: 1 | O19: 1 | P19: 1 | Q19: 3 | R19: 3 | S19: 1 | T19: 60
B20: 18 | C20: г. Барнаул | D20: МБУДО «Центр развития творчества детей и молодежи» Железнодорожного района г. Барнаула | E20: 1 | F20: 0 | G20: 0 | H20: 0 | I20: 0 | J20: 1 | K20: 0 | L20: 0 | M20: 0 | N20: 1 | O20: 0 | P20: 1 | Q20: 2 | R20: 2 | S20: 2 | T20: 60
B21: 19 | C21: г. Барнаул | D21: МБУДО «Центр физкультурно-спортивной направленности «Акцент» | E21: 0 | F21: 1 | G21: 0 | H21: 0 | I21: 0 | J21: 1 | K21: 0 | L21: 0 | M21: 0 | N21: 0 | O21: 0 | P21: 0 | Q21: 0 | R21: 0 | S21: 2 | T21: 0
B22: 20 | C22: г. Барнаул | D22: МБУДО Городской психолого-педагогический центр «Потенциал» | E22: 1 | F22: 0 | G22: 1 | H22: 1 | I22: 1 | J22: 4 | K22: 0 | L22: 0 | M22: 0 | N22: 1 | O22: 1 | P22: 1 | Q22: 3 | R22: 3 | S22: 1 | T22: 60
B23: 21 | C23: г. Барнаул | D23: МБУДО Детский оздоровительно-образовательный (профильный) центр «Валеологический центр» | E23: 1 | F23: 1 | G23: 1 | H23: 0 | I23: 1 | J23: 4 | K23: 1 | L23: 1 | M23: 1 | N23: 1 | O23: 1 | P23: 1 | Q23: 3 | R23: 6 | S23: 2 | T23: 100
B24: 22 | C24: г. Барнаул | D24: МБУДО «Детская школа искусств «Традиция» с. Власиха г. Барнаула | E24: 1 | F24: 1 | G24: 1 | H24: 0 | I24: 1 | J24: 4 | K24: 0 | L24: 0 | M24: 0 | N24: 1 | O24: 1 | P24: 1 | Q24: 3 | R24: 3 | S24: 1 | T24: 60
B25: 23 | C25: г. Барнаул | D25: МБУДО Центр внешкольной работы «Военно-спортивный клуб «Борец» | E25: 0 | F25: 0 | G25: 0 | H25: 0 | I25: 0 | J25: 0 | K25: 0 | L25: 0 | M25: 0 | N25: 1 | O25: 1 | P25: 0 | Q25: 2 | R25: 2 | S25: 2 | T25: 60
B26: 24 | C26: г. Барнаул | D26: МБУДО «Центр эстетического воспитания «Песнохорки» | E26: 1 | F26: 0 | G26: 0 | H26: 0 | I26: 0 | J26: 1 | K26: 0 | L26: 0 | M26: 0 | N26: 1 | O26: 1 | P26: 1 | Q26: 3 | R26: 3 | S26: 1 | T26: 60
B27: 25 | C27: г. Барнаул | D27: МБУДО «Центр дополнительного образования детей «Память» Пост №1 г. Барнаула» | E27: 0 | F27: 0 | G27: 0 | H27: 0 | I27: 0 | J27: 0 | K27: 0 | L27: 0 | M27: 0 | N27: 1 | O27: 0 | P27: 0 | Q27: 1 | R27: 1 | S27: 1 | T27: 20
B28: 26 | C28: г. Барнаул | D28: МБУДО «Центр детского творчества» Октябрьского района г. Барнаула | E28: 0 | F28: 0 | G28: 0 | H28: 0 | I28: 0 | J28: 0 | K28: 0 | L28: 0 | M28: 0 | N28: 1 | O28: 0 | P28: 1 | Q28: 2 | R28: 2 | S28: 1 | T28: 40
B29: 27 | C29: г. Барнаул | D29: МБУДО «Центр развития творчества детей и юношества» Ленинского района г. Барнаула | E29: 0 | F29: 1 | G29: 0 | H29: 0 | I29: 0 | J29: 1 | K29: 0 | L29: 0 | M29: 0 | N29: 1 | O29: 1 | P29: 1 | Q29: 3 | R29: 3 | S29: 1 | T29: 60
B30: 28 | C30: г. Белокуриха | D30: МБУДО «Детско-юношеская спортивная школа» г. Белокурихи | E30: 0 | F30: 0 | G30: 0 | H30: 0 | I30: 0 | J30: 0 | K30: 0 | L30: 0 | M30: 0 | N30: 0 | O30: 0 | P30: 0 | Q30: 0 | R30: 0 | S30: 2 | T30: 0
B31: 29 | C31: г. Белокуриха | D31: МБУДО «Центр эстетического воспитания» г. Белокурихи | E31: 1 | F31: 1 | G31: 1 | H31: 0 | I31: 0 | J31: 3 | K31: 0 | L31: 1 | M31: 0 | N31: 1 | O31: 1 | P31: 1 | Q31: 3 | R31: 4 | S31: 1 | T31: 80
B32: 30 | C32: г. Бийск | D32: МБУДО «Детский эколого-туристический центр» г. Бийска | E32: 1 | F32: 1 | G32: 1 | H32: 0 | I32: 0 | J32: 3 | K32: 0 | L32: 0 | M32: 0 | N32: 1 | O32: 1 | P32: 1 | Q32: 3 | R32: 3 | S32: 1 | T32: 60
B33: 31 | C33: г. Бийск | D33: МБУДО «Дом детского творчества» г. Бийска | E33: 0 | F33: 0 | G33: 0 | H33: 0 | I33: 0 | J33: 0 | K33: 0 | L33: 0 | M33: 0 | N33: 1 | O33: 1 | P33: 1 | Q33: 3 | R33: 3 | S33: 1 | T33: 60
B34: 32 | C34: Бийский район | D34: МБУДО «Центр внешкольной работы» Бийского района | E34: 1 | F34: 0 | G34: 1 | H34: 0 | I34: 0 | J34: 2 | K34: 0 | L34: 0 | M34: 0 | N34: 1 | O34: 0 | P34: 1 | Q34: 2 | R34: 2 | S34: 2 | T34: 60
B35: 33 | C35: Благовещенский район | D35: МБУДО «Благовещенский детско-юношеский центр» | E35: 1 | F35: 1 | G35: 1 | H35: 0 | I35: 0 | J35: 3 | K35: 0 | L35: 0 | M35: 0 | N35: 1 | O35: 1 | P35: 1 | Q35: 3 | R35: 3 | S35: 1 | T35: 60
B36: 34 | C36: Бурлинский район | D36: МБУДО «Бурлинский Центр дополнительного образования» | E36: 1 | F36: 0 | G36: 0 | H36: 0 | I36: 0 | J36: 1 | K36: 0 | L36: 0 | M36: 0 | N36: 1 | O36: 1 | P36: 1 | Q36: 3 | R36: 3 | S36: 2 | T36: 100
B37: 35 | C37: Быстроистокский район | D37: МБУДО «Быстроистокская детско-юношеская спортивная школа» | E37: 0 | F37: 0 | G37: 0 | H37: 0 | I37: 0 | J37: 0 | K37: 0 | L37: 0 | M37: 0 | N37: 1 | O37: 1 | P37: 0 | Q37: 2 | R37: 2 | S37: 1 | T37: 40
B38: 36 | C38: Егорьевский район | D38: МБУДО «Егорьевская детско-юношеская спортивная школа» | E38: 0 | F38: 0 | G38: 0 | H38: 0 | I38: 0 | J38: 0 | K38: 0 | L38: 0 | M38: 0 | N38: 1 | O38: 0 | P38: 0 | Q38: 1 | R38: 1 | S38: 1 | T38: 20
B39: 37 | C39: Ельцовский район | D39: МБУДО «Ельцовский центр развития детей-детско-юношеская спортивная школа" | E39: 1 | F39: 0 | G39: 1 | H39: 0 | I39: 1 | J39: 3 | K39: 0 | L39: 0 | M39: 0 | N39: 1 | O39: 1 | P39: 1 | Q39: 3 | R39: 3 | S39: 1 | T39: 60
B40: 38 | C40: Завьяловский район | D40: МБОУДО «Завьяловский районный центр детского творчества» | E40: 1 | F40: 1 | G40: 1 | H40: 0 | I40: 1 | J40: 4 | K40: 1 | L40: 1 | M40: 0 | N40: 1 | O40: 1 | P40: 1 | Q40: 3 | R40: 5 | S40: 2 | T40: 100
B41: 39 | C41: Залесовский район | D41: МБУДО «Центр спорта и творчества» | E41: 0 | F41: 0 | G41: 0 | H41: 0 | I41: 0 | J41: 0 | K41: 0 | L41: 0 | M41: 0 | N41: 1 | O41: 0 | P41: 0 | Q41: 1 | R41: 1 | S41: 1 | T41: 20
B42: 40 | C42: г. Заринск | D42: МБУДО «Центр детского творчества» г. Заринска | E42: 1 | F42: 1 | G42: 1 | H42: 1 | I42: 1 | J42: 5 | K42: 0 | L42: 1 | M42: 0 | N42: 1 | O42: 1 | P42: 1 | Q42: 3 | R42: 4 | S42: 1 | T42: 80
B43: 41 | C43: Заринский район | D43: МБУДО «Центр детского творчества» Заринского района | E43: 0 | F43: 1 | G43: 1 | H43: 1 | I43: 1 | J43: 4 | K43: 1 | L43: 1 | M43: 1 | N43: 1 | O43: 1 | P43: 1 | Q43: 3 | R43: 6 | S43: 1 | T43: 100
B44: 42 | C44: ЗАТО Сибирский | D44: МБУДО «Детско-юношеский центр «Росток» ЗАТО Сибирский | E44: 0 | F44: 1 | G44: 0 | H44: 0 | I44: 0 | J44: 1 | K44: 0 | L44: 0 | M44: 0 | N44: 0 | O44: 0 | P44: 1 | Q44: 1 | R44: 1 | S44: 1 | T44: =IF(AND(Q44=3,S44=2),100,IF(AND(Q44=2,S44=2),60,IF(AND(Q44=1,S44=2),30,R44*20))) -> 20
B45: 43 | C45: Змеиногорский район | D45: МБУДО «Дворец творчества детей и молодежи» Змеиногорского района | E45: 1 | F45: 1 | G45: 0 | H45: 0 | I45: 1 | J45: 3 | K45: 1 | L45: 0 | M45: 0 | N45: 1 | O45: 1 | P45: 1 | Q45: 3 | R45: 4 | S45: 1 | T45: 80
B46: 44 | C46: Зональный район | D46: МКОУДО «Зональная районная детско-юношеская спортивная школа» | E46: 0 | F46: 1 | G46: 0 | H46: 0 | I46: 0 | J46: 1 | K46: 0 | L46: 0 | M46: 0 | N46: 0 | O46: 0 | P46: 0 | Q46: 0 | R46: 0 | S46: 0 | T46: 0
B47: 45 | C47: Калманский район | D47: МБУДО «Калманский районный детско-юношеский центр» | E47: 0 | F47: 0 | G47: 0 | H47: 0 | I47: 0 | J47: 0 | K47: 1 | L47: 0 | M47: 0 | N47: 1 | O47: 1 | P47: 1 | Q47: 3 | R47: 4 | S47: 2 | T47: 100
B48: 46 | C48: Каменский район | D48: МБУДО «Каменский многопрофильный образовательный центр» | E48: 0 | F48: 0 | G48: 0 | H48: 0 | I48: 0 | J48: 0 | K48: 0 | L48: 0 | M48: 0 | N48: 1 | O48: 1 | P48: 1 | Q48: 3 | R48: 3 | S48: 1 | T48: 60
B49: 47 | C49: Красногорский район | D49: МКУДО «Дом детского творчества» Красногорского района | E49: 0 | F49: 0 | G49: 0 | H49: 0 | I49: 0 | J49: 0 | K49: 0 | L49: 0 | M49: 0 | N49: 0 | O49: 0 | P49: 0 | Q49: 0 | R49: 0 | S49: 2 | T49: 0
B50: 48 | C50: Краснощековский район | D50: МБУДО «Краснощековский районный детско-юношеский центр» | E50: 0 | F50: 1 | G50: 0 | H50: 0 | I50: 0 | J50: 1 | K50: 0 | L50: 0 | M50: 0 | N50: 1 | O50: 0 | P50: 1 | Q50: 2 | R50: 2 | S50: 2 | T50: 60
B51: 49 | C51: Крутихинский район | D51: МБУДО «Крутихинский Детско-юношеский центр» | E51: 1 | F51: 1 | G51: 0 | H51: 0 | I51: 1 | J51: 3 | K51: 0 | L51: 0 | M51: 0 | N51: 1 | O51: 1 | P51: 1 | Q51: 3 | R51: 3 | S51: 2 | T51: 100
B52: 50 | C52: Кулундинский район | D52: МБУДО «Центр детского творчества» Кулундинского района | E52: 1 | F52: 1 | G52: 1 | H52: 1 | I52: 1 | J52: 5 | K52: 1 | L52: 1 | M52: 0 | N52: 1 | O52: 1 | P52: 1 | Q52: 3 | R52: 5 | S52: 1 | T52: 100
B53: 51 | C53: Курьинский район | D53: МБУДО «Дом детского творчества» Курьинского района | E53: 0 | F53: 0 | G53: 0 | H53: 0 | I53: 1 | J53: 1 | K53: 1 | L53: 0 | M53: 0 | N53: 1 | O53: 0 | P53: 0 | Q53: 1 | R53: 2 | S53: 2 | T53: 30
B54: 52 | C54: Кытмановский район | D54: МБУДО «Центр спорта и творчества Кытмановского района» | E54: 1 | F54: 1 | G54: 1 | H54: 0 | I54: 1 | J54: 4 | K54: 0 | L54: 1 | M54: 0 | N54: 1 | O54: 1 | P54: 1 | Q54: 3 | R54: 4 | S54: 1 | T54: 80
B55: 53 | C55: Локтевский район | D55: МБУДО «Дом детского творчества» Локтевского района | E55: 1 | F55: 0 | G55: 1 | H55: 0 | I55: 0 | J55: 2 | K55: 0 | L55: 0 | M55: 0 | N55: 1 | O55: 1 | P55: 1 | Q55: 3 | R55: 3 | S55: 1 | T55: 60
B56: 54 | C56: Мамонтовский район | D56: МБУДО «Мамонтовский детско-юношеский центр» | E56: 0 | F56: 1 | G56: 0 | H56: 0 | I56: 0 | J56: 1 | K56: 0 | L56: 0 | M56: 0 | N56: 1 | O56: 1 | P56: 1 | Q56: 3 | R56: 3 | S56: 2 | T56: 100
B57: 55 | C57: Мамонтовский район | D57: МКУДО «Мамонтовская детско-юношеская спортивная школа» | E57: 0 | F57: 0 | G57: 0 | H57: 0 | I57: 0 | J57: 0 | K57: 0 | L57: 0 | M57: 0 | N57: 1 | O57: 1 | P57: 0 | Q57: 2 | R57: 2 | S57: 2 | T57: 60
B58: 56 | C58: Михайловский район | D58: МКОДО «Михайловский образовательно-оздоровительный центр Им. Ю.А. Гагарина» | E58: 1 | F58: 1 | G58: 1 | H58: 0 | I58: 1 | J58: 4 | K58: 1 | L58: 0 | M58: 0 | N58: 1 | O58: 1 | P58: 1 | Q58: 3 | R58: 4 | S58: 2 | T58: 100
B59: 57 | C59: Михайловский район | D59: МКУДО «Михайловская детско-юношеская спортивная школа» | E59: 1 | F59: 1 | G59: 1 | H59: 0 | I59: 1 | J59: 4 | K59: 1 | L59: 0 | M59: 0 | N59: 1 | O59: 1 | P59: 1 | Q59: 3 | R59: 4 | S59: 1 | T59: 80
B60: 58 | C60: Новичихинский район | D60: МКОУДО «Новичихинская детско-юношеская спортивная школа» | E60: 1 | F60: 1 | G60: 0 | H60: 0 | I60: 0 | J60: 2 | K60: 0 | L60: 0 | M60: 0 | N60: 1 | O60: 1 | P60: 1 | Q60: 3 | R60: 3 | S60: 2 | T60: 100
B61: 59 | C61: Новоалтайск район | D61: МБОУДО «Детско-юношеский центр города Новоалтайска» | E61: 1 | F61: 0 | G61: 1 | H61: 0 | I61: 0 | J61: 2 | K61: 0 | L61: 0 | M61: 0 | N61: 1 | O61: 1 | P61: 1 | Q61: 3 | R61: 3 | S61: 1 | T61: 60
B62: 60 | C62: Павловский район | D62: МБУДО «Павловский детско-юношеский центр» | E62: 0 | F62: 0 | G62: 0 | H62: 0 | I62: 0 | J62: 0 | K62: 0 | L62: 0 | M62: 0 | N62: 1 | O62: 1 | P62: 1 | Q62: 3 | R62: 3 | S62: 2 | T62: 100
B63: 61 | C63: Панкрушихинский район | D63: МБОУДО «Панкрушихинский районный Центр творчества» | E63: 1 | F63: 1 | G63: 1 | H63: 0 | I63: 0 | J63: 3 | K63: 0 | L63: 0 | M63: 0 | N63: 1 | O63: 0 | P63: 1 | Q63: 2 | R63: 2 | S63: 1 | T63: 40
B64: 62 | C64: Первомайский район | D64: МБУДО «Центр творчества детей и молодежи «Созвездие» Первомайского района | E64: 0 | F64: 0 | G64: 0 | H64: 0 | I64: 0 | J64: 0 | K64: 0 | L64: 0 | M64: 0 | N64: 1 | O64: 0 | P64: 1 | Q64: 2 | R64: 2 | S64: 1 | T64: 40
B65: 63 | C65: Первомайский район | D65: МБУДОД «Детско-юношеская спортивная школа» Первомайского района | E65: 0 | F65: 1 | G65: 0 | H65: 0 | I65: 0 | J65: 1 | K65: 0 | L65: 0 | M65: 0 | N65: 0 | O65: 0 | P65: 0 | Q65: 0 | R65: 0 | S65: 2 | T65: 0
B66: 64 | C66: Поспелихинский район | D66: МКУДО «Поспелихинский районный центр детского творчества» | E66: 0 | F66: 1 | G66: 0 | H66: 0 | I66: 0 | J66: 1 | K66: 0 | L66: 0 | M66: 0 | N66: 1 | O66: 1 | P66: 1 | Q66: 3 | R66: 3 | S66: 2 | T66: 100
B67: 65 | C67: Ребрихинский район | D67: МКОУДО «Ребрихинский детско-юношеский центр» | E67: 1 | F67: 1 | G67: 0 | H67: 0 | I67: 0 | J67: 2 | K67: 1 | L67: 0 | M67: 0 | N67: 1 | O67: 0 | P67: 1 | Q67: 2 | R67: 3 | S67: 1 | T67: 60
B68: 66 | C68: Родинский район | D68: МБУДО «Детский оздоровительно-образовательный центр Родинского района | E68: 1 | F68: 1 | G68: 0 | H68: 0 | I68: 0 | J68: =SUM(E68:I68) -> 2 | K68: 0 | L68: 0 | M68: 0 | N68: 0 | O68: 1 | P68: 1 | Q68: =SUM(N68:P68) -> 2 | R68: =SUM(K68:P68) -> 2 | S68: 2 | T68: 60
B69: 67 | C69: Романовский район | D69: МБУДО «Романовский детско-юношеский центр» | E69: 0 | F69: 1 | G69: 0 | H69: 0 | I69: 0 | J69: 1 | K69: 0 | L69: 0 | M69: 0 | N69: 1 | O69: 1 | P69: 1 | Q69: 3 | R69: 3 | S69: 1 | T69: 60
B70: 68 | C70: г. Рубцовск | D70: МБУДО «Детско-юношеский центр» г. Рубцовска | E70: 1 | F70: 0 | G70: 1 | H70: 0 | I70: 0 | J70: 2 | K70: 0 | L70: 0 | M70: 0 | N70: 1 | O70: 1 | P70: 1 | Q70: 3 | R70: 3 | S70: 1 | T70: 60
B71: 69 | C71: г. Рубцовск | D71: МБУДО «Станция туризма и экскурсий» г. Рубцовска | E71: 1 | F71: 1 | G71: 1 | H71: 0 | I71: 1 | J71: 4 | K71: 1 | L71: 1 | M71: 0 | N71: 1 | O71: 1 | P71: 1 | Q71: 3 | R71: 5 | S71: 2 | T71: 100
B72: 70 | C72: г. Рубцовск | D72: МБУДО «Центр внешкольной работы «Малая Академия» г. Рубцовска | E72: 0 | F72: 0 | G72: 0 | H72: 0 | I72: 0 | J72: 0 | K72: 0 | L72: 0 | M72: 0 | N72: 1 | O72: 0 | P72: 1 | Q72: 2 | R72: 2 | S72: 1 | T72: 40
B73: 71 | C73: г. Рубцовск | D73: МБУДО «Центр развития творчества» г. Рубцовска | E73: 0 | F73: 0 | G73: 0 | H73: 0 | I73: 0 | J73: 0 | K73: 0 | L73: 0 | M73: 0 | N73: 1 | O73: 0 | P73: 1 | Q73: 2 | R73: 2 | S73: 2 | T73: 60
B74: 72 | C74: Рубцовский район | D74: МБУДО «Детско-юношеская спортивная школа» Рубцовского района | E74: 1 | F74: 0 | G74: 1 | H74: 0 | I74: 1 | J74: 3 | K74: 1 | L74: 0 | M74: 0 | N74: 1 | O74: 0 | P74: 1 | Q74: 2 | R74: 3 | S74: 2 | T74: 60
B75: 73 | C75: Рубцовский район | D75: МБУДО «Центр творческого развития «Ступени» Рубцовского района | E75: 0 | F75: 0 | G75: 0 | H75: 0 | I75: 0 | J75: 0 | K75: 0 | L75: 0 | M75: 0 | N75: 0 | O75: 0 | P75: 1 | Q75: 1 | R75: 1 | S75: 1 | T75: 20
B76: 74 | C76: г. Славгород | D76: МБУДО «Центр творчества детей и молодежи» г. Славгорода | E76: 0 | F76: 0 | G76: 0 | H76: 0 | I76: 1 | J76: 1 | K76: 0 | L76: 0 | M76: 1 | N76: 1 | O76: 1 | P76: 1 | Q76: 3 | R76: 4 | S76: 2 | T76: =IF(AND(Q76=3,S76=2),100,IF(AND(Q76=2,S76=2),60,IF(AND(Q76=1,S76=2),30,R76*20))) -> 100
B77: 75 | C77: Смоленский район | D77: МБУДО «Смоленский дом детского творчества» | E77: 0 | F77: 0 | G77: 0 | H77: 0 | I77: 0 | J77: 0 | K77: 0 | L77: 0 | M77: 0 | N77: 1 | O77: 1 | P77: 1 | Q77: 3 | R77: 3 | S77: 1 | T77: 60
B78: 76 | C78: Советский район | D78: МБУДО «Детско-юношеский центр» Советского района | E78: 1 | F78: 1 | G78: 1 | H78: 1 | I78: 1 | J78: 5 | K78: 1 | L78: 1 | M78: 0 | N78: 1 | O78: 1 | P78: 1 | Q78: 3 | R78: 5 | S78: 1 | T78: 100
B79: 77 | C79: Солонешенский район | D79: МБУДО «Солонешенский центр детского творчества» | E79: 0 | F79: 1 | G79: 0 | H79: 0 | I79: 0 | J79: 1 | K79: 1 | L79: 0 | M79: 0 | N79: 0 | O79: 1 | P79: 1 | Q79: 2 | R79: 3 | S79: 1 | T79: 60
B80: 78 | C80: Солтонский район | D80: МКОУДО «Детско-юношеский центр» Солтонского района | E80: 1 | F80: 0 | G80: 0 | H80: 0 | I80: 0 | J80: 1 | K80: 0 | L80: 0 | M80: 0 | N80: 1 | O80: 0 | P80: 1 | Q80: 2 | R80: 2 | S80: 2 | T80: 60
B81: 79 | C81: Табунский район | D81: МБУДО «Центр дополнительного образования детей» Табунского района | E81: 1 | F81: 0 | G81: 1 | H81: 0 | I81: 1 | J81: 3 | K81: 1 | L81: 1 | M81: 0 | N81: 1 | O81: 1 | P81: 1 | Q81: 3 | R81: 5 | S81: 1 | T81: 100
B82: 80 | C82: Тальменский район | D82: МКУДО «Тальменская детско-юношеская спортивная школа» | E82: 1 | F82: 1 | G82: 1 | H82: 0 | I82: 0 | J82: 3 | K82: 0 | L82: 0 | M82: 0 | N82: 1 | O82: 1 | P82: 1 | Q82: 3 | R82: 3 | S82: 2 | T82: 100
B83: 81 | C83: Тальменский район | D83: МКУДО «Тальменский центр внешкольной работы» | E83: 0 | F83: 0 | G83: 1 | H83: 0 | I83: 0 | J83: 1 | K83: 0 | L83: 0 | M83: 0 | N83: 1 | O83: 1 | P83: 1 | Q83: 3 | R83: 3 | S83: 2 | T83: 100
B84: 82 | C84: Тогульский район | D84: МКУДО «Центр творчества, спорта и отдыха» Тогульского района | E84: 0 | F84: 0 | G84: 0 | H84: 0 | I84: 1 | J84: 1 | K84: 0 | L84: 0 | M84: 0 | N84: 0 | O84: 0 | P84: 1 | Q84: 1 | R84: 1 | S84: 2 | T84: 30
B85: 83 | C85: Топчихинский район | D85: МКУДО «Топчихинская детско-юношеская спортивная школа» | E85: 1 | F85: 0 | G85: 0 | H85: 0 | I85: 0 | J85: 1 | K85: 0 | L85: 0 | M85: 0 | N85: 1 | O85: 0 | P85: 1 | Q85: 2 | R85: 2 | S85: 2 | T85: 60
B86: 84 | C86: Топчихинский район | D86: МКУДО «Топчихинский детско-юношеский центр» | E86: 1 | F86: 1 | G86: 0 | H86: 0 | I86: 1 | J86: 3 | K86: 1 | L86: 1 | M86: 0 | N86: 1 | O86: 1 | P86: 1 | Q86: 3 | R86: 5 | S86: 1 | T86: 100
B87: 85 | C87: Третьяковский район | D87: МБОУДО «Центр развития творчества детей и юношества» Третьяковского района | E87: 0 | F87: 0 | G87: 0 | H87: 0 | I87: 0 | J87: 0 | K87: 0 | L87: 0 | M87: 0 | N87: 1 | O87: 1 | P87: 1 | Q87: 3 | R87: 3 | S87: 1 | T87: 60
B88: 86 | C88: Троицкий район | D88: МБУДО «Троицкий детско-юношеский центр» | E88: 0 | F88: 0 | G88: 0 | H88: 0 | I88: 0 | J88: 0 | K88: 0 | L88: 0 | M88: 0 | N88: 1 | O88: 0 | P88: 1 | Q88: 2 | R88: 2 | S88: 2 | T88: 60
B89: 87 | C89: Тюменцевский район | D89: МБУДО «Тюменцевский районный центр детского творчества» | E89: 0 | F89: 0 | G89: 0 | H89: 0 | I89: 0 | J89: 0 | K89: 0 | L89: 0 | M89: 0 | N89: 0 | O89: 0 | P89: 1 | Q89: 1 | R89: 1 | S89: 1 | T89: 20
B90: 88 | C90: Усть-Калманский район | D90: МБУДО «Центр детского творчества» Усть-Калманского района | E90: 1 | F90: 0 | G90: 0 | H90: 0 | I90: 0 | J90: 1 | K90: 0 | L90: 0 | M90: 0 | N90: 1 | O90: 0 | P90: 1 | Q90: 2 | R90: 2 | S90: 1 | T90: 40
B91: 89 | C91: Усть-Пристанский район | D91: МКУДО «Дом детского творчества» Усть-Пристанского района | E91: 0 | F91: 0 | G91: 0 | H91: 0 | I91: 0 | J91: 0 | K91: 0 | L91: 0 | M91: 0 | N91: 1 | O91: 0 | P91: 1 | Q91: 2 | R91: 2 | S91: 2 | T91: 60
B92: 90 | C92: Хабарский район | D92: МБУДО «Центр детского творчества» Хабарского района | E92: 0 | F92: 0 | G92: 0 | H92: 0 | I92: 1 | J92: 1 | K92: 0 | L92: 0 | M92: 0 | N92: 1 | O92: 0 | P92: 1 | Q92: 2 | R92: 2 | S92: 2 | T92: 60
B93: 91 | C93: Целинный район | D93: МБУДО «Центр творчества и отдыха» Целинного района | E93: 0 | F93: 1 | G93: 0 | H93: 0 | I93: 1 | J93: 2 | K93: 0 | L93: 0 | M93: 0 | N93: 1 | O93: 1 | P93: 1 | Q93: 3 | R93: 3 | S93: 1 | T93: 60
B94: 92 | C94: Чарышский район | D94: МБУДО «Детско-юношеская спортивная школа» Чарышского района | E94: 1 | F94: 1 | G94: 1 | H94: 1 | I94: 1 | J94: 5 | K94: 1 | L94: 1 | M94: 1 | N94: 1 | O94: 1 | P94: 1 | Q94: 3 | R94: 6 | S94: 2 | T94: 100
B95: 93 | C95: Чарышский район | D95: МБУДО «Центр детского творчества» Чарышского района | E95: 1 | F95: 1 | G95: 1 | H95: 0 | I95: 1 | J95: 4 | K95: 0 | L95: 0 | M95: 0 | N95: 1 | O95: 1 | P95: 1 | Q95: 3 | R95: 3 | S95: 2 | T95: 100
B96: 94 | C96: Шелаболихинский район | D96: МБУДО «Шелаболихинский центр детского творчества» | E96: 0 | F96: 1 | G96: 0 | H96: 0 | I96: 0 | J96: 1 | K96: 0 | L96: 0 | M96: 0 | N96: 1 | O96: 1 | P96: 1 | Q96: 3 | R96: 3 | S96: 1 | T96: 60
B97: 95 | C97: Шелаболихинский район | D97: МКУДО «Шелаболихинская детско-юношеская спортивная школа» | E97: 1 | F97: 1 | G97: 1 | H97: 1 | I97: 1 | J97: 5 | K97: 1 | L97: 1 | M97: 1 | N97: 1 | O97: 1 | P97: 1 | Q97: 3 | R97: 6 | S97: 2 | T97: 100
B98: 96 | C98: г. Яровое | D98: МБУДО «Центр научно-технического творчества учащихся» г. Яровое | E98: 1 | F98: 0 | G98: 1 | H98: 0 | I98: 1 | J98: 3 | K98: 0 | L98: 0 | M98: 0 | N98: 1 | O98: 1 | P98: 1 | Q98: 3 | R98: 3 | S98: 1 | T98: 60

Sheet 3УслДостИнвОц
A1: № п/п | B1: Муниципальное образование | C1: Наименование образовательной организации | D1: Показатель 3.1 | G1: Показатель 3.2 | J1: Показатель 3.3 | N1: Итого по критерию:
D2: Количество условий доступности образовательной организации для инвалидов | E2: Значение показателя 3.1 | F2: Значение показателя 3.1 с учетом значимости | G2: Количество условий доступности, позволяющих инвалидам получать услуги наравне с другими | H2: Значение показателя 3.2 | I2: Значение показателя 3.2 с учетом значимости | J2: Число получателей услуг-инвалидов, удовлетворенных доступностью услуг | K2: Число получателей услуг-инвалидов, опрошенных по данному вопросу | L2: Значение показателя 3.3 | M2: Значение показателя 3.3 с учетом значимости
E3: 100 | F3: =E3*0.3 -> 30 | H3: 100 | I3: =H3*0.4 -> 40 | L3: 100 | M3: =L3*0.3 -> 30 | N3: =F3+I3+M3 -> 100
A4: 1 | B4: г. Алейск | C4: МБУДО «Центр детского творчества» (г. Алейск) | D4: 1 | E4: =IF(D4<=4,D4*20,100) -> 20 | F4: =E4*0.3 -> 6 | G4: 3 | H4: 60 | I4: =H4*0.4 -> 24 | J4: 5 | K4: 5 | L4: =J4/K4*100 -> 100 | M4: =L4*0.3 -> 30 | N4: =F4+I4+M4 -> 60
A5: 2 | B5: Алтайский район | C5: МАОУДО «Алтайский районный детско-юношеский центр» | D5: 4 | E5: =IF(D5<=4,D5*20,100) -> 80 | F5: 24 | G5: 5 | H5: 100 | I5: 40 | J5: 39 | K5: 40 | L5: 97 | M5: 29.1 | N5: 93.1
A6: 3 | B6: Баевский район | C6: МБУДО «Баевский Центр детского творчества и профессионального обучения Алтайского края» | D6: 4 | E6: 80 | F6: 24 | G6: 5 | H6: 100 | I6: 40 | J6: 14 | K6: 14 | L6: =J6/K6*100 -> 100 | M6: 30 | N6: 94
A7: 4 | B7: г. Барнаул | C7: КГБУДО «Алтайский краевой дворец творчества детей и молодежи» | D7: 2 | E7: 40 | F7: 12 | G7: 3 | H7: 60 | I7: 24 | J7: 4 | K7: 5 | L7: 80 | M7: 24 | N7: 60
A8: 5 | B8: г. Барнаул | C8: КГБУДО «Алтайский краевой детский экологический центр» | D8: 4 | E8: 80 | F8: 24 | G8: 5 | H8: 100 | I8: 40 | J8: 61 | K8: 62 | L8: 98 | M8: 29.4 | N8: 93.4
A9: 6 | B9: г. Барнаул | C9: КГБУДО «Алтайский краевой центр детского отдыха, туризма и краеведения «Алтай» | D9: 4 | E9: 80 | F9: 24 | G9: 5 | H9: 100 | I9: 40 | J9: 3 | K9: 3 | L9: 100 | M9: 30 | N9: 94
A10: 7 | B10: г. Барнаул | C10: КГБУДО «Детский технопарк Алтайского края «Кванториум.22» | D10: 4 | E10: 80 | F10: 24 | G10: 5 | H10: 100 | I10: 40 | J10: 20 | K10: 20 | L10: =J10/K10*100 -> 100 | M10: =L10*0.3 -> 30 | N10: 94
A11: 8 | B11: г. Барнаул | C11: МБУДО «Барнаульский городской детско-юношеский центр» | D11: 1 | E11: 20 | F11: 6 | G11: 2 | H11: 40 | I11: 16 | J11: 34 | K11: 36 | L11: 94 | M11: 28.2 | N11: 50.2
A12: 9 | B12: г. Барнаул | C12: МБУДО «Барнаульская городская станция юных натуралистов» | D12: 0 | E12: 0 | F12: 0 | G12: 3 | H12: 60 | I12: 24 | J12: 5 | K12: 8 | L12: 62.1 | M12: 18.63 | N12: 42.63
A13: 10 | B13: г. Барнаул | C13: МБУДО «Барнаульская городская станция юных техников» | D13: 0 | E13: 0 | F13: 0 | G13: 2 | H13: 40 | I13: 16 | J13: 50 | K13: 51 | L13: 98.03921569 | M13: 29.41176471 | N13: 45.41176471
A14: 11 | B14: г. Барнаул | C14: МБУДО «Детский оздоровительно-образовательный (профильный) центр Гармония» | D14: 2 | E14: 40 | F14: 12 | G14: 1 | H14: 20 | I14: 8 | J14: 3 | K14: 3 | L14: 100 | M14: 30 | N14: 50
A15: 12 | B15: г. Барнаул | C15: МБУДО «Дом художественного творчества детей» (г. Барнаул) | D15: 1 | E15: 20 | F15: 6 | G15: 2 | H15: 40 | I15: 16 | J15: 28 | K15: 29 | L15: 96 | M15: 28.8 | N15: 50.8
A16: 13 | B16: г. Барнаул | C16: МБУДО «Детско-юношеский центр» Индустриального района г. Барнаула | D16: 1 | E16: 20 | F16: 6 | G16: 1 | H16: 20 | I16: 8 | J16: 14 | K16: 14 | L16: 100 | M16: 30 | N16: 44
A17: 14 | B17: г. Барнаул | C17: МБУДО «Центр детского (юношеского) технического творчества» Ленинского района г. Барнаула | D17: 1 | E17: 20 | F17: 6 | G17: 2 | H17: 40 | I17: 16 | J17: 3 | K17: 3 | L17: 100 | M17: 30 | N17: 52
A18: 15 | B18: г. Барнаул | C18: МБУДО «Центр детского творчества №2» г. Барнаула | D18: 3 | E18: 60 | F18: 18 | G18: 3 | H18: 60 | I18: 24 | J18: 23 | K18: 25 | L18: 92 | M18: 27.6 | N18: 69.6
A19: 16 | B19: г. Барнаул | C19: МБУДО «Центр детского творчества» Центрального района г. Барнаула | D19: 2 | E19: 40 | F19: 12 | G19: 3 | H19: 60 | I19: 24 | J19: 4 | K19: 5 | L19: 80 | M19: 24 | N19: 60
A20: 17 | B20: г. Барнаул | C20: МБУДО «Центр развития творчества детей и юношества» Индустриального района г. Барнаула | D20: 0 | E20: 0 | F20: 0 | G20: 3 | H20: 60 | I20: 24 | J20: 25 | K20: 25 | L20: 100 | M20: 30 | N20: 54
A21: 18 | B21: г. Барнаул | C21: МБУДО «Центр развития творчества детей и молодежи» Железнодорожного района г. Барнаула | D21: 1 | E21: 20 | F21: 6 | G21: 2 | H21: 40 | I21: 16 | J21: 6 | K21: 11 | L21: 54 | M21: 16.2 | N21: 38.2
A22: 19 | B22: г. Барнаул | C22: МБУДО «Центр физкультурно-спортивной направленности «Акцент» | D22: 1 | E22: 20 | F22: 6 | G22: 0 | H22: 0 | I22: 0 | J22: 2 | K22: 2 | L22: 100 | M22: 30 | N22: 36
A23: 20 | B23: г. Барнаул | C23: МБУДО Городской психолого-педагогический центр «Потенциал» | D23: 4 | E23: 80 | F23: 24 | G23: 3 | H23: 60 | I23: 24 | J23: 102 | K23: 104 | L23: 98.07692308 | M23: 29.42307692 | N23: 77.42307692
A24: 21 | B24: г. Барнаул | C24: МБУДО Детский оздоровительно-образовательный (профильный) центр «Валеологический центр» | D24: 4 | E24: 80 | F24: 24 | G24: 6 | H24: 100 | I24: 40 | J24: 43 | K24: 43 | L24: 100 | M24: 30 | N24: 94
A25: 22 | B25: г. Барнаул | C25: МБУДО «Детская школа искусств «Традиция» с. Власиха г. Барнаула | D25: 4 | E25: 80 | F25: 24 | G25: 3 | H25: 60 | I25: 24 | J25: 31 | K25: 31 | L25: 100 | M25: 30 | N25: 78
A26: 23 | B26: г. Барнаул | C26: МБУДО Центр внешкольной работы «Военно-спортивный клуб «Борец» | D26: 0 | E26: 0 | F26: 0 | G26: 2 | H26: 40 | I26: 16 | J26: 2 | K26: 2 | L26: 100 | M26: 30 | N26: 46
A27: 24 | B27: г. Барнаул | C27: МБУДО «Центр эстетического воспитания «Песнохорки» | D27: 1 | E27: 20 | F27: 6 | G27: 3 | H27: 60 | I27: 24 | J27: 5 | K27: 5 | L27: 100 | M27: 30 | N27: 60
A28: 25 | B28: г. Барнаул | C28: МБУДО «Центр дополнительного образования детей «Память» Пост №1 г. Барнаула» | D28: 0 | E28: 0 | F28: 0 | G28: 1 | H28: 20 | I28: 8 | J28: 8 | K28: 8 | L28: 100 | M28: 30 | N28: 38
A29: 26 | B29: г. Барнаул | C29: МБУДО «Центр детского творчества» Октябрьского района г. Барнаула | D29: 0 | E29: 0 | F29: 0 | G29: 2 | H29: 40 | I29: 16 | J29: 4 | K29: 4 | L29: 100 | M29: 30 | N29: 46
A30: 27 | B30: г. Барнаул | C30: МБУДО «Центр развития творчества детей и юношества» Ленинского района г. Барнаула | D30: 1 | E30: 20 | F30: 6 | G30: 3 | H30: 60 | I30: 24 | J30: 11 | K30: 11 | L30: 100 | M30: 30 | N30: 60
A31: 28 | B31: г. Белокуриха | C31: МБУДО «Детско-юношеская спортивная школа» г. Белокурихи | D31: 0 | E31: 0 | F31: 0 | G31: 0 | H31: 0 | I31: 0 | J31: 3 | K31: 3 | L31: 100 | M31: 30 | N31: 30
A32: 29 | B32: г. Белокуриха | C32: МБУДО «Центр эстетического воспитания» г. Белокурихи | D32: 3 | E32: 60 | F32: 18 | G32: 4 | H32: 80 | I32: 32 | J32: 22 | K32: 24 | L32: 92 | M32: 27.6 | N32: 77.6
A33: 30 | B33: г. Бийск | C33: МБУДО «Детский эколого-туристический центр» г. Бийска | D33: 3 | E33: 60 | F33: 18 | G33: 3 | H33: 60 | I33: 24 | J33: 47 | K33: 106 | L33: 44.1 | M33: 13.23 | N33: 55.23
A34: 31 | B34: г. Бийск | C34: МБУДО «Дом детского творчества» г. Бийска | D34: 0 | E34: 0 | F34: 0 | G34: 3 | H34: 60 | I34: 24 | J34: 24 | K34: 26 | L34: 92.1 | M34: 27.63 | N34: 51.63
A35: 32 | B35: Бийский район | C35: МБУДО «Центр внешкольной работы» Бийского района | D35: 2 | E35: 40 | F35: 12 | G35: 2 | H35: 40 | I35: 16 | J35: 2 | K35: 2 | L35: 100 | M35: 30 | N35: 58
A36: 33 | B36: Благовещенский район | C36: МБУДО «Благовещенский детско-юношеский центр» | D36: 3 | E36: 60 | F36: 18 | G36: 3 | H36: 60 | I36: 24 | J36: 7 | K36: 7 | L36: 100 | M36: 30 | N36: 72
A37: 34 | B37: Бурлинский район | C37: МБУДО «Бурлинский Центр дополнительного образования» | D37: 1 | E37: 20 | F37: 6 | G37: 3 | H37: 60 | I37: 24 | J37: 2 | K37: 3 | L37: 66.9 | M37: 20.07 | N37: 50.07
A38: 35 | B38: Быстроистокский район | C38: МБУДО «Быстроистокская детско-юношеская спортивная школа» | D38: 0 | E38: 0 | F38: 0 | G38: 2 | H38: 40 | I38: 16 | J38: 1 | K38: 1 | L38: 100 | M38: 30 | N38: 46
A39: 36 | B39: Егорьевский район | C39: МБУДО «Егорьевская детско-юношеская спортивная школа» | D39: 0 | E39: 0 | F39: 0 | G39: 1 | H39: 20 | I39: 8 | J39: 1 | K39: 1 | L39: 100 | M39: 30 | N39: 38
A40: 37 | B40: Ельцовский район | C40: МБУДО «Ельцовский центр развития детей-детско-юношеская спортивная школа" | D40: 3 | E40: 60 | F40: 18 | G40: 3 | H40: 60 | I40: 24 | J40: 17 | K40: 17 | L40: 100 | M40: 30 | N40: 72
A41: 38 | B41: Завьяловский район | C41: МБОУДО «Завьяловский районный центр детского творчества» | D41: 4 | E41: 80 | F41: 24 | G41: 5 | H41: 100 | I41: 40 | J41: 5 | K41: 5 | L41: 100 | M41: 30 | N41: 94
A42: 39 | B42: Залесовский район | C42: МБУДО «Центр спорта и творчества» | D42: 0 | E42: 0 | F42: 0 | G42: 1 | H42: 20 | I42: 8 | J42: 1 | K42: 3 | L42: 33.1 | M42: 9.93 | N42: 17.93
A43: 40 | B43: г. Заринск | C43: МБУДО «Центр детского творчества» г. Заринска | D43: 5 | E43: 100 | F43: 30 | G43: 4 | H43: 80 | I43: 32 | J43: 33 | K43: 33 | L43: 100 | M43: 30 | N43: 92
A44: 41 | B44: Заринский район | C44: МБУДО «Центр детского творчества» Заринского района | D44: 4 | E44: 80 | F44: 24 | G44: 6 | H44: 100 | I44: 40 | J44: 2 | K44: 2 | L44: 100 | M44: 30 | N44: 94
A45: 42 | B45: ЗАТО Сибирский | C45: МБУДО «Детско-юношеский центр «Росток» ЗАТО Сибирский | D45: 1 | E45: 20 | F45: 6 | G45: 1 | H45: 20 | I45: 8 | J45: 8 | K45: 9 | L45: 88.88888889 | M45: 26.66666667 | N45: 40.66666667
A46: 43 | B46: Змеиногорский район | C46: МБУДО «Дворец творчества детей и молодежи» Змеиногорского района | D46: 3 | E46: 60 | F46: 18 | G46: 4 | H46: 80 | I46: 32 | J46: 21 | K46: 21 | L46: 100 | M46: 30 | N46: 80
A47: 44 | B47: Зональный район | C47: МКОУДО «Зональная районная детско-юношеская спортивная школа» | D47: 1 | E47: 20 | F47: 6 | G47: 0 | H47: 0 | I47: 0 | J47: 0 | K47: 0 | L47: 0 | M47: 0 | N47: 6
A48: 45 | B48: Калманский район | C48: МБУДО «Калманский районный детско-юношеский центр» | D48: 0 | E48: 0 | F48: 0 | G48: 4 | H48: 80 | I48: 32 | J48: 0 | K48: 0 | L48: 0 | M48: 0 | N48: 32
A49: 46 | B49: Каменский район | C49: МБУДО «Каменский многопрофильный образовательный центр» | D49: 0 | E49: 0 | F49: 0 | G49: 3 | H49: 60 | I49: 24 | J49: 14 | K49: 15 | L49: 93.1 | M49: 27.93 | N49: 51.93
A50: 47 | B50: Красногорский район | C50: МКУДО «Дом детского творчества» Красногорского района | D50: 0 | E50: 0 | F50: 0 | G50: 0 | H50: 0 | I50: 0 | J50: 3 | K50: 3 | L50: 100 | M50: 30 | N50: 30
A51: 48 | B51: Краснощековский район | C51: МБУДО «Краснощековский районный детско-юношеский центр» | D51: 1 | E51: 20 | F51: 6 | G51: 2 | H51: 40 | I51: 16 | J51: 7 | K51: 7 | L51: 100 | M51: 30 | N51: 52
A52: 49 | B52: Крутихинский район | C52: МБУДО «Крутихинский Детско-юношеский центр» | D52: 3 | E52: 60 | F52: 18 | G52: 3 | H52: 60 | I52: 24 | J52: 3 | K52: 3 | L52: 100 | M52: 30 | N52: 72
A53: 50 | B53: Кулундинский район | C53: МБУДО «Центр детского творчества» Кулундинского района | D53: 5 | E53: 100 | F53: 30 | G53: 5 | H53: 100 | I53: 40 | J53: 16 | K53: 17 | L53: 94.11764706 | M53: 28.23529412 | N53: 98.23529412
A54: 51 | B54: Курьинский район | C54: МБУДО «Дом детского творчества» Курьинского района | D54: 1 | E54: 20 | F54: 6 | G54: 2 | H54: 40 | I54: 16 | J54: 10 | K54: 11 | L54: 90.90909091 | M54: 27.27272727 | N54: 49.27272727
A55: 52 | B55: Кытмановский район | C55: МБУДО «Центр спорта и творчества Кытмановского района» | D55: 4 | E55: 80 | F55: 24 | G55: 4 | H55: 80 | I55: 32 | J55: 14 | K55: 14 | L55: 100 | M55: 30 | N55: 86
A56: 53 | B56: Локтевский район | C56: МБУДО «Дом детского творчества» Локтевского района | D56: 2 | E56: 40 | F56: 12 | G56: 3 | H56: 60 | I56: 24 | J56: 6 | K56: 6 | L56: 100 | M56: 30 | N56: 66
A57: 54 | B57: Мамонтовский район | C57: МБУДО «Мамонтовский детско-юношеский центр» | D57: 1 | E57: 20 | F57: 6 | G57: 3 | H57: 60 | I57: 24 | J57: 3 | K57: 3 | L57: 100 | M57: 30 | N57: 60
A58: 55 | B58: Мамонтовский район | C58: МКУДО «Мамонтовская детско-юношеская спортивная школа» | D58: 0 | E58: 0 | F58: 0 | G58: 2 | H58: 40 | I58: 16 | J58: 2 | K58: 2 | L58: 100 | M58: 30 | N58: 46
A59: 56 | B59: Михайловский район | C59: МКОДО «Михайловский образовательно-оздоровительный центр Им. Ю.А. Гагарина» | D59: 4 | E59: 80 | F59: 24 | G59: 4 | H59: 80 | I59: 32 | J59: 3 | K59: 5 | L59: 60 | M59: 18 | N59: 74
A60: 57 | B60: Михайловский район | C60: МКУДО «Михайловская детско-юношеская спортивная школа» | D60: 4 | E60: 80 | F60: 24 | G60: 4 | H60: 80 | I60: 32 | J60: 0 | K60: 0 | L60: 0 | M60: 0 | N60: 56
A61: 58 | B61: Новичихинский район | C61: МКОУДО «Новичихинская детско-юношеская спортивная школа» | D61: 2 | E61: 40 | F61: 12 | G61: 3 | H61: 60 | I61: 24 | J61: 28 | K61: 28 | L61: 100 | M61: 30 | N61: 66
A62: 59 | B62: Новоалтайск район | C62: МБОУДО «Детско-юношеский центр города Новоалтайска» | D62: 2 | E62: 40 | F62: 12 | G62: 3 | H62: 60 | I62: 24 | J62: 33 | K62: 33 | L62: 100 | M62: 30 | N62: 66
A63: 60 | B63: Павловский район | C63: МБУДО «Павловский детско-юношеский центр» | D63: 0 | E63: 0 | F63: 0 | G63: 3 | H63: 60 | I63: 24 | J63: 4 | K63: 4 | L63: 100 | M63: 30 | N63: 54
A64: 61 | B64: Панкрушихинский район | C64: МБОУДО «Панкрушихинский районный Центр творчества» | D64: 3 | E64: 60 | F64: 18 | G64: 2 | H64: 40 | I64: 16 | J64: 17 | K64: 18 | L64: 94.1 | M64: 28.23 | N64: 62.23
A65: 62 | B65: Первомайский район | C65: МБУДО «Центр творчества детей и молодежи «Созвездие» Первомайского района | D65: 0 | E65: 0 | F65: 0 | G65: 2 | H65: 40 | I65: 16 | J65: 4 | K65: 4 | L65: 100 | M65: 30 | N65: 46
A66: 63 | B66: Первомайский район | C66: МБУДОД «Детско-юношеская спортивная школа» Первомайского района | D66: 1 | E66: 20 | F66: 6 | G66: 0 | H66: 0 | I66: 0 | J66: 4 | K66: 4 | L66: 100 | M66: 30 | N66: 36
A67: 64 | B67: Поспелихинский район | C67: МКУДО «Поспелихинский районный центр детского творчества» | D67: 1 | E67: 20 | F67: 6 | G67: 3 | H67: 60 | I67: 24 | J67: 24 | K67: 24 | L67: 100 | M67: 30 | N67: 60
A68: 65 | B68: Ребрихинский район | C68: МКОУДО «Ребрихинский детско-юношеский центр» | D68: 2 | E68: 40 | F68: =E68*0.3 -> 12 | G68: 3 | H68: 60 | I68: =H68*0.4 -> 24 | J68: 42 | K68: 45 | L68: 93 | M68: 27.9 | N68: =F68+I68+M68 -> 63.9
A69: 66 | B69: Родинский район | C69: МБУДО «Детский оздоровительно-образовательный центр Родинского района | D69: 2 | E69: =IF(D69<=4,D69*20,100) -> 40 | F69: 12 | G69: 2 | H69: 40 | I69: 16 | J69: 5 | K69: 5 | L69: 100 | M69: 30 | N69: 58
A70: 67 | B70: Романовский район | C70: МБУДО «Романовский детско-юношеский центр» | D70: 1 | E70: 20 | F70: 6 | G70: 3 | H70: 60 | I70: 24 | J70: 8 | K70: 8 | L70: 100 | M70: 30 | N70: =F70+I70+M70 -> 60
A71: 68 | B71: г. Рубцовск | C71: МБУДО «Детско-юношеский центр» г. Рубцовска | D71: 2 | E71: 40 | F71: 12 | G71: 3 | H71: 60 | I71: 24 | J71: 28 | K71: 33 | L71: 84.84848485 | M71: 25.45454545 | N71: 61.45454545
A72: 69 | B72: г. Рубцовск | C72: МБУДО «Станция туризма и экскурсий» г. Рубцовска | D72: 4 | E72: 80 | F72: 24 | G72: 5 | H72: 100 | I72: 40 | J72: 5 | K72: 5 | L72: 100 | M72: 30 | N72: 94
A73: 70 | B73: г. Рубцовск | C73: МБУДО «Центр внешкольной работы «Малая Академия» г. Рубцовска | D73: 0 | E73: 0 | F73: 0 | G73: 2 | H73: 40 | I73: 16 | J73: 69 | K73: 70 | L73: 98.9 | M73: 29.67 | N73: 45.67
A74: 71 | B74: г. Рубцовск | C74: МБУДО «Центр развития творчества» г. Рубцовска | D74: 0 | E74: 0 | F74: 0 | G74: 2 | H74: 40 | I74: 16 | J74: 8 | K74: 8 | L74: =J74/K74*100 -> 100 | M74: =L74*0.3 -> 30 | N74: 46
A75: 72 | B75: Рубцовский район | C75: МБУДО «Детско-юношеская спортивная школа» Рубцовского района | D75: 3 | E75: 60 | F75: 18 | G75: 3 | H75: 60 | I75: 24 | J75: 0 | K75: 0 | L75: 0 | M75: 0 | N75: 42
A76: 73 | B76: Рубцовский район | C76: МБУДО «Центр творческого развития «Ступени» Рубцовского района | D76: 0 | E76: 0 | F76: 0 | G76: 1 | H76: 20 | I76: 8 | J76: 10 | K76: 10 | L76: 100 | M76: 30 | N76: 38
A77: 74 | B77: г. Славгород | C77: МБУДО «Центр творчества детей и молодежи» г. Славгорода | D77: 1 | E77: 20 | F77: 6 | G77: 4 | H77: 80 | I77: 32 | J77: 22 | K77: 25 | L77: 88 | M77: 26.4 | N77: 64.4
A78: 75 | B78: Смоленский район | C78: МБУДО «Смоленский дом детского творчества» | D78: 0 | E78: 0 | F78: 0 | G78: 3 | H78: 60 | I78: 24 | J78: 10 | K78: 10 | L78: 100 | M78: 30 | N78: 54
A79: 76 | B79: Советский район | C79: МБУДО «Детско-юношеский центр» Советского района | D79: 5 | E79: 100 | F79: 30 | G79: 5 | H79: 100 | I79: 40 | J79: 7 | K79: 9 | L79: 78 | M79: 23.4 | N79: 93.4
A80: 77 | B80: Солонешенский район | C80: МБУДО «Солонешенский центр детского творчества» | D80: 1 | E80: 20 | F80: 6 | G80: 3 | H80: 60 | I80: 24 | J80: 0 | K80: 1 | L80: 0 | M80: 0 | N80: 30
A81: 78 | B81: Солтонский район | C81: МКОУДО «Детско-юношеский центр» Солтонского района | D81: 1 | E81: 20 | F81: 6 | G81: 2 | H81: 40 | I81: 16 | J81: 1 | K81: 1 | L81: 100 | M81: 30 | N81: 52
A82: 79 | B82: Табунский район | C82: МБУДО «Центр дополнительного образования детей» Табунского района | D82: 3 | E82: 60 | F82: 18 | G82: 5 | H82: 100 | I82: 40 | J82: 14 | K82: 15 | L82: 93.1 | M82: 27.93 | N82: 85.93
A83: 80 | B83: Тальменский район | C83: МКУДО «Тальменская детско-юношеская спортивная школа» | D83: 3 | E83: 60 | F83: 18 | G83: 3 | H83: 60 | I83: 24 | J83: 22 | K83: 22 | L83: 100 | M83: 30 | N83: 72
A84: 81 | B84: Тальменский район | C84: МКУДО «Тальменский центр внешкольной работы» | D84: 1 | E84: 20 | F84: 6 | G84: 3 | H84: 60 | I84: 24 | J84: 10 | K84: 11 | L84: 90.90909091 | M84: 27.27272727 | N84: 57.27272727
A85: 82 | B85: Тогульский район | C85: МКУДО «Центр творчества, спорта и отдыха» Тогульского района | D85: 1 | E85: 20 | F85: 6 | G85: 1 | H85: 20 | I85: 8 | J85: 12 | K85: 12 | L85: 100 | M85: 30 | N85: 44
A86: 83 | B86: Топчихинский район | C86: МКУДО «Топчихинская детско-юношеская спортивная школа» | D86: 1 | E86: 20 | F86: 6 | G86: 2 | H86: 40 | I86: 16 | J86: 3 | K86: 4 | L86: 75 | M86: 22.5 | N86: 44.5
A87: 84 | B87: Топчихинский район | C87: МКУДО «Топчихинский детско-юношеский центр» | D87: 3 | E87: 60 | F87: 18 | G87: 5 | H87: 100 | I87: 40 | J87: 7 | K87: 7 | L87: 100 | M87: 30 | N87: 88
A88: 85 | B88: Третьяковский район | C88: МБОУДО «Центр развития творчества детей и юношества» Третьяковского района | D88: 0 | E88: 0 | F88: 0 | G88: 3 | H88: 60 | I88: 24 | J88: 6 | K88: 6 | L88: 100 | M88: 30 | N88: 54
A89: 86 | B89: Троицкий район | C89: МБУДО «Троицкий детско-юношеский центр» | D89: 0 | E89: 0 | F89: 0 | G89: 2 | H89: 40 | I89: 16 | J89: 0 | K89: 0 | L89: 0 | M89: 0 | N89: 16
A90: 87 | B90: Тюменцевский район | C90: МБУДО «Тюменцевский районный центр детского творчества» | D90: 0 | E90: 0 | F90: 0 | G90: 1 | H90: 20 | I90: 8 | J90: 5 | K90: 5 | L90: 100 | M90: 30 | N90: 38
A91: 88 | B91: Усть-Калманский район | C91: МБУДО «Центр детского творчества» Усть-Калманского района | D91: 1 | E91: 20 | F91: 6 | G91: 2 | H91: 40 | I91: 16 | J91: 4 | K91: 5 | L91: 80 | M91: 24 | N91: 46
A92: 89 | B92: Усть-Пристанский район | C92: МКУДО «Дом детского творчества» Усть-Пристанского района | D92: 0 | E92: 0 | F92: 0 | G92: 2 | H92: 40 | I92: 16 | J92: 0 | K92: 0 | L92: 0 | M92: 0 | N92: 16
A93: 90 | B93: Хабарский район | C93: МБУДО «Центр детского творчества» Хабарского района | D93: 1 | E93: 20 | F93: 6 | G93: 2 | H93: 60 | I93: 24 | J93: 1 | K93: 2 | L93: 50 | M93: 15 | N93: 45
A94: 91 | B94: Целинный район | C94: МБУДО «Центр творчества и отдыха» Целинного района | D94: 2 | E94: 40 | F94: 12 | G94: 3 | H94: 60 | I94: 24 | J94: 6 | K94: 6 | L94: 100 | M94: 30 | N94: 66
A95: 92 | B95: Чарышский район | C95: МБУДО «Детско-юношеская спортивная школа» Чарышского района | D95: 5 | E95: 100 | F95: 30 | G95: 6 | H95: 100 | I95: 40 | J95: 0 | K95: 0 | L95: 0 | M95: 0 | N95: 70
A96: 93 | B96: Чарышский район | C96: МБУДО «Центр детского творчества»Чарышского района | D96: 4 | E96: 80 | F96: 24 | G96: 3 | H96: 60 | I96: 24 | J96: 13 | K96: 13 | L96: 100 | M96: 30 | N96: 78
A97: 94 | B97: Шелаболихинский район | C97: МБУДО «Шелаболихинский центр детского творчества» | D97: 1 | E97: 20 | F97: 6 | G97: 3 | H97: 60 | I97: 24 | J97: 6 | K97: 6 | L97: 100 | M97: 30 | N97: 60
A98: 95 | B98: Шелаболихинский район | C98: МКУДО «Шелаболихинская детско-юношеская спортивная школа» | D98: 5 | E98: 100 | F98: 30 | G98: 6 | H98: 100 | I98: 40 | J98: 4 | K98: 4 | L98: 100 | M98: 30 | N98: 100
A99: 96 | B99: г. Яровое | C99: МБУДО «Центр научно-технического творчества учащихся» г. Яровое | D99: 3 | E99: 60 | F99: 18 | G99: 3 | H99: 60 | I99: 24 | J99: 8 | K99: 8 | L99: 100 | M99: 30 | N99: 72
O239: 1
O240: 2
O241: 3
O242: 4
O243: 5
O244: 6
O245: 7
O246: 8
O247: 9
O248: 10
O249: 11
O250: 12
O251: 13
O252: 14
O253: 15
O254: 16
O255: 17
O256: 18
O257: 19
O258: 20
O259: 21
O260: 22
O261: 23
O262: 24
O263: 25
O264: 26
O265: 27
O266: 28
O267: 29
O268: 30
O269: 31
O270: 32

Sheet 4ДобрВежл
A1: № п/п | B1: № п/п | C1: Муниципальное образование | D1: Наименование образовательной организации | E1: Показатель 4.1 Доля получателей услуг, удовлетворенных доброжелательностью, вежливостью работников организации социальной сферы | I1: Показатель 4.2 Доля получателей услуг, удовлетворенных доброжелательностью, вежливостью работников организации социальной сферы, обеспечивающих непосредственное оказание услуги | M1: Показатель 4.3 Доля получателей услуг, удовлетворенных доброжелательностью, вежливостью работников организации социальной сферы при использовании дистанционных форм взаимодействия | Q1: Итого по критерию:
E2: Число получателей услуг, удовлетворенных доброжелательностью, вежливостью работников организации социальной сферы, обеспечивающих первичный контакт и информирование получателя услуги | F2: Число опрошенных получателей услуг, ответивших на соответствующий вопрос анкеты | G2: Значение показателя 4.1 | H2: Значение показателя 4.1 с учетом значимости | I2: Число получателей услуг, удовлетворенных доброжелательностью, вежливостью работников организации социальной сферы, обеспечивающих непосредственное оказание услуги | J2: Число опрошенных получателей услуг, ответивших на соответствующий вопрос анкеты | K2: Значение показателя 4.2 | L2: Значение показателя 4.2 с учетом значимости | M2: Число получателей услуг, удовлетворенных доброжелательностью, вежливостью работников организации социальной сферы при использовании дистанционных форм взаимодействия | N2: Число опрошенных получателей услуг, ответивших на соответствующий вопрос анкеты | O2: Значение показателя 4.3 | P2: Значение показателя 4.3 с учетом значимости
G3: 100 | H3: =G3*0.4 -> 40 | K3: 100 | L3: =K3*0.4 -> 40 | O3: 100 | P3: =O3*0.2 -> 20 | Q3: =H3+L3+P3 -> 100
B4: 1 | C4: г. Алейск | D4: МБУДО «Центр детского творчества» (г. Алейск) | E4: 626 | F4: 632 | G4: 98.6 | H4: =G4*0.4 -> 39.44 | I4: 629 | J4: 632 | K4: =I4/J4*100 -> 99.52531646 | L4: =K4*0.4 -> 39.81012658 | M4: 627 | N4: 632 | O4: 98.9 | P4: =O4*0.2 -> 19.78 | Q4: =H4+L4+P4 -> 99.03012658
B5: 2 | C5: Алтайский район | D5: МАОУДО «Алтайский районный детско-юношеский центр» | E5: 516 | F5: 520 | G5: 99 | H5: 39.6 | I5: 516 | J5: 520 | K5: 99 | L5: 39.6 | M5: 512 | N5: 520 | O5: 98 | P5: 19.6 | Q5: =H5+L5+P5 -> 98.8
B6: 3 | C6: Баевский район | D6: МБУДО «Баевский Центр детского творчества и профессионального обучения Алтайского края» | E6: 147 | F6: 147 | G6: =E6/F6*100 -> 100 | H6: 40 | I6: 147 | J6: 147 | K6: =I6/J6*100 -> 100 | L6: 40 | M6: 145 | N6: 147 | O6: 98.9 | P6: 19.78 | Q6: 99.78
B7: 4 | C7: г. Барнаул | D7: КГБУДО «Алтайский краевой дворец творчества детей и молодежи» | E7: 450 | F7: 457 | G7: 98.4 | H7: 39.36 | I7: 457 | J7: 457 | K7: 100 | L7: 40 | M7: 447 | N7: 457 | O7: 97.4 | P7: 19.48 | Q7: 98.84
B8: 5 | C8: г. Барнаул | D8: КГБУДО «Алтайский краевой детский экологический центр» | E8: 565 | F8: 568 | G8: 99.47183099 | H8: 39.78873239 | I8: 567 | J8: 568 | K8: 99.82394366 | L8: 39.92957746 | M8: 565 | N8: 567 | O8: =M8/N8*100 -> 99.64726631 | P8: 19.92945326 | Q8: 99.64776312
B9: 6 | C9: г. Барнаул | D9: КГБУДО «Алтайский краевой центр детского отдыха, туризма и краеведения «Алтай» | E9: 309 | F9: 313 | G9: 98.72204473 | H9: 39.48881789 | I9: 310 | J9: 310 | K9: 100 | L9: 40 | M9: 293 | N9: 295 | O9: 99.3220339 | P9: 19.86440678 | Q9: 99.35322467
B10: 7 | C10: г. Барнаул | D10: КГБУДО «Детский технопарк Алтайского края «Кванториум.22» | E10: 732 | F10: 732 | G10: =E10/F10*100 -> 100 | H10: =G10*0.4 -> 40 | I10: 732 | J10: 732 | K10: =I10/J10*100 -> 100 | L10: =K10*0.4 -> 40 | M10: 732 | N10: 732 | O10: =M10/N10*100 -> 100 | P10: =O10*0.2 -> 20 | Q10: =H10+L10+P10 -> 100
B11: 8 | C11: г. Барнаул | D11: МБУДО «Барнаульский городской детско-юношеский центр» | E11: 651 | F11: 660 | G11: 98.63636364 | H11: 39.45454545 | I11: 655 | J11: 660 | K11: 99.24242424 | L11: 39.6969697 | M11: 648 | N11: 660 | O11: 98.18181818 | P11: 19.63636364 | Q11: 98.78787879
B12: 9 | C12: г. Барнаул | D12: МБУДО «Барнаульская городская станция юных натуралистов» | E12: 239 | F12: 242 | G12: 99 | H12: 39.6 | I12: 239 | J12: 242 | K12: 99 | L12: 39.6 | M12: 235 | N12: 242 | O12: 97.10743802 | P12: 19.4214876 | Q12: 98.6214876
B13: 10 | C13: г. Барнаул | D13: МБУДО «Барнаульская городская станция юных техников» | E13: 602 | F13: 609 | G13: 98.85057471 | H13: 39.54022989 | I13: 609 | J13: 609 | K13: 100 | L13: 40 | M13: 605 | N13: 609 | O13: 99.34318555 | P13: 19.86863711 | Q13: 99.408867
B14: 11 | C14: г. Барнаул | D14: МБУДО «Детский оздоровительно-образовательный (профильный) центр Гармония» | E14: 56 | F14: 57 | G14: 98 | H14: 39.2 | I14: 57 | J14: 57 | K14: 100 | L14: 40 | M14: 56 | N14: 57 | O14: 98 | P14: 19.6 | Q14: 98.8
B15: 12 | C15: г. Барнаул | D15: МБУДО «Дом художественного творчества детей» (г. Барнаул) | E15: 596 | F15: 600 | G15: 99.1 | H15: 39.64 | I15: 599 | J15: 600 | K15: 99.83333333 | L15: 39.93333333 | M15: 596 | N15: 600 | O15: 99.1 | P15: 19.82 | Q15: 99.39333333
B16: 13 | C16: г. Барнаул | D16: МБУДО «Детско-юношеский центр» Индустриального района г. Барнаула | E16: 716 | F16: 717 | G16: 99.98 | H16: 39.992 | I16: 716 | J16: 717 | K16: 99.98 | L16: 39.992 | M16: 716 | N16: 717 | O16: 99.98 | P16: 19.996 | Q16: 99.98
B17: 14 | C17: г. Барнаул | D17: МБУДО «Центр детского (юношеского) технического творчества» Ленинского района г. Барнаула | E17: 108 | F17: 108 | G17: 100 | H17: 40 | I17: 108 | J17: 108 | K17: 100 | L17: 40 | M17: 106 | N17: 108 | O17: 98.14814815 | P17: 19.62962963 | Q17: 99.62962963
B18: 15 | C18: г. Барнаул | D18: МБУДО «Центр детского творчества №2» г. Барнаула | E18: 638 | F18: 643 | G18: 99.22239502 | H18: 39.68895801 | I18: 642 | J18: 643 | K18: 99.844479 | L18: 39.9377916 | M18: 623 | N18: 643 | O18: 96.88958009 | P18: 19.37791602 | Q18: 99.00466563
B19: 16 | C19: г. Барнаул | D19: МБУДО «Центр детского творчества» Центрального района г. Барнаула | E19: 251 | F19: 254 | G19: 99.1 | H19: 39.64 | I19: 253 | J19: 254 | K19: 99.8 | L19: 39.92 | M19: 251 | N19: 254 | O19: 99.1 | P19: 19.82 | Q19: 99.38
B20: 17 | C20: г. Барнаул | D20: МБУДО «Центр развития творчества детей и юношества» Индустриального района г. Барнаула | E20: 664 | F20: 667 | G20: 99.2 | H20: 39.68 | I20: 667 | J20: 667 | K20: 100 | L20: 40 | M20: 663 | N20: 667 | O20: 98.8 | P20: 19.76 | Q20: 99.44
B21: 18 | C21: г. Барнаул | D21: МБУДО «Центр развития творчества детей и молодежи» Железнодорожного района г. Барнаула | E21: 593 | F21: 597 | G21: 99.32998325 | H21: 39.7319933 | I21: 592 | J21: 597 | K21: 98.9 | L21: 39.56 | M21: 586 | N21: 597 | O21: 97.4 | P21: 19.48 | Q21: 98.7719933
B22: 19 | C22: г. Барнаул | D22: МБУДО «Центр физкультурно-спортивной направленности «Акцент» | E22: 130 | F22: 130 | G22: 100 | H22: 40 | I22: 130 | J22: 130 | K22: 100 | L22: 40 | M22: 126 | N22: 130 | O22: 96.92307692 | P22: 19.38461538 | Q22: 99.38461538
B23: 20 | C23: г. Барнаул | D23: МБУДО Городской психолого-педагогический центр «Потенциал» | E23: 703 | F23: 709 | G23: 99 | H23: 39.6 | I23: 705 | J23: 709 | K23: 99.2 | L23: 39.68 | M23: 699 | N23: 709 | O23: 98.58956276 | P23: 19.71791255 | Q23: 98.99791255
B24: 21 | C24: г. Барнаул | D24: МБУДО Детский оздоровительно-образовательный (профильный) центр «Валеологический центр» | E24: 627 | F24: 629 | G24: 99.9 | H24: 39.96 | I24: 629 | J24: 629 | K24: 100 | L24: 40 | M24: 629 | N24: 629 | O24: 100 | P24: 20 | Q24: 99.96
B25: 22 | C25: г. Барнаул | D25: МБУДО «Детская школа искусств «Традиция» с. Власиха г. Барнаула | E25: 472 | F25: 474 | G25: 99.8 | H25: 39.92 | I25: 473 | J25: 474 | K25: 99.9 | L25: 39.96 | M25: 470 | N25: 474 | O25: 99.5 | P25: 19.9 | Q25: 99.78
B26: 23 | C26: г. Барнаул | D26: МБУДО Центр внешкольной работы «Военно-спортивный клуб «Борец» | E26: 78 | F26: 80 | G26: 97.1 | H26: 38.84 | I26: 80 | J26: 80 | K26: 100 | L26: 40 | M26: 80 | N26: 80 | O26: 100 | P26: 20 | Q26: 98.84
B27: 24 | C27: г. Барнаул | D27: МБУДО «Центр эстетического воспитания «Песнохорки» | E27: 203 | F27: 206 | G27: 98.5 | H27: 39.4 | I27: 205 | J27: 206 | K27: 99.3 | L27: 39.72 | M27: 200 | N27: 206 | O27: 96.4 | P27: 19.28 | Q27: 98.4
B28: 25 | C28: г. Барнаул | D28: МБУДО «Центр дополнительного образования детей «Память» Пост №1 г. Барнаула» | E28: 250 | F28: 253 | G28: 99 | H28: 39.6 | I28: 253 | J28: 253 | K28: 100 | L28: 40 | M28: 252 | N28: 253 | O28: 99.8 | P28: 19.96 | Q28: 99.56
B29: 26 | C29: г. Барнаул | D29: МБУДО «Центр детского творчества» Октябрьского района г. Барнаула | E29: 248 | F29: 253 | G29: 98.02371542 | H29: 39.20948617 | I29: 251 | J29: 253 | K29: 99.1 | L29: 39.64 | M29: 244 | N29: 253 | O29: 96 | P29: 19.2 | Q29: 98.04948617
B30: 27 | C30: г. Барнаул | D30: МБУДО «Центр развития творчества детей и юношества» Ленинского района г. Барнаула | E30: 638 | F30: 639 | G30: 99.9 | H30: 39.96 | I30: 639 | J30: 639 | K30: 100 | L30: 40 | M30: 639 | N30: 639 | O30: 100 | P30: 20 | Q30: 99.96
B31: 28 | C31: г. Белокуриха | D31: МБУДО «Детско-юношеская спортивная школа» г. Белокурихи | E31: 198 | F31: 198 | G31: 100 | H31: 40 | I31: 198 | J31: 198 | K31: 100 | L31: 40 | M31: 198 | N31: 198 | O31: 100 | P31: 20 | Q31: 100
B32: 29 | C32: г. Белокуриха | D32: МБУДО «Центр эстетического воспитания» г. Белокурихи | E32: 292 | F32: 293 | G32: 99.65870307 | H32: 39.86348123 | I32: 293 | J32: 293 | K32: 100 | L32: 40 | M32: 290 | N32: 293 | O32: 98.97610922 | P32: 19.79522184 | Q32: 99.65870307
B33: 30 | C33: г. Бийск | D33: МБУДО «Детский эколого-туристический центр» г. Бийска | E33: 427 | F33: 431 | G33: 98.8 | H33: 39.52 | I33: 426 | J33: 429 | K33: 99.3006993 | L33: 39.72027972 | M33: 422 | N33: 427 | O33: 98.82903981 | P33: 19.76580796 | Q33: 99.00608768
B34: 31 | C34: г. Бийск | D34: МБУДО «Дом детского творчества» г. Бийска | E34: 643 | F34: 647 | G34: 99.1 | H34: 39.64 | I34: 643 | J34: 647 | K34: 99.1 | L34: 39.64 | M34: 638 | N34: 647 | O34: 98.60896445 | P34: 19.72179289 | Q34: 99.00179289
B35: 32 | C35: Бийский район | D35: МБУДО «Центр внешкольной работы» Бийского района | E35: 112 | F35: 114 | G35: 98.1 | H35: 39.24 | I35: 114 | J35: 114 | K35: 100 | L35: 40 | M35: 114 | N35: 114 | O35: 100 | P35: 20 | Q35: 99.24
B36: 33 | C36: Благовещенский район | D36: МБУДО «Благовещенский детско-юношеский центр» | E36: 300 | F36: 302 | G36: 99.33774834 | H36: 39.73509934 | I36: 301 | J36: 302 | K36: 99.66887417 | L36: 39.86754967 | M36: 302 | N36: 302 | O36: 100 | P36: 20 | Q36: 99.60264901
B37: 34 | C37: Бурлинский район | D37: МБУДО «Бурлинский Центр дополнительного образования» | E37: 130 | F37: 130 | G37: 100 | H37: 40 | I37: 130 | J37: 130 | K37: 100 | L37: 40 | M37: 130 | N37: 130 | O37: 100 | P37: 20 | Q37: 100
B38: 35 | C38: Быстроистокский район | D38: МБУДО «Быстроистокская детско-юношеская спортивная школа» | E38: 132 | F38: 132 | G38: 100 | H38: 40 | I38: 132 | J38: 132 | K38: 100 | L38: 40 | M38: 127 | N38: 132 | O38: 96.21212121 | P38: 19.24242424 | Q38: 99.24242424
B39: 36 | C39: Егорьевский район | D39: МБУДО «Егорьевская детско-юношеская спортивная школа» | E39: 21 | F39: 21 | G39: 100 | H39: 40 | I39: 21 | J39: 21 | K39: 100 | L39: 40 | M39: 20 | N39: 21 | O39: 95 | P39: 19 | Q39: 99
B40: 37 | C40: Ельцовский район | D40: МБУДО «Ельцовский центр развития детей-детско-юношеская спортивная школа" | E40: 267 | F40: 269 | G40: 99.1 | H40: 39.64 | I40: 267 | J40: 269 | K40: 99.1 | L40: 39.64 | M40: 260 | N40: 269 | O40: 96.6 | P40: 19.32 | Q40: 98.6
B41: 38 | C41: Завьяловский район | D41: МБОУДО «Завьяловский районный центр детского творчества» | E41: 112 | F41: 112 | G41: 100 | H41: 40 | I41: 110 | J41: 112 | K41: 98 | L41: 39.2 | M41: 110 | N41: 112 | O41: 98 | P41: 19.6 | Q41: 98.8
B42: 39 | C42: Залесовский район | D42: МБУДО «Центр спорта и творчества» | E42: 104 | F42: 105 | G42: 99.04761905 | H42: 39.61904762 | I42: 105 | J42: 105 | K42: 100 | L42: 40 | M42: 98 | N42: 105 | O42: 93.1 | P42: 18.62 | Q42: 98.23904762
B43: 40 | C43: г. Заринск | D43: МБУДО «Центр детского творчества» г. Заринска | E43: 635 | F43: 638 | G43: 99.3 | H43: 39.72 | I43: 638 | J43: 638 | K43: 100 | L43: 40 | M43: 619 | N43: 638 | O43: 96.6 | P43: 19.32 | Q43: 99.04
B44: 41 | C44: Заринский район | D44: МБУДО «Центр детского творчества» Заринского района | E44: 81 | F44: 82 | G44: 99 | H44: 39.6 | I44: 82 | J44: 82 | K44: 100 | L44: 40 | M44: 80 | N44: 82 | O44: 97.9 | P44: 19.58 | Q44: 99.18
B45: 42 | C45: ЗАТО Сибирский | D45: МБУДО «Детско-юношеский центр «Росток» ЗАТО Сибирский | E45: 112 | F45: 114 | G45: 98 | H45: 39.2 | I45: 113 | J45: 114 | K45: 99.12280702 | L45: 39.64912281 | M45: 109 | N45: 111 | O45: 98 | P45: 19.6 | Q45: 98.44912281
B46: 43 | C46: Змеиногорский район | D46: МБУДО «Дворец творчества детей и молодежи» Змеиногорского района | E46: 693 | F46: 694 | G46: 99.85590778 | H46: 39.94236311 | I46: 692 | J46: 694 | K46: 99.9 | L46: 39.96 | M46: 692 | N46: 693 | O46: 99.9 | P46: 19.98 | Q46: 99.88236311
B47: 44 | C47: Зональный район | D47: МКОУДО «Зональная районная детско-юношеская спортивная школа» | E47: 63 | F47: 65 | G47: 97 | H47: 38.8 | I47: 63 | J47: 65 | K47: 97 | L47: 38.8 | M47: 63 | N47: 65 | O47: 97 | P47: 19.4 | Q47: 97
B48: 45 | C48: Калманский район | D48: МБУДО «Калманский районный детско-юношеский центр» | E48: 92 | F48: 93 | G48: 98.92473118 | H48: 39.56989247 | I48: 93 | J48: 93 | K48: 100 | L48: 40 | M48: 93 | N48: 93 | O48: 100 | P48: 20 | Q48: 99.56989247
B49: 46 | C49: Каменский район | D49: МБУДО «Каменский многопрофильный образовательный центр» | E49: 405 | F49: 407 | G49: 99.3 | H49: 39.72 | I49: 407 | J49: 407 | K49: 100 | L49: 40 | M49: 403 | N49: 407 | O49: 98.6 | P49: 19.72 | Q49: 99.44
B50: 47 | C50: Красногорский район | D50: МКУДО «Дом детского творчества» Красногорского района | E50: 75 | F50: 78 | G50: 96.1 | H50: 38.44 | I50: 75 | J50: 78 | K50: 96.1 | L50: 38.44 | M50: 72 | N50: 77 | O50: 92.7 | P50: 18.54 | Q50: 95.42
B51: 48 | C51: Краснощековский район | D51: МБУДО «Краснощековский районный детско-юношеский центр» | E51: 117 | F51: 117 | G51: 100 | H51: 40 | I51: 117 | J51: 117 | K51: 100 | L51: 40 | M51: 117 | N51: 117 | O51: 100 | P51: 20 | Q51: 100
B52: 49 | C52: Крутихинский район | D52: МБУДО «Крутихинский Детско-юношеский центр» | E52: 456 | F52: 456 | G52: 100 | H52: 40 | I52: 456 | J52: 456 | K52: 100 | L52: 40 | M52: 456 | N52: 456 | O52: 100 | P52: 20 | Q52: 100
B53: 50 | C53: Кулундинский район | D53: МБУДО «Центр детского творчества» Кулундинского района | E53: 259 | F53: 259 | G53: 100 | H53: 40 | I53: 259 | J53: 259 | K53: 100 | L53: 40 | M53: 254 | N53: 259 | O53: 98.06949807 | P53: 19.61389961 | Q53: 99.61389961
B54: 51 | C54: Курьинский район | D54: МБУДО «Дом детского творчества» Курьинского района | E54: 91 | F54: 91 | G54: 100 | H54: 40 | I54: 91 | J54: 91 | K54: 100 | L54: 40 | M54: 91 | N54: 91 | O54: 100 | P54: 20 | Q54: 100
B55: 52 | C55: Кытмановский район | D55: МБУДО «Центр спорта и творчества Кытмановского района» | E55: 282 | F55: 287 | G55: 98.25783972 | H55: 39.30313589 | I55: 286 | J55: 287 | K55: 99.65156794 | L55: 39.86062718 | M55: 282 | N55: 287 | O55: 98.25783972 | P55: 19.65156794 | Q55: 98.81533101
B56: 53 | C56: Локтевский район | D56: МБУДО «Дом детского творчества» Локтевского района | E56: 92 | F56: 93 | G56: 98.92473118 | H56: 39.56989247 | I56: 93 | J56: 93 | K56: 100 | L56: 40 | M56: 93 | N56: 93 | O56: 100 | P56: 20 | Q56: 99.56989247
B57: 54 | C57: Мамонтовский район | D57: МБУДО «Мамонтовский детско-юношеский центр» | E57: 147 | F57: 147 | G57: 100 | H57: 40 | I57: 147 | J57: 147 | K57: 100 | L57: 40 | M57: 147 | N57: 147 | O57: 100 | P57: 20 | Q57: 100
B58: 55 | C58: Мамонтовский район | D58: МКУДО «Мамонтовская детско-юношеская спортивная школа» | E58: 50 | F58: 53 | G58: 94 | H58: 37.6 | I58: 52 | J58: 53 | K58: 98 | L58: 39.2 | M58: 51 | N58: 53 | O58: 96.1 | P58: 19.22 | Q58: 96.02
B59: 56 | C59: Михайловский район | D59: МКОДО «Михайловский образовательно-оздоровительный центр Им. Ю.А. Гагарина» | E59: 62 | F59: 64 | G59: 97 | H59: 38.8 | I59: 60 | J59: 64 | K59: 94 | L59: 37.6 | M59: 62 | N59: 64 | O59: 97 | P59: 19.4 | Q59: 95.8
B60: 57 | C60: Михайловский район | D60: МКУДО «Михайловская детско-юношеская спортивная школа» | E60: 125 | F60: 125 | G60: 100 | H60: 40 | I60: 125 | J60: 125 | K60: 100 | L60: 40 | M60: 125 | N60: 125 | O60: 100 | P60: 20 | Q60: 100
B61: 58 | C61: Новичихинский район | D61: МКОУДО «Новичихинская детско-юношеская спортивная школа» | E61: 217 | F61: 218 | G61: 99.2 | H61: 39.68 | I61: 218 | J61: 218 | K61: 100 | L61: 40 | M61: 217 | N61: 218 | O61: 99.2 | P61: 19.84 | Q61: 99.52
B62: 59 | C62: Новоалтайск район | D62: МБОУДО «Детско-юношеский центр города Новоалтайска» | E62: 698 | F62: 703 | G62: 99.2 | H62: 39.68 | I62: 702 | J62: 703 | K62: 99.85775249 | L62: 39.943101 | M62: 696 | N62: 703 | O62: 99.00426743 | P62: 19.80085349 | Q62: 99.42395448
B63: 60 | C63: Павловский район | D63: МБУДО «Павловский детско-юношеский центр» | E63: 255 | F63: 260 | G63: 98 | H63: 39.2 | I63: 258 | J63: 260 | K63: 99.1 | L63: 39.64 | M63: 255 | N63: 260 | O63: 98 | P63: 19.6 | Q63: 98.44
B64: 61 | C64: Панкрушихинский район | D64: МБОУДО «Панкрушихинский районный Центр творчества» | E64: 300 | F64: 305 | G64: 98.2 | H64: 39.28 | I64: 302 | J64: 305 | K64: 99.01639344 | L64: 39.60655738 | M64: 300 | N64: 305 | O64: 98.2 | P64: 19.64 | Q64: 98.52655738
B65: 62 | C65: Первомайский район | D65: МБУДО «Центр творчества детей и молодежи «Созвездие» Первомайского района | E65: 723 | F65: 724 | G65: 99.99 | H65: 39.996 | I65: 722 | J65: 724 | K65: 99.95 | L65: 39.98 | M65: 722 | N65: 724 | O65: 99.95 | P65: 19.99 | Q65: 99.966
B66: 63 | C66: Первомайский район | D66: МБУДОД «Детско-юношеская спортивная школа» Первомайского района | E66: 551 | F66: 569 | G66: 96.83655536 | H66: 38.73462214 | I66: 564 | J66: 569 | K66: 99.12126538 | L66: 39.64850615 | M66: 565 | N66: 569 | O66: 99.2970123 | P66: 19.85940246 | Q66: 98.24253076
B67: 64 | C67: Поспелихинский район | D67: МКУДО «Поспелихинский районный центр детского творчества» | E67: 536 | F67: 538 | G67: 99.8 | H67: 39.92 | I67: 536 | J67: 538 | K67: 99.8 | L67: 39.92 | M67: 535 | N67: 538 | O67: 99.6 | P67: 19.92 | Q67: 99.76
B68: 65 | C68: Ребрихинский район | D68: МКОУДО «Ребрихинский детско-юношеский центр» | E68: 376 | F68: 379 | G68: 98.8 | H68: 39.52 | I68: 377 | J68: 379 | K68: 99.2 | L68: 39.68 | M68: 376 | N68: 379 | O68: 98.8 | P68: 19.76 | Q68: 98.96
B69: 66 | C69: Родинский район | D69: МБУДО «Детский оздоровительно-образовательный центр Родинского района | E69: 71 | F69: 71 | G69: 100 | H69: 40 | I69: 71 | J69: 71 | K69: 100 | L69: 40 | M69: 71 | N69: 71 | O69: 100 | P69: 20 | Q69: 100
B70: 67 | C70: Романовский район | D70: МБУДО «Романовский детско-юношеский центр» | E70: 164 | F70: 164 | G70: 100 | H70: 40 | I70: 164 | J70: 164 | K70: 100 | L70: 40 | M70: 160 | N70: 164 | O70: 97.8 | P70: 19.56 | Q70: 99.56
B71: 68 | C71: г. Рубцовск | D71: МБУДО «Детско-юношеский центр» г. Рубцовска | E71: 676 | F71: 681 | G71: 99 | H71: 39.6 | I71: 681 | J71: 681 | K71: 100 | L71: 40 | M71: 676 | N71: 681 | O71: 99 | P71: 19.8 | Q71: 99.4
B72: 69 | C72: г. Рубцовск | D72: МБУДО «Станция туризма и экскурсий» г. Рубцовска | E72: 191 | F72: 191 | G72: 100 | H72: 40 | I72: 191 | J72: 191 | K72: 100 | L72: 40 | M72: 189 | N72: 191 | O72: 98.9 | P72: 19.78 | Q72: 99.78
B73: 70 | C73: г. Рубцовск | D73: МБУДО «Центр внешкольной работы «Малая Академия» г. Рубцовска | E73: 656 | F73: 666 | G73: 98.2 | H73: 39.28 | I73: 659 | J73: 666 | K73: 98.94894895 | L73: 39.57957958 | M73: 651 | N73: 666 | O73: 97.74774775 | P73: 19.54954955 | Q73: 98.40912913
B74: 71 | C74: г. Рубцовск | D74: МБУДО «Центр развития творчества» г. Рубцовска | E74: 522 | F74: 523 | G74: 100 | H74: =G74*0.4 -> 40 | I74: 522 | J74: 523 | K74: 100 | L74: =K74*0.4 -> 40 | M74: 521 | N74: 523 | O74: 99.9 | P74: =O74*0.2 -> 19.98 | Q74: =H74+L74+P74 -> 99.98
B75: 72 | C75: Рубцовский район | D75: МБУДО «Детско-юношеская спортивная школа» Рубцовского района | E75: 56 | F75: 56 | G75: =E75/F75*100 -> 100 | H75: 40 | I75: 56 | J75: 56 | K75: =I75/J75*100 -> 100 | L75: 40 | M75: 55 | N75: 56 | O75: =M75/N75*100 -> 98.21428571 | P75: 19.64285714 | Q75: 99.64285714
B76: 73 | C76: Рубцовский район | D76: МБУДО «Центр творческого развития «Ступени» Рубцовского района | E76: 190 | F76: 190 | G76: 100 | H76: 40 | I76: 190 | J76: 190 | K76: 100 | L76: 40 | M76: 187 | N76: 190 | O76: 98.2 | P76: 19.64 | Q76: 99.64
B77: 74 | C77: г. Славгород | D77: МБУДО «Центр творчества детей и молодежи» г. Славгорода | E77: 630 | F77: 644 | G77: 97.82608696 | H77: 39.13043478 | I77: 637 | J77: 644 | K77: 98.91304348 | L77: 39.56521739 | M77: 633 | N77: 644 | O77: 98.29192547 | P77: 19.65838509 | Q77: 98.35403727
B78: 75 | C78: Смоленский район | D78: МБУДО «Смоленский дом детского творчества» | E78: 149 | F78: 149 | G78: 100 | H78: 40 | I78: 149 | J78: 149 | K78: 100 | L78: 40 | M78: 147 | N78: 149 | O78: 98.8 | P78: 19.76 | Q78: 99.76
B79: 76 | C79: Советский район | D79: МБУДО «Детско-юношеский центр» Советского района | E79: 633 | F79: 634 | G79: 100 | H79: 40 | I79: 634 | J79: 634 | K79: 100 | L79: 40 | M79: 633 | N79: 634 | O79: 100 | P79: 20 | Q79: 100
B80: 77 | C80: Солонешенский район | D80: МБУДО «Солонешенский центр детского творчества» | E80: 87 | F80: 88 | G80: 99 | H80: 39.6 | I80: 87 | J80: 88 | K80: 99 | L80: 39.6 | M80: 87 | N80: 88 | O80: 99 | P80: 19.8 | Q80: 99
B81: 78 | C81: Солтонский район | D81: МКОУДО «Детско-юношеский центр» Солтонского района | E81: 220 | F81: 222 | G81: 98.9 | H81: 39.56 | I81: 222 | J81: 222 | K81: 100 | L81: 40 | M81: 221 | N81: 222 | O81: 99.4 | P81: 19.88 | Q81: 99.44
B82: 79 | C82: Табунский район | D82: МБУДО «Центр дополнительного образования детей» Табунского района | E82: 133 | F82: 137 | G82: 96.8 | H82: 38.72 | I82: 136 | J82: 137 | K82: 99.27007299 | L82: 39.7080292 | M82: 132 | N82: 137 | O82: 96.1 | P82: 19.22 | Q82: 97.6480292
B83: 80 | C83: Тальменский район | D83: МКУДО «Тальменская детско-юношеская спортивная школа» | E83: 246 | F83: 247 | G83: 99.7 | H83: 39.88 | I83: 247 | J83: 247 | K83: 100 | L83: 40 | M83: 244 | N83: 247 | O83: 99 | P83: 19.8 | Q83: 99.68
B84: 81 | C84: Тальменский район | D84: МКУДО «Тальменский центр внешкольной работы» | E84: 349 | F84: 352 | G84: 99.14772727 | H84: 39.65909091 | I84: 351 | J84: 352 | K84: 99.8 | L84: 39.92 | M84: 348 | N84: 352 | O84: 98.86363636 | P84: 19.77272727 | Q84: 99.35181818
B85: 82 | C85: Тогульский район | D85: МКУДО «Центр творчества, спорта и отдыха» Тогульского района | E85: 168 | F85: 169 | G85: 99.3 | H85: 39.72 | I85: 167 | J85: 169 | K85: 98.6 | L85: 39.44 | M85: 168 | N85: 169 | O85: 99.3 | P85: 19.86 | Q85: 99.02
B86: 83 | C86: Топчихинский район | D86: МКУДО «Топчихинская детско-юношеская спортивная школа» | E86: 168 | F86: 168 | G86: 100 | H86: 40 | I86: 168 | J86: 168 | K86: 100 | L86: 40 | M86: 165 | N86: 168 | O86: 98 | P86: 19.6 | Q86: 99.6
B87: 84 | C87: Топчихинский район | D87: МКУДО «Топчихинский детско-юношеский центр» | E87: 248 | F87: 250 | G87: 98.9 | H87: 39.56 | I87: 249 | J87: 250 | K87: 99.5 | L87: 39.8 | M87: 247 | N87: 250 | O87: 98.4 | P87: 19.68 | Q87: 99.04
B88: 85 | C88: Третьяковский район | D88: МБОУДО «Центр развития творчества детей и юношества» Третьяковского района | E88: 117 | F88: 117 | G88: 100 | H88: 40 | I88: 117 | J88: 117 | K88: 100 | L88: 40 | M88: 117 | N88: 117 | O88: 100 | P88: 20 | Q88: 100
B89: 86 | C89: Троицкий район | D89: МБУДО «Троицкий детско-юношеский центр» | E89: 60 | F89: 60 | G89: 100 | H89: 40 | I89: 60 | J89: 60 | K89: 100 | L89: 40 | M89: 58 | N89: 60 | O89: 96.8 | P89: 19.36 | Q89: 99.36
B90: 87 | C90: Тюменцевский район | D90: МБУДО «Тюменцевский районный центр детского творчества» | E90: 89 | F90: 89 | G90: 100 | H90: 40 | I90: 89 | J90: 89 | K90: 100 | L90: 40 | M90: 87 | N90: 89 | O90: 97.75280899 | P90: 19.5505618 | Q90: 99.5505618
B91: 88 | C91: Усть-Калманский район | D91: МБУДО «Центр детского творчества» Усть-Калманского района | E91: 247 | F91: 248 | G91: 99.9 | H91: 39.96 | I91: 248 | J91: 248 | K91: 100 | L91: 40 | M91: 247 | N91: 248 | O91: 99.9 | P91: 19.98 | Q91: 100
B92: 89 | C92: Усть-Пристанский район | D92: МКУДО «Дом детского творчества» Усть-Пристанского района | E92: 111 | F92: 111 | G92: 100 | H92: 40 | I92: 111 | J92: 111 | K92: 100 | L92: 40 | M92: 111 | N92: 111 | O92: 100 | P92: 20 | Q92: 100
B93: 90 | C93: Хабарский район | D93: МБУДО «Центр детского творчества» Хабарского района | E93: 29 | F93: 29 | G93: 100 | H93: 40 | I93: 29 | J93: 29 | K93: 100 | L93: 40 | M93: 26 | N93: 27 | O93: 96.2 | P93: 19.24 | Q93: 99.24
B94: 91 | C94: Целинный район | D94: МБУДО «Центр творчества и отдыха» Целинного района | E94: 159 | F94: 160 | G94: 99.3 | H94: 39.72 | I94: 158 | J94: 160 | K94: 98.6 | L94: 39.44 | M94: 159 | N94: 160 | O94: 99.3 | P94: 19.86 | Q94: 99.02
B95: 92 | C95: Чарышский район | D95: МБУДО «Детско-юношеская спортивная школа» Чарышского района | E95: 214 | F95: 214 | G95: 100 | H95: 40 | I95: 214 | J95: 214 | K95: 100 | L95: 40 | M95: 213 | N95: 214 | O95: 99.2 | P95: 19.84 | Q95: 99.84
B96: 93 | C96: Чарышский район | D96: МБУДО «Центр детского творчества»Чарышского района | E96: 221 | F96: 223 | G96: 99.10313901 | H96: 39.64125561 | I96: 223 | J96: 223 | K96: 100 | L96: 40 | M96: 221 | N96: 223 | O96: 99 | P96: 19.8 | Q96: 99.44125561
B97: 94 | C97: Шелаболихинский район | D97: МБУДО «Шелаболихинский центр детского творчества» | E97: 129 | F97: 129 | G97: 100 | H97: 40 | I97: 129 | J97: 129 | K97: 100 | L97: 40 | M97: 128 | N97: 129 | O97: 99.2248062 | P97: 19.84496124 | Q97: 99.84496124
B98: 95 | C98: Шелаболихинский район | D98: МКУДО «Шелаболихинская детско-юношеская спортивная школа» | E98: 198 | F98: 198 | G98: 100 | H98: 40 | I98: 196 | J98: 198 | K98: 98.98989899 | L98: 39.5959596 | M98: 196 | N98: 198 | O98: 98.98989899 | P98: 19.7979798 | Q98: 99.39393939
B99: 96 | C99: г. Яровое | D99: МБУДО «Центр научно-технического творчества учащихся» г. Яровое | E99: 228 | F99: 229 | G99: 99.7 | H99: 39.88 | I99: 229 | J99: 229 | K99: 100 | L99: 40 | M99: 224 | N99: 229 | O99: 98.4 | P99: 19.68 | Q99: 99.56

Sheet 5УдовлУсл
B1: № п/п | C1: Муниципальное образование | D1: Наименование образовательной организации | E1: Показатель 5.1 Доля получателей услуг, которые готовы рекомендовать организацию социальной сферы родственникам и знакомым | I1: Показатель 5.2 Доля получателей услуг, удовлетворенных организационными условиями предоставления услуг | M1: Показатель 5.3 Доля получателей услуг, удовлетворенных в целом условиями оказания услуг в организации | Q1: Итого по критерию:
E2: Число получателей услуг, которые готовы рекомендовать организацию родственникам и знакомым | F2: Число опрошенных получателей услуг, ответивших на соответствующий вопрос анкеты | G2: Значение показателя 5.1 | H2: Значение показателя 5.1 с учетом значимости | I2: Число получателей услуг, удовлетворенных организационными условиями предоставления услуг | J2: Число опрошенных получателей услуг, ответивших на соответствующий вопрос анкеты | K2: Значение показателя 5.2 | L2: Значение показателя 5.2 с учетом значимости | M2: Число получателей услуг, удовлетворенных в целом условиями оказания услуг в организации социальной сферы | N2: Число опрошенных получателей услуг, ответивших на соответствующий вопрос анкеты | O2: Значение показателя 5.3 | P2: Значение показателя 5.3 с учетом значимости
G3: 100 | H3: =G3*0.3 -> 30 | K3: 100 | L3: =K3*0.2 -> 20 | O3: 100 | P3: =O3*0.5 -> 50 | Q3: =H3+L3+P3 -> 100
B4: 1 | C4: г. Алейск | D4: МБУДО «Центр детского творчества» (г. Алейск) | E4: 629 | F4: 632 | G4: 99.1 | H4: =G4*0.3 -> 29.73 | I4: 626 | J4: 632 | K4: 98.5 | L4: =K4*0.2 -> 19.7 | M4: 629 | N4: 632 | O4: 99.1 | P4: =O4*0.5 -> 49.55 | Q4: =H4+L4+P4 -> 98.98
B5: 2 | C5: Алтайский район | D5: МАОУДО «Алтайский районный детско-юношеский центр» | E5: 517 | F5: 520 | G5: 99.3 | H5: =G5*0.3 -> 29.79 | I5: 516 | J5: 520 | K5: 98.9 | L5: =K5*0.2 -> 19.78 | M5: 516 | N5: 520 | O5: 98.9 | P5: =O5*0.5 -> 49.45 | Q5: =H5+L5+P5 -> 99.02
B6: 3 | C6: Баевский район | D6: МБУДО «Баевский Центр детского творчества и профессионального обучения Алтайского края» | E6: 147 | F6: 147 | G6: =E6/F6*100 -> 100 | H6: 30 | I6: 146 | J6: 147 | K6: 99.1 | L6: 19.82 | M6: 147 | N6: 147 | O6: =M6/N6*100 -> 100 | P6: 50 | Q6: 99.82
B7: 4 | C7: г. Барнаул | D7: КГБУДО «Алтайский краевой дворец творчества детей и молодежи» | E7: 456 | F7: 457 | G7: 99.78118162 | H7: 29.93435449 | I7: 446 | J7: 457 | K7: =I7/J7*100 -> 97.59299781 | L7: 19.51859956 | M7: 454 | N7: 457 | O7: 99.34354486 | P7: 49.67177243 | Q7: 99.12472648
B8: 5 | C8: г. Барнаул | D8: КГБУДО «Алтайский краевой детский экологический центр» | E8: 569 | F8: 570 | G8: 99.9 | H8: 29.97 | I8: 570 | J8: 570 | K8: 100 | L8: 20 | M8: 570 | N8: 570 | O8: 100 | P8: 50 | Q8: 99.97
B9: 6 | C9: г. Барнаул | D9: КГБУДО «Алтайский краевой центр детского отдыха, туризма и краеведения «Алтай» | E9: 307 | F9: 308 | G9: 99.67532468 | H9: 29.9025974 | I9: 305 | J9: 308 | K9: 99.3 | L9: 19.86 | M9: 308 | N9: 308 | O9: 100 | P9: 50 | Q9: 99.7625974
B10: 7 | C10: г. Барнаул | D10: КГБУДО «Детский технопарк Алтайского края «Кванториум.22» | E10: 732 | F10: 732 | G10: =E10/F10*100 -> 100 | H10: 30 | I10: 732 | J10: 732 | K10: =I10/J10*100 -> 100 | L10: 20 | M10: 732 | N10: 732 | O10: =M10/N10*100 -> 100 | P10: 50 | Q10: =H10+L10+P10 -> 100
B11: 8 | C11: г. Барнаул | D11: МБУДО «Барнаульский городской детско-юношеский центр» | E11: 652 | F11: 660 | G11: 98.78787879 | H11: 29.63636364 | I11: 646 | J11: 660 | K11: 97.87878788 | L11: 19.57575758 | M11: 654 | N11: 660 | O11: 99.09090909 | P11: 49.54545455 | Q11: 98.75757576
B12: 9 | C12: г. Барнаул | D12: МБУДО «Барнаульская городская станция юных натуралистов» | E12: 237 | F12: 242 | G12: 97.9338843 | H12: 29.38016529 | I12: 239 | J12: 242 | K12: 99.1 | L12: 19.82 | M12: 241 | N12: 242 | O12: 99.9 | P12: 49.95 | Q12: 99.15016529
B13: 10 | C13: г. Барнаул | D13: МБУДО «Барнаульская городская станция юных техников» | E13: 608 | F13: 609 | G13: 99.83579639 | H13: 29.95073892 | I13: 609 | J13: 609 | K13: 100 | L13: 20 | M13: 609 | N13: 609 | O13: 100 | P13: 50 | Q13: 99.95073892
B14: 11 | C14: г. Барнаул | D14: МБУДО «Детский оздоровительно-образовательный (профильный) центр Гармония» | E14: 57 | F14: 57 | G14: 100 | H14: 30 | I14: 57 | J14: 57 | K14: 100 | L14: 20 | M14: 57 | N14: 57 | O14: 100 | P14: 50 | Q14: 100
B15: 12 | C15: г. Барнаул | D15: МБУДО «Дом художественного творчества детей» (г. Барнаул) | E15: 598 | F15: 600 | G15: 99.66666667 | H15: 29.9 | I15: 592 | J15: 600 | K15: 99.3 | L15: 19.86 | M15: 600 | N15: 600 | O15: 100 | P15: 50 | Q15: 99.76
B16: 13 | C16: г. Барнаул | D16: МБУДО «Детско-юношеский центр» Индустриального района г. Барнаула | E16: 717 | F16: 717 | G16: 100 | H16: 30 | I16: 715 | J16: 717 | K16: 99.9 | L16: 19.98 | M16: 717 | N16: 717 | O16: 100 | P16: 50 | Q16: 99.98
B17: 14 | C17: г. Барнаул | D17: МБУДО «Центр детского (юношеского) технического творчества» Ленинского района г. Барнаула | E17: 108 | F17: 108 | G17: 100 | H17: 30 | I17: 106 | J17: 108 | K17: 98.14814815 | L17: 19.62962963 | M17: 107 | N17: 108 | O17: 99 | P17: 49.5 | Q17: 99.12962963
B18: 15 | C18: г. Барнаул | D18: МБУДО «Центр детского творчества №2» г. Барнаула | E18: 635 | F18: 643 | G18: 98.75583204 | H18: 29.62674961 | I18: 624 | J18: 643 | K18: 97.04510109 | L18: 19.40902022 | M18: 638 | N18: 643 | O18: 99.22239502 | P18: 49.61119751 | Q18: 98.64696734
B19: 16 | C19: г. Барнаул | D19: МБУДО «Центр детского творчества» Центрального района г. Барнаула | E19: 250 | F19: 254 | G19: 98.1 | H19: 29.43 | I19: 249 | J19: 254 | K19: 97.7 | L19: 19.54 | M19: 252 | N19: 254 | O19: 99.1 | P19: 49.55 | Q19: 98.52
B20: 17 | C20: г. Барнаул | D20: МБУДО «Центр развития творчества детей и юношества» Индустриального района г. Барнаула | E20: 666 | F20: 667 | G20: 99.8 | H20: 29.94 | I20: 664 | J20: 667 | K20: 99.5 | L20: 19.9 | M20: 667 | N20: 667 | O20: 100 | P20: 50 | Q20: 99.84
B21: 18 | C21: г. Барнаул | D21: МБУДО «Центр развития творчества детей и молодежи» Железнодорожного района г. Барнаула | E21: 594 | F21: 597 | G21: 99.2 | H21: 29.76 | I21: 581 | J21: 597 | K21: 97.319933 | L21: 19.4639866 | M21: 592 | N21: 597 | O21: 98.7 | P21: 49.35 | Q21: 98.5739866
B22: 19 | C22: г. Барнаул | D22: МБУДО «Центр физкультурно-спортивной направленности «Акцент» | E22: 129 | F22: 130 | G22: 99 | H22: 29.7 | I22: 128 | J22: 130 | K22: 98.2 | L22: 19.64 | M22: 129 | N22: 130 | O22: 99 | P22: 49.5 | Q22: 98.84
B23: 20 | C23: г. Барнаул | D23: МБУДО Городской психолого-педагогический центр «Потенциал» | E23: 697 | F23: 709 | G23: 98 | H23: 29.4 | I23: 701 | J23: 709 | K23: 98.7 | L23: 19.74 | M23: 705 | N23: 709 | O23: 99.2 | P23: 49.6 | Q23: 98.74
B24: 21 | C24: г. Барнаул | D24: МБУДО Детский оздоровительно-образовательный (профильный) центр «Валеологический центр» | E24: 629 | F24: 629 | G24: 100 | H24: 30 | I24: 629 | J24: 629 | K24: 100 | L24: 20 | M24: 629 | N24: 629 | O24: 100 | P24: 50 | Q24: 100
B25: 22 | C25: г. Барнаул | D25: МБУДО «Детская школа искусств «Традиция» с. Власиха г. Барнаула | E25: 471 | F25: 474 | G25: 99.36708861 | H25: 29.81012658 | I25: 470 | J25: 474 | K25: 99.15611814 | L25: 19.83122363 | M25: 473 | N25: 474 | O25: 99.78902954 | P25: 49.89451477 | Q25: 99.53586498
B26: 23 | C26: г. Барнаул | D26: МБУДО Центр внешкольной работы «Военно-спортивный клуб «Борец» | E26: 80 | F26: 80 | G26: 100 | H26: 30 | I26: 80 | J26: 80 | K26: 100 | L26: 20 | M26: 80 | N26: 80 | O26: 100 | P26: 50 | Q26: 100
B27: 24 | C27: г. Барнаул | D27: МБУДО «Центр эстетического воспитания «Песнохорки» | E27: 203 | F27: 206 | G27: 98.5 | H27: 29.55 | I27: 202 | J27: 206 | K27: 97 | L27: 19.4 | M27: 204 | N27: 206 | O27: 99 | P27: 49.5 | Q27: 98.45
B28: 25 | C28: г. Барнаул | D28: МБУДО «Центр дополнительного образования детей «Память» Пост №1 г. Барнаула» | E28: 247 | F28: 253 | G28: 97.9 | H28: 29.37 | I28: 251 | J28: 253 | K28: 99.4 | L28: 19.88 | M28: 252 | N28: 253 | O28: 99.8 | P28: 49.9 | Q28: 99.15
B29: 26 | C29: г. Барнаул | D29: МБУДО «Центр детского творчества» Октябрьского района г. Барнаула | E29: 247 | F29: 253 | G29: 97.9 | H29: 29.37 | I29: 245 | J29: 253 | K29: 97.2 | L29: 19.44 | M29: 250 | N29: 253 | O29: 98.9 | P29: 49.45 | Q29: 98.26
B30: 27 | C30: г. Барнаул | D30: МБУДО «Центр развития творчества детей и юношества» Ленинского района г. Барнаула | E30: 639 | F30: 639 | G30: 100 | H30: 30 | I30: 637 | J30: 639 | K30: 99.8 | L30: 19.96 | M30: 639 | N30: 639 | O30: 100 | P30: 50 | Q30: 99.96
B31: 28 | C31: г. Белокуриха | D31: МБУДО «Детско-юношеская спортивная школа» г. Белокурихи | E31: 198 | F31: 198 | G31: 100 | H31: 30 | I31: 198 | J31: 198 | K31: 100 | L31: 20 | M31: 198 | N31: 198 | O31: 100 | P31: 50 | Q31: 100
B32: 29 | C32: г. Белокуриха | D32: МБУДО «Центр эстетического воспитания» г. Белокурихи | E32: 291 | F32: 293 | G32: 99.2 | H32: 29.76 | I32: 293 | J32: 293 | K32: 100 | L32: 20 | M32: 293 | N32: 293 | O32: 100 | P32: 50 | Q32: 99.76
B33: 30 | C33: г. Бийск | D33: МБУДО «Детский эколого-туристический центр» г. Бийска | E33: 427 | F33: 428 | G33: 99.6 | H33: 29.88 | I33: 426 | J33: 428 | K33: 99.1 | L33: 19.82 | M33: 426 | N33: 428 | O33: 99.1 | P33: 49.55 | Q33: 99.25
B34: 31 | C34: г. Бийск | D34: МБУДО «Дом детского творчества» г. Бийска | E34: 644 | F34: 647 | G34: 99.1 | H34: 29.73 | I34: 638 | J34: 647 | K34: 98.60896445 | L34: 19.72179289 | M34: 644 | N34: 647 | O34: 99.1 | P34: 49.55 | Q34: 99.00179289
B35: 32 | C35: Бийский район | D35: МБУДО «Центр внешкольной работы» Бийского района | E35: 113 | F35: 114 | G35: 99 | H35: 29.7 | I35: 111 | J35: 114 | K35: 96.9 | L35: 19.38 | M35: 112 | N35: 114 | O35: 98.1 | P35: 49.05 | Q35: 98.13
B36: 33 | C36: Благовещенский район | D36: МБУДО «Благовещенский детско-юношеский центр» | E36: 302 | F36: 302 | G36: 100 | H36: 30 | I36: 300 | J36: 302 | K36: 99.5 | L36: 19.9 | M36: 301 | N36: 302 | O36: 99.8 | P36: 49.9 | Q36: 99.8
B37: 34 | C37: Бурлинский район | D37: МБУДО «Бурлинский Центр дополнительного образования» | E37: 130 | F37: 130 | G37: 100 | H37: 30 | I37: 129 | J37: 130 | K37: 99 | L37: 19.8 | M37: 129 | N37: 130 | O37: 99 | P37: 49.5 | Q37: 99.3
B38: 35 | C38: Быстроистокский район | D38: МБУДО «Быстроистокская детско-юношеская спортивная школа» | E38: 132 | F38: 132 | G38: 100 | H38: 30 | I38: 132 | J38: 132 | K38: 100 | L38: 20 | M38: 131 | N38: 132 | O38: 99 | P38: 49.5 | Q38: 99.5
B39: 36 | C39: Егорьевский район | D39: МБУДО «Егорьевская детско-юношеская спортивная школа» | E39: 20 | F39: 21 | G39: 95.23809524 | H39: 28.57142857 | I39: 20 | J39: 21 | K39: 95 | L39: 19 | M39: 20 | N39: 21 | O39: 95 | P39: 47.5 | Q39: 95.07142857
B40: 37 | C40: Ельцовский район | D40: МБУДО «Ельцовский центр развития детей-детско-юношеская спортивная школа" | E40: 264 | F40: 269 | G40: 97.9 | H40: 29.37 | I40: 265 | J40: 269 | K40: 98.4 | L40: 19.68 | M40: 266 | N40: 269 | O40: 98.88475836 | P40: 49.44237918 | Q40: 98.49237918
B41: 38 | C41: Завьяловский район | D41: МБОУДО «Завьяловский районный центр детского творчества» | E41: 112 | F41: 112 | G41: 100 | H41: 30 | I41: 110 | J41: 112 | K41: 98.1 | L41: 19.62 | M41: 112 | N41: 112 | O41: 100 | P41: 50 | Q41: 99.62
B42: 39 | C42: Залесовский район | D42: МБУДО «Центр спорта и творчества» | E42: 104 | F42: 105 | G42: 99.04761905 | H42: 29.71428571 | I42: 93 | J42: 105 | K42: 88.57142857 | L42: 17.71428571 | M42: 100 | N42: 105 | O42: 95.23809524 | P42: 47.61904762 | Q42: 95.04761905
B43: 40 | C43: г. Заринск | D43: МБУДО «Центр детского творчества» г. Заринска | E43: 634 | F43: 638 | G43: 99 | H43: 29.7 | I43: 631 | J43: 638 | K43: 98.4 | L43: 19.68 | M43: 635 | N43: 638 | O43: 99.3 | P43: 49.65 | Q43: 99.03
B44: 41 | C44: Заринский район | D44: МБУДО «Центр детского творчества» Заринского района | E44: 81 | F44: 82 | G44: 99 | H44: 29.7 | I44: 80 | J44: 82 | K44: 97.9 | L44: 19.58 | M44: 81 | N44: 82 | O44: 99 | P44: 49.5 | Q44: 98.78
B45: 42 | C45: ЗАТО Сибирский | D45: МБУДО «Детско-юношеский центр «Росток» ЗАТО Сибирский | E45: 110 | F45: 110 | G45: 100 | H45: 30 | I45: 109 | J45: 110 | K45: 99.09090909 | L45: 19.81818182 | M45: 110 | N45: 110 | O45: 100 | P45: 50 | Q45: 99.81818182
B46: 43 | C46: Змеиногорский район | D46: МБУДО «Дворец творчества детей и молодежи» Змеиногорского район | E46: 693 | F46: 694 | G46: 99.99 | H46: 29.997 | I46: 692 | J46: 694 | K46: 99.99 | L46: 19.998 | M46: 693 | N46: 694 | O46: 99.99 | P46: 49.995 | Q46: 99.99
B47: 44 | C47: Зональный район | D47: МКОУДО «Зональная районная детско-юношеская спортивная школа» | E47: 63 | F47: 65 | G47: 97 | H47: 29.1 | I47: 63 | J47: 65 | K47: 97 | L47: 19.4 | M47: 63 | N47: 65 | O47: 97 | P47: 48.5 | Q47: 97
B48: 45 | C48: Калманский район | D48: МБУДО «Калманский районный детско-юношеский центр» | E48: 91 | F48: 93 | G48: 98.1 | H48: 29.43 | I48: 92 | J48: 93 | K48: 98.92473118 | L48: 19.78494624 | M48: 92 | N48: 93 | O48: 98.92473118 | P48: 49.46236559 | Q48: 98.67731183
B49: 46 | C49: Каменский район | D49: МБУДО «Каменский многопрофильный образовательный центр» | E49: 407 | F49: 407 | G49: 100 | H49: 30 | I49: 407 | J49: 407 | K49: 100 | L49: 20 | M49: 406 | N49: 407 | O49: 99.9 | P49: 49.95 | Q49: 99.95
B50: 47 | C50: Красногорский район | D50: МКУДО «Дом детского творчества» Красногорского района | E50: 72 | F50: 77 | G50: 92.7 | H50: 27.81 | I50: 73 | J50: 78 | K50: 93.58974359 | L50: 18.71794872 | M50: 76 | N50: 78 | O50: 97.43589744 | P50: 48.71794872 | Q50: 95.24589744
B51: 48 | C51: Краснощековский район | D51: МБУДО «Краснощековский районный детско-юношеский центр» | E51: 117 | F51: 117 | G51: 100 | H51: 30 | I51: 117 | J51: 117 | K51: 100 | L51: 20 | M51: 116 | N51: 117 | O51: 99 | P51: 49.5 | Q51: 99.5
B52: 49 | C52: Крутихинский район | D52: МБУДО «Крутихинский Детско-юношеский центр» | E52: 456 | F52: 456 | G52: 100 | H52: 30 | I52: 456 | J52: 456 | K52: 100 | L52: 20 | M52: 456 | N52: 456 | O52: 100 | P52: 50 | Q52: 100
B53: 50 | C53: Кулундинский район | D53: МБУДО «Центр детского творчества» Кулундинского района | E53: 259 | F53: 259 | G53: 100 | H53: 30 | I53: 257 | J53: 259 | K53: 99.1 | L53: 19.82 | M53: 257 | N53: 259 | O53: 99.1 | P53: 49.55 | Q53: 99.37
B54: 51 | C54: Курьинский район | D54: МБУДО «Дом детского творчества» Курьинского района | E54: 91 | F54: 91 | G54: 100 | H54: 30 | I54: 90 | J54: 91 | K54: 99 | L54: 19.8 | M54: 90 | N54: 91 | O54: 99 | P54: 49.5 | Q54: 99.3
B55: 52 | C55: Кытмановский район | D55: МБУДО «Центр спорта и творчества Кытмановского района» | E55: 285 | F55: 287 | G55: 99.4 | H55: 29.82 | I55: 284 | J55: 287 | K55: 99.1 | L55: 19.82 | M55: 286 | N55: 287 | O55: 99.65156794 | P55: 49.82578397 | Q55: 99.46578397
B56: 53 | C56: Локтевский район | D56: МБУДО «Дом детского творчества» Локтевского района | E56: 93 | F56: 93 | G56: 100 | H56: 30 | I56: 91 | J56: 93 | K56: 97.84946237 | L56: 19.56989247 | M56: 93 | N56: 93 | O56: 100 | P56: 50 | Q56: 99.56989247
B57: 54 | C57: Мамонтовский район | D57: МБУДО «Мамонтовский детско-юношеский центр» | E57: 147 | F57: 147 | G57: 100 | H57: 30 | I57: 145 | J57: 147 | K57: 98.2 | L57: 19.64 | M57: 146 | N57: 147 | O57: 99.1 | P57: 49.55 | Q57: 99.19
B58: 55 | C58: Мамонтовский район | D58: МКУДО «Мамонтовская детско-юношеская спортивная школа» | E58: 52 | F58: 53 | G58: 98 | H58: 29.4 | I58: 49 | J58: 53 | K58: 92.2 | L58: 18.44 | M58: 50 | N58: 53 | O58: 94 | P58: 47 | Q58: 94.84
B59: 56 | C59: Михайловский район | D59: МКОДО «Михайловский образовательно-оздоровительный центр Им. Ю.А. Гагарина» | E59: 60 | F59: 64 | G59: 94 | H59: 28.2 | I59: 60 | J59: 64 | K59: 94 | L59: 18.8 | M59: 60 | N59: 64 | O59: 94 | P59: 47 | Q59: 94
B60: 57 | C60: Михайловский район | D60: МКУДО «Михайловская детско-юношеская спортивная школа» | E60: 125 | F60: 125 | G60: 100 | H60: 30 | I60: 125 | J60: 125 | K60: 100 | L60: 20 | M60: 125 | N60: 125 | O60: 100 | P60: 50 | Q60: 100
B61: 58 | C61: Новичихинский район | D61: МКОУДО «Новичихинская детско-юношеская спортивная школа» | E61: 218 | F61: 218 | G61: 100 | H61: 30 | I61: 217 | J61: 218 | K61: 99.2 | L61: 19.84 | M61: 217 | N61: 218 | O61: 99.2 | P61: 49.6 | Q61: 99.44
B62: 59 | C62: Новоалтайск район | D62: МБОУДО «Детско-юношеский центр города Новоалтайска» | E62: 703 | F62: 703 | G62: 100 | H62: 30 | I62: 696 | J62: 703 | K62: 99.00426743 | L62: 19.80085349 | M62: 703 | N62: 703 | O62: 100 | P62: 50 | Q62: 99.80085349
B63: 60 | C63: Павловский район | D63: МБУДО «Павловский детско-юношеский центр» | E63: 256 | F63: 260 | G63: 98.3 | H63: 29.49 | I63: 257 | J63: 260 | K63: 98.6 | L63: 19.72 | M63: 255 | N63: 260 | O63: 98.07692308 | P63: 49.03846154 | Q63: 98.24846154
B64: 61 | C64: Панкрушихинский район | D64: МБОУДО «Панкрушихинский районный Центр творчества» | E64: 299 | F64: 305 | G64: 98.03278689 | H64: 29.40983607 | I64: 298 | J64: 305 | K64: 97.8 | L64: 19.56 | M64: 301 | N64: 305 | O64: 98.8 | P64: 49.4 | Q64: 98.36983607
B65: 62 | C65: Первомайский район | D65: МБУДО «Центр творчества детей и молодежи «Созвездие» Первомайского района | E65: 722 | F65: 724 | G65: 99.99 | H65: 29.997 | I65: 721 | J65: 724 | K65: 99.8 | L65: 19.96 | M65: 722 | N65: 724 | O65: 99.99 | P65: 49.995 | Q65: 99.952
B66: 63 | C66: Первомайский район | D66: МБУДОД «Детско-юношеская спортивная школа» Первомайского района | E66: 568 | F66: 569 | G66: 99.9 | H66: 29.97 | I66: 568 | J66: 569 | K66: 99.9 | L66: 19.98 | M66: 569 | N66: 569 | O66: 100 | P66: 50 | Q66: 99.95
B67: 64 | C67: Поспелихинский район | D67: МКУДО «Поспелихинский районный центр детского творчества» | E67: 538 | F67: 538 | G67: 100 | H67: 30 | I67: 534 | J67: 538 | K67: 99.2 | L67: 19.84 | M67: 538 | N67: 538 | O67: 100 | P67: 50 | Q67: 99.84
B68: 65 | C68: Ребрихинский район | D68: МКОУДО «Ребрихинский детско-юношеский центр» | E68: 377 | F68: 379 | G68: 99.2 | H68: 29.76 | I68: 376 | J68: 379 | K68: 98.8 | L68: 19.76 | M68: 377 | N68: 379 | O68: 99.2 | P68: 49.6 | Q68: 99.12
B69: 66 | C69: Родинский район | D69: МБУДО «Детский оздоровительно-образовательный центр Родинского района | E69: 71 | F69: 71 | G69: 100 | H69: =G69*0.3 -> 30 | I69: 71 | J69: 71 | K69: 100 | L69: =K69*0.2 -> 20 | M69: 71 | N69: 71 | O69: 100 | P69: =O69*0.5 -> 50 | Q69: 100
B70: 67 | C70: Романовский район | D70: МБУДО «Романовский детско-юношеский центр» | E70: 164 | F70: 164 | G70: 100 | H70: 30 | I70: 164 | J70: 164 | K70: 100 | L70: 20 | M70: 163 | N70: 164 | O70: 99.9 | P70: 49.95 | Q70: 99.95
B71: 68 | C71: г. Рубцовск | D71: МБУДО «Детско-юношеский центр» г. Рубцовска | E71: 681 | F71: 681 | G71: 100 | H71: 30 | I71: 681 | J71: 681 | K71: 100 | L71: 20 | M71: 681 | N71: 681 | O71: 100 | P71: 50 | Q71: 100
B72: 69 | C72: г. Рубцовск | D72: МБУДО «Станция туризма и экскурсий» г. Рубцовска | E72: 190 | F72: 191 | G72: 99.3 | H72: 29.79 | I72: 187 | J72: 191 | K72: 97.7 | L72: 19.54 | M72: 191 | N72: 191 | O72: 100 | P72: 50 | Q72: 99.33
B73: 70 | C73: г. Рубцовск | D73: МБУДО «Центр внешкольной работы «Малая Академия» г. Рубцовска | E73: 658 | F73: 666 | G73: 98.6 | H73: 29.58 | I73: 649 | J73: 666 | K73: 97.2 | L73: 19.44 | M73: 661 | N73: 666 | O73: 99.24924925 | P73: 49.62462462 | Q73: 98.64462462
B74: 71 | C74: г. Рубцовск | D74: МБУДО «Центр развития творчества» г. Рубцовска | E74: 522 | F74: 523 | G74: 100 | H74: 30 | I74: 522 | J74: 523 | K74: 100 | L74: 20 | M74: 521 | N74: 523 | O74: 99.9 | P74: 49.95 | Q74: =H74+L74+P74 -> 99.95
B75: 72 | C75: Рубцовский район | D75: МБУДО «Детско-юношеская спортивная школа» Рубцовского района | E75: 56 | F75: 56 | G75: =E75/F75*100 -> 100 | H75: 30 | I75: 54 | J75: 56 | K75: 96.2 | L75: 19.24 | M75: 56 | N75: 56 | O75: =M75/N75*100 -> 100 | P75: 50 | Q75: 99.24
B76: 73 | C76: Рубцовский район | D76: МБУДО «Центр творческого развития «Ступени» Рубцовского района | E76: 189 | F76: 190 | G76: 99.2 | H76: 29.76 | I76: 186 | J76: 190 | K76: 97.2 | L76: 19.44 | M76: 189 | N76: 190 | O76: 99.2 | P76: 49.6 | Q76: 98.8
B77: 74 | C77: г. Славгород | D77: МБУДО «Центр творчества детей и молодежи» г. Славгорода | E77: 640 | F77: 644 | G77: 99.7 | H77: 29.91 | I77: 622 | J77: 644 | K77: 96.8 | L77: 19.36 | M77: 635 | N77: 644 | O77: 98.60248447 | P77: 49.30124224 | Q77: 98.57124224
B78: 75 | C78: Смоленский район | D78: МБУДО «Смоленский дом детского творчества» | E78: 149 | F78: 149 | G78: 100 | H78: 30 | I78: 149 | J78: 149 | K78: =I78/J78*100 -> 100 | L78: 20 | M78: 149 | N78: 149 | O78: 100 | P78: 50 | Q78: 100
B79: 76 | C79: Советский район | D79: МБУДО «Детско-юношеский центр» Советского района | E79: 624 | F79: 634 | G79: 98.1 | H79: 29.43 | I79: 634 | J79: 634 | K79: 100 | L79: 20 | M79: 634 | N79: 634 | O79: 100 | P79: 50 | Q79: 99.43
B80: 77 | C80: Солонешенский район | D80: МБУДО «Солонешенский центр детского творчества» | E80: 86 | F80: 88 | G80: 98 | H80: 29.4 | I80: 86 | J80: 88 | K80: 98 | L80: 19.6 | M80: 86 | N80: 88 | O80: 98 | P80: 49 | Q80: 98
B81: 78 | C81: Солтонский район | D81: МКОУДО «Детско-юношеский центр» Солтонского района | E81: 222 | F81: 222 | G81: 100 | H81: 30 | I81: 221 | J81: 222 | K81: 99.4 | L81: 19.88 | M81: 222 | N81: 222 | O81: 100 | P81: 50 | Q81: 99.88
B82: 79 | C82: Табунский район | D82: МБУДО «Центр дополнительного образования детей» Табунского района | E82: 134 | F82: 137 | G82: 97.3 | H82: 29.19 | I82: 128 | J82: 137 | K82: 92.9 | L82: 18.58 | M82: 135 | N82: 137 | O82: 98.54014599 | P82: 49.27007299 | Q82: 97.04007299
B83: 80 | C83: Тальменский район | D83: МКУДО «Тальменская детско-юношеская спортивная школа» | E83: 247 | F83: 247 | G83: 100 | H83: 30 | I83: 247 | J83: 247 | K83: 100 | L83: 20 | M83: 247 | N83: 247 | O83: 100 | P83: 50 | Q83: 100
B84: 81 | C84: Тальменский район | D84: МКУДО «Тальменский центр внешкольной работы» | E84: 350 | F84: 352 | G84: 99.3 | H84: 29.79 | I84: 350 | J84: 352 | K84: 99.3 | L84: 19.86 | M84: 350 | N84: 352 | O84: 99.3 | P84: 49.65 | Q84: 99.3
B85: 82 | C85: Тогульский район | D85: МКУДО «Центр творчества, спорта и отдыха» Тогульского района | E85: 166 | F85: 169 | G85: 97.7 | H85: 29.31 | I85: 166 | J85: 169 | K85: 97.7 | L85: 19.54 | M85: 168 | N85: 169 | O85: 99.3 | P85: 49.65 | Q85: 98.5
B86: 83 | C86: Топчихинский район | D86: МКУДО «Топчихинская детско-юношеская спортивная школа» | E86: 168 | F86: 168 | G86: 100 | H86: 30 | I86: 165 | J86: 168 | K86: 98 | L86: 19.6 | M86: 167 | N86: 168 | O86: 99.2 | P86: 49.6 | Q86: 99.2
B87: 84 | C87: Топчихинский район | D87: МКУДО «Топчихинский детско-юношеский центр» | E87: 250 | F87: 250 | G87: 100 | H87: 30 | I87: 249 | J87: 250 | K87: 99.5 | L87: 19.9 | M87: 249 | N87: 250 | O87: 99.5 | P87: 49.75 | Q87: 99.65
B88: 85 | C88: Третьяковский район | D88: МБОУДО «Центр развития творчества детей и юношества» Третьяковского района | E88: 117 | F88: 117 | G88: 100 | H88: 30 | I88: 117 | J88: 117 | K88: 100 | L88: 20 | M88: 117 | N88: 117 | O88: 100 | P88: 50 | Q88: 100
B89: 86 | C89: Троицкий район | D89: МБУДО «Троицкий детско-юношеский центр» | E89: 60 | F89: 60 | G89: 100 | H89: 30 | I89: 60 | J89: 60 | K89: 100 | L89: 20 | M89: 60 | N89: 60 | O89: 100 | P89: 50 | Q89: 100
B90: 87 | C90: Тюменцевский район | D90: МБУДО «Тюменцевский районный центр детского творчества» | E90: 88 | F90: 89 | G90: 99 | H90: 29.7 | I90: 87 | J90: 89 | K90: 97.75280899 | L90: 19.5505618 | M90: 88 | N90: 89 | O90: 99 | P90: 49.5 | Q90: 98.7505618
B91: 88 | C91: Усть-Калманский район | D91: МБУДО «Центр детского творчества» Усть-Калманского района | E91: 248 | F91: 248 | G91: 100 | H91: 30 | I91: 247 | J91: 248 | K91: 99.9 | L91: 19.98 | M91: 248 | N91: 248 | O91: 100 | P91: 50 | Q91: 99.98
B92: 89 | C92: Усть-Пристанский район | D92: МКУДО «Дом детского творчества» Усть-Пристанского района | E92: 111 | F92: 111 | G92: 100 | H92: 30 | I92: 111 | J92: 111 | K92: 100 | L92: 20 | M92: 111 | N92: 111 | O92: 100 | P92: 50 | Q92: 100
B93: 90 | C93: Хабарский район | D93: МБУДО «Центр детского творчества» Хабарского района | E93: 26 | F93: 27 | G93: 96.2 | H93: 28.86 | I93: 27 | J93: 27 | K93: 100 | L93: 20 | M93: 27 | N93: 27 | O93: 100 | P93: 50 | Q93: 98.86
B94: 91 | C94: Целинный район | D94: МБУДО «Центр творчества и отдыха» Целинного района | E94: 156 | F94: 160 | G94: 97.3 | H94: 29.19 | I94: 153 | J94: 160 | K94: 95.4 | L94: 19.08 | M94: 157 | N94: 160 | O94: 98 | P94: 49 | Q94: 97.27
B95: 92 | C95: Чарышский район | D95: МБУДО «Детско-юношеская спортивная школа» Чарышского района | E95: 214 | F95: 214 | G95: 100 | H95: 30 | I95: 214 | J95: 214 | K95: 100 | L95: 20 | M95: 214 | N95: 214 | O95: 100 | P95: 50 | Q95: 100
B96: 93 | C96: Чарышский район | D96: МБУДО «Центр детского творчества»Чарышского района | E96: 223 | F96: 223 | G96: 100 | H96: 30 | I96: 219 | J96: 223 | K96: 98.20627803 | L96: 19.64125561 | M96: 223 | N96: 223 | O96: 100 | P96: 50 | Q96: 99.64125561
B97: 94 | C97: Шелаболихинский район | D97: МБУДО «Шелаболихинский центр детского творчества» | E97: 129 | F97: 129 | G97: 100 | H97: 30 | I97: 129 | J97: 129 | K97: 100 | L97: 20 | M97: 129 | N97: 129 | O97: 100 | P97: 50 | Q97: 100
B98: 95 | C98: Шелаболихинский район | D98: МКУДО «Шелаболихинская детско-юношеская спортивная школа» | E98: 190 | F98: 197 | G98: 95.8 | H98: 28.74 | I98: 191 | J98: 198 | K98: 96 | L98: 19.2 | M98: 193 | N98: 198 | O98: 97.1 | P98: 48.55 | Q98: 96.49
B99: 96 | C99: г. Яровое | D99: МБУДО «Центр научно-технического творчества учащихся» г. Яровое | E99: 229 | F99: 229 | G99: 100 | H99: 30 | I99: 227 | J99: 229 | K99: 99.12663755 | L99: 19.82532751 | M99: 229 | N99: 229 | O99: 100 | P99: 50 | Q99: 99.82532751

Sheet Интегр
A1: Место в рейтинге | B1: Муниципальное образование | C1: Наименование образовательной организации | D1: Интегральное значение показателя | E1: 1 - Показатели, характеризующие откртость и доступность информации об организации | I1: 2 - Показатели, характеризующие комфортность условий предоставления услуг | L1: 3 - Показатели, характеризующие доступность услуг для инвалидов | P1: 4 - Показатели, характеризующие доброжелательность, вежливость работников организации | T1: 5 - Показатели, характеризующие удовлетворенность условиями оказания услуг
E2: 1.1 | F2: 1.2 | G2: 1.3 | H2: К1 | I2: 2.1 | J2: 2.3 | K2: К2 | L2: 3.1 | M2: 3.2 | N2: 3.3 | O2: К3 | P2: 4.1 | Q2: 4.2 | R2: 4.3 | S2: К4 | T2: 5.1 | U2: 5.2 | V2: 5.3 | W2: К5
E3: 30 | F3: 30 | G3: 40 | H3: 100 | I3: 50 | J3: 50 | K3: 100 | L3: 30 | M3: 40 | N3: 30 | O3: 100 | P3: 40 | Q3: 40 | R3: 20 | S3: 100 | T3: 30 | U3: 20 | V3: 50 | W3: 100
A4: 1 | B4: г. Барнаул | C4: КГБУДО «Детский технопарк Алтайского края «Кванториум.22» | D4: =AVERAGE(H4,K4,O4,S4,W4) -> 98.79 | E4: ='1ОиДинфоб'!G10 -> 30 | F4: ='1ОиДинфоб'!J10 -> 30 | G4: ='1ОиДинфоб'!P10 -> 40 | H4: =E4+F4+G4 -> 100 | I4: ='2КомУслОц'!F11 -> 50 | J4: ='2КомУслОц'!J11 -> 49.95 | K4: =I4+J4 -> 99.95 | L4: ='3УслДостИнвОц'!F10 -> 24 | M4: ='3УслДостИнвОц'!I10 -> 40 | N4: ='3УслДостИнвОц'!M10 -> 30 | O4: =L4+M4+N4 -> 94 | P4: ='4ДобрВежл'!H10 -> 40 | Q4: ='4ДобрВежл'!L10 -> 40 | R4: ='4ДобрВежл'!P10 -> 20 | S4: =SUM(P4:R4) -> 100 | T4: ='5УдовлУсл'!H10 -> 30 | U4: ='5УдовлУсл'!L10 -> 20 | V4: ='5УдовлУсл'!P10 -> 50 | W4: =SUM(T4:V4) -> 100
A5: 2 | B5: г. Барнаул | C5: МБУДО Детский оздоровительно-образовательный (профильный) центр «Валеологический центр» | D5: 98.612 | E5: ='1ОиДинфоб'!G24 -> 29.1 | F5: ='1ОиДинфоб'!J24 -> 30 | G5: ='1ОиДинфоб'!P24 -> 40 | H5: 99.1 | I5: ='2КомУслОц'!F25 -> 50 | J5: ='2КомУслОц'!J25 -> 50 | K5: 100 | L5: ='3УслДостИнвОц'!F24 -> 24 | M5: ='3УслДостИнвОц'!I24 -> 40 | N5: ='3УслДостИнвОц'!M24 -> 30 | O5: 94 | P5: ='4ДобрВежл'!H24 -> 39.96 | Q5: ='4ДобрВежл'!L24 -> 40 | R5: ='4ДобрВежл'!P24 -> 20 | S5: 99.96 | T5: ='5УдовлУсл'!H24 -> 30 | U5: ='5УдовлУсл'!L24 -> 20 | V5: ='5УдовлУсл'!P24 -> 50 | W5: 100
A6: 3 | B6: г. Барнаул | C6: КГБУДО «Алтайский краевой детский экологический центр» | D6: 98.51722609 | E6: ='1ОиДинфоб'!G8 -> 29.8 | F6: ='1ОиДинфоб'!J8 -> 30 | G6: ='1ОиДинфоб'!P8 -> 39.91836735 | H6: 99.71836735 | I6: ='2КомУслОц'!F9 -> 50 | J6: ='2КомУслОц'!J9 -> 49.85 | K6: 99.85 | L6: ='3УслДостИнвОц'!F8 -> 24 | M6: ='3УслДостИнвОц'!I8 -> 40 | N6: ='3УслДостИнвОц'!M8 -> 29.4 | O6: 93.4 | P6: ='4ДобрВежл'!H8 -> 39.78873239 | Q6: ='4ДобрВежл'!L8 -> 39.92957746 | R6: ='4ДобрВежл'!P8 -> 19.92945326 | S6: 99.64776312 | T6: ='5УдовлУсл'!H8 -> 29.97 | U6: ='5УдовлУсл'!L8 -> 20 | V6: ='5УдовлУсл'!P8 -> 50 | W6: 99.97
B7: Советский район | C7: МБУДО «Детско-юношеский центр» Советского района | D7: =AVERAGE(H7,K7,O7,S7,W7) -> 98.466 | E7: ='1ОиДинфоб'!G79 -> 30 | F7: ='1ОиДинфоб'!J79 -> 30 | G7: ='1ОиДинфоб'!P79 -> 40 | H7: =E7+F7+G7 -> 100 | I7: ='2КомУслОц'!F80 -> 50 | J7: ='2КомУслОц'!J80 -> 49.5 | K7: =I7+J7 -> 99.5 | L7: ='3УслДостИнвОц'!F79 -> 30 | M7: ='3УслДостИнвОц'!I79 -> 40 | N7: ='3УслДостИнвОц'!M79 -> 23.4 | O7: =L7+M7+N7 -> 93.4 | P7: ='4ДобрВежл'!H79 -> 40 | Q7: ='4ДобрВежл'!L79 -> 40 | R7: ='4ДобрВежл'!P79 -> 20 | S7: =SUM(P7:R7) -> 100 | T7: ='5УдовлУсл'!H79 -> 29.43 | U7: ='5УдовлУсл'!L79 -> 20 | V7: ='5УдовлУсл'!P79 -> 50 | W7: =SUM(T7:V7) -> 99.43
A8: 4 | B8: Баевский район | C8: МБУДО «Баевский Центр детского творчества и профессионального обучения Алтайского края» | D8: =AVERAGE(H8,K8,O8,S8,W8) -> 98.33591837 | E8: ='1ОиДинфоб'!G6 -> 29.1 | F8: ='1ОиДинфоб'!J6 -> 30 | G8: ='1ОиДинфоб'!P6 -> 40 | H8: =E8+F8+G8 -> 99.1 | I8: ='2КомУслОц'!F7 -> 50 | J8: ='2КомУслОц'!J7 -> 48.97959184 | K8: =I8+J8 -> 98.97959184 | L8: ='3УслДостИнвОц'!F6 -> 24 | M8: ='3УслДостИнвОц'!I6 -> 40 | N8: ='3УслДостИнвОц'!M6 -> 30 | O8: =L8+M8+N8 -> 94 | P8: ='4ДобрВежл'!H6 -> 40 | Q8: ='4ДобрВежл'!L6 -> 40 | R8: ='4ДобрВежл'!P6 -> 19.78 | S8: =SUM(P8:R8) -> 99.78 | T8: ='5УдовлУсл'!H6 -> 30 | U8: ='5УдовлУсл'!L6 -> 19.82 | V8: ='5УдовлУсл'!P6 -> 50 | W8: =SUM(T8:V8) -> 99.82
B9: Шелаболихинский район | C9: МКУДО «Шелаболихинская детско-юношеская спортивная школа» | D9: 98.33678788 | E9: ='1ОиДинфоб'!G98 -> 26.6 | F9: ='1ОиДинфоб'!J98 -> 30 | G9: ='1ОиДинфоб'!P98 -> 39.76744186 | H9: 96.3 | I9: ='2КомУслОц'!F99 -> 50 | J9: ='2КомУслОц'!J99 -> 49.5 | K9: 99.5 | L9: ='3УслДостИнвОц'!F98 -> 30 | M9: ='3УслДостИнвОц'!I98 -> 40 | N9: ='3УслДостИнвОц'!M98 -> 30 | O9: 100 | P9: ='4ДобрВежл'!H98 -> 40 | Q9: ='4ДобрВежл'!L98 -> 39.5959596 | R9: ='4ДобрВежл'!P98 -> 19.7979798 | S9: 99.39393939 | T9: ='5УдовлУсл'!H98 -> 28.74 | U9: ='5УдовлУсл'!L98 -> 19.2 | V9: ='5УдовлУсл'!P98 -> 48.55 | W9: 96.49
A10: 5 | B10: г. Барнаул | C10: КГБУДО «Алтайский краевой центр детского отдыха, туризма и краеведения «Алтай» | D10: =AVERAGE(H10,K10,O10,S10,W10) -> 98.18316441 | E10: ='1ОиДинфоб'!G9 -> 29.1 | F10: ='1ОиДинфоб'!J9 -> 30 | G10: ='1ОиДинфоб'!P9 -> 39.2 | H10: =E10+F10+G10 -> 98.3 | I10: ='2КомУслОц'!F10 -> 50 | J10: ='2КомУслОц'!J10 -> 49.5 | K10: =I10+J10 -> 99.5 | L10: ='3УслДостИнвОц'!F9 -> 24 | M10: ='3УслДостИнвОц'!I9 -> 40 | N10: ='3УслДостИнвОц'!M9 -> 30 | O10: =L10+M10+N10 -> 94 | P10: ='4ДобрВежл'!H9 -> 39.48881789 | Q10: ='4ДобрВежл'!L9 -> 40 | R10: ='4ДобрВежл'!P9 -> 19.86440678 | S10: =SUM(P10:R10) -> 99.35322467 | T10: ='5УдовлУсл'!H9 -> 29.9025974 | U10: ='5УдовлУсл'!L9 -> 19.86 | V10: ='5УдовлУсл'!P9 -> 50 | W10: =SUM(T10:V10) -> 99.7625974
B11: г. Рубцовск | C11: МБУДО «Станция туризма и экскурсий» г. Рубцовска | D11: 98.15237037 | E11: ='1ОиДинфоб'!G72 -> 29.8 | F11: ='1ОиДинфоб'!J72 -> 30 | G11: ='1ОиДинфоб'!P72 -> 39.85185185 | H11: 99.65185185 | I11: ='2КомУслОц'!F73 -> 50 | J11: ='2КомУслОц'!J73 -> 48 | K11: 98 | L11: ='3УслДостИнвОц'!F72 -> 24 | M11: ='3УслДостИнвОц'!I72 -> 40 | N11: ='3УслДостИнвОц'!M72 -> 30 | O11: 94 | P11: ='4ДобрВежл'!H72 -> 40 | Q11: ='4ДобрВежл'!L72 -> 40 | R11: ='4ДобрВежл'!P72 -> 19.78 | S11: 99.78 | T11: ='5УдовлУсл'!H72 -> 29.79 | U11: ='5УдовлУсл'!L72 -> 19.54 | V11: ='5УдовлУсл'!P72 -> 50 | W11: 99.33
A12: 6 | B12: Кулундинский район | C12: МБУДО «Центр детского творчества» Кулундинского района | D12: 98.14494384 | E12: ='1ОиДинфоб'!G53 -> 24.6780303 | F12: ='1ОиДинфоб'!J53 -> 30 | G12: ='1ОиДинфоб'!P53 -> 39.79274611 | H12: 94.47077642 | I12: ='2КомУслОц'!F54 -> 50 | J12: ='2КомУслОц'!J54 -> 49.03474903 | K12: 99.03474903 | L12: ='3УслДостИнвОц'!F53 -> 30 | M12: ='3УслДостИнвОц'!I53 -> 40 | N12: ='3УслДостИнвОц'!M53 -> 28.23529412 | O12: 98.23529412 | P12: ='4ДобрВежл'!H53 -> 40 | Q12: ='4ДобрВежл'!L53 -> 40 | R12: ='4ДобрВежл'!P53 -> 19.61389961 | S12: 99.61389961 | T12: ='5УдовлУсл'!H53 -> 30 | U12: ='5УдовлУсл'!L53 -> 19.82 | V12: ='5УдовлУсл'!P53 -> 49.55 | W12: 99.37
A13: 7 | B13: Алтайский район | C13: МАОУДО «Алтайский районный детско-юношеский центр» | D13: 97.60338365 | E13: ='1ОиДинфоб'!G5 -> 27.8 | F13: ='1ОиДинфоб'!J5 -> 30 | G13: ='1ОиДинфоб'!P5 -> 39.77768749 | H13: 97.57768749 | I13: ='2КомУслОц'!F6 -> 50 | J13: ='2КомУслОц'!J6 -> 49.51923077 | K13: 99.51923077 | L13: ='3УслДостИнвОц'!F5 -> 24 | M13: ='3УслДостИнвОц'!I5 -> 40 | N13: ='3УслДостИнвОц'!M5 -> 29.1 | O13: 93.1 | P13: ='4ДобрВежл'!H5 -> 39.6 | Q13: ='4ДобрВежл'!L5 -> 39.6 | R13: ='4ДобрВежл'!P5 -> 19.6 | S13: 98.8 | T13: ='5УдовлУсл'!H5 -> 29.79 | U13: ='5УдовлУсл'!L5 -> 19.78 | V13: ='5УдовлУсл'!P5 -> 49.45 | W13: 99.02
A14: 8 | B14: Завьяловский район | C14: МБОУДО «Завьяловский районный центр детского творчества» | D14: 96.90385245 | E14: ='1ОиДинфоб'!G41 -> 23.88095238 | F14: ='1ОиДинфоб'!J41 -> 30 | G14: ='1ОиДинфоб'!P41 -> 39.71830986 | H14: 93.59926224 | I14: ='2КомУслОц'!F42 -> 50 | J14: ='2КомУслОц'!J42 -> 48.5 | K14: 98.5 | L14: ='3УслДостИнвОц'!F41 -> 24 | M14: ='3УслДостИнвОц'!I41 -> 40 | N14: ='3УслДостИнвОц'!M41 -> 30 | O14: 94 | P14: ='4ДобрВежл'!H41 -> 40 | Q14: ='4ДобрВежл'!L41 -> 39.2 | R14: ='4ДобрВежл'!P41 -> 19.6 | S14: 98.8 | T14: ='5УдовлУсл'!H41 -> 30 | U14: ='5УдовлУсл'!L41 -> 19.62 | V14: ='5УдовлУсл'!P41 -> 50 | W14: 99.62
B15: Заринский район | C15: МБУДО «Центр детского творчества» Заринского района | D15: 96.912 | E15: ='1ОиДинфоб'!G44 -> 23.1 | F15: ='1ОиДинфоб'!J44 -> 30 | G15: ='1ОиДинфоб'!P44 -> 40 | H15: 93.1 | I15: ='2КомУслОц'!F45 -> 50 | J15: ='2КомУслОц'!J45 -> 49.5 | K15: 99.5 | L15: ='3УслДостИнвОц'!F44 -> 24 | M15: ='3УслДостИнвОц'!I44 -> 40 | N15: ='3УслДостИнвОц'!M44 -> 30 | O15: =L15+M15+N15 -> 94 | P15: ='4ДобрВежл'!H44 -> 39.6 | Q15: ='4ДобрВежл'!L44 -> 40 | R15: ='4ДобрВежл'!P44 -> 19.58 | S15: 99.18 | T15: ='5УдовлУсл'!H44 -> 29.7 | U15: ='5УдовлУсл'!L44 -> 19.58 | V15: ='5УдовлУсл'!P44 -> 49.5 | W15: 98.78
A16: 9 | B16: г. Заринск | C16: МБУДО «Центр детского творчества» г. Заринска | D16: =AVERAGE(H16,K16,O16,S16,W16) -> 96.70957342 | E16: ='1ОиДинфоб'!G43 -> 27.84688995 | F16: ='1ОиДинфоб'!J43 -> 27 | G16: ='1ОиДинфоб'!P43 -> 39.63097713 | H16: =E16+F16+G16 -> 94.47786708 | I16: ='2КомУслОц'!F44 -> 50 | J16: ='2КомУслОц'!J44 -> 49 | K16: =I16+J16 -> 99 | L16: ='3УслДостИнвОц'!F43 -> 30 | M16: ='3УслДостИнвОц'!I43 -> 32 | N16: ='3УслДостИнвОц'!M43 -> 30 | O16: 92 | P16: ='4ДобрВежл'!H43 -> 39.72 | Q16: ='4ДобрВежл'!L43 -> 40 | R16: ='4ДобрВежл'!P43 -> 19.32 | S16: =SUM(P16:R16) -> 99.04 | T16: ='5УдовлУсл'!H43 -> 29.7 | U16: ='5УдовлУсл'!L43 -> 19.68 | V16: ='5УдовлУсл'!P43 -> 49.65 | W16: =SUM(T16:V16) -> 99.03
A17: 10 | B17: Змеиногорский район | C17: МБУДО «Дворец творчества детей и молодежи» Змеиногорского район | D17: 95.59770443 | E17: ='1ОиДинфоб'!G46 -> 28.2 | F17: ='1ОиДинфоб'!J46 -> 30 | G17: ='1ОиДинфоб'!P46 -> 39.96615905 | H17: 98.16615905 | I17: ='2КомУслОц'!F47 -> 50 | J17: ='2КомУслОц'!J47 -> 49.95 | K17: 99.95 | L17: ='3УслДостИнвОц'!F46 -> 18 | M17: ='3УслДостИнвОц'!I46 -> 32 | N17: ='3УслДостИнвОц'!M46 -> 30 | O17: 80 | P17: ='4ДобрВежл'!H46 -> 39.94236311 | Q17: ='4ДобрВежл'!L46 -> 39.96 | R17: ='4ДобрВежл'!P46 -> 19.98 | S17: 99.88236311 | T17: ='5УдовлУсл'!H46 -> 29.997 | U17: ='5УдовлУсл'!L46 -> 19.998 | V17: ='5УдовлУсл'!P46 -> 49.995 | W17: 99.99
A18: 11 | B18: г. Белокуриха | C18: МБУДО «Центр эстетического воспитания» г. Белокурихи | D18: 94.91051612 | E18: ='1ОиДинфоб'!G32 -> 28 | F18: ='1ОиДинфоб'!J32 -> 30 | G18: ='1ОиДинфоб'!P32 -> 39.53387755 | H18: 97.53387755 | I18: ='2КомУслОц'!F33 -> 50 | J18: ='2КомУслОц'!J33 -> 50 | K18: 100 | L18: ='3УслДостИнвОц'!F32 -> 18 | M18: ='3УслДостИнвОц'!I32 -> 32 | N18: ='3УслДостИнвОц'!M32 -> 27.6 | O18: 77.6 | P18: ='4ДобрВежл'!H32 -> 39.86348123 | Q18: ='4ДобрВежл'!L32 -> 40 | R18: ='4ДобрВежл'!P32 -> 19.79522184 | S18: 99.65870307 | T18: ='5УдовлУсл'!H32 -> 29.76 | U18: ='5УдовлУсл'!L32 -> 20 | V18: ='5УдовлУсл'!P32 -> 50 | W18: 99.76
A19: 12 | B19: Кытмановский район | C19: МБУДО «Центр спорта и творчества Кытмановского района» | D19: 94.64716376 | E19: ='1ОиДинфоб'!G55 -> 20.4 | F19: ='1ОиДинфоб'!J55 -> 30 | G19: ='1ОиДинфоб'!P55 -> 39.6 | H19: 90 | I19: ='2КомУслОц'!F56 -> 50 | J19: ='2КомУслОц'!J56 -> 48.95470383 | K19: 98.95470383 | L19: ='3УслДостИнвОц'!F55 -> 24 | M19: ='3УслДостИнвОц'!I55 -> 32 | N19: ='3УслДостИнвОц'!M55 -> 30 | O19: 86 | P19: ='4ДобрВежл'!H55 -> 39.30313589 | Q19: ='4ДобрВежл'!L55 -> 39.86062718 | R19: ='4ДобрВежл'!P55 -> 19.65156794 | S19: 98.81533101 | T19: ='5УдовлУсл'!H55 -> 29.82 | U19: ='5УдовлУсл'!L55 -> 19.82 | V19: ='5УдовлУсл'!P55 -> 49.82578397 | W19: 99.46578397
A20: 13 | B20: Топчихинский район | C20: МКУДО «Топчихинский детско-юношеский центр» | D20: 94.52395745 | E20: ='1ОиДинфоб'!G87 -> 28.1 | F20: ='1ОиДинфоб'!J87 -> 18 | G20: ='1ОиДинфоб'!P87 -> 39.82978723 | H20: 85.92978723 | I20: ='2КомУслОц'!F88 -> 50 | J20: ='2КомУслОц'!J88 -> 50 | K20: 100 | L20: ='3УслДостИнвОц'!F87 -> 18 | M20: ='3УслДостИнвОц'!I87 -> 40 | N20: ='3УслДостИнвОц'!M87 -> 30 | O20: 88 | P20: ='4ДобрВежл'!H87 -> 39.56 | Q20: ='4ДобрВежл'!L87 -> 39.8 | R20: ='4ДобрВежл'!P87 -> 19.68 | S20: 99.04 | T20: ='5УдовлУсл'!H87 -> 30 | U20: ='5УдовлУсл'!L87 -> 19.9 | V20: ='5УдовлУсл'!P87 -> 49.75 | W20: 99.65
A21: 14 | B21: г. Барнаул | C21: МБУДО «Детская школа искусств «Традиция» с. Власиха г. Барнаула | D21: 94.35273905 | E21: ='1ОиДинфоб'!G25 -> 25.1 | F21: ='1ОиДинфоб'!J25 -> 30 | G21: ='1ОиДинфоб'!P25 -> 39.84783026 | H21: 94.94783026 | I21: ='2КомУслОц'!F26 -> 50 | J21: ='2КомУслОц'!J26 -> 49.5 | K21: 99.5 | L21: ='3УслДостИнвОц'!F25 -> 24 | M21: ='3УслДостИнвОц'!I25 -> 24 | N21: ='3УслДостИнвОц'!M25 -> 30 | O21: 78 | P21: ='4ДобрВежл'!H25 -> 39.92 | Q21: ='4ДобрВежл'!L25 -> 39.96 | R21: ='4ДобрВежл'!P25 -> 19.9 | S21: 99.78 | T21: ='5УдовлУсл'!H25 -> 29.81012658 | U21: ='5УдовлУсл'!L25 -> 19.83122363 | V21: ='5УдовлУсл'!P25 -> 49.89451477 | W21: 99.53586498
A22: 15 | B22: Чарышский район | C22: МБУДО «Центр детского творчества»Чарышского района | D22: 94.14082657 | E22: ='1ОиДинфоб'!G96 -> 24.12162162 | F22: ='1ОиДинфоб'!J96 -> 30 | G22: ='1ОиДинфоб'!P96 -> 39.5 | H22: 93.62162162 | I22: ='2КомУслОц'!F97 -> 50 | J22: ='2КомУслОц'!J97 -> 50 | K22: 100 | L22: ='3УслДостИнвОц'!F96 -> 24 | M22: ='3УслДостИнвОц'!I96 -> 24 | N22: ='3УслДостИнвОц'!M96 -> 30 | O22: 78 | P22: ='4ДобрВежл'!H96 -> 39.64125561 | Q22: ='4ДобрВежл'!L96 -> 40 | R22: ='4ДобрВежл'!P96 -> 19.8 | S22: 99.44125561 | T22: ='5УдовлУсл'!H96 -> 30 | U22: ='5УдовлУсл'!L96 -> 19.64125561 | V22: ='5УдовлУсл'!P96 -> 50 | W22: 99.64125561
A23: 16 | B23: Крутихинский район | C23: МБУДО «Крутихинский Детско-юношеский центр» | D23: 93.68 | E23: ='1ОиДинфоб'!G52 -> 29.4 | F23: ='1ОиДинфоб'!J52 -> 27 | G23: ='1ОиДинфоб'!P52 -> 40 | H23: 96.4 | I23: ='2КомУслОц'!F53 -> 50 | J23: ='2КомУслОц'!J53 -> 50 | K23: 100 | L23: ='3УслДостИнвОц'!F52 -> 18 | M23: ='3УслДостИнвОц'!I52 -> 24 | N23: ='3УслДостИнвОц'!M52 -> 30 | O23: 72 | P23: ='4ДобрВежл'!H52 -> 40 | Q23: ='4ДобрВежл'!L52 -> 40 | R23: ='4ДобрВежл'!P52 -> 20 | S23: 100 | T23: ='5УдовлУсл'!H52 -> 30 | U23: ='5УдовлУсл'!L52 -> 20 | V23: ='5УдовлУсл'!P52 -> 50 | W23: 100
A24: 17 | B24: г. Яровое | C24: МБУДО «Центр научно-технического творчества учащихся» г. Яровое | D24: =AVERAGE(H24,K24,O24,S24,W24) -> 93.41537341 | E24: ='1ОиДинфоб'!G99 -> 27.5 | F24: ='1ОиДинфоб'!J99 -> 30 | G24: ='1ОиДинфоб'!P99 -> 39.69153953 | H24: =E24+F24+G24 -> 97.19153953 | I24: ='2КомУслОц'!F100 -> 50 | J24: ='2КомУслОц'!J100 -> 48.5 | K24: =I24+J24 -> 98.5 | L24: ='3УслДостИнвОц'!F99 -> 18 | M24: ='3УслДостИнвОц'!I99 -> 24 | N24: ='3УслДостИнвОц'!M99 -> 30 | O24: =L24+M24+N24 -> 72 | P24: ='4ДобрВежл'!H99 -> 39.88 | Q24: ='4ДобрВежл'!L99 -> 40 | R24: ='4ДобрВежл'!P99 -> 19.68 | S24: =SUM(P24:R24) -> 99.56 | T24: ='5УдовлУсл'!H99 -> 30 | U24: ='5УдовлУсл'!L99 -> 19.82532751 | V24: ='5УдовлУсл'!P99 -> 50 | W24: =SUM(T24:V24) -> 99.82532751
A25: 18 | B25: Локтевский район | C25: МБУДО «Дом детского творчества» Локтевского района | D25: =AVERAGE(H25,K25,O25,S25,W25) -> 93.02795699 | E25: ='1ОиДинфоб'!G56 -> 30 | F25: ='1ОиДинфоб'!J56 -> 30 | G25: ='1ОиДинфоб'!P56 -> 40 | H25: =E25+F25+G25 -> 100 | I25: ='2КомУслОц'!F57 -> 50 | J25: ='2КомУслОц'!J57 -> 50 | K25: =I25+J25 -> 100 | L25: ='3УслДостИнвОц'!F56 -> 12 | M25: ='3УслДостИнвОц'!I56 -> 24 | N25: ='3УслДостИнвОц'!M56 -> 30 | O25: =L25+M25+N25 -> 66 | P25: ='4ДобрВежл'!H56 -> 39.56989247 | Q25: ='4ДобрВежл'!L56 -> 40 | R25: ='4ДобрВежл'!P56 -> 20 | S25: =SUM(P25:R25) -> 99.56989247 | T25: ='5УдовлУсл'!H56 -> 30 | U25: ='5УдовлУсл'!L56 -> 19.56989247 | V25: ='5УдовлУсл'!P56 -> 50 | W25: =SUM(T25:V25) -> 99.56989247
A26: 19 | B26: г. Барнаул | C26: МБУДО «Центр детского творчества №2» г. Барнаула | D26: =AVERAGE(H26,K26,O26,S26,W26) -> 92.9308211 | E26: ='1ОиДинфоб'!G18 -> 29.5 | F26: ='1ОиДинфоб'!J18 -> 30 | G26: ='1ОиДинфоб'!P18 -> 39.40247253 | H26: =E26+F26+G26 -> 98.90247253 | I26: ='2КомУслОц'!F19 -> 50 | J26: ='2КомУслОц'!J19 -> 48.5 | K26: =I26+J26 -> 98.5 | L26: ='3УслДостИнвОц'!F18 -> 18 | M26: ='3УслДостИнвОц'!I18 -> 24 | N26: ='3УслДостИнвОц'!M18 -> 27.6 | O26: =L26+M26+N26 -> 69.6 | P26: ='4ДобрВежл'!H18 -> 39.68895801 | Q26: ='4ДобрВежл'!L18 -> 39.9377916 | R26: ='4ДобрВежл'!P18 -> 19.37791602 | S26: =SUM(P26:R26) -> 99.00466563 | T26: ='5УдовлУсл'!H18 -> 29.62674961 | U26: ='5УдовлУсл'!L18 -> 19.40902022 | V26: ='5УдовлУсл'!P18 -> 49.61119751 | W26: =SUM(T26:V26) -> 98.64696734
A27: 20 | B27: Ельцовский район | C27: МБУДО «Ельцовский центр развития детей-детско-юношеская спортивная школа" | D27: =AVERAGE(H27,K27,O27,S27,W27) -> 92.68990441 | E27: ='1ОиДинфоб'!G40 -> 24.85714286 | F27: ='1ОиДинфоб'!J40 -> 30 | G27: ='1ОиДинфоб'!P40 -> 40 | H27: =E27+F27+G27 -> 94.85714286 | I27: ='2КомУслОц'!F41 -> 50 | J27: ='2КомУслОц'!J41 -> 49.5 | K27: =I27+J27 -> 99.5 | L27: ='3УслДостИнвОц'!F40 -> 18 | M27: ='3УслДостИнвОц'!I40 -> 24 | N27: ='3УслДостИнвОц'!M40 -> 30 | O27: =L27+M27+N27 -> 72 | P27: ='4ДобрВежл'!H40 -> 39.64 | Q27: ='4ДобрВежл'!L40 -> 39.64 | R27: ='4ДобрВежл'!P40 -> 19.32 | S27: =SUM(P27:R27) -> 98.6 | T27: ='5УдовлУсл'!H40 -> 29.37 | U27: ='5УдовлУсл'!L40 -> 19.68 | V27: ='5УдовлУсл'!P40 -> 49.44237918 | W27: =SUM(T27:V27) -> 98.49237918
B28: Тальменский район | C28: МКУДО «Тальменская детско-юношеская спортивная школа» | D28: 92.65266667 | E28: ='1ОиДинфоб'!G83 -> 24.58333333 | F28: ='1ОиДинфоб'!J83 -> 27 | G28: ='1ОиДинфоб'!P83 -> 40 | H28: 91.58333333 | I28: ='2КомУслОц'!F84 -> 50 | J28: ='2КомУслОц'!J84 -> 50 | K28: 100 | L28: ='3УслДостИнвОц'!F83 -> 18 | M28: ='3УслДостИнвОц'!I83 -> 24 | N28: ='3УслДостИнвОц'!M83 -> 30 | O28: 72 | P28: ='4ДобрВежл'!H83 -> 39.88 | Q28: ='4ДобрВежл'!L83 -> 40 | R28: ='4ДобрВежл'!P83 -> 19.8 | S28: 99.68 | T28: ='5УдовлУсл'!H83 -> 30 | U28: ='5УдовлУсл'!L83 -> 20 | V28: ='5УдовлУсл'!P83 -> 50 | W28: 100
A29: 21 | B29: Благовещенский район | C29: МБУДО «Благовещенский детско-юношеский центр» | D29: =AVERAGE(H29,K29,O29,S29,W29) -> 92.57911009 | E29: ='1ОиДинфоб'!G36 -> 26.3 | F29: ='1ОиДинфоб'!J36 -> 27 | G29: ='1ОиДинфоб'!P36 -> 38.24290146 | H29: =E29+F29+G29 -> 91.54290146 | I29: ='2КомУслОц'!F37 -> 50 | J29: ='2КомУслОц'!J37 -> 49.95 | K29: =I29+J29 -> 99.95 | L29: ='3УслДостИнвОц'!F36 -> 18 | M29: ='3УслДостИнвОц'!I36 -> 24 | N29: ='3УслДостИнвОц'!M36 -> 30 | O29: =L29+M29+N29 -> 72 | P29: ='4ДобрВежл'!H36 -> 39.73509934 | Q29: ='4ДобрВежл'!L36 -> 39.86754967 | R29: ='4ДобрВежл'!P36 -> 20 | S29: =SUM(P29:R29) -> 99.60264901 | T29: ='5УдовлУсл'!H36 -> 30 | U29: ='5УдовлУсл'!L36 -> 19.9 | V29: ='5УдовлУсл'!P36 -> 49.9 | W29: =SUM(T29:V29) -> 99.8
A30: 22 | B30: г. Барнаул | C30: МБУДО Городской психолого-педагогический центр «Потенциал» | D30: 92.53346729 | E30: ='1ОиДинфоб'!G23 -> 30 | F30: ='1ОиДинфоб'!J23 -> 18 | G30: ='1ОиДинфоб'!P23 -> 40 | H30: 88 | I30: ='2КомУслОц'!F24 -> 50 | J30: ='2КомУслОц'!J24 -> 49.50634697 | K30: 99.50634697 | L30: ='3УслДостИнвОц'!F23 -> 24 | M30: ='3УслДостИнвОц'!I23 -> 24 | N30: ='3УслДостИнвОц'!M23 -> 29.42307692 | O30: 77.42307692 | P30: ='4ДобрВежл'!H23 -> 39.6 | Q30: ='4ДобрВежл'!L23 -> 39.68 | R30: ='4ДобрВежл'!P23 -> 19.71791255 | S30: 98.99791255 | T30: ='5УдовлУсл'!H23 -> 29.4 | U30: ='5УдовлУсл'!L23 -> 19.74 | V30: ='5УдовлУсл'!P23 -> 49.6 | W30: 98.74
A31: 23 | B31: Новоалтайск район | C31: МБОУДО «Детско-юношеский центр города Новоалтайска» | D31: 91.99996159 | E31: ='1ОиДинфоб'!G62 -> 28.125 | F31: ='1ОиДинфоб'!J62 -> 27 | G31: ='1ОиДинфоб'!P62 -> 39.7 | H31: 94.825 | I31: ='2КомУслОц'!F63 -> 50 | J31: ='2КомУслОц'!J63 -> 49.95 | K31: 99.95 | L31: ='3УслДостИнвОц'!F62 -> 12 | M31: ='3УслДостИнвОц'!I62 -> 24 | N31: ='3УслДостИнвОц'!M62 -> 30 | O31: 66 | P31: ='4ДобрВежл'!H62 -> 39.68 | Q31: ='4ДобрВежл'!L62 -> 39.943101 | R31: ='4ДобрВежл'!P62 -> 19.80085349 | S31: 99.42395448 | T31: ='5УдовлУсл'!H62 -> 30 | U31: ='5УдовлУсл'!L62 -> 19.80085349 | V31: ='5УдовлУсл'!P62 -> 50 | W31: 99.80085349
A32: 24 | B32: Табунский район | C32: МБУДО «Центр дополнительного образования детей» Табунского района | D32: 91.9102871 | E32: ='1ОиДинфоб'!G82 -> 26.6 | F32: ='1ОиДинфоб'!J82 -> 18 | G32: ='1ОиДинфоб'!P82 -> 39.33333333 | H32: 83.93333333 | I32: ='2КомУслОц'!F83 -> 50 | J32: ='2КомУслОц'!J83 -> 45 | K32: 95 | L32: ='3УслДостИнвОц'!F82 -> 18 | M32: ='3УслДостИнвОц'!I82 -> 40 | N32: ='3УслДостИнвОц'!M82 -> 27.93 | O32: 85.93 | P32: ='4ДобрВежл'!H82 -> 38.72 | Q32: ='4ДобрВежл'!L82 -> 39.7080292 | R32: ='4ДобрВежл'!P82 -> 19.22 | S32: 97.6480292 | T32: ='5УдовлУсл'!H82 -> 29.19 | U32: ='5УдовлУсл'!L82 -> 18.58 | V32: ='5УдовлУсл'!P82 -> 49.27007299 | W32: 97.04007299
A33: 25 | B33: г. Барнаул | C33: МБУДО «Центр развития творчества детей и юношества» Ленинского района г. Барнаула | D33: 91.73359933 | E33: ='1ОиДинфоб'!G30 -> 28.9 | F33: ='1ОиДинфоб'!J30 -> 30 | G33: ='1ОиДинфоб'!P30 -> 39.89799666 | H33: 98.79799666 | I33: ='2КомУслОц'!F31 -> 50 | J33: ='2КомУслОц'!J31 -> 49.95 | K33: 99.95 | L33: ='3УслДостИнвОц'!F30 -> 6 | M33: ='3УслДостИнвОц'!I30 -> 24 | N33: ='3УслДостИнвОц'!M30 -> 30 | O33: 60 | P33: ='4ДобрВежл'!H30 -> 39.96 | Q33: ='4ДобрВежл'!L30 -> 40 | R33: ='4ДобрВежл'!P30 -> 20 | S33: 99.96 | T33: ='5УдовлУсл'!H30 -> 30 | U33: ='5УдовлУсл'!L30 -> 19.96 | V33: ='5УдовлУсл'!P30 -> 50 | W33: 99.96
A34: 26 | B34: Чарышский район | C34: МБУДО «Детско-юношеская спортивная школа» Чарышского района | D34: 91.508 | E34: ='1ОиДинфоб'!G95 -> 29.7 | F34: ='1ОиДинфоб'!J95 -> 18 | G34: ='1ОиДинфоб'!P95 -> 40 | H34: 87.7 | I34: ='2КомУслОц'!F96 -> 50 | J34: ='2КомУслОц'!J96 -> 50 | K34: 100 | L34: ='3УслДостИнвОц'!F95 -> 30 | M34: ='3УслДостИнвОц'!I95 -> 40 | N34: ='3УслДостИнвОц'!M95 -> 0 | O34: 70 | P34: ='4ДобрВежл'!H95 -> 40 | Q34: ='4ДобрВежл'!L95 -> 40 | R34: ='4ДобрВежл'!P95 -> 19.84 | S34: 99.84 | T34: ='5УдовлУсл'!H95 -> 30 | U34: ='5УдовлУсл'!L95 -> 20 | V34: ='5УдовлУсл'!P95 -> 50 | W34: 100
A35: 27 | B35: Мамонтовский район | C35: МБУДО «Мамонтовский детско-юношеский центр» | D35: 91.318 | E35: ='1ОиДинфоб'!G57 -> 27.9 | F35: ='1ОиДинфоб'!J57 -> 30 | G35: ='1ОиДинфоб'!P57 -> 40 | H35: 97.9 | I35: ='2КомУслОц'!F58 -> 50 | J35: ='2КомУслОц'!J58 -> 49.5 | K35: 99.5 | L35: ='3УслДостИнвОц'!F57 -> 6 | M35: ='3УслДостИнвОц'!I57 -> 24 | N35: ='3УслДостИнвОц'!M57 -> 30 | O35: 60 | P35: ='4ДобрВежл'!H57 -> 40 | Q35: ='4ДобрВежл'!L57 -> 40 | R35: ='4ДобрВежл'!P57 -> 20 | S35: 100 | T35: ='5УдовлУсл'!H57 -> 30 | U35: ='5УдовлУсл'!L57 -> 19.64 | V35: ='5УдовлУсл'!P57 -> 49.55 | W35: 99.19
B36: Новичихинский район | C36: МКОУДО «Новичихинская детско-юношеская спортивная школа» | D36: 91.33390476 | E36: ='1ОиДинфоб'!G61 -> 25.9 | F36: ='1ОиДинфоб'!J61 -> 27 | G36: ='1ОиДинфоб'!P61 -> 39.80952381 | H36: 92.70952381 | I36: ='2КомУслОц'!F62 -> 50 | J36: ='2КомУслОц'!J62 -> 49 | K36: 99 | L36: ='3УслДостИнвОц'!F61 -> 12 | M36: ='3УслДостИнвОц'!I61 -> 24 | N36: ='3УслДостИнвОц'!M61 -> 30 | O36: 66 | P36: ='4ДобрВежл'!H61 -> 39.68 | Q36: ='4ДобрВежл'!L61 -> 40 | R36: ='4ДобрВежл'!P61 -> 19.84 | S36: 99.52 | T36: ='5УдовлУсл'!H61 -> 30 | U36: ='5УдовлУсл'!L61 -> 19.84 | V36: ='5УдовлУсл'!P61 -> 49.6 | W36: 99.44
B37: Ребрихинский район | C37: МКОУДО «Ребрихинский детско-юношеский центр» | D37: =AVERAGE(H37,K37,O37,S37,W37) -> 91.25434678 | E37: ='1ОиДинфоб'!G68 -> 25 | F37: ='1ОиДинфоб'!J68 -> 30 | G37: ='1ОиДинфоб'!P68 -> 39.81943837 | H37: =E37+F37+G37 -> 94.81943837 | I37: ='2КомУслОц'!F69 -> 50 | J37: ='2КомУслОц'!J69 -> 49.47229551 | K37: =I37+J37 -> 99.47229551 | L37: ='3УслДостИнвОц'!F68 -> 12 | M37: ='3УслДостИнвОц'!I68 -> 24 | N37: ='3УслДостИнвОц'!M68 -> 27.9 | O37: =L37+M37+N37 -> 63.9 | P37: ='4ДобрВежл'!H68 -> 39.52 | Q37: ='4ДобрВежл'!L68 -> 39.68 | R37: ='4ДобрВежл'!P68 -> 19.76 | S37: =SUM(P37:R37) -> 98.96 | T37: ='5УдовлУсл'!H68 -> 29.76 | U37: ='5УдовлУсл'!L68 -> 19.76 | V37: ='5УдовлУсл'!P68 -> 49.6 | W37: =SUM(T37:V37) -> 99.12
B38: г. Славгород | C38: МБУДО «Центр творчества детей и молодежи» г. Славгорода | D38: =AVERAGE(H38,K38,O38,S38,W38) -> 91.29002484 | E38: ='1ОиДинфоб'!G77 -> 30 | F38: ='1ОиДинфоб'!J77 -> 27 | G38: ='1ОиДинфоб'!P77 -> 39.6 | H38: =E38+F38+G38 -> 96.6 | I38: ='2КомУслОц'!F78 -> 50 | J38: ='2КомУслОц'!J78 -> 48.52484472 | K38: =I38+J38 -> 98.52484472 | L38: ='3УслДостИнвОц'!F77 -> 6 | M38: ='3УслДостИнвОц'!I77 -> 32 | N38: ='3УслДостИнвОц'!M77 -> 26.4 | O38: =L38+M38+N38 -> 64.4 | P38: ='4ДобрВежл'!H77 -> 39.13043478 | Q38: ='4ДобрВежл'!L77 -> 39.56521739 | R38: ='4ДобрВежл'!P77 -> 19.65838509 | S38: =SUM(P38:R38) -> 98.35403727 | T38: ='5УдовлУсл'!H77 -> 29.91 | U38: ='5УдовлУсл'!L77 -> 19.36 | V38: ='5УдовлУсл'!P77 -> 49.30124224 | W38: =SUM(T38:V38) -> 98.57124224
A39: 28 | B39: Романовский район | C39: МБУДО «Романовский детско-юношеский центр» | D39: =AVERAGE(H39,K39,O39,S39,W39) -> 91.102 | E39: ='1ОиДинфоб'!G70 -> 30 | F39: ='1ОиДинфоб'!J70 -> 27 | G39: ='1ОиДинфоб'!P70 -> 40 | H39: =E39+F39+G39 -> 97 | I39: ='2КомУслОц'!F71 -> 50 | J39: ='2КомУслОц'!J71 -> 49 | K39: =I39+J39 -> 99 | L39: ='3УслДостИнвОц'!F70 -> 6 | M39: ='3УслДостИнвОц'!I70 -> 24 | N39: ='3УслДостИнвОц'!M70 -> 30 | O39: =L39+M39+N39 -> 60 | P39: ='4ДобрВежл'!H70 -> 40 | Q39: ='4ДобрВежл'!L70 -> 40 | R39: ='4ДобрВежл'!P70 -> 19.56 | S39: =SUM(P39:R39) -> 99.56 | T39: ='5УдовлУсл'!H70 -> 30 | U39: ='5УдовлУсл'!L70 -> 20 | V39: ='5УдовлУсл'!P70 -> 49.95 | W39: =SUM(T39:V39) -> 99.95
A40: 29 | B40: Шелаболихинский район | C40: МБУДО «Шелаболихинский центр детского творчества» | D40: =AVERAGE(H40,K40,O40,S40,W40) -> 90.85457783 | E40: ='1ОиДинфоб'!G97 -> 27.92792793 | F40: ='1ОиДинфоб'!J97 -> 27 | G40: ='1ОиДинфоб'!P97 -> 40 | H40: =E40+F40+G40 -> 94.92792793 | I40: ='2КомУслОц'!F98 -> 50 | J40: ='2КомУслОц'!J98 -> 49.5 | K40: =I40+J40 -> 99.5 | L40: ='3УслДостИнвОц'!F97 -> 6 | M40: ='3УслДостИнвОц'!I97 -> 24 | N40: ='3УслДостИнвОц'!M97 -> 30 | O40: =L40+M40+N40 -> 60 | P40: ='4ДобрВежл'!H97 -> 40 | Q40: ='4ДобрВежл'!L97 -> 40 | R40: ='4ДобрВежл'!P97 -> 19.84496124 | S40: =SUM(P40:R40) -> 99.84496124 | T40: ='5УдовлУсл'!H97 -> 30 | U40: ='5УдовлУсл'!L97 -> 20 | V40: ='5УдовлУсл'!P97 -> 50 | W40: =SUM(T40:V40) -> 100
A41: 30 | B41: Поспелихинский район | C41: МКУДО «Поспелихинский районный центр детского творчества» | D41: 90.84727273 | E41: ='1ОиДинфоб'!G67 -> 28.63636364 | F41: ='1ОиДинфоб'!J67 -> 27 | G41: ='1ОиДинфоб'!P67 -> 39.5 | H41: 95.13636364 | I41: ='2КомУслОц'!F68 -> 50 | J41: ='2КомУслОц'!J68 -> 49.5 | K41: 99.5 | L41: ='3УслДостИнвОц'!F67 -> 6 | M41: ='3УслДостИнвОц'!I67 -> 24 | N41: ='3УслДостИнвОц'!M67 -> 30 | O41: 60 | P41: ='4ДобрВежл'!H67 -> 39.92 | Q41: ='4ДобрВежл'!L67 -> 39.92 | R41: ='4ДобрВежл'!P67 -> 19.92 | S41: 99.76 | T41: ='5УдовлУсл'!H67 -> 30 | U41: ='5УдовлУсл'!L67 -> 19.84 | V41: ='5УдовлУсл'!P67 -> 50 | W41: 99.84
A42: 31 | B42: Родинский район | C42: МБУДО «Детский оздоровительно-образовательный центр Родинского района | D42: =AVERAGE(H42,K42,O42,S42,W42) -> 90.72 | E42: ='1ОиДинфоб'!G69 -> 26.1 | F42: ='1ОиДинфоб'!J69 -> 30 | G42: ='1ОиДинфоб'!P69 -> 40 | H42: =E42+F42+G42 -> 96.1 | I42: ='2КомУслОц'!F70 -> 50 | J42: ='2КомУслОц'!J70 -> 49.5 | K42: =I42+J42 -> 99.5 | L42: ='3УслДостИнвОц'!F69 -> 12 | M42: ='3УслДостИнвОц'!I69 -> 16 | N42: ='3УслДостИнвОц'!M69 -> 30 | O42: =L42+M42+N42 -> 58 | P42: ='4ДобрВежл'!H69 -> 40 | Q42: ='4ДобрВежл'!L69 -> 40 | R42: ='4ДобрВежл'!P69 -> 20 | S42: =SUM(P42:R42) -> 100 | T42: ='5УдовлУсл'!H69 -> 30 | U42: ='5УдовлУсл'!L69 -> 20 | V42: ='5УдовлУсл'!P69 -> 50 | W42: =SUM(T42:V42) -> 100
A43: 32 | B43: г. Алейск | C43: МБУДО «Центр детского творчества» (г. Алейск) | D43: 90.39593016 | E43: ='1ОиДинфоб'!G4 -> 24.68137255 | F43: ='1ОиДинфоб'!J4 -> 30 | G43: ='1ОиДинфоб'!P4 -> 39.78815166 | H43: 94.46952421 | I43: ='2КомУслОц'!F5 -> 50 | J43: ='2КомУслОц'!J5 -> 49.5 | K43: 99.5 | L43: ='3УслДостИнвОц'!F4 -> 6 | M43: ='3УслДостИнвОц'!I4 -> 24 | N43: ='3УслДостИнвОц'!M4 -> 30 | O43: 60 | P43: ='4ДобрВежл'!H4 -> 39.44 | Q43: ='4ДобрВежл'!L4 -> 39.81012658 | R43: ='4ДобрВежл'!P4 -> 19.78 | S43: 99.03012658 | T43: ='5УдовлУсл'!H4 -> 29.73 | U43: ='5УдовлУсл'!L4 -> 19.7 | V43: ='5УдовлУсл'!P4 -> 49.55 | W43: 98.98
A44: 33 | B44: Тальменский район | C44: МКУДО «Тальменский центр внешкольной работы» | D44: 90.34745541 | E44: ='1ОиДинфоб'!G84 -> 26.5 | F44: ='1ОиДинфоб'!J84 -> 30 | G44: ='1ОиДинфоб'!P84 -> 39.81273161 | H44: 96.31273161 | I44: ='2КомУслОц'!F85 -> 50 | J44: ='2КомУслОц'!J85 -> 49.5 | K44: 99.5 | L44: ='3УслДостИнвОц'!F84 -> 6 | M44: ='3УслДостИнвОц'!I84 -> 24 | N44: ='3УслДостИнвОц'!M84 -> 27.27272727 | O44: 57.27272727 | P44: ='4ДобрВежл'!H84 -> 39.65909091 | Q44: ='4ДобрВежл'!L84 -> 39.92 | R44: ='4ДобрВежл'!P84 -> 19.77272727 | S44: 99.35181818 | T44: ='5УдовлУсл'!H84 -> 29.79 | U44: ='5УдовлУсл'!L84 -> 19.86 | V44: ='5УдовлУсл'!P84 -> 49.65 | W44: 99.3
A45: 34 | B45: г. Барнаул | C45: МБУДО «Центр детского творчества» Центрального района г. Барнаула | D45: =AVERAGE(H45,K45,O45,S45,W45) -> 90.08393939 | E45: ='1ОиДинфоб'!G19 -> 27.1 | F45: ='1ОиДинфоб'!J19 -> 27 | G45: ='1ОиДинфоб'!P19 -> 39.46969697 | H45: =E45+F45+G45 -> 93.56969697 | I45: ='2КомУслОц'!F20 -> 50 | J45: ='2КомУслОц'!J20 -> 48.95 | K45: =I45+J45 -> 98.95 | L45: ='3УслДостИнвОц'!F19 -> 12 | M45: ='3УслДостИнвОц'!I19 -> 24 | N45: ='3УслДостИнвОц'!M19 -> 24 | O45: =L45+M45+N45 -> 60 | P45: ='4ДобрВежл'!H19 -> 39.64 | Q45: ='4ДобрВежл'!L19 -> 39.92 | R45: ='4ДобрВежл'!P19 -> 19.82 | S45: =SUM(P45:R45) -> 99.38 | T45: ='5УдовлУсл'!H19 -> 29.43 | U45: ='5УдовлУсл'!L19 -> 19.54 | V45: ='5УдовлУсл'!P19 -> 49.55 | W45: =SUM(T45:V45) -> 98.52
A46: 35 | B46: г. Барнаул | C46: КГБУДО «Алтайский краевой дворец творчества детей и молодежи» | D46: 89.9529453 | E46: ='1ОиДинфоб'!G7 -> 27 | F46: ='1ОиДинфоб'!J7 -> 27 | G46: ='1ОиДинфоб'!P7 -> 38.8 | H46: 92.8 | I46: ='2КомУслОц'!F8 -> 50 | J46: ='2КомУслОц'!J8 -> 49 | K46: 99 | L46: ='3УслДостИнвОц'!F7 -> 12 | M46: ='3УслДостИнвОц'!I7 -> 24 | N46: ='3УслДостИнвОц'!M7 -> 24 | O46: 60 | P46: ='4ДобрВежл'!H7 -> 39.36 | Q46: ='4ДобрВежл'!L7 -> 40 | R46: ='4ДобрВежл'!P7 -> 19.48 | S46: 98.84 | T46: ='5УдовлУсл'!H7 -> 29.93435449 | U46: ='5УдовлУсл'!L7 -> 19.51859956 | V46: ='5УдовлУсл'!P7 -> 49.67177243 | W46: 99.12472648
B47: Смоленский район | C47: МБУДО «Смоленский дом детского творчества» | D47: =AVERAGE(H47,K47,O47,S47,W47) -> 90.0482963 | E47: ='1ОиДинфоб'!G78 -> 26.66666667 | F47: ='1ОиДинфоб'!J78 -> 30 | G47: ='1ОиДинфоб'!P78 -> 39.81481481 | H47: =E47+F47+G47 -> 96.48148148 | I47: ='2КомУслОц'!F79 -> 50 | J47: ='2КомУслОц'!J79 -> 50 | K47: =I47+J47 -> 100 | L47: ='3УслДостИнвОц'!F78 -> 0 | M47: ='3УслДостИнвОц'!I78 -> 24 | N47: ='3УслДостИнвОц'!M78 -> 30 | O47: =L47+M47+N47 -> 54 | P47: ='4ДобрВежл'!H78 -> 40 | Q47: ='4ДобрВежл'!L78 -> 40 | R47: ='4ДобрВежл'!P78 -> 19.76 | S47: =SUM(P47:R47) -> 99.76 | T47: ='5УдовлУсл'!H78 -> 30 | U47: ='5УдовлУсл'!L78 -> 20 | V47: ='5УдовлУсл'!P78 -> 50 | W47: =SUM(T47:V47) -> 100
A48: 36 | B48: г. Бийск | C48: МБУДО «Детский эколого-туристический центр» г. Бийска | D48: 89.94577622 | E48: ='1ОиДинфоб'!G33 -> 28 | F48: ='1ОиДинфоб'!J33 -> 30 | G48: ='1ОиДинфоб'!P33 -> 38.74279344 | H48: 96.74279344 | I48: ='2КомУслОц'!F34 -> 50 | J48: ='2КомУслОц'!J34 -> 49.5 | K48: 99.5 | L48: ='3УслДостИнвОц'!F33 -> 18 | M48: ='3УслДостИнвОц'!I33 -> 24 | N48: ='3УслДостИнвОц'!M33 -> 13.23 | O48: 55.23 | P48: ='4ДобрВежл'!H33 -> 39.52 | Q48: ='4ДобрВежл'!L33 -> 39.72027972 | R48: ='4ДобрВежл'!P33 -> 19.76580796 | S48: 99.00608768 | T48: ='5УдовлУсл'!H33 -> 29.88 | U48: ='5УдовлУсл'!L33 -> 19.82 | V48: ='5УдовлУсл'!P33 -> 49.55 | W48: 99.25
B49: Михайловский район | C49: МКОДО «Михайловский образовательно-оздоровительный центр Им. Ю.А. Гагарина» | D49: 89.89666667 | E49: ='1ОиДинфоб'!G59 -> 21.6 | F49: ='1ОиДинфоб'!J59 -> 27 | G49: ='1ОиДинфоб'!P59 -> 39.58333333 | H49: 88.18333333 | I49: ='2КомУслОц'!F60 -> 50 | J49: ='2КомУслОц'!J60 -> 47.5 | K49: 97.5 | L49: ='3УслДостИнвОц'!F59 -> 24 | M49: ='3УслДостИнвОц'!I59 -> 32 | N49: ='3УслДостИнвОц'!M59 -> 18 | O49: 74 | P49: ='4ДобрВежл'!H59 -> 38.8 | Q49: ='4ДобрВежл'!L59 -> 37.6 | R49: ='4ДобрВежл'!P59 -> 19.4 | S49: 95.8 | T49: ='5УдовлУсл'!H59 -> 28.2 | U49: ='5УдовлУсл'!L59 -> 18.8 | V49: ='5УдовлУсл'!P59 -> 47 | W49: 94
A50: 37 | B50: г. Барнаул | C50: МБУДО «Центр развития творчества детей и юношества» Индустриального района г. Барнаула | D50: 89.82751817 | E50: ='1ОиДинфоб'!G20 -> 26.5 | F50: ='1ОиДинфоб'!J20 -> 30 | G50: ='1ОиДинфоб'!P20 -> 39.85759083 | H50: 96.35759083 | I50: ='2КомУслОц'!F21 -> 50 | J50: ='2КомУслОц'!J21 -> 49.5 | K50: 99.5 | L50: ='3УслДостИнвОц'!F20 -> 0 | M50: ='3УслДостИнвОц'!I20 -> 24 | N50: ='3УслДостИнвОц'!M20 -> 30 | O50: 54 | P50: ='4ДобрВежл'!H20 -> 39.68 | Q50: ='4ДобрВежл'!L20 -> 40 | R50: ='4ДобрВежл'!P20 -> 19.76 | S50: 99.44 | T50: ='5УдовлУсл'!H20 -> 29.94 | U50: ='5УдовлУсл'!L20 -> 19.9 | V50: ='5УдовлУсл'!P20 -> 50 | W50: 99.84
B51: Бийский район | C51: МБУДО «Центр внешкольной работы» Бийского района | D51: 89.814 | E51: ='1ОиДинфоб'!G35 -> 25.2 | F51: ='1ОиДинфоб'!J35 -> 30 | G51: ='1ОиДинфоб'!P35 -> 40 | H51: 95.2 | I51: ='2КомУслОц'!F36 -> 50 | J51: ='2КомУслОц'!J36 -> 48.5 | K51: 98.5 | L51: ='3УслДостИнвОц'!F35 -> 12 | M51: ='3УслДостИнвОц'!I35 -> 16 | N51: ='3УслДостИнвОц'!M35 -> 30 | O51: 58 | P51: ='4ДобрВежл'!H35 -> 39.24 | Q51: ='4ДобрВежл'!L35 -> 40 | R51: ='4ДобрВежл'!P35 -> 20 | S51: 99.24 | T51: ='5УдовлУсл'!H35 -> 29.7 | U51: ='5УдовлУсл'!L35 -> 19.38 | V51: ='5УдовлУсл'!P35 -> 49.05 | W51: 98.13
A52: 38 | B52: г. Барнаул | C52: МБУДО «Центр эстетического воспитания «Песнохорки» | D52: 89.74872961 | E52: ='1ОиДинфоб'!G27 -> 25.90686275 | F52: ='1ОиДинфоб'!J27 -> 27 | G52: ='1ОиДинфоб'!P27 -> 39.47222222 | H52: 92.37908497 | I52: ='2КомУслОц'!F28 -> 50 | J52: ='2КомУслОц'!J28 -> 49.51456311 | K52: 99.51456311 | L52: ='3УслДостИнвОц'!F27 -> 6 | M52: ='3УслДостИнвОц'!I27 -> 24 | N52: ='3УслДостИнвОц'!M27 -> 30 | O52: 60 | P52: ='4ДобрВежл'!H27 -> 39.4 | Q52: ='4ДобрВежл'!L27 -> 39.72 | R52: ='4ДобрВежл'!P27 -> 19.28 | S52: 98.4 | T52: ='5УдовлУсл'!H27 -> 29.55 | U52: ='5УдовлУсл'!L27 -> 19.4 | V52: ='5УдовлУсл'!P27 -> 49.5 | W52: 98.45
B53: г. Бийск | C53: МБУДО «Дом детского творчества» г. Бийска | D53: 89.66769869 | E53: ='1ОиДинфоб'!G34 -> 29.58333333 | F53: ='1ОиДинфоб'!J34 -> 30 | G53: ='1ОиДинфоб'!P34 -> 39.67157431 | H53: 99.25490764 | I53: ='2КомУслОц'!F35 -> 50 | J53: ='2КомУслОц'!J35 -> 49.45 | K53: 99.45 | L53: ='3УслДостИнвОц'!F34 -> 0 | M53: ='3УслДостИнвОц'!I34 -> 24 | N53: ='3УслДостИнвОц'!M34 -> 27.63 | O53: 51.63 | P53: ='4ДобрВежл'!H34 -> 39.64 | Q53: ='4ДобрВежл'!L34 -> 39.64 | R53: ='4ДобрВежл'!P34 -> 19.72179289 | S53: 99.00179289 | T53: ='5УдовлУсл'!H34 -> 29.73 | U53: ='5УдовлУсл'!L34 -> 19.72179289 | V53: ='5УдовлУсл'!P34 -> 49.55 | W53: 99.00179289
A54: 39 | B54: г. Барнаул | C54: МБУДО «Дом художественного творчества детей» (г. Барнаул) | D54: 89.63679016 | E54: ='1ОиДинфоб'!G15 -> 29.1 | F54: ='1ОиДинфоб'!J15 -> 30 | G54: ='1ОиДинфоб'!P15 -> 39.63061748 | H54: 98.73061748 | I54: ='2КомУслОц'!F16 -> 50 | J54: ='2КомУслОц'!J16 -> 49.5 | K54: 99.5 | L54: ='3УслДостИнвОц'!F15 -> 6 | M54: ='3УслДостИнвОц'!I15 -> 16 | N54: ='3УслДостИнвОц'!M15 -> 28.8 | O54: 50.8 | P54: ='4ДобрВежл'!H15 -> 39.64 | Q54: ='4ДобрВежл'!L15 -> 39.93333333 | R54: ='4ДобрВежл'!P15 -> 19.82 | S54: 99.39333333 | T54: ='5УдовлУсл'!H15 -> 29.9 | U54: ='5УдовлУсл'!L15 -> 19.86 | V54: ='5УдовлУсл'!P15 -> 50 | W54: 99.76
B55: Михайловский район | C55: МКУДО «Михайловская детско-юношеская спортивная школа» | D55: 89.56523364 | E55: ='1ОиДинфоб'!G60 -> 25.2 | F55: ='1ОиДинфоб'!J60 -> 27 | G55: ='1ОиДинфоб'!P60 -> 39.62616822 | H55: 91.82616822 | I55: ='2КомУслОц'!F61 -> 50 | J55: ='2КомУслОц'!J61 -> 50 | K55: 100 | L55: ='3УслДостИнвОц'!F60 -> 24 | M55: ='3УслДостИнвОц'!I60 -> 32 | N55: ='3УслДостИнвОц'!M60 -> 0 | O55: 56 | P55: ='4ДобрВежл'!H60 -> 40 | Q55: ='4ДобрВежл'!L60 -> 40 | R55: ='4ДобрВежл'!P60 -> 20 | S55: 100 | T55: ='5УдовлУсл'!H60 -> 30 | U55: ='5УдовлУсл'!L60 -> 20 | V55: ='5УдовлУсл'!P60 -> 50 | W55: 100
A56: 40 | B56: Краснощековский район | C56: МБУДО «Краснощековский районный детско-юношеский центр» | D56: 89.52363636 | E56: ='1ОиДинфоб'!G51 -> 26.8 | F56: ='1ОиДинфоб'!J51 -> 30 | G56: ='1ОиДинфоб'!P51 -> 39.81818182 | H56: 96.61818182 | I56: ='2КомУслОц'!F52 -> 50 | J56: ='2КомУслОц'!J52 -> 49.5 | K56: 99.5 | L56: ='3УслДостИнвОц'!F51 -> 6 | M56: ='3УслДостИнвОц'!I51 -> 16 | N56: ='3УслДостИнвОц'!M51 -> 30 | O56: 52 | P56: ='4ДобрВежл'!H51 -> 40 | Q56: ='4ДобрВежл'!L51 -> 40 | R56: ='4ДобрВежл'!P51 -> 20 | S56: 100 | T56: ='5УдовлУсл'!H51 -> 30 | U56: ='5УдовлУсл'!L51 -> 20 | V56: ='5УдовлУсл'!P51 -> 49.5 | W56: 99.5
A57: 41 | B57: г. Рубцовск | C57: МБУДО «Детско-юношеский центр» г. Рубцовска | D57: 89.39452951 | E57: ='1ОиДинфоб'!G71 -> 28.2 | F57: ='1ОиДинфоб'!J71 -> 18 | G57: ='1ОиДинфоб'!P71 -> 39.96810207 | H57: 86.16810207 | I57: ='2КомУслОц'!F72 -> 50 | J57: ='2КомУслОц'!J72 -> 49.95 | K57: 99.95 | L57: ='3УслДостИнвОц'!F71 -> 12 | M57: ='3УслДостИнвОц'!I71 -> 24 | N57: ='3УслДостИнвОц'!M71 -> 25.45454545 | O57: 61.45454545 | P57: ='4ДобрВежл'!H71 -> 39.6 | Q57: ='4ДобрВежл'!L71 -> 40 | R57: ='4ДобрВежл'!P71 -> 19.8 | S57: 99.4 | T57: ='5УдовлУсл'!H71 -> 30 | U57: ='5УдовлУсл'!L71 -> 20 | V57: ='5УдовлУсл'!P71 -> 50 | W57: 100
B58: Третьяковский район | C58: МБОУДО «Центр развития творчества детей и юношества» Третьяковского района | D58: 89.44 | E58: ='1ОиДинфоб'!G88 -> 26.7 | F58: ='1ОиДинфоб'!J88 -> 27 | G58: ='1ОиДинфоб'!P88 -> 40 | H58: 93.7 | I58: ='2КомУслОц'!F89 -> 50 | J58: ='2КомУслОц'!J89 -> 49.5 | K58: 99.5 | L58: ='3УслДостИнвОц'!F88 -> 0 | M58: ='3УслДостИнвОц'!I88 -> 24 | N58: ='3УслДостИнвОц'!M88 -> 30 | O58: 54 | P58: ='4ДобрВежл'!H88 -> 40 | Q58: ='4ДобрВежл'!L88 -> 40 | R58: ='4ДобрВежл'!P88 -> 20 | S58: 100 | T58: ='5УдовлУсл'!H88 -> 30 | U58: ='5УдовлУсл'!L88 -> 20 | V58: ='5УдовлУсл'!P88 -> 50 | W58: 100
A59: 42 | B59: г. Барнаул | C59: МБУДО «Барнаульский городской детско-юношеский центр» | D59: 89.01181433 | E59: ='1ОиДинфоб'!G11 -> 28.21969697 | F59: ='1ОиДинфоб'!J11 -> 30 | G59: ='1ОиДинфоб'!P11 -> 39.59392011 | H59: 97.81361708 | I59: ='2КомУслОц'!F12 -> 50 | J59: 49.5 | K59: 99.5 | L59: ='3УслДостИнвОц'!F11 -> 6 | M59: ='3УслДостИнвОц'!I11 -> 16 | N59: ='3УслДостИнвОц'!M11 -> 28.2 | O59: 50.2 | P59: ='4ДобрВежл'!H11 -> 39.45454545 | Q59: ='4ДобрВежл'!L11 -> 39.6969697 | R59: ='4ДобрВежл'!P11 -> 19.63636364 | S59: 98.78787879 | T59: ='5УдовлУсл'!H11 -> 29.63636364 | U59: ='5УдовлУсл'!L11 -> 19.57575758 | V59: ='5УдовлУсл'!P11 -> 49.54545455 | W59: 98.75757576
A60: 43 | B60: Каменский район | C60: МБУДО «Каменский многопрофильный образовательный центр» | D60: 88.89140005 | E60: ='1ОиДинфоб'!G49 -> 26.19047619 | F60: ='1ОиДинфоб'!J49 -> 27 | G60: ='1ОиДинфоб'!P49 -> 39.94652406 | H60: 93.13700025 | I60: ='2КомУслОц'!F50 -> 50 | J60: ='2КомУслОц'!J50 -> 50 | K60: 100 | L60: ='3УслДостИнвОц'!F49 -> 0 | M60: ='3УслДостИнвОц'!I49 -> 24 | N60: ='3УслДостИнвОц'!M49 -> 27.93 | O60: 51.93 | P60: ='4ДобрВежл'!H49 -> 39.72 | Q60: ='4ДобрВежл'!L49 -> 40 | R60: ='4ДобрВежл'!P49 -> 19.72 | S60: 99.44 | T60: ='5УдовлУсл'!H49 -> 30 | U60: ='5УдовлУсл'!L49 -> 20 | V60: ='5УдовлУсл'!P49 -> 49.95 | W60: 99.95
B61: Павловский район | C61: МБУДО «Павловский детско-юношеский центр» | D61: =AVERAGE(H61,K61,O61,S61,W61) -> 88.93769231 | E61: ='1ОиДинфоб'!G63 -> 29.5 | F61: ='1ОиДинфоб'!J63 -> 27 | G61: ='1ОиДинфоб'!P63 -> 39.5 | H61: =E61+F61+G61 -> 96 | I61: ='2КомУслОц'!F64 -> 50 | J61: ='2КомУслОц'!J64 -> 48 | K61: =I61+J61 -> 98 | L61: ='3УслДостИнвОц'!F63 -> 0 | M61: ='3УслДостИнвОц'!I63 -> 24 | N61: ='3УслДостИнвОц'!M63 -> 30 | O61: =L61+M61+N61 -> 54 | P61: ='4ДобрВежл'!H63 -> 39.2 | Q61: ='4ДобрВежл'!L63 -> 39.64 | R61: ='4ДобрВежл'!P63 -> 19.6 | S61: =SUM(P61:R61) -> 98.44 | T61: ='5УдовлУсл'!H63 -> 29.49 | U61: ='5УдовлУсл'!L63 -> 19.72 | V61: ='5УдовлУсл'!P63 -> 49.03846154 | W61: =SUM(T61:V61) -> 98.24846154
A62: 44 | B62: Целинный район | C62: МБУДО «Центр творчества и отдыха» Целинного района | D62: =AVERAGE(H62,K62,O62,S62,W62) -> 88.83349296 | E62: ='1ОиДинфоб'!G94 -> 27.3 | F62: ='1ОиДинфоб'!J94 -> 18 | G62: ='1ОиДинфоб'!P94 -> 39.57746479 | H62: =E62+F62+G62 -> 84.87746479 | I62: ='2КомУслОц'!F95 -> 50 | J62: ='2КомУслОц'!J95 -> 47 | K62: =I62+J62 -> 97 | L62: ='3УслДостИнвОц'!F94 -> 12 | M62: ='3УслДостИнвОц'!I94 -> 24 | N62: ='3УслДостИнвОц'!M94 -> 30 | O62: =L62+M62+N62 -> 66 | P62: ='4ДобрВежл'!H94 -> 39.72 | Q62: ='4ДобрВежл'!L94 -> 39.44 | R62: ='4ДобрВежл'!P94 -> 19.86 | S62: =SUM(P62:R62) -> 99.02 | T62: ='5УдовлУсл'!H94 -> 29.19 | U62: ='5УдовлУсл'!L94 -> 19.08 | V62: ='5УдовлУсл'!P94 -> 49 | W62: =SUM(T62:V62) -> 97.27
A63: 45 | B63: г. Барнаул | C63: МБУДО «Детский оздоровительно-образовательный (профильный) центр Гармония» | D63: 88.74 | E63: ='1ОиДинфоб'!G14 -> 27.9 | F63: ='1ОиДинфоб'!J14 -> 27 | G63: ='1ОиДинфоб'!P14 -> 40 | H63: 94.9 | I63: ='2КомУслОц'!F15 -> 50 | J63: ='2КомУслОц'!J15 -> 50 | K63: 100 | L63: ='3УслДостИнвОц'!F14 -> 12 | M63: ='3УслДостИнвОц'!I14 -> 8 | N63: ='3УслДостИнвОц'!M14 -> 30 | O63: 50 | P63: ='4ДобрВежл'!H14 -> 39.2 | Q63: ='4ДобрВежл'!L14 -> 40 | R63: ='4ДобрВежл'!P14 -> 19.6 | S63: 98.8 | T63: ='5УдовлУсл'!H14 -> 30 | U63: ='5УдовлУсл'!L14 -> 20 | V63: ='5УдовлУсл'!P14 -> 50 | W63: 100
B64: Панкрушихинский район | C64: МБОУДО «Панкрушихинский районный Центр творчества» | D64: 88.65707637 | E64: ='1ОиДинфоб'!G64 -> 16.1 | F64: ='1ОиДинфоб'!J64 -> 30 | G64: ='1ОиДинфоб'!P64 -> 39.04259496 | H64: 85.14259496 | I64: ='2КомУслОц'!F65 -> 50 | J64: ='2КомУслОц'!J65 -> 49.01639344 | K64: 99.01639344 | L64: ='3УслДостИнвОц'!F64 -> 18 | M64: ='3УслДостИнвОц'!I64 -> 16 | N64: ='3УслДостИнвОц'!M64 -> 28.23 | O64: 62.23 | P64: ='4ДобрВежл'!H64 -> 39.28 | Q64: ='4ДобрВежл'!L64 -> 39.60655738 | R64: ='4ДобрВежл'!P64 -> 19.64 | S64: 98.52655738 | T64: ='5УдовлУсл'!H64 -> 29.40983607 | U64: ='5УдовлУсл'!L64 -> 19.56 | V64: ='5УдовлУсл'!P64 -> 49.4 | W64: 98.36983607
A65: 46 | B65: г. Барнаул | C65: МБУДО «Барнаульская городская станция юных техников» | D65: 88.52427412 | E65: ='1ОиДинфоб'!G13 -> 28 | F65: ='1ОиДинфоб'!J13 -> 30 | G65: ='1ОиДинфоб'!P13 -> 39.9 | H65: 97.9 | I65: ='2КомУслОц'!F14 -> 50 | J65: ='2КомУслОц'!J14 -> 49.95 | K65: 99.95 | L65: ='3УслДостИнвОц'!F13 -> 0 | M65: ='3УслДостИнвОц'!I13 -> 16 | N65: ='3УслДостИнвОц'!M13 -> 29.41176471 | O65: 45.41176471 | P65: ='4ДобрВежл'!H13 -> 39.54022989 | Q65: ='4ДобрВежл'!L13 -> 40 | R65: ='4ДобрВежл'!P13 -> 19.86863711 | S65: 99.408867 | T65: ='5УдовлУсл'!H13 -> 29.95073892 | U65: ='5УдовлУсл'!L13 -> 20 | V65: ='5УдовлУсл'!P13 -> 50 | W65: 99.95073892
A66: 47 | B66: Быстроистокский район | C66: МБУДО «Быстроистокская детско-юношеская спортивная школа» | D66: 88.3748714 | E66: ='1ОиДинфоб'!G38 -> 27.8 | F66: ='1ОиДинфоб'!J38 -> 30 | G66: ='1ОиДинфоб'!P38 -> 39.83193277 | H66: 97.63193277 | I66: ='2КомУслОц'!F39 -> 50 | J66: ='2КомУслОц'!J39 -> 49.5 | K66: 99.5 | L66: ='3УслДостИнвОц'!F38 -> 0 | M66: ='3УслДостИнвОц'!I38 -> 16 | N66: ='3УслДостИнвОц'!M38 -> 30 | O66: 46 | P66: ='4ДобрВежл'!H38 -> 40 | Q66: ='4ДобрВежл'!L38 -> 40 | R66: ='4ДобрВежл'!P38 -> 19.24242424 | S66: 99.24242424 | T66: ='5УдовлУсл'!H38 -> 30 | U66: ='5УдовлУсл'!L38 -> 20 | V66: ='5УдовлУсл'!P38 -> 49.5 | W66: 99.5
A67: 48 | B67: г. Барнаул | C67: МБУДО «Детско-юношеский центр» Индустриального района г. Барнаула | D67: 88.27579687 | E67: ='1ОиДинфоб'!G16 -> 27.9 | F67: ='1ОиДинфоб'!J16 -> 30 | G67: ='1ОиДинфоб'!P16 -> 39.56898435 | H67: 97.46898435 | I67: ='2КомУслОц'!F17 -> 50 | J67: ='2КомУслОц'!J17 -> 49.95 | K67: 99.95 | L67: ='3УслДостИнвОц'!F16 -> 6 | M67: ='3УслДостИнвОц'!I16 -> 8 | N67: ='3УслДостИнвОц'!M16 -> 30 | O67: 44 | P67: ='4ДобрВежл'!H16 -> 39.992 | Q67: ='4ДобрВежл'!L16 -> 39.992 | R67: ='4ДобрВежл'!P16 -> 19.996 | S67: 99.98 | T67: ='5УдовлУсл'!H16 -> 30 | U67: ='5УдовлУсл'!L16 -> 19.98 | V67: ='5УдовлУсл'!P16 -> 50 | W67: 99.98
B68: Курьинский район | C68: МБУДО «Дом детского творчества» Курьинского района | D68: 88.32116328 | E68: ='1ОиДинфоб'!G54 -> 23.9 | F68: ='1ОиДинфоб'!J54 -> 30 | G68: ='1ОиДинфоб'!P54 -> 39.68253968 | H68: 93.58253968 | I68: ='2КомУслОц'!F55 -> 50 | J68: ='2КомУслОц'!J55 -> 49.45054945 | K68: 99.45054945 | L68: ='3УслДостИнвОц'!F54 -> 6 | M68: ='3УслДостИнвОц'!I54 -> 16 | N68: ='3УслДостИнвОц'!M54 -> 27.27272727 | O68: 49.27272727 | P68: ='4ДобрВежл'!H54 -> 40 | Q68: ='4ДобрВежл'!L54 -> 40 | R68: ='4ДобрВежл'!P54 -> 20 | S68: 100 | T68: ='5УдовлУсл'!H54 -> 30 | U68: ='5УдовлУсл'!L54 -> 19.8 | V68: ='5УдовлУсл'!P54 -> 49.5 | W68: 99.3
B69: Солтонский район | C69: МКОУДО «Детско-юношеский центр» Солтонского района | D69: 88.25173031 | E69: ='1ОиДинфоб'!G81 -> 25.9 | F69: ='1ОиДинфоб'!J81 -> 27 | G69: ='1ОиДинфоб'!P81 -> 39.51612903 | H69: 92.41612903 | I69: ='2КомУслОц'!F82 -> 50 | J69: ='2КомУслОц'!J82 -> 47.52252252 | K69: 97.52252252 | L69: ='3УслДостИнвОц'!F81 -> 6 | M69: ='3УслДостИнвОц'!I81 -> 16 | N69: ='3УслДостИнвОц'!M81 -> 30 | O69: 52 | P69: ='4ДобрВежл'!H81 -> 39.56 | Q69: ='4ДобрВежл'!L81 -> 40 | R69: ='4ДобрВежл'!P81 -> 19.88 | S69: 99.44 | T69: ='5УдовлУсл'!H81 -> 30 | U69: ='5УдовлУсл'!L81 -> 19.88 | V69: ='5УдовлУсл'!P81 -> 50 | W69: 99.88
A70: 49 | B70: г. Барнаул | C70: МБУДО Центр внешкольной работы «Военно-спортивный клуб «Борец» | D70: 88.13554891 | E70: ='1ОиДинфоб'!G26 -> 29.09090909 | F70: ='1ОиДинфоб'!J26 -> 27 | G70: ='1ОиДинфоб'!P26 -> 39.74683544 | H70: 95.83774453 | I70: ='2КомУслОц'!F27 -> 50 | J70: ='2КомУслОц'!J27 -> 50 | K70: 100 | L70: ='3УслДостИнвОц'!F26 -> 0 | M70: ='3УслДостИнвОц'!I26 -> 16 | N70: ='3УслДостИнвОц'!M26 -> 30 | O70: 46 | P70: ='4ДобрВежл'!H26 -> 38.84 | Q70: ='4ДобрВежл'!L26 -> 40 | R70: ='4ДобрВежл'!P26 -> 20 | S70: 98.84 | T70: ='5УдовлУсл'!H26 -> 30 | U70: ='5УдовлУсл'!L26 -> 20 | V70: ='5УдовлУсл'!P26 -> 50 | W70: 100
B71: Усть-Калманский район | C71: МБУДО «Центр детского творчества» Усть-Калманского района | D71: 88.10044444 | E71: ='1ОиДинфоб'!G91 -> 27.8 | F71: ='1ОиДинфоб'!J91 -> 27 | G71: ='1ОиДинфоб'!P91 -> 39.72222222 | H71: 94.52222222 | I71: ='2КомУслОц'!F92 -> 50 | J71: ='2КомУслОц'!J92 -> 50 | K71: 100 | L71: ='3УслДостИнвОц'!F91 -> 6 | M71: ='3УслДостИнвОц'!I91 -> 16 | N71: ='3УслДостИнвОц'!M91 -> 24 | O71: 46 | P71: ='4ДобрВежл'!H91 -> 39.96 | Q71: ='4ДобрВежл'!L91 -> 40 | R71: ='4ДобрВежл'!P91 -> 19.98 | S71: 100 | T71: ='5УдовлУсл'!H91 -> 30 | U71: ='5УдовлУсл'!L91 -> 19.98 | V71: ='5УдовлУсл'!P91 -> 50 | W71: 99.98
A72: 50 | B72: г. Рубцовск | C72: МБУДО «Центр развития творчества» г. Рубцовска | D72: 88.036 | E72: ='1ОиДинфоб'!G74 -> 27.3 | F72: ='1ОиДинфоб'!J74 -> 27 | G72: ='1ОиДинфоб'!P74 -> 40 | H72: 94.3 | I72: ='2КомУслОц'!F75 -> 50 | J72: ='2КомУслОц'!J75 -> 49.95 | K72: 99.95 | L72: ='3УслДостИнвОц'!F74 -> 0 | M72: ='3УслДостИнвОц'!I74 -> 16 | N72: ='3УслДостИнвОц'!M74 -> 30 | O72: 46 | P72: ='4ДобрВежл'!H74 -> 40 | Q72: ='4ДобрВежл'!L74 -> 40 | R72: ='4ДобрВежл'!P74 -> 19.98 | S72: =SUM(P72:R72) -> 99.98 | T72: ='5УдовлУсл'!H74 -> 30 | U72: ='5УдовлУсл'!L74 -> 20 | V72: ='5УдовлУсл'!P74 -> 49.95 | W72: 99.95
A73: 51 | B73: Первомайский район | C73: МБУДО «Центр творчества детей и молодежи «Созвездие» Первомайского района | D73: 87.88691492 | E73: ='1ОиДинфоб'!G65 -> 27 | F73: ='1ОиДинфоб'!J65 -> 27 | G73: ='1ОиДинфоб'!P65 -> 40 | H73: 94 | I73: ='2КомУслОц'!F66 -> 50 | J73: ='2КомУслОц'!J66 -> 49.51657459 | K73: 99.51657459 | L73: ='3УслДостИнвОц'!F65 -> 0 | M73: ='3УслДостИнвОц'!I65 -> 16 | N73: ='3УслДостИнвОц'!M65 -> 30 | O73: 46 | P73: ='4ДобрВежл'!H65 -> 39.996 | Q73: ='4ДобрВежл'!L65 -> 39.98 | R73: ='4ДобрВежл'!P65 -> 19.99 | S73: =SUM(P73:R73) -> 99.966 | T73: ='5УдовлУсл'!H65 -> 29.997 | U73: ='5УдовлУсл'!L65 -> 19.96 | V73: ='5УдовлУсл'!P65 -> 49.995 | W73: 99.952
A74: 52 | B74: г. Рубцовск | C74: МБУДО «Центр внешкольной работы «Малая Академия» г. Рубцовска | D74: =AVERAGE(H74,K74,O74,S74,W74) -> 87.60919654 | E74: ='1ОиДинфоб'!G73 -> 26.7 | F74: ='1ОиДинфоб'!J73 -> 30 | G74: ='1ОиДинфоб'!P73 -> 39.62222897 | H74: =E74+F74+G74 -> 96.32222897 | I74: ='2КомУслОц'!F74 -> 50 | J74: ='2КомУслОц'!J74 -> 49 | K74: =I74+J74 -> 99 | L74: ='3УслДостИнвОц'!F73 -> 0 | M74: ='3УслДостИнвОц'!I73 -> 16 | N74: ='3УслДостИнвОц'!M73 -> 29.67 | O74: =L74+M74+N74 -> 45.67 | P74: ='4ДобрВежл'!H73 -> 39.28 | Q74: ='4ДобрВежл'!L73 -> 39.57957958 | R74: ='4ДобрВежл'!P73 -> 19.54954955 | S74: =SUM(P74:R74) -> 98.40912913 | T74: ='5УдовлУсл'!H73 -> 29.58 | U74: ='5УдовлУсл'!L73 -> 19.44 | V74: ='5УдовлУсл'!P73 -> 49.62462462 | W74: =SUM(T74:V74) -> 98.64462462
A75: 53 | B75: г. Барнаул | C75: МБУДО «Барнаульская городская станция юных натуралистов» | D75: =AVERAGE(H75,K75,O75,S75,W75) -> 87.47200213 | E75: ='1ОиДинфоб'!G12 -> 27.9 | F75: ='1ОиДинфоб'!J12 -> 30 | G75: ='1ОиДинфоб'!P12 -> 39.15835777 | H75: =E75+F75+G75 -> 97.05835777 | I75: ='2КомУслОц'!F13 -> 50 | J75: ='2КомУслОц'!J13 -> 49.9 | K75: =I75+J75 -> 99.9 | L75: ='3УслДостИнвОц'!F12 -> 0 | M75: ='3УслДостИнвОц'!I12 -> 24 | N75: ='3УслДостИнвОц'!M12 -> 18.63 | O75: =L75+M75+N75 -> 42.63 | P75: ='4ДобрВежл'!H12 -> 39.6 | Q75: ='4ДобрВежл'!L12 -> 39.6 | R75: ='4ДобрВежл'!P12 -> 19.4214876 | S75: =SUM(P75:R75) -> 98.6214876 | T75: ='5УдовлУсл'!H12 -> 29.38016529 | U75: ='5УдовлУсл'!L12 -> 19.82 | V75: ='5УдовлУсл'!P12 -> 49.95 | W75: =SUM(T75:V75) -> 99.15016529
B76: Бурлинский район | C76: МБУДО «Бурлинский Центр дополнительного образования» | D76: =AVERAGE(H76,K76,O76,S76,W76) -> 87.53891228 | E76: ='1ОиДинфоб'!G37 -> 21.5 | F76: ='1ОиДинфоб'!J37 -> 27 | G76: ='1ОиДинфоб'!P37 -> 39.8245614 | H76: =E76+F76+G76 -> 88.3245614 | I76: ='2КомУслОц'!F38 -> 50 | J76: ='2КомУслОц'!J38 -> 50 | K76: =I76+J76 -> 100 | L76: ='3УслДостИнвОц'!F37 -> 6 | M76: ='3УслДостИнвОц'!I37 -> 24 | N76: ='3УслДостИнвОц'!M37 -> 20.07 | O76: =L76+M76+N76 -> 50.07 | P76: ='4ДобрВежл'!H37 -> 40 | Q76: ='4ДобрВежл'!L37 -> 40 | R76: ='4ДобрВежл'!P37 -> 20 | S76: =SUM(P76:R76) -> 100 | T76: ='5УдовлУсл'!H37 -> 30 | U76: ='5УдовлУсл'!L37 -> 19.8 | V76: ='5УдовлУсл'!P37 -> 49.5 | W76: =SUM(T76:V76) -> 99.3
A77: 54 | B77: Хабарский район | C77: МБУДО «Центр детского творчества» Хабарского района | D77: 87.42 | E77: ='1ОиДинфоб'!G93 -> 24 | F77: ='1ОиДинфоб'!J93 -> 30 | G77: ='1ОиДинфоб'!P93 -> 40 | H77: 94 | I77: ='2КомУслОц'!F94 -> 50 | J77: ='2КомУслОц'!J94 -> 50 | K77: 100 | L77: ='3УслДостИнвОц'!F93 -> 6 | M77: ='3УслДостИнвОц'!I93 -> 24 | N77: ='3УслДостИнвОц'!M93 -> 15 | O77: 45 | P77: ='4ДобрВежл'!H93 -> 40 | Q77: ='4ДобрВежл'!L93 -> 40 | R77: ='4ДобрВежл'!P93 -> 19.24 | S77: 99.24 | T77: ='5УдовлУсл'!H93 -> 28.86 | U77: ='5УдовлУсл'!L93 -> 20 | V77: ='5УдовлУсл'!P93 -> 50 | W77: 98.86
A78: 55 | B78: г. Барнаул | C78: МБУДО «Центр детского творчества» Октябрьского района г. Барнаула | D78: 87.10189723 | E78: ='1ОиДинфоб'!G29 -> 27 | F78: ='1ОиДинфоб'!J29 -> 30 | G78: ='1ОиДинфоб'!P29 -> 39.2 | H78: 96.2 | I78: ='2КомУслОц'!F30 -> 50 | J78: ='2КомУслОц'!J30 -> 47 | K78: 97 | L78: ='3УслДостИнвОц'!F29 -> 0 | M78: ='3УслДостИнвОц'!I29 -> 16 | N78: ='3УслДостИнвОц'!M29 -> 30 | O78: 46 | P78: ='4ДобрВежл'!H29 -> 39.20948617 | Q78: ='4ДобрВежл'!L29 -> 39.64 | R78: ='4ДобрВежл'!P29 -> 19.2 | S78: 98.04948617 | T78: ='5УдовлУсл'!H29 -> 29.37 | U78: ='5УдовлУсл'!L29 -> 19.44 | V78: ='5УдовлУсл'!P29 -> 49.45 | W78: 98.26
A79: 56 | B79: Тогульский район | C79: МКУДО «Центр творчества, спорта и отдыха» Тогульского района | D79: =AVERAGE(H79,K79,O79,S79,W79) -> 86.92872029 | E79: ='1ОиДинфоб'!G85 -> 24.2 | F79: ='1ОиДинфоб'!J85 -> 30 | G79: ='1ОиДинфоб'!P85 -> 39.42360146 | H79: =E79+F79+G79 -> 93.62360146 | I79: ='2КомУслОц'!F86 -> 50 | J79: ='2КомУслОц'!J86 -> 49.5 | K79: =I79+J79 -> 99.5 | L79: ='3УслДостИнвОц'!F85 -> 6 | M79: ='3УслДостИнвОц'!I85 -> 8 | N79: ='3УслДостИнвОц'!M85 -> 30 | O79: =L79+M79+N79 -> 44 | P79: ='4ДобрВежл'!H85 -> 39.72 | Q79: ='4ДобрВежл'!L85 -> 39.44 | R79: ='4ДобрВежл'!P85 -> 19.86 | S79: =SUM(P79:R79) -> 99.02 | T79: ='5УдовлУсл'!H85 -> 29.31 | U79: ='5УдовлУсл'!L85 -> 19.54 | V79: ='5УдовлУсл'!P85 -> 49.65 | W79: =SUM(T79:V79) -> 98.5
A80: 57 | B80: г. Барнаул | C80: МБУДО «Центр детского (юношеского) технического творчества» Ленинского района г. Барнаула | D80: 86.74296296 | E80: ='1ОиДинфоб'!G17 -> 17.4 | F80: ='1ОиДинфоб'!J17 -> 27 | G80: ='1ОиДинфоб'!P17 -> 39.55555556 | H80: 83.95555556 | I80: ='2КомУслОц'!F18 -> 50 | J80: ='2КомУслОц'!J18 -> 49 | K80: 99 | L80: ='3УслДостИнвОц'!F17 -> 6 | M80: ='3УслДостИнвОц'!I17 -> 16 | N80: ='3УслДостИнвОц'!M17 -> 30 | O80: 52 | P80: ='4ДобрВежл'!H17 -> 40 | Q80: ='4ДобрВежл'!L17 -> 40 | R80: ='4ДобрВежл'!P17 -> 19.62962963 | S80: 99.62962963 | T80: ='5УдовлУсл'!H17 -> 30 | U80: ='5УдовлУсл'!L17 -> 19.62962963 | V80: ='5УдовлУсл'!P17 -> 49.5 | W80: 99.12962963
A81: 58 | B81: ЗАТО Сибирский | C81: МБУДО «Детско-юношеский центр «Росток» ЗАТО Сибирский | D81: 86.49588517 | E81: ='1ОиДинфоб'!G45 -> 28 | F81: ='1ОиДинфоб'!J45 -> 27 | G81: ='1ОиДинфоб'!P45 -> 39.54545455 | H81: 94.54545455 | I81: ='2КомУслОц'!F46 -> 50 | J81: ='2КомУслОц'!J46 -> 49 | K81: 99 | L81: ='3УслДостИнвОц'!F45 -> 6 | M81: ='3УслДостИнвОц'!I45 -> 8 | N81: ='3УслДостИнвОц'!M45 -> 26.66666667 | O81: 40.66666667 | P81: ='4ДобрВежл'!H45 -> 39.2 | Q81: ='4ДобрВежл'!L45 -> 39.64912281 | R81: ='4ДобрВежл'!P45 -> 19.6 | S81: 98.44912281 | T81: ='5УдовлУсл'!H45 -> 30 | U81: ='5УдовлУсл'!L45 -> 19.81818182 | V81: ='5УдовлУсл'!P45 -> 50 | W81: 99.81818182
A82: 59 | B82: Рубцовский район | C82: МБУДО «Детско-юношеская спортивная школа» Рубцовского района | D82: 86.11958421 | E82: ='1ОиДинфоб'!G75 -> 20.18018018 | F82: ='1ОиДинфоб'!J75 -> 30 | G82: ='1ОиДинфоб'!P75 -> 39.53488372 | H82: 89.7150639 | I82: ='2КомУслОц'!F76 -> 50 | J82: ='2КомУслОц'!J76 -> 50 | K82: 100 | L82: ='3УслДостИнвОц'!F75 -> 18 | M82: ='3УслДостИнвОц'!I75 -> 24 | N82: ='3УслДостИнвОц'!M75 -> 0 | O82: 42 | P82: ='4ДобрВежл'!H75 -> 40 | Q82: ='4ДобрВежл'!L75 -> 40 | R82: ='4ДобрВежл'!P75 -> 19.64285714 | S82: 99.64285714 | T82: ='5УдовлУсл'!H75 -> 30 | U82: ='5УдовлУсл'!L75 -> 19.24 | V82: ='5УдовлУсл'!P75 -> 50 | W82: 99.24
A83: 60 | B83: г. Барнаул | C83: МБУДО «Центр развития творчества детей и молодежи» Железнодорожного района | D83: 85.93813537 | E83: ='1ОиДинфоб'!G21 -> 26.34469697 | F83: ='1ОиДинфоб'!J21 -> 30 | G83: ='1ОиДинфоб'!P21 -> 39.3 | H83: 95.64469697 | I83: ='2КомУслОц'!F22 -> 50 | J83: ='2КомУслОц'!J22 -> 48.5 | K83: 98.5 | L83: ='3УслДостИнвОц'!F21 -> 6 | M83: ='3УслДостИнвОц'!I21 -> 16 | N83: ='3УслДостИнвОц'!M21 -> 16.2 | O83: 38.2 | P83: ='4ДобрВежл'!H21 -> 39.7319933 | Q83: ='4ДобрВежл'!L21 -> 39.56 | R83: ='4ДобрВежл'!P21 -> 19.48 | S83: 98.7719933 | T83: ='5УдовлУсл'!H21 -> 29.76 | U83: ='5УдовлУсл'!L21 -> 19.4639866 | V83: ='5УдовлУсл'!P21 -> 49.35 | W83: 98.5739866
B84: Тюменцевский район | C84: МБУДО «Тюменцевский районный центр детского творчества» | D84: 85.8821855 | E84: ='1ОиДинфоб'!G90 -> 27.00980392 | F84: ='1ОиДинфоб'!J90 -> 27 | G84: ='1ОиДинфоб'!P90 -> 39.6 | H84: 93.60980392 | I84: ='2КомУслОц'!F91 -> 50 | J84: ='2КомУслОц'!J91 -> 49.5 | K84: 99.5 | L84: ='3УслДостИнвОц'!F90 -> 0 | M84: ='3УслДостИнвОц'!I90 -> 8 | N84: ='3УслДостИнвОц'!M90 -> 30 | O84: 38 | P84: ='4ДобрВежл'!H90 -> 40 | Q84: ='4ДобрВежл'!L90 -> 40 | R84: ='4ДобрВежл'!P90 -> 19.5505618 | S84: 99.5505618 | T84: ='5УдовлУсл'!H90 -> 29.7 | U84: ='5УдовлУсл'!L90 -> 19.5505618 | V84: ='5УдовлУсл'!P90 -> 49.5 | W84: 98.7505618
A85: 61 | B85: г. Барнаул | C85: МБУДО «Центр физкультурно-спортивной направленности «Акцент» | D85: 85.28858505 | E85: ='1ОиДинфоб'!G22 -> 26 | F85: ='1ОиДинфоб'!J22 -> 27 | G85: ='1ОиДинфоб'!P22 -> 39.71830986 | H85: 92.71830986 | I85: ='2КомУслОц'!F23 -> 50 | J85: ='2КомУслОц'!J23 -> 49.5 | K85: 99.5 | L85: ='3УслДостИнвОц'!F22 -> 6 | M85: ='3УслДостИнвОц'!I22 -> 0 | N85: ='3УслДостИнвОц'!M22 -> 30 | O85: 36 | P85: ='4ДобрВежл'!H22 -> 40 | Q85: ='4ДобрВежл'!L22 -> 40 | R85: ='4ДобрВежл'!P22 -> 19.38461538 | S85: 99.38461538 | T85: ='5УдовлУсл'!H22 -> 29.7 | U85: ='5УдовлУсл'!L22 -> 19.64 | V85: ='5УдовлУсл'!P22 -> 49.5 | W85: 98.84
A86: 62 | B86: г. Белокуриха | C86: МБУДО «Детско-юношеская спортивная школа» г. Белокурихи | D86: 85.24504505 | E86: ='1ОиДинфоб'!G31 -> 26.83333333 | F86: ='1ОиДинфоб'!J31 -> 30 | G86: ='1ОиДинфоб'!P31 -> 39.89189189 | H86: 96.72522523 | I86: ='2КомУслОц'!F32 -> 50 | J86: ='2КомУслОц'!J32 -> 49.5 | K86: 99.5 | L86: ='3УслДостИнвОц'!F31 -> 0 | M86: ='3УслДостИнвОц'!I31 -> 0 | N86: ='3УслДостИнвОц'!M31 -> 30 | O86: 30 | P86: ='4ДобрВежл'!H31 -> 40 | Q86: ='4ДобрВежл'!L31 -> 40 | R86: ='4ДобрВежл'!P31 -> 20 | S86: 100 | T86: ='5УдовлУсл'!H31 -> 30 | U86: ='5УдовлУсл'!L31 -> 20 | V86: ='5УдовлУсл'!P31 -> 50 | W86: 100
A87: 63 | B87: Калманский район | C87: МБУДО «Калманский районный детско-юношеский центр» | D87: 85.06047534 | E87: ='1ОиДинфоб'!G48 -> 26.9 | F87: ='1ОиДинфоб'!J48 -> 30 | G87: ='1ОиДинфоб'!P48 -> 39.65517241 | H87: 96.55517241 | I87: ='2КомУслОц'!F49 -> 50 | J87: ='2КомУслОц'!J49 -> 48.5 | K87: 98.5 | L87: ='3УслДостИнвОц'!F48 -> 0 | M87: ='3УслДостИнвОц'!I48 -> 32 | N87: ='3УслДостИнвОц'!M48 -> 0 | O87: 32 | P87: ='4ДобрВежл'!H48 -> 39.56989247 | Q87: ='4ДобрВежл'!L48 -> 40 | R87: ='4ДобрВежл'!P48 -> 20 | S87: 99.56989247 | T87: ='5УдовлУсл'!H48 -> 29.43 | U87: ='5УдовлУсл'!L48 -> 19.78494624 | V87: ='5УдовлУсл'!P48 -> 49.46236559 | W87: 98.67731183
B88: Топчихинский район | C88: МКУДО «Топчихинская детско-юношеская спортивная школа» | D88: 85.12086022 | E88: ='1ОиДинфоб'!G86 -> 26.6 | F88: ='1ОиДинфоб'!J86 -> 18 | G88: ='1ОиДинфоб'!P86 -> 39.70430108 | H88: 84.30430108 | I88: ='2КомУслОц'!F87 -> 50 | J88: ='2КомУслОц'!J87 -> 48 | K88: 98 | L88: ='3УслДостИнвОц'!F86 -> 6 | M88: ='3УслДостИнвОц'!I86 -> 16 | N88: ='3УслДостИнвОц'!M86 -> 22.5 | O88: 44.5 | P88: ='4ДобрВежл'!H86 -> 40 | Q88: ='4ДобрВежл'!L86 -> 40 | R88: ='4ДобрВежл'!P86 -> 19.6 | S88: 99.6 | T88: ='5УдовлУсл'!H86 -> 30 | U88: ='5УдовлУсл'!L86 -> 19.6 | V88: ='5УдовлУсл'!P86 -> 49.6 | W88: 99.2
A89: 64 | B89: Мамонтовский район | C89: МКУДО «Мамонтовская детско-юношеская спортивная школа» | D89: 84.86762753 | E89: ='1ОиДинфоб'!G58 -> 23.8 | F89: ='1ОиДинфоб'!J58 -> 30 | G89: ='1ОиДинфоб'!P58 -> 38.17813765 | H89: 91.97813765 | I89: ='2КомУслОц'!F59 -> 50 | J89: ='2КомУслОц'!J59 -> 45.5 | K89: 95.5 | L89: ='3УслДостИнвОц'!F58 -> 0 | M89: ='3УслДостИнвОц'!I58 -> 16 | N89: ='3УслДостИнвОц'!M58 -> 30 | O89: 46 | P89: ='4ДобрВежл'!H58 -> 37.6 | Q89: ='4ДобрВежл'!L58 -> 39.2 | R89: ='4ДобрВежл'!P58 -> 19.22 | S89: 96.02 | T89: ='5УдовлУсл'!H58 -> 29.4 | U89: ='5УдовлУсл'!L58 -> 18.44 | V89: ='5УдовлУсл'!P58 -> 47 | W89: 94.84
A90: 65 | B90: г. Барнаул | C90: МБУДО «Центр дополнительного образования детей «Память» Пост №1 г. Барнаула» | D90: =AVERAGE(H90,K90,O90,S90,W90) -> 83.902 | E90: ='1ОиДинфоб'!G28 -> 25.8 | F90: ='1ОиДинфоб'!J28 -> 18 | G90: ='1ОиДинфоб'!P28 -> 39.5 | H90: =E90+F90+G90 -> 83.3 | I90: ='2КомУслОц'!F29 -> 50 | J90: ='2КомУслОц'!J29 -> 49.5 | K90: =I90+J90 -> 99.5 | L90: ='3УслДостИнвОц'!F28 -> 0 | M90: ='3УслДостИнвОц'!I28 -> 8 | N90: ='3УслДостИнвОц'!M28 -> 30 | O90: =L90+M90+N90 -> 38 | P90: ='4ДобрВежл'!H28 -> 39.6 | Q90: ='4ДобрВежл'!L28 -> 40 | R90: ='4ДобрВежл'!P28 -> 19.96 | S90: =SUM(P90:R90) -> 99.56 | T90: ='5УдовлУсл'!H28 -> 29.37 | U90: ='5УдовлУсл'!L28 -> 19.88 | V90: ='5УдовлУсл'!P28 -> 49.9 | W90: =SUM(T90:V90) -> 99.15
B91: Солонешенский район | C91: МБУДО «Солонешенский центр детского творчества» | D91: 83.93259486 | E91: ='1ОиДинфоб'!G80 -> 25.76190476 | F91: ='1ОиДинфоб'!J80 -> 30 | G91: ='1ОиДинфоб'!P80 -> 39.40106952 | H91: 95.16297428 | I91: ='2КомУслОц'!F81 -> 50 | J91: ='2КомУслОц'!J81 -> 47.5 | K91: 97.5 | L91: ='3УслДостИнвОц'!F80 -> 6 | M91: ='3УслДостИнвОц'!I80 -> 24 | N91: ='3УслДостИнвОц'!M80 -> 0 | O91: 30 | P91: ='4ДобрВежл'!H80 -> 39.6 | Q91: ='4ДобрВежл'!L80 -> 39.6 | R91: ='4ДобрВежл'!P80 -> 19.8 | S91: 99 | T91: ='5УдовлУсл'!H80 -> 29.4 | U91: ='5УдовлУсл'!L80 -> 19.6 | V91: ='5УдовлУсл'!P80 -> 49 | W91: 98
A92: 66 | B92: Первомайский район | C92: МБУДОД «Детско-юношеская спортивная школа» Первомайского района | D92: =AVERAGE(H92,K92,O92,S92,W92) -> 82.50072837 | E92: ='1ОиДинфоб'!G66 -> 8.5 | F92: ='1ОиДинфоб'!J66 -> 30 | G92: ='1ОиДинфоб'!P66 -> 39.86111111 | H92: =E92+F92+G92 -> 78.36111111 | I92: ='2КомУслОц'!F67 -> 50 | J92: ='2КомУслОц'!J67 -> 49.95 | K92: =I92+J92 -> 99.95 | L92: ='3УслДостИнвОц'!F66 -> 6 | M92: ='3УслДостИнвОц'!I66 -> 0 | N92: ='3УслДостИнвОц'!M66 -> 30 | O92: =L92+M92+N92 -> 36 | P92: ='4ДобрВежл'!H66 -> 38.73462214 | Q92: ='4ДобрВежл'!L66 -> 39.64850615 | R92: ='4ДобрВежл'!P66 -> 19.85940246 | S92: =SUM(P92:R92) -> 98.24253076 | T92: ='5УдовлУсл'!H66 -> 29.97 | U92: ='5УдовлУсл'!L66 -> 19.98 | V92: ='5УдовлУсл'!P66 -> 50 | W92: =SUM(T92:V92) -> 99.95
A93: 67 | B93: Егорьевский район | C93: МБУДО «Егорьевская детско-юношеская спортивная школа» | D93: =AVERAGE(H93,K93,O93,S93,W93) -> 82.4437594 | E93: ='1ОиДинфоб'!G39 -> 25.7 | F93: ='1ОиДинфоб'!J39 -> 18 | G93: ='1ОиДинфоб'!P39 -> 38.94736842 | H93: =E93+F93+G93 -> 82.64736842 | I93: ='2КомУслОц'!F40 -> 50 | J93: ='2КомУслОц'!J40 -> 47.5 | K93: =I93+J93 -> 97.5 | L93: ='3УслДостИнвОц'!F39 -> 0 | M93: ='3УслДостИнвОц'!I39 -> 8 | N93: ='3УслДостИнвОц'!M39 -> 30 | O93: =L93+M93+N93 -> 38 | P93: ='4ДобрВежл'!H39 -> 40 | Q93: ='4ДобрВежл'!L39 -> 40 | R93: ='4ДобрВежл'!P39 -> 19 | S93: =SUM(P93:R93) -> 99 | T93: ='5УдовлУсл'!H39 -> 28.57142857 | U93: ='5УдовлУсл'!L39 -> 19 | V93: ='5УдовлУсл'!P39 -> 47.5 | W93: =SUM(T93:V93) -> 95.07142857
B94: Красногорский район | C94: МКУДО «Дом детского творчества» Красногорского района | D94: =AVERAGE(H94,K94,O94,S94,W94) -> 82.39410054 | E94: ='1ОиДинфоб'!G50 -> 25.9 | F94: ='1ОиДинфоб'!J50 -> 30 | G94: ='1ОиДинфоб'!P50 -> 35.90460526 | H94: =E94+F94+G94 -> 91.80460526 | I94: ='2КомУслОц'!F51 -> 50 | J94: ='2КомУслОц'!J51 -> 49.5 | K94: =I94+J94 -> 99.5 | L94: ='3УслДостИнвОц'!F50 -> 0 | M94: ='3УслДостИнвОц'!I50 -> 0 | N94: ='3УслДостИнвОц'!M50 -> 30 | O94: =L94+M94+N94 -> 30 | P94: ='4ДобрВежл'!H50 -> 38.44 | Q94: ='4ДобрВежл'!L50 -> 38.44 | R94: ='4ДобрВежл'!P50 -> 18.54 | S94: =SUM(P94:R94) -> 95.42 | T94: ='5УдовлУсл'!H50 -> 27.81 | U94: ='5УдовлУсл'!L50 -> 18.71794872 | V94: ='5УдовлУсл'!P50 -> 48.71794872 | W94: =SUM(T94:V94) -> 95.24589744
B95: Троицкий район | C95: МБУДО «Троицкий детско-юношеский центр» | D95: 82.39036735 | E95: ='1ОиДинфоб'!G89 -> 27 | F95: ='1ОиДинфоб'!J89 -> 30 | G95: ='1ОиДинфоб'!P89 -> 39.59183673 | H95: 96.59183673 | I95: ='2КомУслОц'!F90 -> 50 | J95: ='2КомУслОц'!J90 -> 50 | K95: 100 | L95: ='3УслДостИнвОц'!F89 -> 0 | M95: ='3УслДостИнвОц'!I89 -> 16 | N95: ='3УслДостИнвОц'!M89 -> 0 | O95: 16 | P95: ='4ДобрВежл'!H89 -> 40 | Q95: ='4ДобрВежл'!L89 -> 40 | R95: ='4ДобрВежл'!P89 -> 19.36 | S95: 99.36 | T95: ='5УдовлУсл'!H89 -> 30 | U95: ='5УдовлУсл'!L89 -> 20 | V95: ='5УдовлУсл'!P89 -> 50 | W95: 100
A96: 68 | B96: Рубцовский район | C96: МБУДО «Центр творческого развития «Ступени» Рубцовского района | D96: =AVERAGE(H96,K96,O96,S96,W96) -> 81.83442857 | E96: ='1ОиДинфоб'!G76 -> 24.47619048 | F96: ='1ОиДинфоб'!J76 -> 9 | G96: ='1ОиДинфоб'!P76 -> 39.75595238 | H96: =E96+F96+G96 -> 73.23214286 | I96: ='2КомУслОц'!F77 -> 50 | J96: ='2КомУслОц'!J77 -> 49.5 | K96: =I96+J96 -> 99.5 | L96: ='3УслДостИнвОц'!F76 -> 0 | M96: ='3УслДостИнвОц'!I76 -> 8 | N96: ='3УслДостИнвОц'!M76 -> 30 | O96: =L96+M96+N96 -> 38 | P96: ='4ДобрВежл'!H76 -> 40 | Q96: ='4ДобрВежл'!L76 -> 40 | R96: ='4ДобрВежл'!P76 -> 19.64 | S96: =SUM(P96:R96) -> 99.64 | T96: ='5УдовлУсл'!H76 -> 29.76 | U96: ='5УдовлУсл'!L76 -> 19.44 | V96: ='5УдовлУсл'!P76 -> 49.6 | W96: =SUM(T96:V96) -> 98.8
A97: 69 | B97: Усть-Пристанский район | C97: МКУДО «Дом детского творчества» Усть-Пристанского района | D97: 81.48261682 | E97: ='1ОиДинфоб'!G92 -> 22.6 | F97: ='1ОиДинфоб'!J92 -> 30 | G97: ='1ОиДинфоб'!P92 -> 39.81308411 | H97: 92.41308411 | I97: ='2КомУслОц'!F93 -> 50 | J97: ='2КомУслОц'!J93 -> 49 | K97: 99 | L97: ='3УслДостИнвОц'!F92 -> 0 | M97: ='3УслДостИнвОц'!I92 -> 16 | N97: ='3УслДостИнвОц'!M92 -> 0 | O97: 16 | P97: ='4ДобрВежл'!H92 -> 40 | Q97: ='4ДобрВежл'!L92 -> 40 | R97: ='4ДобрВежл'!P92 -> 20 | S97: 100 | T97: ='5УдовлУсл'!H92 -> 30 | U97: ='5УдовлУсл'!L92 -> 20 | V97: ='5УдовлУсл'!P92 -> 50 | W97: 100
A98: 70 | B98: Залесовский район | C98: МБУДО «Центр спорта и творчества» | D98: 80.30218579 | E98: ='1ОиДинфоб'!G42 -> 26.2 | F98: ='1ОиДинфоб'!J42 -> 27 | G98: ='1ОиДинфоб'!P42 -> 39.0942623 | H98: 92.2942623 | I98: ='2КомУслОц'!F43 -> 50 | J98: ='2КомУслОц'!J43 -> 48 | K98: 98 | L98: ='3УслДостИнвОц'!F42 -> 0 | M98: ='3УслДостИнвОц'!I42 -> 8 | N98: ='3УслДостИнвОц'!M42 -> 9.93 | O98: 17.93 | P98: ='4ДобрВежл'!H42 -> 39.61904762 | Q98: ='4ДобрВежл'!L42 -> 40 | R98: ='4ДобрВежл'!P42 -> 18.62 | S98: 98.23904762 | T98: ='5УдовлУсл'!H42 -> 29.71428571 | U98: ='5УдовлУсл'!L42 -> 17.71428571 | V98: ='5УдовлУсл'!P42 -> 47.61904762 | W98: 95.04761905
A99: 71 | B99: Зональный район | C99: МКОУДО «Зональная районная детско-юношеская спортивная школа» | D99: 78.01230769 | E99: ='1ОиДинфоб'!G47 -> 21.6 | F99: ='1ОиДинфоб'!J47 -> 30 | G99: ='1ОиДинфоб'!P47 -> 40 | H99: 91.6 | I99: ='2КомУслОц'!F48 -> 50 | J99: ='2КомУслОц'!J48 -> 48.46153846 | K99: 98.46153846 | L99: ='3УслДостИнвОц'!F47 -> 6 | M99: ='3УслДостИнвОц'!I47 -> 0 | N99: ='3УслДостИнвОц'!M47 -> 0 | O99: 6 | P99: ='4ДобрВежл'!H47 -> 38.8 | Q99: ='4ДобрВежл'!L47 -> 38.8 | R99: ='4ДобрВежл'!P47 -> 19.4 | S99: 97 | T99: ='5УдовлУсл'!H47 -> 29.1 | U99: ='5УдовлУсл'!L47 -> 19.4 | V99: ='5УдовлУсл'!P47 -> 48.5 | W99: 97
A103: Место в рейтинге | B103: Муниципальное образование | C103: Наименование образовательной организации | D103: Интегральное значение показателя | E103: К1 | F103: К2 | G103: К3 | H103: К4 | I103: К5
A104: 1 | B104: г. Барнаул | C104: КГБУДО «Детский технопарк Алтайского края «Кванториум.22» | D104: 98.79 | E104: 100 | F104: 99.95 | G104: 94 | H104: 100 | I104: 100
A105: 2 | B105: г. Барнаул | C105: МБУДО Детский оздоровительно-образовательный (профильный) центр «Валеологический центр» | D105: 98.612 | E105: 99.1 | F105: 100 | G105: 94 | H105: 99.96 | I105: 100
A106: 3 | B106: г. Барнаул | C106: КГБУДО «Алтайский краевой детский экологический центр» | D106: 98.51722609 | E106: 99.71836735 | F106: 99.85 | G106: 93.4 | H106: 99.64776312 | I106: 99.97
B107: Советский район | C107: МБУДО «Детско-юношеский центр» Советского района | D107: 98.466 | E107: 100 | F107: 99.5 | G107: 93.4 | H107: 100 | I107: 99.43
A108: 4 | B108: Баевский район | C108: МБУДО «Баевский Центр детского творчества и профессионального обучения Алтайского края» | D108: 98.33591837 | E108: 99.1 | F108: 98.97959184 | G108: 94 | H108: 99.78 | I108: 99.82
B109: Шелаболихинский район | C109: МКУДО «Шелаболихинская детско-юношеская спортивная школа» | D109: 98.33678788 | E109: 96.3 | F109: 99.5 | G109: 100 | H109: 99.39393939 | I109: 96.49
A110: 5 | B110: г. Барнаул | C110: КГБУДО «Алтайский краевой центр детского отдыха, туризма и краеведения «Алтай» | D110: 98.18316441 | E110: 98.3 | F110: 99.5 | G110: 94 | H110: 99.35322467 | I110: 99.7625974
B111: г. Рубцовск | C111: МБУДО «Станция туризма и экскурсий» г. Рубцовска | D111: 98.15237037 | E111: 99.65185185 | F111: 98 | G111: 94 | H111: 99.78 | I111: 99.33
A112: 6 | B112: Кулундинский район | C112: МБУДО «Центр детского творчества» Кулундинского района | D112: 98.14494384 | E112: 94.47077642 | F112: 99.03474903 | G112: 98.23529412 | H112: 99.61389961 | I112: 99.37
A113: 7 | B113: Алтайский район | C113: МАОУДО «Алтайский районный детско-юношеский центр» | D113: 97.60338365 | E113: 97.57768749 | F113: 99.51923077 | G113: 93.1 | H113: 98.8 | I113: 99.02
A114: 8 | B114: Завьяловский район | C114: МБОУДО «Завьяловский районный центр детского творчества» | D114: 96.90385245 | E114: 93.59926224 | F114: 98.5 | G114: 94 | H114: 98.8 | I114: 99.62
B115: Заринский район | C115: МБУДО «Центр детского творчества» Заринского района | D115: 96.912 | E115: 93.1 | F115: 99.5 | G115: 94 | H115: 99.18 | I115: 98.78
A116: 9 | B116: г. Заринск | C116: МБУДО «Центр детского творчества» г. Заринска | D116: 96.70957342 | E116: 94.47786708 | F116: 99 | G116: 92 | H116: 99.04 | I116: 99.03
A117: 10 | B117: Змеиногорский район | C117: МБУДО «Дворец творчества детей и молодежи» Змеиногорского района | D117: 95.57264968 | E117: 98.16615905 | F117: 99.95 | G117: 80 | H117: 99.88236311 | I117: 99.86472622
A118: 11 | B118: г. Белокуриха | C118: МБУДО «Центр эстетического воспитания» г. Белокурихи | D118: 94.91051612 | E118: 97.53387755 | F118: 100 | G118: 77.6 | H118: 99.65870307 | I118: 99.76
A119: 12 | B119: Кытмановский район | C119: МБУДО «Центр спорта и творчества Кытмановского района» | D119: 94.64716376 | E119: 90 | F119: 98.95470383 | G119: 86 | H119: 98.81533101 | I119: 99.46578397
A120: 13 | B120: Топчихинский район | C120: МКУДО «Топчихинский детско-юношеский центр» | D120: 94.52395745 | E120: 85.92978723 | F120: 100 | G120: 88 | H120: 99.04 | I120: 99.65
A121: 14 | B121: г. Барнаул | C121: МБУДО «Детская школа искусств «Традиция» с. Власиха г. Барнаула | D121: 94.35273905 | E121: 94.94783026 | F121: 99.5 | G121: 78 | H121: 99.78 | I121: 99.53586498
A122: 15 | B122: Чарышский район | C122: МБУДО «Центр детского творчества»Чарышского района | D122: 94.14082657 | E122: 93.62162162 | F122: 100 | G122: 78 | H122: 99.44125561 | I122: 99.64125561
A123: 16 | B123: Крутихинский район | C123: МБУДО «Крутихинский Детско-юношеский центр» | D123: 93.68 | E123: 96.4 | F123: 100 | G123: 72 | H123: 100 | I123: 100
A124: 17 | B124: г. Яровое | C124: МБУДО «Центр научно-технического творчества учащихся» г. Яровое | D124: 93.41537341 | E124: 97.19153953 | F124: 98.5 | G124: 72 | H124: 99.56 | I124: 99.82532751
A125: 18 | B125: Локтевский район | C125: МБУДО «Дом детского творчества» Локтевского района | D125: 93.02795699 | E125: 100 | F125: 100 | G125: 66 | H125: 99.56989247 | I125: 99.56989247
A126: 19 | B126: г. Барнаул | C126: МБУДО «Центр детского творчества №2» г. Барнаула | D126: 92.9308211 | E126: 98.90247253 | F126: 98.5 | G126: 69.6 | H126: 99.00466563 | I126: 98.64696734
A127: 20 | B127: Ельцовский район | C127: МБУДО «Ельцовский центр развития детей-детско-юношеская спортивная школа" | D127: 92.68990441 | E127: 94.85714286 | F127: 99.5 | G127: 72 | H127: 98.6 | I127: 98.49237918
B128: Тальменский район | C128: МКУДО «Тальменская детско-юношеская спортивная школа» | D128: 92.65266667 | E128: 91.58333333 | F128: 100 | G128: 72 | H128: 99.68 | I128: 100
A129: 21 | B129: Благовещенский район | C129: МБУДО «Благовещенский детско-юношеский центр» | D129: 92.57911009 | E129: 91.54290146 | F129: 99.95 | G129: 72 | H129: 99.60264901 | I129: 99.8
A130: 22 | B130: г. Барнаул | C130: МБУДО Городской психолого-педагогический центр «Потенциал» | D130: 92.53346729 | E130: 88 | F130: 99.50634697 | G130: 77.42307692 | H130: 98.99791255 | I130: 98.74
A131: 23 | B131: Новоалтайск район | C131: МБОУДО «Детско-юношеский центр города Новоалтайска» | D131: 91.99996159 | E131: 94.825 | F131: 99.95 | G131: 66 | H131: 99.42395448 | I131: 99.80085349
A132: 24 | B132: Табунский район | C132: МБУДО «Центр дополнительного образования детей» Табунского района | D132: 91.9102871 | E132: 83.93333333 | F132: 95 | G132: 85.93 | H132: 97.6480292 | I132: 97.04007299
A133: 25 | B133: г. Барнаул | C133: МБУДО «Центр развития творчества детей и юношества» Ленинского района г. Барнаула | D133: 91.73359933 | E133: 98.79799666 | F133: 99.95 | G133: 60 | H133: 99.96 | I133: 99.96
A134: 26 | B134: Чарышский район | C134: МБУДО «Детско-юношеская спортивная школа» Чарышского района | D134: 91.508 | E134: 87.7 | F134: 100 | G134: 70 | H134: 99.84 | I134: 100
A135: 27 | B135: Мамонтовский район | C135: МБУДО «Мамонтовский детско-юношеский центр» | D135: 91.318 | E135: 97.9 | F135: 99.5 | G135: 60 | H135: 100 | I135: 99.19
B136: Новичихинский район | C136: МКОУДО «Новичихинская детско-юношеская спортивная школа» | D136: 91.33390476 | E136: 92.70952381 | F136: 99 | G136: 66 | H136: 99.52 | I136: 99.44
B137: Ребрихинский район | C137: МКОУДО «Ребрихинский детско-юношеский центр» | D137: 91.25434678 | E137: 94.81943837 | F137: 99.47229551 | G137: 63.9 | H137: 98.96 | I137: 99.12
B138: г. Славгород | C138: МБУДО «Центр творчества детей и молодежи» г. Славгорода | D138: 91.29002484 | E138: 96.6 | F138: 98.52484472 | G138: 64.4 | H138: 98.35403727 | I138: 98.57124224
A139: 28 | B139: Романовский район | C139: МБУДО «Романовский детско-юношеский центр» | D139: 91.102 | E139: 97 | F139: 99 | G139: 60 | H139: 99.56 | I139: 99.95
A140: 29 | B140: Шелаболихинский район | C140: МБУДО «Шелаболихинский центр детского творчества» | D140: 90.85457783 | E140: 94.92792793 | F140: 99.5 | G140: 60 | H140: 99.84496124 | I140: 100
A141: 30 | B141: Поспелихинский район | C141: МКУДО «Поспелихинский районный центр детского творчества» | D141: 90.84727273 | E141: 95.13636364 | F141: 99.5 | G141: 60 | H141: 99.76 | I141: 99.84
A142: 31 | B142: Родинский район | C142: МБУДО «Детский оздоровительно-образовательный центр Родинского района | D142: 90.72 | E142: 96.1 | F142: 99.5 | G142: 58 | H142: 100 | I142: 100
A143: 32 | B143: г. Алейск | C143: МБУДО «Центр детского творчества» (г. Алейск) | D143: 90.39593016 | E143: 94.46952421 | F143: 99.5 | G143: 60 | H143: 99.03012658 | I143: 98.98
A144: 33 | B144: Тальменский район | C144: МКУДО «Тальменский центр внешкольной работы» | D144: 90.34745541 | E144: 96.31273161 | F144: 99.5 | G144: 57.27272727 | H144: 99.35181818 | I144: 99.3
A145: 34 | B145: г. Барнаул | C145: МБУДО «Центр детского творчества» Центрального района г. Барнаула | D145: 90.08393939 | E145: 93.56969697 | F145: 98.95 | G145: 60 | H145: 99.38 | I145: 98.52
A146: 35 | B146: г. Барнаул | C146: КГБУДО «Алтайский краевой дворец творчества детей и молодежи» | D146: 89.9529453 | E146: 92.8 | F146: 99 | G146: 60 | H146: 98.84 | I146: 99.12472648
B147: Смоленский район | C147: МБУДО «Смоленский дом детского творчества» | D147: 90.0482963 | E147: 96.48148148 | F147: 100 | G147: 54 | H147: 99.76 | I147: 100
A148: 36 | B148: г. Бийск | C148: МБУДО «Детский эколого-туристический центр» г. Бийска | D148: 89.94577622 | E148: 96.74279344 | F148: 99.5 | G148: 55.23 | H148: 99.00608768 | I148: 99.25
B149: Михайловский район | C149: МКОДО «Михайловский образовательно-оздоровительный центр Им. Ю.А. Гагарина» | D149: 89.89666667 | E149: 88.18333333 | F149: 97.5 | G149: 74 | H149: 95.8 | I149: 94
A150: 37 | B150: г. Барнаул | C150: МБУДО «Центр развития творчества детей и юношества» Индустриального района г. Барнаула | D150: 89.82751817 | E150: 96.35759083 | F150: 99.5 | G150: 54 | H150: 99.44 | I150: 99.84
B151: Бийский район | C151: МБУДО «Центр внешкольной работы» Бийского района | D151: 89.814 | E151: 95.2 | F151: 98.5 | G151: 58 | H151: 99.24 | I151: 98.13
A152: 38 | B152: г. Барнаул | C152: МБУДО «Центр эстетического воспитания «Песнохорки» | D152: 89.74872961 | E152: 92.37908497 | F152: 99.51456311 | G152: 60 | H152: 98.4 | I152: 98.45
B153: г. Бийск | C153: МБУДО «Дом детского творчества» г. Бийска | D153: 89.66769869 | E153: 99.25490764 | F153: 99.45 | G153: 51.63 | H153: 99.00179289 | I153: 99.00179289
A154: 39 | B154: г. Барнаул | C154: МБУДО «Дом художественного творчества детей» (г. Барнаул) | D154: 89.63679016 | E154: 98.73061748 | F154: 99.5 | G154: 50.8 | H154: 99.39333333 | I154: 99.76
B155: Михайловский район | C155: МКУДО «Михайловская детско-юношеская спортивная школа» | D155: 89.56523364 | E155: 91.82616822 | F155: 100 | G155: 56 | H155: 100 | I155: 100
A156: 40 | B156: Краснощековский район | C156: МБУДО «Краснощековский районный детско-юношеский центр» | D156: 89.52363636 | E156: 96.61818182 | F156: 99.5 | G156: 52 | H156: 100 | I156: 99.5
A157: 41 | B157: г. Рубцовск | C157: МБУДО «Детско-юношеский центр» г. Рубцовска | D157: 89.39452951 | E157: 86.16810207 | F157: 99.95 | G157: 61.45454545 | H157: 99.4 | I157: 100
B158: Третьяковский район | C158: МБОУДО «Центр развития творчества детей и юношества» Третьяковского района | D158: 89.44 | E158: 93.7 | F158: 99.5 | G158: 54 | H158: 100 | I158: 100
A159: 42 | B159: г. Барнаул | C159: МБУДО «Барнаульский городской детско-юношеский центр» | D159: 89.01181433 | E159: 97.81361708 | F159: 99.5 | G159: 50.2 | H159: 98.78787879 | I159: 98.75757576
A160: 43 | B160: Каменский район | C160: МБУДО «Каменский многопрофильный образовательный центр» | D160: 88.89140005 | E160: 93.13700025 | F160: 100 | G160: 51.93 | H160: 99.44 | I160: 99.95
B161: Павловский район | C161: МБУДО «Павловский детско-юношеский центр» | D161: 88.93769231 | E161: 96 | F161: 98 | G161: 54 | H161: 98.44 | I161: 98.24846154
A162: 44 | B162: Целинный район | C162: МБУДО «Центр творчества и отдыха» Целинного района | D162: 88.83349296 | E162: 84.87746479 | F162: 97 | G162: 66 | H162: 99.02 | I162: 97.27
A163: 45 | B163: г. Барнаул | C163: МБУДО «Детский оздоровительно-образовательный (профильный) центр Гармония» | D163: 88.74 | E163: 94.9 | F163: 100 | G163: 50 | H163: 98.8 | I163: 100
B164: Панкрушихинский район | C164: МБОУДО «Панкрушихинский районный Центр творчества» | D164: 88.65707637 | E164: 85.14259496 | F164: 99.01639344 | G164: 62.23 | H164: 98.52655738 | I164: 98.36983607
A165: 46 | B165: г. Барнаул | C165: МБУДО «Барнаульская городская станция юных техников» | D165: 88.52427412 | E165: 97.9 | F165: 99.95 | G165: 45.41176471 | H165: 99.408867 | I165: 99.95073892
A166: 47 | B166: Быстроистокский район | C166: МБУДО «Быстроистокская детско-юношеская спортивная школа» | D166: 88.3748714 | E166: 97.63193277 | F166: 99.5 | G166: 46 | H166: 99.24242424 | I166: 99.5
A167: 48 | B167: г. Барнаул | C167: МБУДО «Детско-юношеский центр» Индустриального района г. Барнаула | D167: 88.25190287 | E167: 97.46898435 | F167: 99.95 | G167: 44 | H167: 99.86052999 | I167: 99.98
B168: Курьинский район | C168: МБУДО «Дом детского творчества» Курьинского района | D168: 88.32116328 | E168: 93.58253968 | F168: 99.45054945 | G168: 49.27272727 | H168: 100 | I168: 99.3
B169: Солтонский район | C169: МКОУДО «Детско-юношеский центр» Солтонского района | D169: 88.25173031 | E169: 92.41612903 | F169: 97.52252252 | G169: 52 | H169: 99.44 | I169: 99.88
A170: 49 | B170: г. Барнаул | C170: МБУДО Центр внешкольной работы «Военно-спортивный клуб «Борец» | D170: 88.13554891 | E170: 95.83774453 | F170: 100 | G170: 46 | H170: 98.84 | I170: 100
B171: Усть-Калманский район | C171: МБУДО «Центр детского творчества» Усть-Калманского района | D171: 88.10044444 | E171: 94.52222222 | F171: 100 | G171: 46 | H171: 100 | I171: 99.98
A172: 50 | B172: г. Рубцовск | C172: МБУДО «Центр развития творчества» г. Рубцовска | D172: 88.036 | E172: 94.3 | F172: 99.95 | G172: 46 | H172: 99.98 | I172: 99.95
A173: 51 | B173: Первомайский район | C173: МБУДО «Центр творчества детей и молодежи «Созвездие» Первомайского района | D173: 87.85626519 | E173: 94 | F173: 99.51657459 | G173: 46 | H173: 99.88475138 | I173: 99.88
A174: 52 | B174: г. Рубцовск | C174: МБУДО «Центр внешкольной работы «Малая Академия» г. Рубцовска | D174: 87.60919654 | E174: 96.32222897 | F174: 99 | G174: 45.67 | H174: 98.40912913 | I174: 98.64462462
A175: 53 | B175: г. Барнаул | C175: МБУДО «Барнаульская городская станция юных натуралистов» | D175: 87.47200213 | E175: 97.05835777 | F175: 99.9 | G175: 42.63 | H175: 98.6214876 | I175: 99.15016529
B176: Бурлинский район | C176: МБУДО «Бурлинский Центр дополнительного образования» | D176: 87.53891228 | E176: 88.3245614 | F176: 100 | G176: 50.07 | H176: 100 | I176: 99.3
A177: 54 | B177: Хабарский район | C177: МБУДО «Центр детского творчества» Хабарского района | D177: 87.42 | E177: 94 | F177: 100 | G177: 45 | H177: 99.24 | I177: 98.86
A178: 55 | B178: г. Барнаул | C178: МБУДО «Центр детского творчества» Октябрьского района г. Барнаула | D178: 87.10189723 | E178: 96.2 | F178: 97 | G178: 46 | H178: 98.04948617 | I178: 98.26
A179: 56 | B179: Тогульский район | C179: МКУДО «Центр творчества, спорта и отдыха» Тогульского района | D179: 86.92872029 | E179: 93.62360146 | F179: 99.5 | G179: 44 | H179: 99.02 | I179: 98.5
A180: 57 | B180: г. Барнаул | C180: МБУДО «Центр детского (юношеского) технического творчества» Ленинского района | D180: 86.74296296 | E180: 83.95555556 | F180: 99 | G180: 52 | H180: 99.62962963 | I180: 99.12962963
A181: 58 | B181: ЗАТО Сибирский | C181: МБУДО «Детско-юношеский центр «Росток» ЗАТО Сибирский | D181: 86.49588517 | E181: 94.54545455 | F181: 99 | G181: 40.66666667 | H181: 98.44912281 | I181: 99.81818182
A182: 59 | B182: Рубцовский район | C182: МБУДО «Детско-юношеская спортивная школа» Рубцовского района | D182: 86.11958421 | E182: 89.7150639 | F182: 100 | G182: 42 | H182: 99.64285714 | I182: 99.24
A183: 60 | B183: г. Барнаул | C183: МБУДО «Центр развития творчества детей и молодежи» Железнодорожного района | D183: 85.93813537 | E183: 95.64469697 | F183: 98.5 | G183: 38.2 | H183: 98.7719933 | I183: 98.5739866
B184: Тюменцевский район | C184: МБУДО «Тюменцевский районный центр детского творчества» | D184: 85.8821855 | E184: 93.60980392 | F184: 99.5 | G184: 38 | H184: 99.5505618 | I184: 98.7505618
A185: 61 | B185: г. Барнаул | C185: МБУДО «Центр физкультурно-спортивной направленности «Акцент» | D185: 85.28858505 | E185: 92.71830986 | F185: 99.5 | G185: 36 | H185: 99.38461538 | I185: 98.84
A186: 62 | B186: г. Белокуриха | C186: МБУДО «Детско-юношеская спортивная школа» г. Белокурихи | D186: 85.24504505 | E186: 96.72522523 | F186: 99.5 | G186: 30 | H186: 100 | I186: 100
A187: 63 | B187: Калманский район | C187: МБУДО «Калманский районный детско-юношеский центр» | D187: 85.06047534 | E187: 96.55517241 | F187: 98.5 | G187: 32 | H187: 99.56989247 | I187: 98.67731183
A188: 64 | B188: Топчихинский район | C188: МКУДО «Топчихинская детско-юношеская спортивная школа» | D188: 85.12086022 | E188: 84.30430108 | F188: 98 | G188: 44.5 | H188: 99.6 | I188: 99.2
A189: 65 | B189: Мамонтовский район | C189: МКУДО «Мамонтовская детско-юношеская спортивная школа» | D189: 84.86762753 | E189: 91.97813765 | F189: 95.5 | G189: 46 | H189: 96.02 | I189: 94.84
B190: г. Барнаул | C190: МБУДО «Центр дополнительного образования детей «Память» Пост №1 г. Барнаула» | D190: 83.902 | E190: 83.3 | F190: 99.5 | G190: 38 | H190: 99.56 | I190: 99.15
B191: Солонешенский район | C191: МБУДО «Солонешенский центр детского творчества» | D191: 83.93259486 | E191: 95.16297428 | F191: 97.5 | G191: 30 | H191: 99 | I191: 98
A192: 66 | B192: Первомайский район | C192: МБУДОД «Детско-юношеская спортивная школа» Первомайского района | D192: 82.50072837 | E192: 78.36111111 | F192: 99.95 | G192: 36 | H192: 98.24253076 | I192: 99.95
A193: 67 | B193: Егорьевский район | C193: МБУДО «Егорьевская детско-юношеская спортивная школа» | D193: 82.4437594 | E193: 82.64736842 | F193: 97.5 | G193: 38 | H193: 99 | I193: 95.07142857
B194: Красногорский район | C194: МКУДО «Дом детского творчества» Красногорского района | D194: 82.39410054 | E194: 91.80460526 | F194: 99.5 | G194: 30 | H194: 95.42 | I194: 95.24589744
B195: Троицкий район | C195: МБУДО «Троицкий детско-юношеский центр» | D195: 82.39036735 | E195: 96.59183673 | F195: 100 | G195: 16 | H195: 99.36 | I195: 100
A196: 68 | B196: Рубцовский район | C196: МБУДО «Центр творческого развития «Ступени» Рубцовского района | D196: 81.83442857 | E196: 73.23214286 | F196: 99.5 | G196: 38 | H196: 99.64 | I196: 98.8
A197: 69 | B197: Усть-Пристанский район | C197: МКУДО «Дом детского творчества» Усть-Пристанского района | D197: 81.48261682 | E197: 92.41308411 | F197: 99 | G197: 16 | H197: 100 | I197: 100
A198: 70 | B198: Залесовский район | C198: МБУДО «Центр спорта и творчества» | D198: 80.30218579 | E198: 92.2942623 | F198: 98 | G198: 17.93 | H198: 98.23904762 | I198: 95.04761905
A199: 71 | B199: Зональный район | C199: МКОУДО «Зональная районная детско-юношеская спортивная школа» | D199: 78.01230769 | E199: 91.6 | F199: 98.46153846 | G199: 6 | H199: 97 | I199: 97
A200: Среднее по региону | D200: =AVERAGE(D104:D199) -> 90.05662848 | E200: =AVERAGE(E104:E199) -> 93.70348293 | F200: 99.209624 | G200: =AVERAGE(G104:G199) -> 59.11548753 | H200: 99.19778232 | I200: =AVERAGE(I104:I199) -> 99.05676564
